Workbook

Sheet PC_Rec
C4: 1.1 | D4: INGRESOS CON LOS PRODUCTOS | F4: 1.2 | G4: INGRESOS CON SERVICIOS | I4: 1.3 | J4: OTROS INGRESOS | L4: 1.4 | M4: INGRESOS FINANCIEROS | O4: lista de cuentas (PC) | P4: auxiliar indirecto | Q4: Ingresos o gastos
C5: 1.1.1 | D5: Folleto financiera | F5: 1.2.1 | G5: consultoría financiera | I5: 1.3.1 | J5: Cursos en la empresa | L5: 1.4.1 | M5: acciones | N5: 1 | O5: =D4 -> INGRESOS CON LOS PRODUCTOS | P5: recipe1 | Q5: Ingresos
C6: 1.1.2 | D6: Estrategia folleto | F6: 1.2.2 | G6: consultoría estratégica | I6: 1.3.2 | J6: Los cursos en línea | L6: 1.4.2 | M6: BDC | N6: 2 | O6: =G4 -> INGRESOS CON SERVICIOS | P6: Receita2 | Q6: Ingresos
C7: 1.1.3 | D7: folleto de marketing | F7: 1.2.3 | G7: Consulta de marketing | I7: 1.3.3 | J7: conferencias | L7: 1.4.3 | M7: Tesoro directo | N7: 3 | O7: =J4 -> OTROS INGRESOS | P7: Receita3 | Q7: Ingresos
C8: 1.1.4 | D8: Gestión de Personas Folleto | F8: 1.2.4 | G8: Las personas Management Consulting | I8: 1.3.4 | J8: presentaciones | L8: 1.4.4 | M8: ahorros | N8: 4 | O8: =M4 -> INGRESOS FINANCIEROS | P8: Receita4 | Q8: Ingresos
C9: 1.1.5 | D9: calidad Folleto | F9: 1.2.5 | G9: consultoría de calidad | I9: 1.3.5 | J9: entrenamiento | L9: 1.4.5 | M9: Fondos de inversión | N9: 5 | O9: =PC_Des!D4 -> COSTO DE LOS PRODUCTOS | P9: Costo1 | Q9: gasto
C10: 1.1.6 | D10: - | F10: 1.2.6 | G10: - | I10: 1.3.6 | J10: - | L10: 1.4.6 | M10: - | N10: 6 | O10: =PC_Des!G4 -> COSTE DE SERVICIOS | P10: Custo2 | Q10: gasto
C11: 1.1.7 | D11: - | F11: 1.2.7 | G11: - | I11: 1.3.7 | J11: - | L11: 1.4.7 | M11: - | N11: 7 | O11: =PC_Des!J4 -> OTROS GASTOS | P11: Custo3 | Q11: gasto
C12: 1.1.8 | D12: - | F12: 1.2.8 | G12: - | I12: 1.3.8 | J12: - | L12: 1.4.8 | M12: - | N12: 8 | O12: =PC_Des!M4 -> GASTO EN RRHH | P12: Despesa1 | Q12: gasto
C13: 1.1.9 | D13: - | F13: 1.2.9 | G13: - | I13: 1.3.9 | J13: - | L13: 1.4.9 | M13: - | N13: 9 | O13: =PC_Des!P4 -> GASTOS CON MARKETING | P13: Despesa2 | Q13: gasto
C14: 1.1.10 | D14: - | F14: 1.2.10 | G14: - | I14: 1.3.10 | J14: - | L14: 1.4.10 | M14: - | N14: 10 | O14: =PC_Des!S4 -> GASTOS DE FUNCIONAMIENTO | P14: Despesa3 | Q14: gasto
C15: 1.1.11 | D15: - | F15: 1.2.11 | G15: - | I15: 1.3.11 | J15: - | L15: 1.4.11 | M15: - | N15: 11 | O15: =PC_Des!V4 -> OTROS GASTOS | P15: Despesa4 | Q15: gasto
C16: 1.1.12 | D16: - | F16: 1.2.12 | G16: - | I16: 1.3.12 | J16: - | L16: 1.4.12 | M16: - | N16: 12 | O16: =PC_Des!Y4 -> GASTOS FINANCIEROS | P16: Despesa5 | Q16: gasto
C17: 1.1.13 | D17: - | F17: 1.2.13 | G17: - | I17: 1.3.13 | J17: - | L17: 1.4.13 | M17: - | N17: 13 | O17: =PC_Des!AB4 -> IMPUESTOS | P17: impuesto | Q17: gasto
C18: 1.1.14 | D18: - | F18: 1.2.14 | G18: - | I18: 1.3.14 | J18: - | L18: 1.4.14 | M18: - | N18: 14 | O18: =PC_Des!AE4 -> INVERSIÓN | P18: inversión | Q18: gasto
C19: 1.1.15 | D19: - | F19: 1.2.15 | G19: - | I19: 1.3.15 | J19: - | L19: 1.4.15 | M19: -
C20: 1.1.16 | D20: - | F20: 1.2.16 | G20: - | I20: 1.3.16 | J20: - | L20: 1.4.16 | M20: -
C21: 1.1.17 | D21: - | F21: 1.2.17 | G21: - | I21: 1.3.17 | J21: - | L21: 1.4.17 | M21: -
C22: 1.1.18 | D22: - | F22: 1.2.18 | G22: - | I22: 1.3.18 | J22: - | L22: 1.4.18 | M22: -
C23: 1.1.19 | D23: - | F23: 1.2.19 | G23: - | I23: 1.3.19 | J23: - | L23: 1.4.19 | M23: -
C24: 1.1.20 | D24: - | F24: 1.2.20 | G24: - | I24: 1.3.20 | J24: - | L24: 1.4.20 | M24: -
C25: 1.1.21 | D25: - | F25: 1.2.21 | G25: - | I25: 1.3.21 | J25: - | L25: 1.4.21 | M25: -
C26: 1.1.22 | D26: - | F26: 1.2.22 | G26: - | I26: 1.3.22 | J26: - | L26: 1.4.22 | M26: -
C27: 1.1.23 | D27: - | F27: 1.2.23 | G27: - | I27: 1.3.23 | J27: - | L27: 1.4.23 | M27: -
C28: 1.1.24 | D28: - | F28: 1.2.24 | G28: - | I28: 1.3.24 | J28: - | L28: 1.4.24 | M28: -
C29: 1.1.25 | D29: - | F29: 1.2.25 | G29: - | I29: 1.3.25 | J29: - | L29: 1.4.25 | M29: -
C30: 1.1.26 | D30: - | F30: 1.2.26 | G30: - | I30: 1.3.26 | J30: - | L30: 1.4.26 | M30: -
C31: 1.1.27 | D31: - | F31: 1.2.27 | G31: - | I31: 1.3.27 | J31: - | L31: 1.4.27 | M31: -
C32: 1.1.28 | D32: - | F32: 1.2.28 | G32: - | I32: 1.3.28 | J32: - | L32: 01.04.28 | M32: -
C33: 1.1.29 | D33: - | F33: 1.2.29 | G33: - | I33: 1.3.29 | J33: - | L33: 1.4.29 | M33: -
C34: 1.1.30 | D34: - | F34: 1.2.30 | G34: - | I34: 1.3.30 | J34: - | L34: 1.4.30 | M34: -
C35: 1.1.31 | D35: - | F35: 1.2.31 | G35: - | I35: 1.3.31 | J35: - | L35: 1.4.31 | M35: -
C36: 1.1.32 | D36: - | F36: 1.2.32 | G36: - | I36: 1.3.32 | J36: - | L36: 1.4.32 | M36: -
C37: 1.1.33 | D37: - | F37: 1.2.33 | G37: - | I37: 1.3.33 | J37: - | L37: 1.4.33 | M37: -
C38: 1.1.34 | D38: - | F38: 1.2.34 | G38: - | I38: 1.3.34 | J38: - | L38: 1.4.34 | M38: -
C39: 1.1.35 | D39: - | F39: 1.2.35 | G39: - | I39: 1.3.35 | J39: - | L39: 1.4.35 | M39: -
C40: 01.01.36 | D40: - | F40: 1.2.36 | G40: - | I40: 1.3.36 | J40: - | L40: 1.4.36 | M40: -
C41: 1.1.37 | D41: - | F41: 1.2.37 | G41: - | I41: 1.3.37 | J41: - | L41: 1.4.37 | M41: -
C42: 1.1.38 | D42: - | F42: 1.2.38 | G42: - | I42: 1.3.38 | J42: - | L42: 01.04.38 | M42: -
C43: 01.01.39 | D43: - | F43: 1.2.39 | G43: - | I43: 1.3.39 | J43: - | L43: 01.04.39 | M43: -
C44: 1.1.40 | D44: - | F44: 1.2.40 | G44: - | I44: 01.03.40 | J44: - | L44: 1.4.40 | M44: -

Sheet PC_Des
C4: 2.1 | D4: COSTO DE LOS PRODUCTOS | F4: 2.2 | G4: COSTE DE SERVICIOS | I4: 2.3 | J4: OTROS GASTOS | L4: 2.4 | M4: GASTO EN RRHH | O4: 2.5 | P4: GASTOS CON MARKETING | R4: 2.6 | S4: GASTOS DE FUNCIONAMIENTO | U4: 2.7 | V4: OTROS GASTOS | X4: 2.8 | Y4: GASTOS FINANCIEROS | AA4: 2.9 | AB4: IMPUESTOS | AD4: 02:10 | AE4: INVERSIÓN
C5: 2.1.1 | D5: hojas | F5: 2.2.1 | G5: transporte | I5: 2.3.1 | J5: maestros | L5: 2.4.1 | M5: salario | O5: 2.5.1 | P5: Adwords | R5: 2.6.1 | S5: renta | U5: 2.7.1 | V5: punto 1 | X5: 2.8.1 | Y5: PayPal | AA5: 2.9.1 | AB5: ITBIS | AD5: 2.10.1 | AE5: tierra
C6: 2.1.2 | D6: encuadernación | F6: 2.2.2 | G6: alojamiento | I6: 2.3.2 | J6: Los entrenadores | L6: 2.4.2 | M6: Pro labore | O6: 2.5.2 | P6: Los anuncios de Facebook | R6: 2.6.2 | S6: contabilidad | U6: 2.7.2 | V6: punto 2 | X6: 2.8.2 | Y6: La pérdida de las acciones | AA6: 2.9.2 | AB6: ISR | AD6: 2.10.2 | AE6: máquinas
C7: 2.1.3 | D7: costes de impresión | F7: 2.2.3 | G7: El análisis pagado | I7: 2.3.3 | J7: diseñadores | L7: 2.4.3 | M7: formación | O7: 2.5.3 | P7: banderas | R7: 2.6.3 | S7: servicios legales | U7: 2.7.3 | V7: el punto 3 | X7: 2.8.3 | Y7: Préstamos PMT | AA7: 2.9.3 | AB7: IE | AD7: 2.10.3 | AE7: equipo
C8: 2.1.4 | D8: los costos de logística | F8: 2.2.4 | G8: personal externo | I8: 2.3.4 | J8: software específico | L8: 2.4.4 | M8: cargos | O8: 2.5.4 | P8: volantes | R8: 2.6.4 | S8: Materiales de limpieza | U8: 2.7.4 | V8: el punto 4 | X8: 2.8.4 | Y8: Financiación PMT | AA8: 2.9.4 | AB8: - | AD8: 2.10.4 | AE8: vehículos
C9: 2.1.5 | D9: embalaje | F9: 2.2.5 | G9: sellos de calidad | I9: 2.3.5 | J9: externalizado | L9: 2.4.5 | M9: bonificaciones | O9: 2.5.5 | P9: Tarjetas de visita | R9: 2.6.5 | S9: materiales de papelería | U9: 2.7.5 | V9: Otros gastos | X9: 2.8.5 | Y9: retiros | AA9: 2.9.5 | AB9: - | AD9: 2.10.5 | AE9: reforma
C10: 2.1.6 | D10: - | F10: 2.2.6 | G10: - | I10: 2.3.6 | J10: - | L10: 2.4.6 | M10: - | O10: 2.5.6 | P10: marketing por correo electrónico | R10: 2.6.6 | S10: software de gestión | U10: 2.7.6 | V10: - | X10: 2.8.6 | Y10: - | AA10: 2.9.6 | AB10: - | AD10: 2.10.6 | AE10: -
C11: 2.1.7 | D11: - | F11: 2.2.7 | G11: - | I11: 2.3.7 | J11: - | L11: 2.4.7 | M11: - | O11: 2.5.7 | P11: - | R11: 2.6.7 | S11: - | U11: 2.7.7 | V11: - | X11: 2.8.7 | Y11: - | AA11: 2.9.7 | AB11: - | AD11: 2.10.7 | AE11: -
C12: 2.1.8 | D12: - | F12: 2.2.8 | G12: - | I12: 2.3.8 | J12: - | L12: 2.4.8 | M12: - | O12: 2.5.8 | P12: - | R12: 2.6.8 | S12: - | U12: 2.7.8 | V12: - | X12: 2.8.8 | Y12: - | AA12: 2.9.8 | AB12: - | AD12: 2.10.8 | AE12: -
C13: 2.1.9 | D13: - | F13: 2.2.9 | G13: - | I13: 2.3.9 | J13: - | L13: 2.4.9 | M13: - | O13: 2.5.9 | P13: - | R13: 2.6.9 | S13: - | U13: 2.7.9 | V13: - | X13: 2.8.9 | Y13: - | AA13: 2.9.9 | AB13: - | AD13: 2.10.9 | AE13: -
C14: 2.1.10 | D14: - | F14: 2.2.10 | G14: - | I14: 2.3.10 | J14: - | L14: 2.4.10 | M14: - | O14: 2.5.10 | P14: - | R14: 2.6.10 | S14: - | U14: 2.7.10 | V14: - | X14: 2.8.10 | Y14: - | AA14: 2.9.10 | AB14: - | AD14: 02:10:10 | AE14: -
C15: 2.1.11 | D15: - | F15: 2.2.11 | G15: - | I15: 2.3.11 | J15: - | L15: 2.4.11 | M15: - | O15: 2.5.11 | P15: - | R15: 2.6.11 | S15: - | U15: 2.7.11 | V15: - | X15: 2.8.11 | Y15: - | AA15: 2.9.11 | AB15: - | AD15: 02:10:11 | AE15: -
C16: 2.1.12 | D16: - | F16: 2.2.12 | G16: - | I16: 2.3.12 | J16: - | L16: 2.4.12 | M16: - | O16: 2.5.12 | P16: - | R16: 2.6.12 | S16: - | U16: 2.7.12 | V16: - | X16: 02/08/12 | Y16: - | AA16: 2.9.12 | AB16: - | AD16: 02:10:12 | AE16: -
C17: 2.1.13 | D17: - | F17: 2.2.13 | G17: - | I17: 2.3.13 | J17: - | L17: 2.4.13 | M17: - | O17: 2.5.13 | P17: - | R17: 2.6.13 | S17: - | U17: 2.7.13 | V17: - | X17: 2.8.13 | Y17: - | AA17: 2.9.13 | AB17: - | AD17: 02:10:13 | AE17: -
C18: 2.1.14 | D18: - | F18: 2.2.14 | G18: - | I18: 2.3.14 | J18: - | L18: 2.4.14 | M18: - | O18: 2.5.14 | P18: - | R18: 2.6.14 | S18: - | U18: 2.7.14 | V18: - | X18: 2.8.14 | Y18: - | AA18: 2.9.14 | AB18: - | AD18: 02:10:14 | AE18: -
C19: 2.1.15 | D19: - | F19: 2.2.15 | G19: - | I19: 2.3.15 | J19: - | L19: 2.4.15 | M19: - | O19: 2.5.15 | P19: - | R19: 2.6.15 | S19: - | U19: 2.7.15 | V19: - | X19: 02.08.15 | Y19: - | AA19: 2.9.15 | AB19: - | AD19: 02:10:15 | AE19: -
C20: 2.1.16 | D20: - | F20: 2.2.16 | G20: - | I20: 2.3.16 | J20: - | L20: 2.4.16 | M20: - | O20: 2.5.16 | P20: - | R20: 2.6.16 | S20: - | U20: 2.7.16 | V20: - | X20: 02.08.16 | Y20: - | AA20: 2.9.16 | AB20: - | AD20: 02:10:16 | AE20: -
C21: 2.1.17 | D21: - | F21: 2.2.17 | G21: - | I21: 2.3.17 | J21: - | L21: 2.4.17 | M21: - | O21: 2.5.17 | P21: - | R21: 2.6.17 | S21: - | U21: 02.07.17 | V21: - | X21: 2.8.17 | Y21: - | AA21: 02.09.17 | AB21: - | AD21: 02:10:17 | AE21: -
C22: 2.1.18 | D22: - | F22: 2.2.18 | G22: - | I22: 2.3.18 | J22: - | L22: 2.4.18 | M22: - | O22: 2.5.18 | P22: - | R22: 2.6.18 | S22: - | U22: 2.7.18 | V22: - | X22: 02.08.18 | Y22: - | AA22: 2.9.18 | AB22: - | AD22: 02:10:18 | AE22: -
C23: 2.1.19 | D23: - | F23: 2.2.19 | G23: - | I23: 2.3.19 | J23: - | L23: 2.4.19 | M23: - | O23: 2.5.19 | P23: - | R23: 2.6.19 | S23: - | U23: 2.7.19 | V23: - | X23: 2.8.19 | Y23: - | AA23: 02.09.19 | AB23: - | AD23: 02:10:19 | AE23: -
C24: 2.1.20 | D24: - | F24: 2.2.20 | G24: - | I24: 2.3.20 | J24: - | L24: 2.4.20 | M24: - | O24: 2.5.20 | P24: - | R24: 2.6.20 | S24: - | U24: 2.7.20 | V24: - | X24: 02.08.20 | Y24: - | AA24: 2.9.20 | AB24: - | AD24: 02:10:20 | AE24: -
C25: 2.1.21 | D25: - | F25: 2.2.21 | G25: - | I25: 2.3.21 | J25: - | L25: 2.4.21 | M25: - | O25: 2.5.21 | P25: - | R25: 2.6.21 | S25: - | U25: 02.07.21 | V25: - | X25: 02.08.21 | Y25: - | AA25: 2.9.21 | AB25: - | AD25: 02:10:21 | AE25: -
C26: 2.1.22 | D26: - | F26: 2.2.22 | G26: - | I26: 2.3.22 | J26: - | L26: 2.4.22 | M26: - | O26: 02.05.22 | P26: - | R26: 2.6.22 | S26: - | U26: 2.7.22 | V26: - | X26: 02.08.22 | Y26: - | AA26: 02.09.22 | AB26: - | AD26: 02:10:22 | AE26: -
C27: 2.1.23 | D27: - | F27: 2.2.23 | G27: - | I27: 2.3.23 | J27: - | L27: 2.4.23 | M27: - | O27: 02.05.23 | P27: - | R27: 2.6.23 | S27: - | U27: 2.7.23 | V27: - | X27: 02.08.23 | Y27: - | AA27: 02.09.23 | AB27: - | AD27: 02:10:23 | AE27: -
C28: 2.1.24 | D28: - | F28: 2.2.24 | G28: - | I28: 2.3.24 | J28: - | L28: 2.4.24 | M28: - | O28: 02.05.24 | P28: - | R28: 2.6.24 | S28: - | U28: 2.7.24 | V28: - | X28: 02.08.24 | Y28: - | AA28: 02.09.24 | AB28: - | AD28: 02:10:24 | AE28: -
C29: 2.1.25 | D29: - | F29: 2.2.25 | G29: - | I29: 2.3.25 | J29: - | L29: 2.4.25 | M29: - | O29: 2.5.25 | P29: - | R29: 2.6.25 | S29: - | U29: 2.7.25 | V29: - | X29: 02.08.25 | Y29: - | AA29: 02.09.25 | AB29: - | AD29: 02:10:25 | AE29: -
C30: 2.1.26 | D30: - | F30: 2.2.26 | G30: - | I30: 2.3.26 | J30: - | L30: 2.4.26 | M30: - | O30: 02.05.26 | P30: - | R30: 2.6.26 | S30: - | U30: 2.7.26 | V30: - | X30: 02.08.26 | Y30: - | AA30: 02.09.26 | AB30: - | AD30: 02:10:26 | AE30: -
C31: 2.1.27 | D31: - | F31: 2.2.27 | G31: - | I31: 02.03.27 | J31: - | L31: 2.4.27 | M31: - | O31: 02.05.27 | P31: - | R31: 2.6.27 | S31: - | U31: 02.07.27 | V31: - | X31: 02.08.27 | Y31: - | AA31: 02.09.27 | AB31: - | AD31: 02:10:27 | AE31: -
C32: 2.1.28 | D32: - | F32: 2.2.28 | G32: - | I32: 02.03.28 | J32: - | L32: 2.4.28 | M32: - | O32: 02.05.28 | P32: - | R32: 2.6.28 | S32: - | U32: 2.7.28 | V32: - | X32: 02.08.28 | Y32: - | AA32: 02.09.28 | AB32: - | AD32: 02:10:28 | AE32: -
C33: 2.1.29 | D33: - | F33: 2.2.29 | G33: - | I33: 02.03.29 | J33: - | L33: 2.4.29 | M33: - | O33: 02.05.29 | P33: - | R33: 2.6.29 | S33: - | U33: 02.07.29 | V33: - | X33: 02.08.29 | Y33: - | AA33: 02.09.29 | AB33: - | AD33: 02:10:29 | AE33: -
C34: 2.1.30 | D34: - | F34: 2.2.30 | G34: - | I34: 02.03.30 | J34: - | L34: 2.4.30 | M34: - | O34: 02.05.30 | P34: - | R34: 2.6.30 | S34: - | U34: 02.07.30 | V34: - | X34: 02.08.30 | Y34: - | AA34: 02.09.30 | AB34: - | AD34: 02:10:30 | AE34: -
C35: 2.1.31 | D35: - | F35: 2.2.31 | G35: - | I35: 02.03.31 | J35: - | L35: 2.4.31 | M35: - | O35: 02.05.31 | P35: - | R35: 2.6.31 | S35: - | U35: 02.07.31 | V35: - | X35: 02.08.31 | Y35: - | AA35: 02.09.31 | AB35: - | AD35: 02:10:31 | AE35: -
C36: 2.1.32 | D36: - | F36: 02.02.32 | G36: - | I36: 02.03.32 | J36: - | L36: 2.4.32 | M36: - | O36: 02.05.32 | P36: - | R36: 2.6.32 | S36: - | U36: 02.07.32 | V36: - | X36: 02.08.32 | Y36: - | AA36: 02.09.32 | AB36: - | AD36: 02:10:32 | AE36: -
C37: 2.1.33 | D37: - | F37: 02.02.33 | G37: - | I37: 02.03.33 | J37: - | L37: 2.4.33 | M37: - | O37: 02.05.33 | P37: - | R37: 2.6.33 | S37: - | U37: 02.07.33 | V37: - | X37: 02.08.33 | Y37: - | AA37: 02.09.33 | AB37: - | AD37: 02:10:33 | AE37: -
C38: 2.1.34 | D38: - | F38: 02.02.34 | G38: - | I38: 02.03.34 | J38: - | L38: 02.04.34 | M38: - | O38: 02.05.34 | P38: - | R38: 2.6.34 | S38: - | U38: 02.07.34 | V38: - | X38: 02.08.34 | Y38: - | AA38: 02.09.34 | AB38: - | AD38: 02:10:34 | AE38: -
C39: 01.02.35 | D39: - | F39: 02.02.35 | G39: - | I39: 02.03.35 | J39: - | L39: 02.04.35 | M39: - | O39: 02.05.35 | P39: - | R39: 2.6.35 | S39: - | U39: 02.07.35 | V39: - | X39: 02.08.35 | Y39: - | AA39: 02.09.35 | AB39: - | AD39: 02:10:35 | AE39: -
C40: 01.02.36 | D40: - | F40: 2.2.36 | G40: - | I40: 02.03.36 | J40: - | L40: 02.04.36 | M40: - | O40: 02.05.36 | P40: - | R40: 2.6.36 | S40: - | U40: 02.07.36 | V40: - | X40: 02.08.36 | Y40: - | AA40: 02.09.36 | AB40: - | AD40: 02:10:36 | AE40: -
C41: 01.02.37 | D41: - | F41: 2.2.37 | G41: - | I41: 02.03.37 | J41: - | L41: 02.04.37 | M41: - | O41: 02.05.37 | P41: - | R41: 2.6.37 | S41: - | U41: 02.07.37 | V41: - | X41: 02.08.37 | Y41: - | AA41: 02.09.37 | AB41: - | AD41: 02:10:37 | AE41: -
C42: 01.02.38 | D42: - | F42: 02.02.38 | G42: - | I42: 02.03.38 | J42: - | L42: 02.04.38 | M42: - | O42: 02.05.38 | P42: - | R42: 2.6.38 | S42: - | U42: 02.07.38 | V42: - | X42: 02.08.38 | Y42: - | AA42: 02.09.38 | AB42: - | AD42: 02:10:38 | AE42: -
C43: 01.02.39 | D43: - | F43: 2.2.39 | G43: - | I43: 02.03.39 | J43: - | L43: 02.04.39 | M43: - | O43: 02.05.39 | P43: - | R43: 2.6.39 | S43: - | U43: 02.07.39 | V43: - | X43: 02.08.39 | Y43: - | AA43: 02.09.39 | AB43: - | AD43: 02:10:39 | AE43: -
C44: 2.1.40 | D44: - | F44: 2.2.40 | G44: - | I44: 02.03.40 | J44: - | L44: 02.04.40 | M44: - | O44: 2.5.40 | P44: - | R44: 2.6.40 | S44: Otros gastos de explotación | U44: 02.07.40 | V44: - | X44: 02.08.40 | Y44: - | AA44: 02.09.40 | AB44: - | AD44: 02:10:40 | AE44: -

Sheet PC_CC
C4: 3.1 | D4: CENTRO DE COSTO
C5: 1 | D5: Centro de coste 1
C6: 2 | D6: Centro de coste 2
C7: 3 | D7: Centro de coste 3
C8: 4 | D8: Centro de coste 4
C9: 5 | D9: Centro de coste 5
C10: 6 | D10: -
C11: 7 | D11: -
C12: 8 | D12: -
C13: 9 | D13: -
C14: 10 | D14: -
C15: 11 | D15: -
C16: 12 | D16: -
C17: 13 | D17: -
C18: 14 | D18: -
C19: 15 | D19: -
C20: 16 | D20: -
C21: 17 | D21: -
C22: 18 | D22: -
C23: 19 | D23: -
C24: 20 | D24: -
C25: 21 | D25: -
C26: 22 | D26: -
C27: 23 | D27: -
C28: 24 | D28: -
C29: 25 | D29: -
C30: 26 | D30: -
C31: 27 | D31: -
C32: 28 | D32: -
C33: 29 | D33: -
C34: 30 | D34: -
C35: 31 | D35: -
C36: 32 | D36: -
C37: 33 | D37: -
C38: 34 | D38: -
C39: 35 | D39: -
C40: 36 | D40: -
C41: 37 | D41: -
C42: 38 | D42: -
C43: 39 | D43: -
C44: 40 | D44: -
C45: 41 | D45: -
C46: 42 | D46: -
C47: 43 | D47: -
C48: 44 | D48: -
C49: 45 | D49: -
C50: 46 | D50: -
C51: 47 | D51: -
C52: 48 | D52: -
C53: 49 | D53: -
C54: 50 | D54: -

Sheet PC_Banco
C4: BANCO | D4: SALNDO INICIAL | F4: FORMA DE PAGO
B5: 1 | C5: BHD | D5: 0 | F5: dinero
B6: 2 | C6: BANRESERVAS | D6: 0 | F6: débito
B7: 3 | C7: Banco 3 | D7: 0 | F7: crédito
B8: 4 | C8: caja | D8: 0 | F8: entrega
B9: 5 | C9: - | F9: comprobar
B10: 6 | C10: - | F10: tarjeta
B11: 7 | C11: - | F11: Transferencia
B12: 8 | C12: - | F12: -
B13: 9 | C13: - | F13: -
B14: 10 | C14: - | F14: -
B15: 11 | C15: - | F15: -
B16: 12 | C16: - | F16: -
B17: 13 | C17: - | F17: -
B18: 14 | C18: - | F18: -
B19: 15 | C19: - | F19: -
B20: 16 | C20: -
B21: 17 | C21: -
B22: 18 | C22: -
B23: 19 | C23: -
B24: 20 | C24: -
B25: 21 | C25: -
B26: 22 | C26: -
B27: 23 | C27: -
B28: 24 | C28: -
B29: 25 | C29: -
B30: 26 | C30: -
B31: 27 | C31: -
B32: 28 | C32: -
B33: 29 | C33: -
B34: 30 | C34: -

Sheet PC_Cli
D4: Clientes y proveedores | E4: teléfono | F4: e-mail | G4: observaciones
C5: 1 | D5: al cliente 1 | F5: 1@gmail.com cliente
C6: 2 | D6: el cliente 2 | F6: 2@gmail.com cliente | G6: Uno de los primeros clientes de la compañía
C7: 3 | D7: 3 cliente | F7: 3@gmail.com cliente
C8: 4 | D8: 4 cliente | F8: 4@gmail.com cliente
C9: 5 | D9: 5 cliente | F9: 5@gmail.com cliente
C10: 6 | D10: proveedor 1 | F10: proveedor 1@gmail.com
C11: 7 | D11: proveedor 2 | F11: proveedor 2@gmail.com | G11: Buen precio, calidad y entrega rápida
C12: 8 | D12: proveedor 3 | F12: proveedor 3@gmail.com
C13: 9 | D13: proveedor 4 | F13: proveedor 4@gmail.com | G13: Ya retrasado dos entregas
C14: 10 | D14: proveedor 5 | F14: proveedor 5@gmail.com
C15: 11 | D15: -
C16: 12 | D16: -
C17: 13 | D17: -
C18: 14 | D18: -
C19: 15 | D19: -
C20: 16 | D20: -
C21: 17 | D21: -
C22: 18 | D22: -
C23: 19 | D23: -
C24: 20 | D24: -
C25: 21 | D25: -
C26: 22 | D26: -
C27: 23 | D27: -
C28: 24 | D28: -
C29: 25 | D29: -
C30: 26 | D30: -
C31: 27 | D31: -
C32: 28 | D32: -
C33: 29 | D33: -
C34: 30 | D34: -
C35: 31 | D35: -
C36: 32 | D36: -
C37: 33 | D37: -
C38: 34 | D38: -
C39: 35 | D39: -
C40: 36 | D40: -
C41: 37 | D41: -
C42: 38 | D42: -
C43: 39 | D43: -
C44: 40 | D44: -
C45: 41 | D45: -
C46: 42 | D46: -
C47: 43 | D47: -
C48: 44 | D48: -
C49: 45 | D49: -
C50: 46 | D50: -
C51: 47 | D51: -
C52: 48 | D52: -
C53: 49 | D53: -
C54: 50 | D54: -
C55: 51 | D55: -
C56: 52 | D56: -
C57: 53 | D57: -
C58: 54 | D58: -
C59: 55 | D59: -
C60: 56 | D60: -
C61: 57 | D61: -
C62: 58 | D62: -
C63: 59 | D63: -
C64: 60 | D64: -
C65: 61 | D65: -
C66: 62 | D66: -
C67: 63 | D67: -
C68: 64 | D68: -
C69: 65 | D69: -
C70: 66 | D70: -
C71: 67 | D71: -
C72: 68 | D72: -
C73: 69 | D73: -
C74: 70 | D74: -
C75: 71 | D75: -
C76: 72 | D76: -
C77: 73 | D77: -
C78: 74 | D78: -
C79: 75 | D79: -
C80: 76 | D80: -
C81: 77 | D81: -
C82: 78 | D82: -
C83: 79 | D83: -
C84: 80 | D84: -
C85: 81 | D85: -
C86: 82 | D86: -
C87: 83 | D87: -
C88: 84 | D88: -
C89: 85 | D89: -
C90: 86 | D90: -
C91: 87 | D91: -
C92: 88 | D92: -
C93: 89 | D93: -
C94: 90 | D94: -
C95: 91 | D95: -
C96: 92 | D96: -
C97: 93 | D97: -
C98: 94 | D98: -
C99: 95 | D99: -
C100: 96 | D100: -
C101: 97 | D101: -
C102: 98 | D102: -
C103: 99 | D103: -
C104: 100 | D104: -

Sheet PC_Transf
C4: Fecha de Transferencia | D4: Banco de Origen | E4: Banco Destino | F4: valor | G4: Referencias Bancarias | H4: mes
C5: 2017-01-10 | D5: Banco 2 | E5: Banco 1 | F5: 3000 | H5: =IF(C5="","",MONTH(C5)) -> 1
C6: 2017-02-10 | D6: Banco 1 | E6: Banco 3 | F6: 5000 | H6: =IF(C6="","",MONTH(C6)) -> 2
H70: =IF(C70="","",MONTH(C70)) -> 

Sheet Fev
C3: febrero
C4: Fecha de Publicación | D4: clasificación | E4: Plan de cuentas | F4: artículo | G4: Forma de pago | H4: Banco | I4: Descripción de la transacción | J4: Centro de coste | K4: cliente | L4: valor | M4: Fecha del pago | N4: acumulado | P4: resultado | Q4: =Q7-Q9 -> 340 | S4: indirecta a la lista | T4: ingresos o gastos | U4: día de la venta | V4: el mes venta | W4: meses corresp venta | X4: remunerado o no | Y4: día del pago | Z4: mes de pago | AA4: meses corresp | AB4: Orden | AC4: repet | AD4: desempate | AE4: valor | AF4: repet 1 | AG4: 2 de repetición | AH4: 3 repet | AI4: repet 4 | AJ4: repet 5
C5: 2017-02-02 | D5: INGRESOS CON SERVICIOS | E5: consultoría financiera | F5: - | G5: dinero | H5: Banco 1 | J5: Centro de coste 1 | K5: al cliente 1 | L5: 500 | N5: =O5 -> -60 | O5: =Q5+IF(AND(T5="Ingresos",X5="Pago",AA5=$C$3),L5,IF(AND(T5="gasto",X5="Pago",AA5=$C$3),-L5,0)) -> -60 | P5: Saldo inicial | Q5: =Jan!Q11 -> -60 | S5: =VLOOKUP(D5,PC_Rec!$O$5:$P$18,2,FALSE) -> Receita2 | T5: =IF(D5="","",VLOOKUP(D5,PC_Rec!$O$5:$Q$18,3,FALSE)) -> Ingresos | U5: =IF(C5="","",DAY(C5)) -> 2 | V5: =IF(C5="","",MONTH(C5)) -> 2 | W5: =IF(V5="","",VLOOKUP(V5,'Aux1'!$A$1:$B$12,2,FALSE)) -> febrero | X5: =IF(M5<>"","Pago","Não pago") -> Não pago | Y5: =IF(M5="","",DAY(M5)) ->  | Z5: =IF(M5="","",MONTH(M5)) ->  | AA5: =IF(Z5="","",VLOOKUP(Z5,'Aux1'!$A$1:$B$12,2,FALSE)) ->  | AB5: =IF(AA5="", COUNTIF(AA$5:AA5, ""),"") -> 1 | AC5: =SUM(AD5:AE5) -> 2017-02-02T00:00:00.009 | AD5: 1e-07 | AE5: =IF(AND(X5="Não pago",L5<>0),C5,"") -> 2017-02-02 | AF5: =IF(AE5="","",C5) -> 2017-02-02 | AG5: =IF(AE5="","",D5) -> INGRESOS CON SERVICIOS | AH5: =IF(AE5="","",E5) -> consultoría financiera | AI5: =IF(AE5="","",F5) -> - | AJ5: =IF(AE5="","",L5) -> 500
C6: 2017-02-03 | D6: INGRESOS CON SERVICIOS | E6: Consulta de marketing | F6: - | G6: débito | H6: Banco 2 | J6: Centro de coste 1 | K6: el cliente 2 | L6: 600 | M6: 2017-02-03 | N6: =O6 -> 600 | O6: =Q6+IF(AND(T6="Ingresos",X6="Pago",AA6=$C$3),L6,IF(AND(T6="gasto",X6="Pago",AA6=$C$3),-L6,0)) -> 600 | S6: =VLOOKUP(D6,PC_Rec!$O$5:$P$18,2,FALSE) -> Receita2 | T6: =IF(D6="","",VLOOKUP(D6,PC_Rec!$O$5:$Q$18,3,FALSE)) -> Ingresos | U6: 3 | V6: 2 | W6: =IF(V6="","",VLOOKUP(V6,'Aux1'!$A$1:$B$12,2,FALSE)) -> febrero | X6: Pago | Y6: 3 | Z6: 2 | AA6: =IF(Z6="","",VLOOKUP(Z6,'Aux1'!$A$1:$B$12,2,FALSE)) -> febrero | AB6: =IF(AA6="", COUNTIF(AA$5:AA6, ""),"") ->  | AC6: =SUM(AD6:AE6) -> 00:00:00.017 | AD6: 2e-07
C7: 2017-02-04 | D7: INGRESOS CON SERVICIOS | E7: consultoría estratégica | F7: - | G7: crédito | H7: Banco 3 | J7: Centro de coste 1 | K7: 3 cliente | L7: 700 | N7: =O7 -> 4500 | O7: 4500 | P7: Los ingresos totales | Q7: =SUMIFS('Aux2'!H2:H7202,'Aux2'!P2:P7202,$C$3,'Aux2'!I2:I7202,"Ingresos") -> 4500 | S7: =VLOOKUP(D7,PC_Rec!$O$5:$P$18,2,FALSE) -> Receita2 | T7: =IF(D7="","",VLOOKUP(D7,PC_Rec!$O$5:$Q$18,3,FALSE)) -> Ingresos | U7: 4 | V7: 2 | W7: =IF(V7="","",VLOOKUP(V7,'Aux1'!$A$1:$B$12,2,FALSE)) -> febrero | X7: Não pago | AA7: =IF(Z7="","",VLOOKUP(Z7,'Aux1'!$A$1:$B$12,2,FALSE)) ->  | AB7: =IF(AA7="", COUNTIF(AA$5:AA7, ""),"") -> 2 | AC7: 2017-02-04T00:00:00.026 | AD7: 3e-07 | AE7: 2017-02-04 | AF7: 2017-02-04 | AG7: INGRESOS CON SERVICIOS | AH7: consultoría estratégica | AI7: - | AJ7: 700
C8: 2017-02-05 | D8: INGRESOS CON SERVICIOS | E8: consultoría de calidad | F8: - | G8: entrega | H8: Banco 1 | J8: Centro de coste 1 | K8: 4 cliente | L8: 800 | M8: 2017-02-05 | N8: 800 | O8: 800 | S8: =VLOOKUP(D8,PC_Rec!$O$5:$P$18,2,FALSE) -> Receita2 | T8: =IF(D8="","",VLOOKUP(D8,PC_Rec!$O$5:$Q$18,3,FALSE)) -> Ingresos | U8: 5 | V8: 2 | W8: =IF(V8="","",VLOOKUP(V8,'Aux1'!$A$1:$B$12,2,FALSE)) -> febrero | X8: Pago | Y8: 5 | Z8: 2 | AA8: =IF(Z8="","",VLOOKUP(Z8,'Aux1'!$A$1:$B$12,2,FALSE)) -> febrero | AB8: =IF(AA8="", COUNTIF(AA$5:AA8, ""),"") ->  | AC8: 00:00:00.035 | AD8: 4e-07
C9: 2017-02-06 | D9: INGRESOS CON SERVICIOS | E9: Las personas Management Consulting | F9: - | G9: comprobar | H9: Banco 1 | J9: Centro de coste 1 | K9: 5 cliente | L9: 900 | M9: 2017-02-06 | N9: 5060 | O9: 5060 | P9: Los gastos totales | Q9: =SUMIFS('Aux2'!H2:H7202,'Aux2'!P2:P7202,$C$3,'Aux2'!I2:I7202,"gasto") -> 4160 | S9: =VLOOKUP(D9,PC_Rec!$O$5:$P$18,2,FALSE) -> Receita2 | T9: =IF(D9="","",VLOOKUP(D9,PC_Rec!$O$5:$Q$18,3,FALSE)) -> Ingresos | U9: 6 | V9: 2 | W9: =IF(V9="","",VLOOKUP(V9,'Aux1'!$A$1:$B$12,2,FALSE)) -> febrero | X9: Pago | Y9: 6 | Z9: 2 | AA9: =IF(Z9="","",VLOOKUP(Z9,'Aux1'!$A$1:$B$12,2,FALSE)) -> febrero | AB9: =IF(AA9="", COUNTIF(AA$5:AA9, ""),"") ->  | AC9: 00:00:00.043 | AD9: 5e-07
C10: 2017-02-07 | D10: INGRESOS CON LOS PRODUCTOS | E10: Estrategia folleto | F10: - | G10: dinero | H10: Banco 1 | J10: Centro de coste 1 | K10: el cliente 2 | L10: 600 | M10: 2017-02-07 | N10: 600 | O10: 600 | S10: =VLOOKUP(D10,PC_Rec!$O$5:$P$18,2,FALSE) -> recipe1 | T10: =IF(D10="","",VLOOKUP(D10,PC_Rec!$O$5:$Q$18,3,FALSE)) -> Ingresos | U10: 7 | V10: 2 | W10: =IF(V10="","",VLOOKUP(V10,'Aux1'!$A$1:$B$12,2,FALSE)) -> febrero | X10: Pago | Y10: 7 | Z10: 2 | AA10: =IF(Z10="","",VLOOKUP(Z10,'Aux1'!$A$1:$B$12,2,FALSE)) -> febrero | AB10: =IF(AA10="", COUNTIF(AA$5:AA10, ""),"") ->  | AC10: 00:00:00.052 | AD10: 6e-07
C11: 2017-02-08 | D11: OTROS INGRESOS | E11: conferencias | F11: - | G11: crédito | H11: Banco 2 | J11: Centro de coste 1 | K11: el cliente 2 | L11: 1200 | M11: 2017-02-08 | N11: 1480 | O11: 1480 | P11: acumulado | Q11: =Q5+Q4 -> 280 | S11: =VLOOKUP(D11,PC_Rec!$O$5:$P$18,2,FALSE) -> Receita3 | T11: =IF(D11="","",VLOOKUP(D11,PC_Rec!$O$5:$Q$18,3,FALSE)) -> Ingresos | U11: 8 | V11: 2 | W11: =IF(V11="","",VLOOKUP(V11,'Aux1'!$A$1:$B$12,2,FALSE)) -> febrero | X11: Pago | Y11: 8 | Z11: 2 | AA11: =IF(Z11="","",VLOOKUP(Z11,'Aux1'!$A$1:$B$12,2,FALSE)) -> febrero | AB11: =IF(AA11="", COUNTIF(AA$5:AA11, ""),"") ->  | AC11: 00:00:00.060 | AD11: 7e-07
C12: 2017-02-09 | D12: INGRESOS FINANCIEROS | E12: Tesoro directo | F12: - | G12: comprobar | H12: Banco 3 | J12: Centro de coste 1 | K12: el cliente 2 | L12: 400 | M12: 2017-02-09 | N12: 400 | O12: 400 | S12: =VLOOKUP(D12,PC_Rec!$O$5:$P$18,2,FALSE) -> Receita4 | T12: =IF(D12="","",VLOOKUP(D12,PC_Rec!$O$5:$Q$18,3,FALSE)) -> Ingresos | U12: 9 | V12: 2 | W12: =IF(V12="","",VLOOKUP(V12,'Aux1'!$A$1:$B$12,2,FALSE)) -> febrero | X12: Pago | Y12: 9 | Z12: 2 | AA12: =IF(Z12="","",VLOOKUP(Z12,'Aux1'!$A$1:$B$12,2,FALSE)) -> febrero | AB12: =IF(AA12="", COUNTIF(AA$5:AA12, ""),"") ->  | AC12: 00:00:00.069 | AD12: 8e-07
C13: 2017-02-10 | D13: COSTO DE LOS PRODUCTOS | E13: costes de impresión | F13: - | G13: dinero | H13: Banco 1 | J13: Centro de coste 1 | K13: proveedor 1 | L13: 200 | M13: 2017-02-10 | N13: -200 | O13: -200 | S13: =VLOOKUP(D13,PC_Rec!$O$5:$P$18,2,FALSE) -> Costo1 | T13: =IF(D13="","",VLOOKUP(D13,PC_Rec!$O$5:$Q$18,3,FALSE)) -> gasto | U13: 10 | V13: 2 | W13: =IF(V13="","",VLOOKUP(V13,'Aux1'!$A$1:$B$12,2,FALSE)) -> febrero | X13: Pago | Y13: 10 | Z13: 2 | AA13: =IF(Z13="","",VLOOKUP(Z13,'Aux1'!$A$1:$B$12,2,FALSE)) -> febrero | AB13: =IF(AA13="", COUNTIF(AA$5:AA13, ""),"") ->  | AC13: 00:00:00.078 | AD13: 9e-07
C14: 2017-02-11 | D14: COSTE DE SERVICIOS | E14: personal externo | F14: - | G14: débito | H14: Banco 1 | J14: Centro de coste 1 | K14: proveedor 1 | L14: 300 | N14: 0 | O14: 0 | S14: =VLOOKUP(D14,PC_Rec!$O$5:$P$18,2,FALSE) -> Custo2 | T14: =IF(D14="","",VLOOKUP(D14,PC_Rec!$O$5:$Q$18,3,FALSE)) -> gasto | U14: 11 | V14: 2 | W14: =IF(V14="","",VLOOKUP(V14,'Aux1'!$A$1:$B$12,2,FALSE)) -> febrero | X14: Não pago | AA14: =IF(Z14="","",VLOOKUP(Z14,'Aux1'!$A$1:$B$12,2,FALSE)) ->  | AB14: =IF(AA14="", COUNTIF(AA$5:AA14, ""),"") -> 3 | AC14: 2017-02-11T00:00:00.086 | AD14: 1e-06 | AE14: 2017-02-11 | AF14: 2017-02-11 | AG14: COSTE DE SERVICIOS | AH14: personal externo | AI14: - | AJ14: 300
C15: 2017-02-12 | D15: OTROS GASTOS | E15: software específico | F15: - | G15: crédito | H15: Banco 1 | J15: Centro de coste 1 | K15: proveedor 1 | L15: 150 | M15: 2017-02-12 | N15: -150 | O15: -150 | S15: =VLOOKUP(D15,PC_Rec!$O$5:$P$18,2,FALSE) -> Custo3 | T15: =IF(D15="","",VLOOKUP(D15,PC_Rec!$O$5:$Q$18,3,FALSE)) -> gasto | U15: 12 | V15: 2 | W15: =IF(V15="","",VLOOKUP(V15,'Aux1'!$A$1:$B$12,2,FALSE)) -> febrero | X15: Pago | Y15: 12 | Z15: 2 | AA15: =IF(Z15="","",VLOOKUP(Z15,'Aux1'!$A$1:$B$12,2,FALSE)) -> febrero | AB15: =IF(AA15="", COUNTIF(AA$5:AA15, ""),"") ->  | AC15: 00:00:00.095 | AD15: 1.1e-06
C16: 2017-02-13 | D16: GASTO EN RRHH | E16: salario | F16: - | G16: entrega | H16: Banco 2 | J16: Centro de coste 1 | K16: proveedor 1 | L16: 1400 | M16: 2017-02-13 | N16: -1400 | O16: -1400 | S16: =VLOOKUP(D16,PC_Rec!$O$5:$P$18,2,FALSE) -> Despesa1 | T16: =IF(D16="","",VLOOKUP(D16,PC_Rec!$O$5:$Q$18,3,FALSE)) -> gasto | U16: 13 | V16: 2 | W16: =IF(V16="","",VLOOKUP(V16,'Aux1'!$A$1:$B$12,2,FALSE)) -> febrero | X16: Pago | Y16: 13 | Z16: 2 | AA16: =IF(Z16="","",VLOOKUP(Z16,'Aux1'!$A$1:$B$12,2,FALSE)) -> febrero | AB16: =IF(AA16="", COUNTIF(AA$5:AA16, ""),"") ->  | AC16: 00:00:00.104 | AD16: 1.2e-06
C17: 2017-02-14 | D17: GASTOS CON MARKETING | E17: Adwords | F17: - | G17: comprobar | H17: Banco 3 | J17: Centro de coste 1 | K17: proveedor 1 | L17: 600 | M17: 2017-02-14 | N17: -600 | O17: -600 | S17: =VLOOKUP(D17,PC_Rec!$O$5:$P$18,2,FALSE) -> Despesa2 | T17: =IF(D17="","",VLOOKUP(D17,PC_Rec!$O$5:$Q$18,3,FALSE)) -> gasto | U17: 14 | V17: 2 | W17: =IF(V17="","",VLOOKUP(V17,'Aux1'!$A$1:$B$12,2,FALSE)) -> febrero | X17: Pago | Y17: 14 | Z17: 2 | AA17: =IF(Z17="","",VLOOKUP(Z17,'Aux1'!$A$1:$B$12,2,FALSE)) -> febrero | AB17: =IF(AA17="", COUNTIF(AA$5:AA17, ""),"") ->  | AC17: 00:00:00.112 | AD17: 1.3e-06
C18: 2017-02-15 | D18: GASTOS DE FUNCIONAMIENTO | E18: contabilidad | F18: - | G18: dinero | H18: Banco 1 | J18: Centro de coste 1 | K18: proveedor 1 | L18: 500 | M18: 2017-02-15 | N18: -500 | O18: -500 | S18: =VLOOKUP(D18,PC_Rec!$O$5:$P$18,2,FALSE) -> Despesa3 | T18: =IF(D18="","",VLOOKUP(D18,PC_Rec!$O$5:$Q$18,3,FALSE)) -> gasto | U18: 15 | V18: 2 | W18: =IF(V18="","",VLOOKUP(V18,'Aux1'!$A$1:$B$12,2,FALSE)) -> febrero | X18: Pago | Y18: 15 | Z18: 2 | AA18: =IF(Z18="","",VLOOKUP(Z18,'Aux1'!$A$1:$B$12,2,FALSE)) -> febrero | AB18: =IF(AA18="", COUNTIF(AA$5:AA18, ""),"") ->  | AC18: 00:00:00.121 | AD18: 1.4e-06
C19: 2017-02-16 | D19: OTROS GASTOS | E19: Otros gastos | F19: - | G19: crédito | H19: Banco 1 | J19: Centro de coste 1 | K19: proveedor 1 | L19: 60 | M19: 2017-02-16 | N19: -60 | O19: -60 | S19: =VLOOKUP(D19,PC_Rec!$O$5:$P$18,2,FALSE) -> Custo3 | T19: =IF(D19="","",VLOOKUP(D19,PC_Rec!$O$5:$Q$18,3,FALSE)) -> gasto | U19: 16 | V19: 2 | W19: =IF(V19="","",VLOOKUP(V19,'Aux1'!$A$1:$B$12,2,FALSE)) -> febrero | X19: Pago | Y19: 16 | Z19: 2 | AA19: =IF(Z19="","",VLOOKUP(Z19,'Aux1'!$A$1:$B$12,2,FALSE)) -> febrero | AB19: =IF(AA19="", COUNTIF(AA$5:AA19, ""),"") ->  | AC19: 00:00:00.130 | AD19: 1.5e-06
C20: 2017-02-17 | D20: GASTOS FINANCIEROS | E20: PayPal | F20: - | G20: dinero | H20: Banco 3 | J20: Centro de coste 1 | K20: proveedor 1 | L20: 50 | M20: 2017-02-17 | N20: -50 | O20: -50 | S20: =VLOOKUP(D20,PC_Rec!$O$5:$P$18,2,FALSE) -> Despesa5 | T20: =IF(D20="","",VLOOKUP(D20,PC_Rec!$O$5:$Q$18,3,FALSE)) -> gasto | U20: 17 | V20: 2 | W20: =IF(V20="","",VLOOKUP(V20,'Aux1'!$A$1:$B$12,2,FALSE)) -> febrero | X20: Pago | Y20: 17 | Z20: 2 | AA20: =IF(Z20="","",VLOOKUP(Z20,'Aux1'!$A$1:$B$12,2,FALSE)) -> febrero | AB20: =IF(AA20="", COUNTIF(AA$5:AA20, ""),"") ->  | AC20: 00:00:00.138 | AD20: 1.6e-06
C21: 2017-02-18 | D21: IMPUESTOS | E21: sencillo | F21: - | G21: crédito | H21: Banco 3 | J21: Centro de coste 1 | K21: proveedor 1 | L21: 400 | M21: 2017-02-18 | N21: -400 | O21: -400 | S21: =VLOOKUP(D21,PC_Rec!$O$5:$P$18,2,FALSE) -> impuesto | T21: =IF(D21="","",VLOOKUP(D21,PC_Rec!$O$5:$Q$18,3,FALSE)) -> gasto | U21: 18 | V21: 2 | W21: =IF(V21="","",VLOOKUP(V21,'Aux1'!$A$1:$B$12,2,FALSE)) -> febrero | X21: Pago | Y21: 18 | Z21: 2 | AA21: =IF(Z21="","",VLOOKUP(Z21,'Aux1'!$A$1:$B$12,2,FALSE)) -> febrero | AB21: =IF(AA21="", COUNTIF(AA$5:AA21, ""),"") ->  | AC21: 00:00:00.147 | AD21: 1.7e-06
C22: 2017-02-19 | D22: INVERSIÓN | E22: reforma | F22: - | G22: comprobar | H22: Banco 2 | J22: Centro de coste 1 | K22: proveedor 1 | L22: 800 | M22: 2017-02-19 | N22: -800 | O22: -800 | S22: =VLOOKUP(D22,PC_Rec!$O$5:$P$18,2,FALSE) -> inversión | T22: =IF(D22="","",VLOOKUP(D22,PC_Rec!$O$5:$Q$18,3,FALSE)) -> gasto | U22: 19 | V22: 2 | W22: =IF(V22="","",VLOOKUP(V22,'Aux1'!$A$1:$B$12,2,FALSE)) -> febrero | X22: Pago | Y22: 19 | Z22: 2 | AA22: =IF(Z22="","",VLOOKUP(Z22,'Aux1'!$A$1:$B$12,2,FALSE)) -> febrero | AB22: =IF(AA22="", COUNTIF(AA$5:AA22, ""),"") ->  | AC22: 00:00:00.156 | AD22: 1.8e-06
N23: 0 | O23: 0 | S23: =VLOOKUP(D23,PC_Rec!$O$5:$P$18,2,FALSE) ->  | T23: =IF(D23="","",VLOOKUP(D23,PC_Rec!$O$5:$Q$18,3,FALSE)) ->  | W23: =IF(V23="","",VLOOKUP(V23,'Aux1'!$A$1:$B$12,2,FALSE)) ->  | X23: Não pago | AA23: =IF(Z23="","",VLOOKUP(Z23,'Aux1'!$A$1:$B$12,2,FALSE)) ->  | AB23: =IF(AA23="", COUNTIF(AA$5:AA23, ""),"") -> 4 | AC23: 00:00:00.164 | AD23: 1.9e-06
N24: 0 | O24: 0 | S24: =VLOOKUP(D24,PC_Rec!$O$5:$P$18,2,FALSE) ->  | T24: =IF(D24="","",VLOOKUP(D24,PC_Rec!$O$5:$Q$18,3,FALSE)) ->  | W24: =IF(V24="","",VLOOKUP(V24,'Aux1'!$A$1:$B$12,2,FALSE)) ->  | X24: Não pago | AA24: =IF(Z24="","",VLOOKUP(Z24,'Aux1'!$A$1:$B$12,2,FALSE)) ->  | AB24: =IF(AA24="", COUNTIF(AA$5:AA24, ""),"") -> 5 | AC24: 00:00:00.173 | AD24: 2e-06
N25: 0 | O25: 0 | S25: =VLOOKUP(D25,PC_Rec!$O$5:$P$18,2,FALSE) ->  | T25: =IF(D25="","",VLOOKUP(D25,PC_Rec!$O$5:$Q$18,3,FALSE)) ->  | W25: =IF(V25="","",VLOOKUP(V25,'Aux1'!$A$1:$B$12,2,FALSE)) ->  | X25: Não pago | AA25: =IF(Z25="","",VLOOKUP(Z25,'Aux1'!$A$1:$B$12,2,FALSE)) ->  | AB25: =IF(AA25="", COUNTIF(AA$5:AA25, ""),"") -> 6 | AC25: 00:00:00.181 | AD25: 2.1e-06
N26: 0 | O26: 0 | S26: =VLOOKUP(D26,PC_Rec!$O$5:$P$18,2,FALSE) ->  | T26: =IF(D26="","",VLOOKUP(D26,PC_Rec!$O$5:$Q$18,3,FALSE)) ->  | W26: =IF(V26="","",VLOOKUP(V26,'Aux1'!$A$1:$B$12,2,FALSE)) ->  | X26: Não pago | AA26: =IF(Z26="","",VLOOKUP(Z26,'Aux1'!$A$1:$B$12,2,FALSE)) ->  | AB26: =IF(AA26="", COUNTIF(AA$5:AA26, ""),"") -> 7 | AC26: 00:00:00.190 | AD26: 2.2e-06
N27: 0 | O27: 0 | S27: =VLOOKUP(D27,PC_Rec!$O$5:$P$18,2,FALSE) ->  | T27: =IF(D27="","",VLOOKUP(D27,PC_Rec!$O$5:$Q$18,3,FALSE)) ->  | W27: =IF(V27="","",VLOOKUP(V27,'Aux1'!$A$1:$B$12,2,FALSE)) ->  | X27: Não pago | AA27: =IF(Z27="","",VLOOKUP(Z27,'Aux1'!$A$1:$B$12,2,FALSE)) ->  | AB27: =IF(AA27="", COUNTIF(AA$5:AA27, ""),"") -> 8 | AC27: 00:00:00.199 | AD27: 2.3e-06
N28: 0 | O28: 0 | S28: =VLOOKUP(D28,PC_Rec!$O$5:$P$18,2,FALSE) ->  | T28: =IF(D28="","",VLOOKUP(D28,PC_Rec!$O$5:$Q$18,3,FALSE)) ->  | W28: =IF(V28="","",VLOOKUP(V28,'Aux1'!$A$1:$B$12,2,FALSE)) ->  | X28: Não pago | AA28: =IF(Z28="","",VLOOKUP(Z28,'Aux1'!$A$1:$B$12,2,FALSE)) ->  | AB28: =IF(AA28="", COUNTIF(AA$5:AA28, ""),"") -> 9 | AC28: 00:00:00.207 | AD28: 2.4e-06
N29: 0 | O29: 0 | S29: =VLOOKUP(D29,PC_Rec!$O$5:$P$18,2,FALSE) ->  | T29: =IF(D29="","",VLOOKUP(D29,PC_Rec!$O$5:$Q$18,3,FALSE)) ->  | W29: =IF(V29="","",VLOOKUP(V29,'Aux1'!$A$1:$B$12,2,FALSE)) ->  | X29: Não pago | AA29: =IF(Z29="","",VLOOKUP(Z29,'Aux1'!$A$1:$B$12,2,FALSE)) ->  | AB29: =IF(AA29="", COUNTIF(AA$5:AA29, ""),"") -> 10 | AC29: 00:00:00.216 | AD29: 2.5e-06
N30: 0 | O30: 0 | S30: =VLOOKUP(D30,PC_Rec!$O$5:$P$18,2,FALSE) ->  | T30: =IF(D30="","",VLOOKUP(D30,PC_Rec!$O$5:$Q$18,3,FALSE)) ->  | W30: =IF(V30="","",VLOOKUP(V30,'Aux1'!$A$1:$B$12,2,FALSE)) ->  | X30: Não pago | AA30: =IF(Z30="","",VLOOKUP(Z30,'Aux1'!$A$1:$B$12,2,FALSE)) ->  | AB30: =IF(AA30="", COUNTIF(AA$5:AA30, ""),"") -> 11 | AC30: 00:00:00.225 | AD30: 2.6e-06
N31: 0 | O31: 0 | S31: =VLOOKUP(D31,PC_Rec!$O$5:$P$18,2,FALSE) ->  | T31: =IF(D31="","",VLOOKUP(D31,PC_Rec!$O$5:$Q$18,3,FALSE)) ->  | W31: =IF(V31="","",VLOOKUP(V31,'Aux1'!$A$1:$B$12,2,FALSE)) ->  | X31: Não pago | AA31: =IF(Z31="","",VLOOKUP(Z31,'Aux1'!$A$1:$B$12,2,FALSE)) ->  | AB31: =IF(AA31="", COUNTIF(AA$5:AA31, ""),"") -> 12 | AC31: 00:00:00.233 | AD31: 2.7e-06
N32: 0 | O32: 0 | S32: =VLOOKUP(D32,PC_Rec!$O$5:$P$18,2,FALSE) ->  | T32: =IF(D32="","",VLOOKUP(D32,PC_Rec!$O$5:$Q$18,3,FALSE)) ->  | W32: =IF(V32="","",VLOOKUP(V32,'Aux1'!$A$1:$B$12,2,FALSE)) ->  | X32: Não pago | AA32: =IF(Z32="","",VLOOKUP(Z32,'Aux1'!$A$1:$B$12,2,FALSE)) ->  | AB32: =IF(AA32="", COUNTIF(AA$5:AA32, ""),"") -> 13 | AC32: 00:00:00.242 | AD32: 2.8e-06
N33: 0 | O33: 0 | S33: =VLOOKUP(D33,PC_Rec!$O$5:$P$18,2,FALSE) ->  | T33: =IF(D33="","",VLOOKUP(D33,PC_Rec!$O$5:$Q$18,3,FALSE)) ->  | W33: =IF(V33="","",VLOOKUP(V33,'Aux1'!$A$1:$B$12,2,FALSE)) ->  | X33: Não pago | AA33: =IF(Z33="","",VLOOKUP(Z33,'Aux1'!$A$1:$B$12,2,FALSE)) ->  | AB33: =IF(AA33="", COUNTIF(AA$5:AA33, ""),"") -> 14 | AC33: 00:00:00.251 | AD33: 2.9e-06
N34: 0 | O34: 0 | S34: =VLOOKUP(D34,PC_Rec!$O$5:$P$18,2,FALSE) ->  | T34: =IF(D34="","",VLOOKUP(D34,PC_Rec!$O$5:$Q$18,3,FALSE)) ->  | W34: =IF(V34="","",VLOOKUP(V34,'Aux1'!$A$1:$B$12,2,FALSE)) ->  | X34: Não pago | AA34: =IF(Z34="","",VLOOKUP(Z34,'Aux1'!$A$1:$B$12,2,FALSE)) ->  | AB34: =IF(AA34="", COUNTIF(AA$5:AA34, ""),"") -> 15 | AC34: 00:00:00.259 | AD34: 3e-06
N35: 0 | O35: 0 | S35: =VLOOKUP(D35,PC_Rec!$O$5:$P$18,2,FALSE) ->  | T35: =IF(D35="","",VLOOKUP(D35,PC_Rec!$O$5:$Q$18,3,FALSE)) ->  | W35: =IF(V35="","",VLOOKUP(V35,'Aux1'!$A$1:$B$12,2,FALSE)) ->  | X35: Não pago | AA35: =IF(Z35="","",VLOOKUP(Z35,'Aux1'!$A$1:$B$12,2,FALSE)) ->  | AB35: =IF(AA35="", COUNTIF(AA$5:AA35, ""),"") -> 16 | AC35: 00:00:00.268 | AD35: 3.1e-06
N36: 0 | O36: 0 | S36: =VLOOKUP(D36,PC_Rec!$O$5:$P$18,2,FALSE) ->  | T36: =IF(D36="","",VLOOKUP(D36,PC_Rec!$O$5:$Q$18,3,FALSE)) ->  | W36: =IF(V36="","",VLOOKUP(V36,'Aux1'!$A$1:$B$12,2,FALSE)) ->  | X36: Não pago | AA36: =IF(Z36="","",VLOOKUP(Z36,'Aux1'!$A$1:$B$12,2,FALSE)) ->  | AB36: =IF(AA36="", COUNTIF(AA$5:AA36, ""),"") -> 17 | AC36: 00:00:00.276 | AD36: 3.2e-06
N37: 0 | O37: 0 | S37: =VLOOKUP(D37,PC_Rec!$O$5:$P$18,2,FALSE) ->  | T37: =IF(D37="","",VLOOKUP(D37,PC_Rec!$O$5:$Q$18,3,FALSE)) ->  | W37: =IF(V37="","",VLOOKUP(V37,'Aux1'!$A$1:$B$12,2,FALSE)) ->  | X37: Não pago | AA37: =IF(Z37="","",VLOOKUP(Z37,'Aux1'!$A$1:$B$12,2,FALSE)) ->  | AB37: =IF(AA37="", COUNTIF(AA$5:AA37, ""),"") -> 18 | AC37: 00:00:00.285 | AD37: 3.3e-06
N38: 0 | O38: 0 | S38: =VLOOKUP(D38,PC_Rec!$O$5:$P$18,2,FALSE) ->  | T38: =IF(D38="","",VLOOKUP(D38,PC_Rec!$O$5:$Q$18,3,FALSE)) ->  | W38: =IF(V38="","",VLOOKUP(V38,'Aux1'!$A$1:$B$12,2,FALSE)) ->  | X38: Não pago | AA38: =IF(Z38="","",VLOOKUP(Z38,'Aux1'!$A$1:$B$12,2,FALSE)) ->  | AB38: =IF(AA38="", COUNTIF(AA$5:AA38, ""),"") -> 19 | AC38: 00:00:00.294 | AD38: 3.4e-06
N39: 0 | O39: 0 | S39: =VLOOKUP(D39,PC_Rec!$O$5:$P$18,2,FALSE) ->  | T39: =IF(D39="","",VLOOKUP(D39,PC_Rec!$O$5:$Q$18,3,FALSE)) ->  | W39: =IF(V39="","",VLOOKUP(V39,'Aux1'!$A$1:$B$12,2,FALSE)) ->  | X39: Não pago | AA39: =IF(Z39="","",VLOOKUP(Z39,'Aux1'!$A$1:$B$12,2,FALSE)) ->  | AB39: =IF(AA39="", COUNTIF(AA$5:AA39, ""),"") -> 20 | AC39: 00:00:00.302 | AD39: 3.5e-06
N40: 0 | O40: 0 | S40: =VLOOKUP(D40,PC_Rec!$O$5:$P$18,2,FALSE) ->  | T40: =IF(D40="","",VLOOKUP(D40,PC_Rec!$O$5:$Q$18,3,FALSE)) ->  | W40: =IF(V40="","",VLOOKUP(V40,'Aux1'!$A$1:$B$12,2,FALSE)) ->  | X40: Não pago | AA40: =IF(Z40="","",VLOOKUP(Z40,'Aux1'!$A$1:$B$12,2,FALSE)) ->  | AB40: =IF(AA40="", COUNTIF(AA$5:AA40, ""),"") -> 21 | AC40: 00:00:00.311 | AD40: 3.6e-06
N41: 0 | O41: 0 | S41: =VLOOKUP(D41,PC_Rec!$O$5:$P$18,2,FALSE) ->  | T41: =IF(D41="","",VLOOKUP(D41,PC_Rec!$O$5:$Q$18,3,FALSE)) ->  | W41: =IF(V41="","",VLOOKUP(V41,'Aux1'!$A$1:$B$12,2,FALSE)) ->  | X41: Não pago | AA41: =IF(Z41="","",VLOOKUP(Z41,'Aux1'!$A$1:$B$12,2,FALSE)) ->  | AB41: =IF(AA41="", COUNTIF(AA$5:AA41, ""),"") -> 22 | AC41: 00:00:00.320 | AD41: 3.7e-06
N42: 0 | O42: 0 | S42: =VLOOKUP(D42,PC_Rec!$O$5:$P$18,2,FALSE) ->  | T42: =IF(D42="","",VLOOKUP(D42,PC_Rec!$O$5:$Q$18,3,FALSE)) ->  | W42: =IF(V42="","",VLOOKUP(V42,'Aux1'!$A$1:$B$12,2,FALSE)) ->  | X42: Não pago | AA42: =IF(Z42="","",VLOOKUP(Z42,'Aux1'!$A$1:$B$12,2,FALSE)) ->  | AB42: =IF(AA42="", COUNTIF(AA$5:AA42, ""),"") -> 23 | AC42: 00:00:00.328 | AD42: 3.8e-06
N43: 0 | O43: 0 | S43: =VLOOKUP(D43,PC_Rec!$O$5:$P$18,2,FALSE) ->  | T43: =IF(D43="","",VLOOKUP(D43,PC_Rec!$O$5:$Q$18,3,FALSE)) ->  | W43: =IF(V43="","",VLOOKUP(V43,'Aux1'!$A$1:$B$12,2,FALSE)) ->  | X43: Não pago | AA43: =IF(Z43="","",VLOOKUP(Z43,'Aux1'!$A$1:$B$12,2,FALSE)) ->  | AB43: =IF(AA43="", COUNTIF(AA$5:AA43, ""),"") -> 24 | AC43: 00:00:00.337 | AD43: 3.9e-06
N44: 0 | O44: 0 | S44: =VLOOKUP(D44,PC_Rec!$O$5:$P$18,2,FALSE) ->  | T44: =IF(D44="","",VLOOKUP(D44,PC_Rec!$O$5:$Q$18,3,FALSE)) ->  | W44: =IF(V44="","",VLOOKUP(V44,'Aux1'!$A$1:$B$12,2,FALSE)) ->  | X44: Não pago | AA44: =IF(Z44="","",VLOOKUP(Z44,'Aux1'!$A$1:$B$12,2,FALSE)) ->  | AB44: =IF(AA44="", COUNTIF(AA$5:AA44, ""),"") -> 25 | AC44: 00:00:00.346 | AD44: 4e-06
N45: 0 | O45: 0 | S45: =VLOOKUP(D45,PC_Rec!$O$5:$P$18,2,FALSE) ->  | T45: =IF(D45="","",VLOOKUP(D45,PC_Rec!$O$5:$Q$18,3,FALSE)) ->  | W45: =IF(V45="","",VLOOKUP(V45,'Aux1'!$A$1:$B$12,2,FALSE)) ->  | X45: Não pago | AA45: =IF(Z45="","",VLOOKUP(Z45,'Aux1'!$A$1:$B$12,2,FALSE)) ->  | AB45: =IF(AA45="", COUNTIF(AA$5:AA45, ""),"") -> 26 | AC45: 00:00:00.354 | AD45: 4.1e-06
N46: 0 | O46: 0 | S46: =VLOOKUP(D46,PC_Rec!$O$5:$P$18,2,FALSE) ->  | T46: =IF(D46="","",VLOOKUP(D46,PC_Rec!$O$5:$Q$18,3,FALSE)) ->  | W46: =IF(V46="","",VLOOKUP(V46,'Aux1'!$A$1:$B$12,2,FALSE)) ->  | X46: Não pago | AA46: =IF(Z46="","",VLOOKUP(Z46,'Aux1'!$A$1:$B$12,2,FALSE)) ->  | AB46: =IF(AA46="", COUNTIF(AA$5:AA46, ""),"") -> 27 | AC46: 00:00:00.363 | AD46: 4.2e-06
N47: 0 | O47: 0 | S47: =VLOOKUP(D47,PC_Rec!$O$5:$P$18,2,FALSE) ->  | T47: =IF(D47="","",VLOOKUP(D47,PC_Rec!$O$5:$Q$18,3,FALSE)) ->  | W47: =IF(V47="","",VLOOKUP(V47,'Aux1'!$A$1:$B$12,2,FALSE)) ->  | X47: Não pago | AA47: =IF(Z47="","",VLOOKUP(Z47,'Aux1'!$A$1:$B$12,2,FALSE)) ->  | AB47: =IF(AA47="", COUNTIF(AA$5:AA47, ""),"") -> 28 | AC47: 00:00:00.372 | AD47: 4.3e-06
N48: 0 | O48: 0 | S48: =VLOOKUP(D48,PC_Rec!$O$5:$P$18,2,FALSE) ->  | T48: =IF(D48="","",VLOOKUP(D48,PC_Rec!$O$5:$Q$18,3,FALSE)) ->  | W48: =IF(V48="","",VLOOKUP(V48,'Aux1'!$A$1:$B$12,2,FALSE)) ->  | X48: Não pago | AA48: =IF(Z48="","",VLOOKUP(Z48,'Aux1'!$A$1:$B$12,2,FALSE)) ->  | AB48: =IF(AA48="", COUNTIF(AA$5:AA48, ""),"") -> 29 | AC48: 00:00:00.380 | AD48: 4.4e-06
N49: 0 | O49: 0 | S49: =VLOOKUP(D49,PC_Rec!$O$5:$P$18,2,FALSE) ->  | T49: =IF(D49="","",VLOOKUP(D49,PC_Rec!$O$5:$Q$18,3,FALSE)) ->  | W49: =IF(V49="","",VLOOKUP(V49,'Aux1'!$A$1:$B$12,2,FALSE)) ->  | X49: Não pago | AA49: =IF(Z49="","",VLOOKUP(Z49,'Aux1'!$A$1:$B$12,2,FALSE)) ->  | AB49: =IF(AA49="", COUNTIF(AA$5:AA49, ""),"") -> 30 | AC49: 00:00:00.389 | AD49: 4.5e-06
N50: 0 | O50: 0 | S50: =VLOOKUP(D50,PC_Rec!$O$5:$P$18,2,FALSE) ->  | T50: =IF(D50="","",VLOOKUP(D50,PC_Rec!$O$5:$Q$18,3,FALSE)) ->  | W50: =IF(V50="","",VLOOKUP(V50,'Aux1'!$A$1:$B$12,2,FALSE)) ->  | X50: Não pago | AA50: =IF(Z50="","",VLOOKUP(Z50,'Aux1'!$A$1:$B$12,2,FALSE)) ->  | AB50: =IF(AA50="", COUNTIF(AA$5:AA50, ""),"") -> 31 | AC50: 00:00:00.397 | AD50: 4.6e-06
N51: 0 | O51: 0 | S51: =VLOOKUP(D51,PC_Rec!$O$5:$P$18,2,FALSE) ->  | T51: =IF(D51="","",VLOOKUP(D51,PC_Rec!$O$5:$Q$18,3,FALSE)) ->  | W51: =IF(V51="","",VLOOKUP(V51,'Aux1'!$A$1:$B$12,2,FALSE)) ->  | X51: Não pago | AA51: =IF(Z51="","",VLOOKUP(Z51,'Aux1'!$A$1:$B$12,2,FALSE)) ->  | AB51: =IF(AA51="", COUNTIF(AA$5:AA51, ""),"") -> 32 | AC51: 00:00:00.406 | AD51: 4.7e-06
N52: 0 | O52: 0 | S52: =VLOOKUP(D52,PC_Rec!$O$5:$P$18,2,FALSE) ->  | T52: =IF(D52="","",VLOOKUP(D52,PC_Rec!$O$5:$Q$18,3,FALSE)) ->  | W52: =IF(V52="","",VLOOKUP(V52,'Aux1'!$A$1:$B$12,2,FALSE)) ->  | X52: Não pago | AA52: =IF(Z52="","",VLOOKUP(Z52,'Aux1'!$A$1:$B$12,2,FALSE)) ->  | AB52: =IF(AA52="", COUNTIF(AA$5:AA52, ""),"") -> 33 | AC52: 00:00:00.415 | AD52: 4.8e-06
N53: 0 | O53: 0 | S53: =VLOOKUP(D53,PC_Rec!$O$5:$P$18,2,FALSE) ->  | T53: =IF(D53="","",VLOOKUP(D53,PC_Rec!$O$5:$Q$18,3,FALSE)) ->  | W53: =IF(V53="","",VLOOKUP(V53,'Aux1'!$A$1:$B$12,2,FALSE)) ->  | X53: Não pago | AA53: =IF(Z53="","",VLOOKUP(Z53,'Aux1'!$A$1:$B$12,2,FALSE)) ->  | AB53: =IF(AA53="", COUNTIF(AA$5:AA53, ""),"") -> 34 | AC53: 00:00:00.423 | AD53: 4.9e-06
N54: 0 | O54: 0 | S54: =VLOOKUP(D54,PC_Rec!$O$5:$P$18,2,FALSE) ->  | T54: =IF(D54="","",VLOOKUP(D54,PC_Rec!$O$5:$Q$18,3,FALSE)) ->  | W54: =IF(V54="","",VLOOKUP(V54,'Aux1'!$A$1:$B$12,2,FALSE)) ->  | X54: Não pago | AA54: =IF(Z54="","",VLOOKUP(Z54,'Aux1'!$A$1:$B$12,2,FALSE)) ->  | AB54: =IF(AA54="", COUNTIF(AA$5:AA54, ""),"") -> 35 | AC54: 00:00:00.432 | AD54: 5e-06
N55: 0 | O55: 0 | S55: =VLOOKUP(D55,PC_Rec!$O$5:$P$18,2,FALSE) ->  | T55: =IF(D55="","",VLOOKUP(D55,PC_Rec!$O$5:$Q$18,3,FALSE)) ->  | W55: =IF(V55="","",VLOOKUP(V55,'Aux1'!$A$1:$B$12,2,FALSE)) ->  | X55: Não pago | AA55: =IF(Z55="","",VLOOKUP(Z55,'Aux1'!$A$1:$B$12,2,FALSE)) ->  | AB55: =IF(AA55="", COUNTIF(AA$5:AA55, ""),"") -> 36 | AC55: 00:00:00.441 | AD55: 5.1e-06
N56: 0 | O56: 0 | S56: =VLOOKUP(D56,PC_Rec!$O$5:$P$18,2,FALSE) ->  | T56: =IF(D56="","",VLOOKUP(D56,PC_Rec!$O$5:$Q$18,3,FALSE)) ->  | W56: =IF(V56="","",VLOOKUP(V56,'Aux1'!$A$1:$B$12,2,FALSE)) ->  | X56: Não pago | AA56: =IF(Z56="","",VLOOKUP(Z56,'Aux1'!$A$1:$B$12,2,FALSE)) ->  | AB56: =IF(AA56="", COUNTIF(AA$5:AA56, ""),"") -> 37 | AC56: 00:00:00.449 | AD56: 5.2e-06
N57: 0 | O57: 0 | S57: =VLOOKUP(D57,PC_Rec!$O$5:$P$18,2,FALSE) ->  | T57: =IF(D57="","",VLOOKUP(D57,PC_Rec!$O$5:$Q$18,3,FALSE)) ->  | W57: =IF(V57="","",VLOOKUP(V57,'Aux1'!$A$1:$B$12,2,FALSE)) ->  | X57: Não pago | AA57: =IF(Z57="","",VLOOKUP(Z57,'Aux1'!$A$1:$B$12,2,FALSE)) ->  | AB57: =IF(AA57="", COUNTIF(AA$5:AA57, ""),"") -> 38 | AC57: 00:00:00.458 | AD57: 5.3e-06
N58: 0 | O58: 0 | S58: =VLOOKUP(D58,PC_Rec!$O$5:$P$18,2,FALSE) ->  | T58: =IF(D58="","",VLOOKUP(D58,PC_Rec!$O$5:$Q$18,3,FALSE)) ->  | W58: =IF(V58="","",VLOOKUP(V58,'Aux1'!$A$1:$B$12,2,FALSE)) ->  | X58: Não pago | AA58: =IF(Z58="","",VLOOKUP(Z58,'Aux1'!$A$1:$B$12,2,FALSE)) ->  | AB58: =IF(AA58="", COUNTIF(AA$5:AA58, ""),"") -> 39 | AC58: 00:00:00.467 | AD58: 5.4e-06
N59: 0 | O59: 0 | S59: =VLOOKUP(D59,PC_Rec!$O$5:$P$18,2,FALSE) ->  | T59: =IF(D59="","",VLOOKUP(D59,PC_Rec!$O$5:$Q$18,3,FALSE)) ->  | W59: =IF(V59="","",VLOOKUP(V59,'Aux1'!$A$1:$B$12,2,FALSE)) ->  | X59: Não pago | AA59: =IF(Z59="","",VLOOKUP(Z59,'Aux1'!$A$1:$B$12,2,FALSE)) ->  | AB59: =IF(AA59="", COUNTIF(AA$5:AA59, ""),"") -> 40 | AC59: 00:00:00.475 | AD59: 5.5e-06
N60: 0 | O60: 0 | S60: =VLOOKUP(D60,PC_Rec!$O$5:$P$18,2,FALSE) ->  | T60: =IF(D60="","",VLOOKUP(D60,PC_Rec!$O$5:$Q$18,3,FALSE)) ->  | W60: =IF(V60="","",VLOOKUP(V60,'Aux1'!$A$1:$B$12,2,FALSE)) ->  | X60: Não pago | AA60: =IF(Z60="","",VLOOKUP(Z60,'Aux1'!$A$1:$B$12,2,FALSE)) ->  | AB60: =IF(AA60="", COUNTIF(AA$5:AA60, ""),"") -> 41 | AC60: 00:00:00.484 | AD60: 5.6e-06
N61: 0 | O61: 0 | S61: =VLOOKUP(D61,PC_Rec!$O$5:$P$18,2,FALSE) ->  | T61: =IF(D61="","",VLOOKUP(D61,PC_Rec!$O$5:$Q$18,3,FALSE)) ->  | W61: =IF(V61="","",VLOOKUP(V61,'Aux1'!$A$1:$B$12,2,FALSE)) ->  | X61: Não pago | AA61: =IF(Z61="","",VLOOKUP(Z61,'Aux1'!$A$1:$B$12,2,FALSE)) ->  | AB61: =IF(AA61="", COUNTIF(AA$5:AA61, ""),"") -> 42 | AC61: 00:00:00.492 | AD61: 5.7e-06
N62: 0 | O62: 0 | S62: =VLOOKUP(D62,PC_Rec!$O$5:$P$18,2,FALSE) ->  | T62: =IF(D62="","",VLOOKUP(D62,PC_Rec!$O$5:$Q$18,3,FALSE)) ->  | W62: =IF(V62="","",VLOOKUP(V62,'Aux1'!$A$1:$B$12,2,FALSE)) ->  | X62: Não pago | AA62: =IF(Z62="","",VLOOKUP(Z62,'Aux1'!$A$1:$B$12,2,FALSE)) ->  | AB62: =IF(AA62="", COUNTIF(AA$5:AA62, ""),"") -> 43 | AC62: 00:00:00.501 | AD62: 5.8e-06
N63: 0 | O63: 0 | S63: =VLOOKUP(D63,PC_Rec!$O$5:$P$18,2,FALSE) ->  | T63: =IF(D63="","",VLOOKUP(D63,PC_Rec!$O$5:$Q$18,3,FALSE)) ->  | W63: =IF(V63="","",VLOOKUP(V63,'Aux1'!$A$1:$B$12,2,FALSE)) ->  | X63: Não pago | AA63: =IF(Z63="","",VLOOKUP(Z63,'Aux1'!$A$1:$B$12,2,FALSE)) ->  | AB63: =IF(AA63="", COUNTIF(AA$5:AA63, ""),"") -> 44 | AC63: 00:00:00.510 | AD63: 5.9e-06
N64: 0 | O64: 0 | S64: =VLOOKUP(D64,PC_Rec!$O$5:$P$18,2,FALSE) ->  | T64: =IF(D64="","",VLOOKUP(D64,PC_Rec!$O$5:$Q$18,3,FALSE)) ->  | W64: =IF(V64="","",VLOOKUP(V64,'Aux1'!$A$1:$B$12,2,FALSE)) ->  | X64: Não pago | AA64: =IF(Z64="","",VLOOKUP(Z64,'Aux1'!$A$1:$B$12,2,FALSE)) ->  | AB64: =IF(AA64="", COUNTIF(AA$5:AA64, ""),"") -> 45 | AC64: 00:00:00.518 | AD64: 6e-06
N65: 0 | O65: 0 | S65: =VLOOKUP(D65,PC_Rec!$O$5:$P$18,2,FALSE) ->  | T65: =IF(D65="","",VLOOKUP(D65,PC_Rec!$O$5:$Q$18,3,FALSE)) ->  | W65: =IF(V65="","",VLOOKUP(V65,'Aux1'!$A$1:$B$12,2,FALSE)) ->  | X65: Não pago | AA65: =IF(Z65="","",VLOOKUP(Z65,'Aux1'!$A$1:$B$12,2,FALSE)) ->  | AB65: =IF(AA65="", COUNTIF(AA$5:AA65, ""),"") -> 46 | AC65: 00:00:00.527 | AD65: 6.1e-06
N66: 0 | O66: 0 | S66: =VLOOKUP(D66,PC_Rec!$O$5:$P$18,2,FALSE) ->  | T66: =IF(D66="","",VLOOKUP(D66,PC_Rec!$O$5:$Q$18,3,FALSE)) ->  | W66: =IF(V66="","",VLOOKUP(V66,'Aux1'!$A$1:$B$12,2,FALSE)) ->  | X66: Não pago | AA66: =IF(Z66="","",VLOOKUP(Z66,'Aux1'!$A$1:$B$12,2,FALSE)) ->  | AB66: =IF(AA66="", COUNTIF(AA$5:AA66, ""),"") -> 47 | AC66: 00:00:00.536 | AD66: 6.2e-06
N67: 0 | O67: 0 | S67: =VLOOKUP(D67,PC_Rec!$O$5:$P$18,2,FALSE) ->  | T67: =IF(D67="","",VLOOKUP(D67,PC_Rec!$O$5:$Q$18,3,FALSE)) ->  | W67: =IF(V67="","",VLOOKUP(V67,'Aux1'!$A$1:$B$12,2,FALSE)) ->  | X67: Não pago | AA67: =IF(Z67="","",VLOOKUP(Z67,'Aux1'!$A$1:$B$12,2,FALSE)) ->  | AB67: =IF(AA67="", COUNTIF(AA$5:AA67, ""),"") -> 48 | AC67: 00:00:00.544 | AD67: 6.3e-06
N68: 0 | O68: 0 | S68: =VLOOKUP(D68,PC_Rec!$O$5:$P$18,2,FALSE) ->  | T68: =IF(D68="","",VLOOKUP(D68,PC_Rec!$O$5:$Q$18,3,FALSE)) ->  | W68: =IF(V68="","",VLOOKUP(V68,'Aux1'!$A$1:$B$12,2,FALSE)) ->  | X68: Não pago | AA68: =IF(Z68="","",VLOOKUP(Z68,'Aux1'!$A$1:$B$12,2,FALSE)) ->  | AB68: =IF(AA68="", COUNTIF(AA$5:AA68, ""),"") -> 49 | AC68: 00:00:00.553 | AD68: 6.4e-06
N69: 0 | O69: 0 | S69: =VLOOKUP(D69,PC_Rec!$O$5:$P$18,2,FALSE) ->  | T69: =IF(D69="","",VLOOKUP(D69,PC_Rec!$O$5:$Q$18,3,FALSE)) ->  | U69: =IF(C69="","",DAY(C69)) ->  | V69: =IF(C69="","",MONTH(C69)) ->  | W69: =IF(V69="","",VLOOKUP(V69,'Aux1'!$A$1:$B$12,2,FALSE)) ->  | X69: =IF(M69<>"","Pago","Não pago") -> Não pago | Y69: =IF(M69="","",DAY(M69)) ->  | Z69: =IF(M69="","",MONTH(M69)) ->  | AA69: =IF(Z69="","",VLOOKUP(Z69,'Aux1'!$A$1:$B$12,2,FALSE)) ->  | AB69: =IF(AA69="", COUNTIF(AA$5:AA69, ""),"") -> 50 | AC69: 00:00:00.562 | AD69: 6.5e-06 | AE69: =IF(AND(X69="Não pago",L69<>0),C69,"") ->  | AF69: =IF(AE69="","",C69) ->  | AG69: =IF(AE69="","",D69) ->  | AH69: =IF(AE69="","",E69) ->  | AI69: =IF(AE69="","",F69) ->  | AJ69: =IF(AE69="","",L69) -> 
N70: 0 | O70: =Q70+IF(AND(T70="Ingresos",X70="Pago",AA70=$C$3),L70,IF(AND(T70="gasto",X70="Pago",AA70=$C$3),-L70,0)) -> 0 | S70: =VLOOKUP(D70,PC_Rec!$O$5:$P$18,2,FALSE) ->  | T70: =IF(D70="","",VLOOKUP(D70,PC_Rec!$O$5:$Q$18,3,FALSE)) ->  | W70: =IF(V70="","",VLOOKUP(V70,'Aux1'!$A$1:$B$12,2,FALSE)) ->  | X70: Não pago | AA70: =IF(Z70="","",VLOOKUP(Z70,'Aux1'!$A$1:$B$12,2,FALSE)) ->  | AB70: =IF(AA70="", COUNTIF(AA$5:AA70, ""),"") -> 51 | AC70: =SUM(AD70:AE70) -> 00:00:00.570 | AD70: 6.6e-06
N71: =O71 -> 0 | O71: 0 | S71: =VLOOKUP(D71,PC_Rec!$O$5:$P$18,2,FALSE) ->  | T71: =IF(D71="","",VLOOKUP(D71,PC_Rec!$O$5:$Q$18,3,FALSE)) ->  | W71: =IF(V71="","",VLOOKUP(V71,'Aux1'!$A$1:$B$12,2,FALSE)) ->  | X71: Não pago | AA71: =IF(Z71="","",VLOOKUP(Z71,'Aux1'!$A$1:$B$12,2,FALSE)) ->  | AB71: =IF(AA71="", COUNTIF(AA$5:AA71, ""),"") -> 52 | AC71: 00:00:00.579 | AD71: 6.7e-06
N72: 0 | O72: 0 | S72: =VLOOKUP(D72,PC_Rec!$O$5:$P$18,2,FALSE) ->  | T72: =IF(D72="","",VLOOKUP(D72,PC_Rec!$O$5:$Q$18,3,FALSE)) ->  | W72: =IF(V72="","",VLOOKUP(V72,'Aux1'!$A$1:$B$12,2,FALSE)) ->  | X72: Não pago | AA72: =IF(Z72="","",VLOOKUP(Z72,'Aux1'!$A$1:$B$12,2,FALSE)) ->  | AB72: =IF(AA72="", COUNTIF(AA$5:AA72, ""),"") -> 53 | AC72: 00:00:00.588 | AD72: 6.8e-06
N73: 0 | O73: 0 | S73: =VLOOKUP(D73,PC_Rec!$O$5:$P$18,2,FALSE) ->  | T73: =IF(D73="","",VLOOKUP(D73,PC_Rec!$O$5:$Q$18,3,FALSE)) ->  | W73: =IF(V73="","",VLOOKUP(V73,'Aux1'!$A$1:$B$12,2,FALSE)) ->  | X73: Não pago | AA73: =IF(Z73="","",VLOOKUP(Z73,'Aux1'!$A$1:$B$12,2,FALSE)) ->  | AB73: =IF(AA73="", COUNTIF(AA$5:AA73, ""),"") -> 54 | AC73: 00:00:00.596 | AD73: 6.9e-06
N74: 0 | O74: 0 | S74: =VLOOKUP(D74,PC_Rec!$O$5:$P$18,2,FALSE) ->  | T74: =IF(D74="","",VLOOKUP(D74,PC_Rec!$O$5:$Q$18,3,FALSE)) ->  | W74: =IF(V74="","",VLOOKUP(V74,'Aux1'!$A$1:$B$12,2,FALSE)) ->  | X74: Não pago | AA74: =IF(Z74="","",VLOOKUP(Z74,'Aux1'!$A$1:$B$12,2,FALSE)) ->  | AB74: =IF(AA74="", COUNTIF(AA$5:AA74, ""),"") -> 55 | AC74: 00:00:00.605 | AD74: 7e-06
N75: 0 | O75: 0 | S75: =VLOOKUP(D75,PC_Rec!$O$5:$P$18,2,FALSE) ->  | T75: =IF(D75="","",VLOOKUP(D75,PC_Rec!$O$5:$Q$18,3,FALSE)) ->  | W75: =IF(V75="","",VLOOKUP(V75,'Aux1'!$A$1:$B$12,2,FALSE)) ->  | X75: Não pago | AA75: =IF(Z75="","",VLOOKUP(Z75,'Aux1'!$A$1:$B$12,2,FALSE)) ->  | AB75: =IF(AA75="", COUNTIF(AA$5:AA75, ""),"") -> 56 | AC75: 00:00:00.613 | AD75: 7.1e-06
N76: 0 | O76: 0 | S76: =VLOOKUP(D76,PC_Rec!$O$5:$P$18,2,FALSE) ->  | T76: =IF(D76="","",VLOOKUP(D76,PC_Rec!$O$5:$Q$18,3,FALSE)) ->  | W76: =IF(V76="","",VLOOKUP(V76,'Aux1'!$A$1:$B$12,2,FALSE)) ->  | X76: Não pago | AA76: =IF(Z76="","",VLOOKUP(Z76,'Aux1'!$A$1:$B$12,2,FALSE)) ->  | AB76: =IF(AA76="", COUNTIF(AA$5:AA76, ""),"") -> 57 | AC76: 00:00:00.622 | AD76: 7.2e-06
N77: 0 | O77: 0 | S77: =VLOOKUP(D77,PC_Rec!$O$5:$P$18,2,FALSE) ->  | T77: =IF(D77="","",VLOOKUP(D77,PC_Rec!$O$5:$Q$18,3,FALSE)) ->  | W77: =IF(V77="","",VLOOKUP(V77,'Aux1'!$A$1:$B$12,2,FALSE)) ->  | X77: Não pago | AA77: =IF(Z77="","",VLOOKUP(Z77,'Aux1'!$A$1:$B$12,2,FALSE)) ->  | AB77: =IF(AA77="", COUNTIF(AA$5:AA77, ""),"") -> 58 | AC77: 00:00:00.631 | AD77: 7.3e-06
N78: 0 | O78: 0 | S78: =VLOOKUP(D78,PC_Rec!$O$5:$P$18,2,FALSE) ->  | T78: =IF(D78="","",VLOOKUP(D78,PC_Rec!$O$5:$Q$18,3,FALSE)) ->  | W78: =IF(V78="","",VLOOKUP(V78,'Aux1'!$A$1:$B$12,2,FALSE)) ->  | X78: Não pago | AA78: =IF(Z78="","",VLOOKUP(Z78,'Aux1'!$A$1:$B$12,2,FALSE)) ->  | AB78: =IF(AA78="", COUNTIF(AA$5:AA78, ""),"") -> 59 | AC78: 00:00:00.639 | AD78: 7.4e-06
N79: 0 | O79: 0 | S79: =VLOOKUP(D79,PC_Rec!$O$5:$P$18,2,FALSE) ->  | T79: =IF(D79="","",VLOOKUP(D79,PC_Rec!$O$5:$Q$18,3,FALSE)) ->  | W79: =IF(V79="","",VLOOKUP(V79,'Aux1'!$A$1:$B$12,2,FALSE)) ->  | X79: Não pago | AA79: =IF(Z79="","",VLOOKUP(Z79,'Aux1'!$A$1:$B$12,2,FALSE)) ->  | AB79: =IF(AA79="", COUNTIF(AA$5:AA79, ""),"") -> 60 | AC79: 00:00:00.648 | AD79: 7.5e-06
N80: 0 | O80: 0 | S80: =VLOOKUP(D80,PC_Rec!$O$5:$P$18,2,FALSE) ->  | T80: =IF(D80="","",VLOOKUP(D80,PC_Rec!$O$5:$Q$18,3,FALSE)) ->  | W80: =IF(V80="","",VLOOKUP(V80,'Aux1'!$A$1:$B$12,2,FALSE)) ->  | X80: Não pago | AA80: =IF(Z80="","",VLOOKUP(Z80,'Aux1'!$A$1:$B$12,2,FALSE)) ->  | AB80: =IF(AA80="", COUNTIF(AA$5:AA80, ""),"") -> 61 | AC80: 00:00:00.657 | AD80: 7.6e-06
N81: 0 | O81: 0 | S81: =VLOOKUP(D81,PC_Rec!$O$5:$P$18,2,FALSE) ->  | T81: =IF(D81="","",VLOOKUP(D81,PC_Rec!$O$5:$Q$18,3,FALSE)) ->  | W81: =IF(V81="","",VLOOKUP(V81,'Aux1'!$A$1:$B$12,2,FALSE)) ->  | X81: Não pago | AA81: =IF(Z81="","",VLOOKUP(Z81,'Aux1'!$A$1:$B$12,2,FALSE)) ->  | AB81: =IF(AA81="", COUNTIF(AA$5:AA81, ""),"") -> 62 | AC81: 00:00:00.665 | AD81: 7.7e-06
N82: 0 | O82: 0 | S82: =VLOOKUP(D82,PC_Rec!$O$5:$P$18,2,FALSE) ->  | T82: =IF(D82="","",VLOOKUP(D82,PC_Rec!$O$5:$Q$18,3,FALSE)) ->  | W82: =IF(V82="","",VLOOKUP(V82,'Aux1'!$A$1:$B$12,2,FALSE)) ->  | X82: Não pago | AA82: =IF(Z82="","",VLOOKUP(Z82,'Aux1'!$A$1:$B$12,2,FALSE)) ->  | AB82: =IF(AA82="", COUNTIF(AA$5:AA82, ""),"") -> 63 | AC82: 00:00:00.674 | AD82: 7.8e-06
N83: 0 | O83: 0 | S83: =VLOOKUP(D83,PC_Rec!$O$5:$P$18,2,FALSE) ->  | T83: =IF(D83="","",VLOOKUP(D83,PC_Rec!$O$5:$Q$18,3,FALSE)) ->  | W83: =IF(V83="","",VLOOKUP(V83,'Aux1'!$A$1:$B$12,2,FALSE)) ->  | X83: Não pago | AA83: =IF(Z83="","",VLOOKUP(Z83,'Aux1'!$A$1:$B$12,2,FALSE)) ->  | AB83: =IF(AA83="", COUNTIF(AA$5:AA83, ""),"") -> 64 | AC83: 00:00:00.683 | AD83: 7.9e-06
N84: 0 | O84: 0 | S84: =VLOOKUP(D84,PC_Rec!$O$5:$P$18,2,FALSE) ->  | T84: =IF(D84="","",VLOOKUP(D84,PC_Rec!$O$5:$Q$18,3,FALSE)) ->  | W84: =IF(V84="","",VLOOKUP(V84,'Aux1'!$A$1:$B$12,2,FALSE)) ->  | X84: Não pago | AA84: =IF(Z84="","",VLOOKUP(Z84,'Aux1'!$A$1:$B$12,2,FALSE)) ->  | AB84: =IF(AA84="", COUNTIF(AA$5:AA84, ""),"") -> 65 | AC84: 00:00:00.691 | AD84: 8e-06
N85: 0 | O85: 0 | S85: =VLOOKUP(D85,PC_Rec!$O$5:$P$18,2,FALSE) ->  | T85: =IF(D85="","",VLOOKUP(D85,PC_Rec!$O$5:$Q$18,3,FALSE)) ->  | W85: =IF(V85="","",VLOOKUP(V85,'Aux1'!$A$1:$B$12,2,FALSE)) ->  | X85: Não pago | AA85: =IF(Z85="","",VLOOKUP(Z85,'Aux1'!$A$1:$B$12,2,FALSE)) ->  | AB85: =IF(AA85="", COUNTIF(AA$5:AA85, ""),"") -> 66 | AC85: 00:00:00.700 | AD85: 8.1e-06
N86: 0 | O86: 0 | S86: =VLOOKUP(D86,PC_Rec!$O$5:$P$18,2,FALSE) ->  | T86: =IF(D86="","",VLOOKUP(D86,PC_Rec!$O$5:$Q$18,3,FALSE)) ->  | W86: =IF(V86="","",VLOOKUP(V86,'Aux1'!$A$1:$B$12,2,FALSE)) ->  | X86: Não pago | AA86: =IF(Z86="","",VLOOKUP(Z86,'Aux1'!$A$1:$B$12,2,FALSE)) ->  | AB86: =IF(AA86="", COUNTIF(AA$5:AA86, ""),"") -> 67 | AC86: 00:00:00.708 | AD86: 8.2e-06
N87: 0 | O87: 0 | S87: =VLOOKUP(D87,PC_Rec!$O$5:$P$18,2,FALSE) ->  | T87: =IF(D87="","",VLOOKUP(D87,PC_Rec!$O$5:$Q$18,3,FALSE)) ->  | W87: =IF(V87="","",VLOOKUP(V87,'Aux1'!$A$1:$B$12,2,FALSE)) ->  | X87: Não pago | AA87: =IF(Z87="","",VLOOKUP(Z87,'Aux1'!$A$1:$B$12,2,FALSE)) ->  | AB87: =IF(AA87="", COUNTIF(AA$5:AA87, ""),"") -> 68 | AC87: 00:00:00.717 | AD87: 8.3e-06
N88: 0 | O88: 0 | S88: =VLOOKUP(D88,PC_Rec!$O$5:$P$18,2,FALSE) ->  | T88: =IF(D88="","",VLOOKUP(D88,PC_Rec!$O$5:$Q$18,3,FALSE)) ->  | W88: =IF(V88="","",VLOOKUP(V88,'Aux1'!$A$1:$B$12,2,FALSE)) ->  | X88: Não pago | AA88: =IF(Z88="","",VLOOKUP(Z88,'Aux1'!$A$1:$B$12,2,FALSE)) ->  | AB88: =IF(AA88="", COUNTIF(AA$5:AA88, ""),"") -> 69 | AC88: 00:00:00.726 | AD88: 8.4e-06
N89: 0 | O89: 0 | S89: =VLOOKUP(D89,PC_Rec!$O$5:$P$18,2,FALSE) ->  | T89: =IF(D89="","",VLOOKUP(D89,PC_Rec!$O$5:$Q$18,3,FALSE)) ->  | W89: =IF(V89="","",VLOOKUP(V89,'Aux1'!$A$1:$B$12,2,FALSE)) ->  | X89: Não pago | AA89: =IF(Z89="","",VLOOKUP(Z89,'Aux1'!$A$1:$B$12,2,FALSE)) ->  | AB89: =IF(AA89="", COUNTIF(AA$5:AA89, ""),"") -> 70 | AC89: 00:00:00.734 | AD89: 8.5e-06
N90: 0 | O90: 0 | S90: =VLOOKUP(D90,PC_Rec!$O$5:$P$18,2,FALSE) ->  | T90: =IF(D90="","",VLOOKUP(D90,PC_Rec!$O$5:$Q$18,3,FALSE)) ->  | W90: =IF(V90="","",VLOOKUP(V90,'Aux1'!$A$1:$B$12,2,FALSE)) ->  | X90: Não pago | AA90: =IF(Z90="","",VLOOKUP(Z90,'Aux1'!$A$1:$B$12,2,FALSE)) ->  | AB90: =IF(AA90="", COUNTIF(AA$5:AA90, ""),"") -> 71 | AC90: 00:00:00.743 | AD90: 8.6e-06
N91: 0 | O91: 0 | S91: =VLOOKUP(D91,PC_Rec!$O$5:$P$18,2,FALSE) ->  | T91: =IF(D91="","",VLOOKUP(D91,PC_Rec!$O$5:$Q$18,3,FALSE)) ->  | W91: =IF(V91="","",VLOOKUP(V91,'Aux1'!$A$1:$B$12,2,FALSE)) ->  | X91: Não pago | AA91: =IF(Z91="","",VLOOKUP(Z91,'Aux1'!$A$1:$B$12,2,FALSE)) ->  | AB91: =IF(AA91="", COUNTIF(AA$5:AA91, ""),"") -> 72 | AC91: 00:00:00.752 | AD91: 8.7e-06
N92: 0 | O92: 0 | S92: =VLOOKUP(D92,PC_Rec!$O$5:$P$18,2,FALSE) ->  | T92: =IF(D92="","",VLOOKUP(D92,PC_Rec!$O$5:$Q$18,3,FALSE)) ->  | W92: =IF(V92="","",VLOOKUP(V92,'Aux1'!$A$1:$B$12,2,FALSE)) ->  | X92: Não pago | AA92: =IF(Z92="","",VLOOKUP(Z92,'Aux1'!$A$1:$B$12,2,FALSE)) ->  | AB92: =IF(AA92="", COUNTIF(AA$5:AA92, ""),"") -> 73 | AC92: 00:00:00.760 | AD92: 8.8e-06
N93: 0 | O93: 0 | S93: =VLOOKUP(D93,PC_Rec!$O$5:$P$18,2,FALSE) ->  | T93: =IF(D93="","",VLOOKUP(D93,PC_Rec!$O$5:$Q$18,3,FALSE)) ->  | W93: =IF(V93="","",VLOOKUP(V93,'Aux1'!$A$1:$B$12,2,FALSE)) ->  | X93: Não pago | AA93: =IF(Z93="","",VLOOKUP(Z93,'Aux1'!$A$1:$B$12,2,FALSE)) ->  | AB93: =IF(AA93="", COUNTIF(AA$5:AA93, ""),"") -> 74 | AC93: 00:00:00.769 | AD93: 8.9e-06
N94: 0 | O94: 0 | S94: =VLOOKUP(D94,PC_Rec!$O$5:$P$18,2,FALSE) ->  | T94: =IF(D94="","",VLOOKUP(D94,PC_Rec!$O$5:$Q$18,3,FALSE)) ->  | W94: =IF(V94="","",VLOOKUP(V94,'Aux1'!$A$1:$B$12,2,FALSE)) ->  | X94: Não pago | AA94: =IF(Z94="","",VLOOKUP(Z94,'Aux1'!$A$1:$B$12,2,FALSE)) ->  | AB94: =IF(AA94="", COUNTIF(AA$5:AA94, ""),"") -> 75 | AC94: 00:00:00.778 | AD94: 9e-06
N95: 0 | O95: 0 | S95: =VLOOKUP(D95,PC_Rec!$O$5:$P$18,2,FALSE) ->  | T95: =IF(D95="","",VLOOKUP(D95,PC_Rec!$O$5:$Q$18,3,FALSE)) ->  | W95: =IF(V95="","",VLOOKUP(V95,'Aux1'!$A$1:$B$12,2,FALSE)) ->  | X95: Não pago | AA95: =IF(Z95="","",VLOOKUP(Z95,'Aux1'!$A$1:$B$12,2,FALSE)) ->  | AB95: =IF(AA95="", COUNTIF(AA$5:AA95, ""),"") -> 76 | AC95: 00:00:00.786 | AD95: 9.1e-06
N96: 0 | O96: 0 | S96: =VLOOKUP(D96,PC_Rec!$O$5:$P$18,2,FALSE) ->  | T96: =IF(D96="","",VLOOKUP(D96,PC_Rec!$O$5:$Q$18,3,FALSE)) ->  | W96: =IF(V96="","",VLOOKUP(V96,'Aux1'!$A$1:$B$12,2,FALSE)) ->  | X96: Não pago | AA96: =IF(Z96="","",VLOOKUP(Z96,'Aux1'!$A$1:$B$12,2,FALSE)) ->  | AB96: =IF(AA96="", COUNTIF(AA$5:AA96, ""),"") -> 77 | AC96: 00:00:00.795 | AD96: 9.2e-06
N97: 0 | O97: 0 | S97: =VLOOKUP(D97,PC_Rec!$O$5:$P$18,2,FALSE) ->  | T97: =IF(D97="","",VLOOKUP(D97,PC_Rec!$O$5:$Q$18,3,FALSE)) ->  | W97: =IF(V97="","",VLOOKUP(V97,'Aux1'!$A$1:$B$12,2,FALSE)) ->  | X97: Não pago | AA97: =IF(Z97="","",VLOOKUP(Z97,'Aux1'!$A$1:$B$12,2,FALSE)) ->  | AB97: =IF(AA97="", COUNTIF(AA$5:AA97, ""),"") -> 78 | AC97: 00:00:00.804 | AD97: 9.3e-06
N98: 0 | O98: 0 | S98: =VLOOKUP(D98,PC_Rec!$O$5:$P$18,2,FALSE) ->  | T98: =IF(D98="","",VLOOKUP(D98,PC_Rec!$O$5:$Q$18,3,FALSE)) ->  | W98: =IF(V98="","",VLOOKUP(V98,'Aux1'!$A$1:$B$12,2,FALSE)) ->  | X98: Não pago | AA98: =IF(Z98="","",VLOOKUP(Z98,'Aux1'!$A$1:$B$12,2,FALSE)) ->  | AB98: =IF(AA98="", COUNTIF(AA$5:AA98, ""),"") -> 79 | AC98: 00:00:00.812 | AD98: 9.4e-06
N99: 0 | O99: 0 | S99: =VLOOKUP(D99,PC_Rec!$O$5:$P$18,2,FALSE) ->  | T99: =IF(D99="","",VLOOKUP(D99,PC_Rec!$O$5:$Q$18,3,FALSE)) ->  | W99: =IF(V99="","",VLOOKUP(V99,'Aux1'!$A$1:$B$12,2,FALSE)) ->  | X99: Não pago | AA99: =IF(Z99="","",VLOOKUP(Z99,'Aux1'!$A$1:$B$12,2,FALSE)) ->  | AB99: =IF(AA99="", COUNTIF(AA$5:AA99, ""),"") -> 80 | AC99: 00:00:00.821 | AD99: 9.5e-06
N100: 0 | O100: 0 | S100: =VLOOKUP(D100,PC_Rec!$O$5:$P$18,2,FALSE) ->  | T100: =IF(D100="","",VLOOKUP(D100,PC_Rec!$O$5:$Q$18,3,FALSE)) ->  | W100: =IF(V100="","",VLOOKUP(V100,'Aux1'!$A$1:$B$12,2,FALSE)) ->  | X100: Não pago | AA100: =IF(Z100="","",VLOOKUP(Z100,'Aux1'!$A$1:$B$12,2,FALSE)) ->  | AB100: =IF(AA100="", COUNTIF(AA$5:AA100, ""),"") -> 81 | AC100: 00:00:00.829 | AD100: 9.6e-06
N101: 0 | O101: 0 | S101: =VLOOKUP(D101,PC_Rec!$O$5:$P$18,2,FALSE) ->  | T101: =IF(D101="","",VLOOKUP(D101,PC_Rec!$O$5:$Q$18,3,FALSE)) ->  | W101: =IF(V101="","",VLOOKUP(V101,'Aux1'!$A$1:$B$12,2,FALSE)) ->  | X101: Não pago | AA101: =IF(Z101="","",VLOOKUP(Z101,'Aux1'!$A$1:$B$12,2,FALSE)) ->  | AB101: =IF(AA101="", COUNTIF(AA$5:AA101, ""),"") -> 82 | AC101: 00:00:00.838 | AD101: 9.7e-06
N102: 0 | O102: 0 | S102: =VLOOKUP(D102,PC_Rec!$O$5:$P$18,2,FALSE) ->  | T102: =IF(D102="","",VLOOKUP(D102,PC_Rec!$O$5:$Q$18,3,FALSE)) ->  | W102: =IF(V102="","",VLOOKUP(V102,'Aux1'!$A$1:$B$12,2,FALSE)) ->  | X102: Não pago | AA102: =IF(Z102="","",VLOOKUP(Z102,'Aux1'!$A$1:$B$12,2,FALSE)) ->  | AB102: =IF(AA102="", COUNTIF(AA$5:AA102, ""),"") -> 83 | AC102: 00:00:00.847 | AD102: 9.8e-06
N103: 0 | O103: 0 | S103: =VLOOKUP(D103,PC_Rec!$O$5:$P$18,2,FALSE) ->  | T103: =IF(D103="","",VLOOKUP(D103,PC_Rec!$O$5:$Q$18,3,FALSE)) ->  | W103: =IF(V103="","",VLOOKUP(V103,'Aux1'!$A$1:$B$12,2,FALSE)) ->  | X103: Não pago | AA103: =IF(Z103="","",VLOOKUP(Z103,'Aux1'!$A$1:$B$12,2,FALSE)) ->  | AB103: =IF(AA103="", COUNTIF(AA$5:AA103, ""),"") -> 84 | AC103: 00:00:00.855 | AD103: 9.9e-06
N104: 0 | O104: 0 | S104: =VLOOKUP(D104,PC_Rec!$O$5:$P$18,2,FALSE) ->  | T104: =IF(D104="","",VLOOKUP(D104,PC_Rec!$O$5:$Q$18,3,FALSE)) ->  | W104: =IF(V104="","",VLOOKUP(V104,'Aux1'!$A$1:$B$12,2,FALSE)) ->  | X104: Não pago | AA104: =IF(Z104="","",VLOOKUP(Z104,'Aux1'!$A$1:$B$12,2,FALSE)) ->  | AB104: =IF(AA104="", COUNTIF(AA$5:AA104, ""),"") -> 85 | AC104: 00:00:00.864 | AD104: 1e-05
N105: 0 | O105: 0 | S105: =VLOOKUP(D105,PC_Rec!$O$5:$P$18,2,FALSE) ->  | T105: =IF(D105="","",VLOOKUP(D105,PC_Rec!$O$5:$Q$18,3,FALSE)) ->  | W105: =IF(V105="","",VLOOKUP(V105,'Aux1'!$A$1:$B$12,2,FALSE)) ->  | X105: Não pago | AA105: =IF(Z105="","",VLOOKUP(Z105,'Aux1'!$A$1:$B$12,2,FALSE)) ->  | AB105: =IF(AA105="", COUNTIF(AA$5:AA105, ""),"") -> 86 | AC105: 00:00:00.873 | AD105: 1.01e-05
N106: 0 | O106: 0 | S106: =VLOOKUP(D106,PC_Rec!$O$5:$P$18,2,FALSE) ->  | T106: =IF(D106="","",VLOOKUP(D106,PC_Rec!$O$5:$Q$18,3,FALSE)) ->  | W106: =IF(V106="","",VLOOKUP(V106,'Aux1'!$A$1:$B$12,2,FALSE)) ->  | X106: Não pago | AA106: =IF(Z106="","",VLOOKUP(Z106,'Aux1'!$A$1:$B$12,2,FALSE)) ->  | AB106: =IF(AA106="", COUNTIF(AA$5:AA106, ""),"") -> 87 | AC106: 00:00:00.881 | AD106: 1.02e-05
N107: 0 | O107: 0 | S107: =VLOOKUP(D107,PC_Rec!$O$5:$P$18,2,FALSE) ->  | T107: =IF(D107="","",VLOOKUP(D107,PC_Rec!$O$5:$Q$18,3,FALSE)) ->  | W107: =IF(V107="","",VLOOKUP(V107,'Aux1'!$A$1:$B$12,2,FALSE)) ->  | X107: Não pago | AA107: =IF(Z107="","",VLOOKUP(Z107,'Aux1'!$A$1:$B$12,2,FALSE)) ->  | AB107: =IF(AA107="", COUNTIF(AA$5:AA107, ""),"") -> 88 | AC107: 00:00:00.890 | AD107: 1.03e-05
N108: 0 | O108: 0 | S108: =VLOOKUP(D108,PC_Rec!$O$5:$P$18,2,FALSE) ->  | T108: =IF(D108="","",VLOOKUP(D108,PC_Rec!$O$5:$Q$18,3,FALSE)) ->  | W108: =IF(V108="","",VLOOKUP(V108,'Aux1'!$A$1:$B$12,2,FALSE)) ->  | X108: Não pago | AA108: =IF(Z108="","",VLOOKUP(Z108,'Aux1'!$A$1:$B$12,2,FALSE)) ->  | AB108: =IF(AA108="", COUNTIF(AA$5:AA108, ""),"") -> 89 | AC108: 00:00:00.899 | AD108: 1.04e-05
N109: 0 | O109: 0 | S109: =VLOOKUP(D109,PC_Rec!$O$5:$P$18,2,FALSE) ->  | T109: =IF(D109="","",VLOOKUP(D109,PC_Rec!$O$5:$Q$18,3,FALSE)) ->  | W109: =IF(V109="","",VLOOKUP(V109,'Aux1'!$A$1:$B$12,2,FALSE)) ->  | X109: Não pago | AA109: =IF(Z109="","",VLOOKUP(Z109,'Aux1'!$A$1:$B$12,2,FALSE)) ->  | AB109: =IF(AA109="", COUNTIF(AA$5:AA109, ""),"") -> 90 | AC109: 00:00:00.907 | AD109: 1.05e-05
N110: 0 | O110: 0 | S110: =VLOOKUP(D110,PC_Rec!$O$5:$P$18,2,FALSE) ->  | T110: =IF(D110="","",VLOOKUP(D110,PC_Rec!$O$5:$Q$18,3,FALSE)) ->  | W110: =IF(V110="","",VLOOKUP(V110,'Aux1'!$A$1:$B$12,2,FALSE)) ->  | X110: Não pago | AA110: =IF(Z110="","",VLOOKUP(Z110,'Aux1'!$A$1:$B$12,2,FALSE)) ->  | AB110: =IF(AA110="", COUNTIF(AA$5:AA110, ""),"") -> 91 | AC110: 00:00:00.916 | AD110: 1.06e-05
N111: 0 | O111: 0 | S111: =VLOOKUP(D111,PC_Rec!$O$5:$P$18,2,FALSE) ->  | T111: =IF(D111="","",VLOOKUP(D111,PC_Rec!$O$5:$Q$18,3,FALSE)) ->  | W111: =IF(V111="","",VLOOKUP(V111,'Aux1'!$A$1:$B$12,2,FALSE)) ->  | X111: Não pago | AA111: =IF(Z111="","",VLOOKUP(Z111,'Aux1'!$A$1:$B$12,2,FALSE)) ->  | AB111: =IF(AA111="", COUNTIF(AA$5:AA111, ""),"") -> 92 | AC111: 00:00:00.924 | AD111: 1.07e-05
N112: 0 | O112: 0 | S112: =VLOOKUP(D112,PC_Rec!$O$5:$P$18,2,FALSE) ->  | T112: =IF(D112="","",VLOOKUP(D112,PC_Rec!$O$5:$Q$18,3,FALSE)) ->  | W112: =IF(V112="","",VLOOKUP(V112,'Aux1'!$A$1:$B$12,2,FALSE)) ->  | X112: Não pago | AA112: =IF(Z112="","",VLOOKUP(Z112,'Aux1'!$A$1:$B$12,2,FALSE)) ->  | AB112: =IF(AA112="", COUNTIF(AA$5:AA112, ""),"") -> 93 | AC112: 00:00:00.933 | AD112: 1.08e-05
N113: 0 | O113: 0 | S113: =VLOOKUP(D113,PC_Rec!$O$5:$P$18,2,FALSE) ->  | T113: =IF(D113="","",VLOOKUP(D113,PC_Rec!$O$5:$Q$18,3,FALSE)) ->  | W113: =IF(V113="","",VLOOKUP(V113,'Aux1'!$A$1:$B$12,2,FALSE)) ->  | X113: Não pago | AA113: =IF(Z113="","",VLOOKUP(Z113,'Aux1'!$A$1:$B$12,2,FALSE)) ->  | AB113: =IF(AA113="", COUNTIF(AA$5:AA113, ""),"") -> 94 | AC113: 00:00:00.942 | AD113: 1.09e-05
N114: 0 | O114: 0 | S114: =VLOOKUP(D114,PC_Rec!$O$5:$P$18,2,FALSE) ->  | T114: =IF(D114="","",VLOOKUP(D114,PC_Rec!$O$5:$Q$18,3,FALSE)) ->  | W114: =IF(V114="","",VLOOKUP(V114,'Aux1'!$A$1:$B$12,2,FALSE)) ->  | X114: Não pago | AA114: =IF(Z114="","",VLOOKUP(Z114,'Aux1'!$A$1:$B$12,2,FALSE)) ->  | AB114: =IF(AA114="", COUNTIF(AA$5:AA114, ""),"") -> 95 | AC114: 00:00:00.950 | AD114: 1.1e-05
N115: 0 | O115: 0 | S115: =VLOOKUP(D115,PC_Rec!$O$5:$P$18,2,FALSE) ->  | T115: =IF(D115="","",VLOOKUP(D115,PC_Rec!$O$5:$Q$18,3,FALSE)) ->  | W115: =IF(V115="","",VLOOKUP(V115,'Aux1'!$A$1:$B$12,2,FALSE)) ->  | X115: Não pago | AA115: =IF(Z115="","",VLOOKUP(Z115,'Aux1'!$A$1:$B$12,2,FALSE)) ->  | AB115: =IF(AA115="", COUNTIF(AA$5:AA115, ""),"") -> 96 | AC115: 00:00:00.959 | AD115: 1.11e-05
N116: 0 | O116: 0 | S116: =VLOOKUP(D116,PC_Rec!$O$5:$P$18,2,FALSE) ->  | T116: =IF(D116="","",VLOOKUP(D116,PC_Rec!$O$5:$Q$18,3,FALSE)) ->  | W116: =IF(V116="","",VLOOKUP(V116,'Aux1'!$A$1:$B$12,2,FALSE)) ->  | X116: Não pago | AA116: =IF(Z116="","",VLOOKUP(Z116,'Aux1'!$A$1:$B$12,2,FALSE)) ->  | AB116: =IF(AA116="", COUNTIF(AA$5:AA116, ""),"") -> 97 | AC116: 00:00:00.968 | AD116: 1.12e-05
N117: 0 | O117: 0 | S117: =VLOOKUP(D117,PC_Rec!$O$5:$P$18,2,FALSE) ->  | T117: =IF(D117="","",VLOOKUP(D117,PC_Rec!$O$5:$Q$18,3,FALSE)) ->  | W117: =IF(V117="","",VLOOKUP(V117,'Aux1'!$A$1:$B$12,2,FALSE)) ->  | X117: Não pago | AA117: =IF(Z117="","",VLOOKUP(Z117,'Aux1'!$A$1:$B$12,2,FALSE)) ->  | AB117: =IF(AA117="", COUNTIF(AA$5:AA117, ""),"") -> 98 | AC117: 00:00:00.976 | AD117: 1.13e-05
N118: 0 | O118: 0 | S118: =VLOOKUP(D118,PC_Rec!$O$5:$P$18,2,FALSE) ->  | T118: =IF(D118="","",VLOOKUP(D118,PC_Rec!$O$5:$Q$18,3,FALSE)) ->  | W118: =IF(V118="","",VLOOKUP(V118,'Aux1'!$A$1:$B$12,2,FALSE)) ->  | X118: Não pago | AA118: =IF(Z118="","",VLOOKUP(Z118,'Aux1'!$A$1:$B$12,2,FALSE)) ->  | AB118: =IF(AA118="", COUNTIF(AA$5:AA118, ""),"") -> 99 | AC118: 00:00:00.985 | AD118: 1.14e-05
N119: 0 | O119: 0 | S119: =VLOOKUP(D119,PC_Rec!$O$5:$P$18,2,FALSE) ->  | T119: =IF(D119="","",VLOOKUP(D119,PC_Rec!$O$5:$Q$18,3,FALSE)) ->  | W119: =IF(V119="","",VLOOKUP(V119,'Aux1'!$A$1:$B$12,2,FALSE)) ->  | X119: Não pago | AA119: =IF(Z119="","",VLOOKUP(Z119,'Aux1'!$A$1:$B$12,2,FALSE)) ->  | AB119: =IF(AA119="", COUNTIF(AA$5:AA119, ""),"") -> 100 | AC119: 00:00:00.994 | AD119: 1.15e-05
N120: 0 | O120: 0 | S120: =VLOOKUP(D120,PC_Rec!$O$5:$P$18,2,FALSE) ->  | T120: =IF(D120="","",VLOOKUP(D120,PC_Rec!$O$5:$Q$18,3,FALSE)) ->  | W120: =IF(V120="","",VLOOKUP(V120,'Aux1'!$A$1:$B$12,2,FALSE)) ->  | X120: Não pago | AA120: =IF(Z120="","",VLOOKUP(Z120,'Aux1'!$A$1:$B$12,2,FALSE)) ->  | AB120: =IF(AA120="", COUNTIF(AA$5:AA120, ""),"") -> 101 | AC120: 00:00:01.002 | AD120: 1.16e-05
N121: 0 | O121: 0 | S121: =VLOOKUP(D121,PC_Rec!$O$5:$P$18,2,FALSE) ->  | T121: =IF(D121="","",VLOOKUP(D121,PC_Rec!$O$5:$Q$18,3,FALSE)) ->  | W121: =IF(V121="","",VLOOKUP(V121,'Aux1'!$A$1:$B$12,2,FALSE)) ->  | X121: Não pago | AA121: =IF(Z121="","",VLOOKUP(Z121,'Aux1'!$A$1:$B$12,2,FALSE)) ->  | AB121: =IF(AA121="", COUNTIF(AA$5:AA121, ""),"") -> 102 | AC121: 00:00:01.011 | AD121: 1.17e-05
N122: 0 | O122: 0 | S122: =VLOOKUP(D122,PC_Rec!$O$5:$P$18,2,FALSE) ->  | T122: =IF(D122="","",VLOOKUP(D122,PC_Rec!$O$5:$Q$18,3,FALSE)) ->  | W122: =IF(V122="","",VLOOKUP(V122,'Aux1'!$A$1:$B$12,2,FALSE)) ->  | X122: Não pago | AA122: =IF(Z122="","",VLOOKUP(Z122,'Aux1'!$A$1:$B$12,2,FALSE)) ->  | AB122: =IF(AA122="", COUNTIF(AA$5:AA122, ""),"") -> 103 | AC122: 00:00:01.020 | AD122: 1.18e-05
N123: 0 | O123: 0 | S123: =VLOOKUP(D123,PC_Rec!$O$5:$P$18,2,FALSE) ->  | T123: =IF(D123="","",VLOOKUP(D123,PC_Rec!$O$5:$Q$18,3,FALSE)) ->  | W123: =IF(V123="","",VLOOKUP(V123,'Aux1'!$A$1:$B$12,2,FALSE)) ->  | X123: Não pago | AA123: =IF(Z123="","",VLOOKUP(Z123,'Aux1'!$A$1:$B$12,2,FALSE)) ->  | AB123: =IF(AA123="", COUNTIF(AA$5:AA123, ""),"") -> 104 | AC123: 00:00:01.028 | AD123: 1.19e-05
N124: 0 | O124: 0 | S124: =VLOOKUP(D124,PC_Rec!$O$5:$P$18,2,FALSE) ->  | T124: =IF(D124="","",VLOOKUP(D124,PC_Rec!$O$5:$Q$18,3,FALSE)) ->  | W124: =IF(V124="","",VLOOKUP(V124,'Aux1'!$A$1:$B$12,2,FALSE)) ->  | X124: Não pago | AA124: =IF(Z124="","",VLOOKUP(Z124,'Aux1'!$A$1:$B$12,2,FALSE)) ->  | AB124: =IF(AA124="", COUNTIF(AA$5:AA124, ""),"") -> 105 | AC124: 00:00:01.037 | AD124: 1.2e-05
N125: 0 | O125: 0 | S125: =VLOOKUP(D125,PC_Rec!$O$5:$P$18,2,FALSE) ->  | T125: =IF(D125="","",VLOOKUP(D125,PC_Rec!$O$5:$Q$18,3,FALSE)) ->  | W125: =IF(V125="","",VLOOKUP(V125,'Aux1'!$A$1:$B$12,2,FALSE)) ->  | X125: Não pago | AA125: =IF(Z125="","",VLOOKUP(Z125,'Aux1'!$A$1:$B$12,2,FALSE)) ->  | AB125: =IF(AA125="", COUNTIF(AA$5:AA125, ""),"") -> 106 | AC125: 00:00:01.045 | AD125: 1.21e-05
N126: 0 | O126: 0 | S126: =VLOOKUP(D126,PC_Rec!$O$5:$P$18,2,FALSE) ->  | T126: =IF(D126="","",VLOOKUP(D126,PC_Rec!$O$5:$Q$18,3,FALSE)) ->  | W126: =IF(V126="","",VLOOKUP(V126,'Aux1'!$A$1:$B$12,2,FALSE)) ->  | X126: Não pago | AA126: =IF(Z126="","",VLOOKUP(Z126,'Aux1'!$A$1:$B$12,2,FALSE)) ->  | AB126: =IF(AA126="", COUNTIF(AA$5:AA126, ""),"") -> 107 | AC126: 00:00:01.054 | AD126: 1.22e-05
N127: 0 | O127: 0 | S127: =VLOOKUP(D127,PC_Rec!$O$5:$P$18,2,FALSE) ->  | T127: =IF(D127="","",VLOOKUP(D127,PC_Rec!$O$5:$Q$18,3,FALSE)) ->  | W127: =IF(V127="","",VLOOKUP(V127,'Aux1'!$A$1:$B$12,2,FALSE)) ->  | X127: Não pago | AA127: =IF(Z127="","",VLOOKUP(Z127,'Aux1'!$A$1:$B$12,2,FALSE)) ->  | AB127: =IF(AA127="", COUNTIF(AA$5:AA127, ""),"") -> 108 | AC127: 00:00:01.063 | AD127: 1.23e-05
N128: 0 | O128: 0 | S128: =VLOOKUP(D128,PC_Rec!$O$5:$P$18,2,FALSE) ->  | T128: =IF(D128="","",VLOOKUP(D128,PC_Rec!$O$5:$Q$18,3,FALSE)) ->  | W128: =IF(V128="","",VLOOKUP(V128,'Aux1'!$A$1:$B$12,2,FALSE)) ->  | X128: Não pago | AA128: =IF(Z128="","",VLOOKUP(Z128,'Aux1'!$A$1:$B$12,2,FALSE)) ->  | AB128: =IF(AA128="", COUNTIF(AA$5:AA128, ""),"") -> 109 | AC128: 00:00:01.071 | AD128: 1.24e-05
N129: 0 | O129: 0 | S129: =VLOOKUP(D129,PC_Rec!$O$5:$P$18,2,FALSE) ->  | T129: =IF(D129="","",VLOOKUP(D129,PC_Rec!$O$5:$Q$18,3,FALSE)) ->  | W129: =IF(V129="","",VLOOKUP(V129,'Aux1'!$A$1:$B$12,2,FALSE)) ->  | X129: Não pago | AA129: =IF(Z129="","",VLOOKUP(Z129,'Aux1'!$A$1:$B$12,2,FALSE)) ->  | AB129: =IF(AA129="", COUNTIF(AA$5:AA129, ""),"") -> 110 | AC129: 00:00:01.080 | AD129: 1.25e-05
N130: 0 | O130: 0 | S130: =VLOOKUP(D130,PC_Rec!$O$5:$P$18,2,FALSE) ->  | T130: =IF(D130="","",VLOOKUP(D130,PC_Rec!$O$5:$Q$18,3,FALSE)) ->  | W130: =IF(V130="","",VLOOKUP(V130,'Aux1'!$A$1:$B$12,2,FALSE)) ->  | X130: Não pago | AA130: =IF(Z130="","",VLOOKUP(Z130,'Aux1'!$A$1:$B$12,2,FALSE)) ->  | AB130: =IF(AA130="", COUNTIF(AA$5:AA130, ""),"") -> 111 | AC130: 00:00:01.089 | AD130: 1.26e-05
N131: 0 | O131: 0 | S131: =VLOOKUP(D131,PC_Rec!$O$5:$P$18,2,FALSE) ->  | T131: =IF(D131="","",VLOOKUP(D131,PC_Rec!$O$5:$Q$18,3,FALSE)) ->  | W131: =IF(V131="","",VLOOKUP(V131,'Aux1'!$A$1:$B$12,2,FALSE)) ->  | X131: Não pago | AA131: =IF(Z131="","",VLOOKUP(Z131,'Aux1'!$A$1:$B$12,2,FALSE)) ->  | AB131: =IF(AA131="", COUNTIF(AA$5:AA131, ""),"") -> 112 | AC131: 00:00:01.097 | AD131: 1.27e-05
N132: 0 | O132: 0 | S132: =VLOOKUP(D132,PC_Rec!$O$5:$P$18,2,FALSE) ->  | T132: =IF(D132="","",VLOOKUP(D132,PC_Rec!$O$5:$Q$18,3,FALSE)) ->  | W132: =IF(V132="","",VLOOKUP(V132,'Aux1'!$A$1:$B$12,2,FALSE)) ->  | X132: Não pago | AA132: =IF(Z132="","",VLOOKUP(Z132,'Aux1'!$A$1:$B$12,2,FALSE)) ->  | AB132: =IF(AA132="", COUNTIF(AA$5:AA132, ""),"") -> 113 | AC132: 00:00:01.106 | AD132: 1.28e-05
N133: 0 | O133: 0 | S133: =VLOOKUP(D133,PC_Rec!$O$5:$P$18,2,FALSE) ->  | T133: =IF(D133="","",VLOOKUP(D133,PC_Rec!$O$5:$Q$18,3,FALSE)) ->  | U133: =IF(C133="","",DAY(C133)) ->  | V133: =IF(C133="","",MONTH(C133)) ->  | W133: =IF(V133="","",VLOOKUP(V133,'Aux1'!$A$1:$B$12,2,FALSE)) ->  | X133: =IF(M133<>"","Pago","Não pago") -> Não pago | Y133: =IF(M133="","",DAY(M133)) ->  | Z133: =IF(M133="","",MONTH(M133)) ->  | AA133: =IF(Z133="","",VLOOKUP(Z133,'Aux1'!$A$1:$B$12,2,FALSE)) ->  | AB133: =IF(AA133="", COUNTIF(AA$5:AA133, ""),"") -> 114 | AC133: 00:00:01.115 | AD133: 1.29e-05 | AE133: =IF(AND(X133="Não pago",L133<>0),C133,"") ->  | AF133: =IF(AE133="","",C133) ->  | AG133: =IF(AE133="","",D133) ->  | AH133: =IF(AE133="","",E133) ->  | AI133: =IF(AE133="","",F133) ->  | AJ133: =IF(AE133="","",L133) -> 
N134: 0 | O134: =Q134+IF(AND(T134="Ingresos",X134="Pago",AA134=$C$3),L134,IF(AND(T134="gasto",X134="Pago",AA134=$C$3),-L134,0)) -> 0 | S134: =VLOOKUP(D134,PC_Rec!$O$5:$P$18,2,FALSE) ->  | T134: =IF(D134="","",VLOOKUP(D134,PC_Rec!$O$5:$Q$18,3,FALSE)) ->  | W134: =IF(V134="","",VLOOKUP(V134,'Aux1'!$A$1:$B$12,2,FALSE)) ->  | X134: Não pago | AA134: =IF(Z134="","",VLOOKUP(Z134,'Aux1'!$A$1:$B$12,2,FALSE)) ->  | AB134: =IF(AA134="", COUNTIF(AA$5:AA134, ""),"") -> 115 | AC134: =SUM(AD134:AE134) -> 00:00:01.123 | AD134: 1.3e-05
N135: =O135 -> 0 | O135: 0 | S135: =VLOOKUP(D135,PC_Rec!$O$5:$P$18,2,FALSE) ->  | T135: =IF(D135="","",VLOOKUP(D135,PC_Rec!$O$5:$Q$18,3,FALSE)) ->  | W135: =IF(V135="","",VLOOKUP(V135,'Aux1'!$A$1:$B$12,2,FALSE)) ->  | X135: Não pago | AA135: =IF(Z135="","",VLOOKUP(Z135,'Aux1'!$A$1:$B$12,2,FALSE)) ->  | AB135: =IF(AA135="", COUNTIF(AA$5:AA135, ""),"") -> 116 | AC135: 00:00:01.132 | AD135: 1.31e-05
N136: 0 | O136: 0 | S136: =VLOOKUP(D136,PC_Rec!$O$5:$P$18,2,FALSE) ->  | T136: =IF(D136="","",VLOOKUP(D136,PC_Rec!$O$5:$Q$18,3,FALSE)) ->  | W136: =IF(V136="","",VLOOKUP(V136,'Aux1'!$A$1:$B$12,2,FALSE)) ->  | X136: Não pago | AA136: =IF(Z136="","",VLOOKUP(Z136,'Aux1'!$A$1:$B$12,2,FALSE)) ->  | AB136: =IF(AA136="", COUNTIF(AA$5:AA136, ""),"") -> 117 | AC136: 00:00:01.140 | AD136: 1.32e-05
N137: 0 | O137: 0 | S137: =VLOOKUP(D137,PC_Rec!$O$5:$P$18,2,FALSE) ->  | T137: =IF(D137="","",VLOOKUP(D137,PC_Rec!$O$5:$Q$18,3,FALSE)) ->  | W137: =IF(V137="","",VLOOKUP(V137,'Aux1'!$A$1:$B$12,2,FALSE)) ->  | X137: Não pago | AA137: =IF(Z137="","",VLOOKUP(Z137,'Aux1'!$A$1:$B$12,2,FALSE)) ->  | AB137: =IF(AA137="", COUNTIF(AA$5:AA137, ""),"") -> 118 | AC137: 00:00:01.149 | AD137: 1.33e-05
N138: 0 | O138: 0 | S138: =VLOOKUP(D138,PC_Rec!$O$5:$P$18,2,FALSE) ->  | T138: =IF(D138="","",VLOOKUP(D138,PC_Rec!$O$5:$Q$18,3,FALSE)) ->  | W138: =IF(V138="","",VLOOKUP(V138,'Aux1'!$A$1:$B$12,2,FALSE)) ->  | X138: Não pago | AA138: =IF(Z138="","",VLOOKUP(Z138,'Aux1'!$A$1:$B$12,2,FALSE)) ->  | AB138: =IF(AA138="", COUNTIF(AA$5:AA138, ""),"") -> 119 | AC138: 00:00:01.158 | AD138: 1.34e-05
N139: 0 | O139: 0 | S139: =VLOOKUP(D139,PC_Rec!$O$5:$P$18,2,FALSE) ->  | T139: =IF(D139="","",VLOOKUP(D139,PC_Rec!$O$5:$Q$18,3,FALSE)) ->  | W139: =IF(V139="","",VLOOKUP(V139,'Aux1'!$A$1:$B$12,2,FALSE)) ->  | X139: Não pago | AA139: =IF(Z139="","",VLOOKUP(Z139,'Aux1'!$A$1:$B$12,2,FALSE)) ->  | AB139: =IF(AA139="", COUNTIF(AA$5:AA139, ""),"") -> 120 | AC139: 00:00:01.166 | AD139: 1.35e-05
N140: 0 | O140: 0 | S140: =VLOOKUP(D140,PC_Rec!$O$5:$P$18,2,FALSE) ->  | T140: =IF(D140="","",VLOOKUP(D140,PC_Rec!$O$5:$Q$18,3,FALSE)) ->  | W140: =IF(V140="","",VLOOKUP(V140,'Aux1'!$A$1:$B$12,2,FALSE)) ->  | X140: Não pago | AA140: =IF(Z140="","",VLOOKUP(Z140,'Aux1'!$A$1:$B$12,2,FALSE)) ->  | AB140: =IF(AA140="", COUNTIF(AA$5:AA140, ""),"") -> 121 | AC140: 00:00:01.175 | AD140: 1.36e-05
N141: 0 | O141: 0 | S141: =VLOOKUP(D141,PC_Rec!$O$5:$P$18,2,FALSE) ->  | T141: =IF(D141="","",VLOOKUP(D141,PC_Rec!$O$5:$Q$18,3,FALSE)) ->  | W141: =IF(V141="","",VLOOKUP(V141,'Aux1'!$A$1:$B$12,2,FALSE)) ->  | X141: Não pago | AA141: =IF(Z141="","",VLOOKUP(Z141,'Aux1'!$A$1:$B$12,2,FALSE)) ->  | AB141: =IF(AA141="", COUNTIF(AA$5:AA141, ""),"") -> 122 | AC141: 00:00:01.184 | AD141: 1.37e-05
N142: 0 | O142: 0 | S142: =VLOOKUP(D142,PC_Rec!$O$5:$P$18,2,FALSE) ->  | T142: =IF(D142="","",VLOOKUP(D142,PC_Rec!$O$5:$Q$18,3,FALSE)) ->  | W142: =IF(V142="","",VLOOKUP(V142,'Aux1'!$A$1:$B$12,2,FALSE)) ->  | X142: Não pago | AA142: =IF(Z142="","",VLOOKUP(Z142,'Aux1'!$A$1:$B$12,2,FALSE)) ->  | AB142: =IF(AA142="", COUNTIF(AA$5:AA142, ""),"") -> 123 | AC142: 00:00:01.192 | AD142: 1.38e-05
N143: 0 | O143: 0 | S143: =VLOOKUP(D143,PC_Rec!$O$5:$P$18,2,FALSE) ->  | T143: =IF(D143="","",VLOOKUP(D143,PC_Rec!$O$5:$Q$18,3,FALSE)) ->  | W143: =IF(V143="","",VLOOKUP(V143,'Aux1'!$A$1:$B$12,2,FALSE)) ->  | X143: Não pago | AA143: =IF(Z143="","",VLOOKUP(Z143,'Aux1'!$A$1:$B$12,2,FALSE)) ->  | AB143: =IF(AA143="", COUNTIF(AA$5:AA143, ""),"") -> 124 | AC143: 00:00:01.201 | AD143: 1.39e-05
N144: 0 | O144: 0 | S144: =VLOOKUP(D144,PC_Rec!$O$5:$P$18,2,FALSE) ->  | T144: =IF(D144="","",VLOOKUP(D144,PC_Rec!$O$5:$Q$18,3,FALSE)) ->  | W144: =IF(V144="","",VLOOKUP(V144,'Aux1'!$A$1:$B$12,2,FALSE)) ->  | X144: Não pago | AA144: =IF(Z144="","",VLOOKUP(Z144,'Aux1'!$A$1:$B$12,2,FALSE)) ->  | AB144: =IF(AA144="", COUNTIF(AA$5:AA144, ""),"") -> 125 | AC144: 00:00:01.210 | AD144: 1.4e-05
N145: 0 | O145: 0 | S145: =VLOOKUP(D145,PC_Rec!$O$5:$P$18,2,FALSE) ->  | T145: =IF(D145="","",VLOOKUP(D145,PC_Rec!$O$5:$Q$18,3,FALSE)) ->  | W145: =IF(V145="","",VLOOKUP(V145,'Aux1'!$A$1:$B$12,2,FALSE)) ->  | X145: Não pago | AA145: =IF(Z145="","",VLOOKUP(Z145,'Aux1'!$A$1:$B$12,2,FALSE)) ->  | AB145: =IF(AA145="", COUNTIF(AA$5:AA145, ""),"") -> 126 | AC145: 00:00:01.218 | AD145: 1.41e-05
N146: 0 | O146: 0 | S146: =VLOOKUP(D146,PC_Rec!$O$5:$P$18,2,FALSE) ->  | T146: =IF(D146="","",VLOOKUP(D146,PC_Rec!$O$5:$Q$18,3,FALSE)) ->  | W146: =IF(V146="","",VLOOKUP(V146,'Aux1'!$A$1:$B$12,2,FALSE)) ->  | X146: Não pago | AA146: =IF(Z146="","",VLOOKUP(Z146,'Aux1'!$A$1:$B$12,2,FALSE)) ->  | AB146: =IF(AA146="", COUNTIF(AA$5:AA146, ""),"") -> 127 | AC146: 00:00:01.227 | AD146: 1.42e-05
N147: 0 | O147: 0 | S147: =VLOOKUP(D147,PC_Rec!$O$5:$P$18,2,FALSE) ->  | T147: =IF(D147="","",VLOOKUP(D147,PC_Rec!$O$5:$Q$18,3,FALSE)) ->  | W147: =IF(V147="","",VLOOKUP(V147,'Aux1'!$A$1:$B$12,2,FALSE)) ->  | X147: Não pago | AA147: =IF(Z147="","",VLOOKUP(Z147,'Aux1'!$A$1:$B$12,2,FALSE)) ->  | AB147: =IF(AA147="", COUNTIF(AA$5:AA147, ""),"") -> 128 | AC147: 00:00:01.236 | AD147: 1.43e-05
N148: 0 | O148: 0 | S148: =VLOOKUP(D148,PC_Rec!$O$5:$P$18,2,FALSE) ->  | T148: =IF(D148="","",VLOOKUP(D148,PC_Rec!$O$5:$Q$18,3,FALSE)) ->  | W148: =IF(V148="","",VLOOKUP(V148,'Aux1'!$A$1:$B$12,2,FALSE)) ->  | X148: Não pago | AA148: =IF(Z148="","",VLOOKUP(Z148,'Aux1'!$A$1:$B$12,2,FALSE)) ->  | AB148: =IF(AA148="", COUNTIF(AA$5:AA148, ""),"") -> 129 | AC148: 00:00:01.244 | AD148: 1.44e-05
N149: 0 | O149: 0 | S149: =VLOOKUP(D149,PC_Rec!$O$5:$P$18,2,FALSE) ->  | T149: =IF(D149="","",VLOOKUP(D149,PC_Rec!$O$5:$Q$18,3,FALSE)) ->  | W149: =IF(V149="","",VLOOKUP(V149,'Aux1'!$A$1:$B$12,2,FALSE)) ->  | X149: Não pago | AA149: =IF(Z149="","",VLOOKUP(Z149,'Aux1'!$A$1:$B$12,2,FALSE)) ->  | AB149: =IF(AA149="", COUNTIF(AA$5:AA149, ""),"") -> 130 | AC149: 00:00:01.253 | AD149: 1.45e-05
N150: 0 | O150: 0 | S150: =VLOOKUP(D150,PC_Rec!$O$5:$P$18,2,FALSE) ->  | T150: =IF(D150="","",VLOOKUP(D150,PC_Rec!$O$5:$Q$18,3,FALSE)) ->  | W150: =IF(V150="","",VLOOKUP(V150,'Aux1'!$A$1:$B$12,2,FALSE)) ->  | X150: Não pago | AA150: =IF(Z150="","",VLOOKUP(Z150,'Aux1'!$A$1:$B$12,2,FALSE)) ->  | AB150: =IF(AA150="", COUNTIF(AA$5:AA150, ""),"") -> 131 | AC150: 00:00:01.261 | AD150: 1.46e-05
N151: 0 | O151: 0 | S151: =VLOOKUP(D151,PC_Rec!$O$5:$P$18,2,FALSE) ->  | T151: =IF(D151="","",VLOOKUP(D151,PC_Rec!$O$5:$Q$18,3,FALSE)) ->  | W151: =IF(V151="","",VLOOKUP(V151,'Aux1'!$A$1:$B$12,2,FALSE)) ->  | X151: Não pago | AA151: =IF(Z151="","",VLOOKUP(Z151,'Aux1'!$A$1:$B$12,2,FALSE)) ->  | AB151: =IF(AA151="", COUNTIF(AA$5:AA151, ""),"") -> 132 | AC151: 00:00:01.270 | AD151: 1.47e-05
N152: 0 | O152: 0 | S152: =VLOOKUP(D152,PC_Rec!$O$5:$P$18,2,FALSE) ->  | T152: =IF(D152="","",VLOOKUP(D152,PC_Rec!$O$5:$Q$18,3,FALSE)) ->  | W152: =IF(V152="","",VLOOKUP(V152,'Aux1'!$A$1:$B$12,2,FALSE)) ->  | X152: Não pago | AA152: =IF(Z152="","",VLOOKUP(Z152,'Aux1'!$A$1:$B$12,2,FALSE)) ->  | AB152: =IF(AA152="", COUNTIF(AA$5:AA152, ""),"") -> 133 | AC152: 00:00:01.279 | AD152: 1.48e-05
N153: 0 | O153: 0 | S153: =VLOOKUP(D153,PC_Rec!$O$5:$P$18,2,FALSE) ->  | T153: =IF(D153="","",VLOOKUP(D153,PC_Rec!$O$5:$Q$18,3,FALSE)) ->  | W153: =IF(V153="","",VLOOKUP(V153,'Aux1'!$A$1:$B$12,2,FALSE)) ->  | X153: Não pago | AA153: =IF(Z153="","",VLOOKUP(Z153,'Aux1'!$A$1:$B$12,2,FALSE)) ->  | AB153: =IF(AA153="", COUNTIF(AA$5:AA153, ""),"") -> 134 | AC153: 00:00:01.287 | AD153: 1.49e-05
N154: 0 | O154: 0 | S154: =VLOOKUP(D154,PC_Rec!$O$5:$P$18,2,FALSE) ->  | T154: =IF(D154="","",VLOOKUP(D154,PC_Rec!$O$5:$Q$18,3,FALSE)) ->  | W154: =IF(V154="","",VLOOKUP(V154,'Aux1'!$A$1:$B$12,2,FALSE)) ->  | X154: Não pago | AA154: =IF(Z154="","",VLOOKUP(Z154,'Aux1'!$A$1:$B$12,2,FALSE)) ->  | AB154: =IF(AA154="", COUNTIF(AA$5:AA154, ""),"") -> 135 | AC154: 00:00:01.296 | AD154: 1.5e-05
N155: 0 | O155: 0 | S155: =VLOOKUP(D155,PC_Rec!$O$5:$P$18,2,FALSE) ->  | T155: =IF(D155="","",VLOOKUP(D155,PC_Rec!$O$5:$Q$18,3,FALSE)) ->  | W155: =IF(V155="","",VLOOKUP(V155,'Aux1'!$A$1:$B$12,2,FALSE)) ->  | X155: Não pago | AA155: =IF(Z155="","",VLOOKUP(Z155,'Aux1'!$A$1:$B$12,2,FALSE)) ->  | AB155: =IF(AA155="", COUNTIF(AA$5:AA155, ""),"") -> 136 | AC155: 00:00:01.305 | AD155: 1.51e-05
N156: 0 | O156: 0 | S156: =VLOOKUP(D156,PC_Rec!$O$5:$P$18,2,FALSE) ->  | T156: =IF(D156="","",VLOOKUP(D156,PC_Rec!$O$5:$Q$18,3,FALSE)) ->  | W156: =IF(V156="","",VLOOKUP(V156,'Aux1'!$A$1:$B$12,2,FALSE)) ->  | X156: Não pago | AA156: =IF(Z156="","",VLOOKUP(Z156,'Aux1'!$A$1:$B$12,2,FALSE)) ->  | AB156: =IF(AA156="", COUNTIF(AA$5:AA156, ""),"") -> 137 | AC156: 00:00:01.313 | AD156: 1.52e-05
N157: 0 | O157: 0 | S157: =VLOOKUP(D157,PC_Rec!$O$5:$P$18,2,FALSE) ->  | T157: =IF(D157="","",VLOOKUP(D157,PC_Rec!$O$5:$Q$18,3,FALSE)) ->  | W157: =IF(V157="","",VLOOKUP(V157,'Aux1'!$A$1:$B$12,2,FALSE)) ->  | X157: Não pago | AA157: =IF(Z157="","",VLOOKUP(Z157,'Aux1'!$A$1:$B$12,2,FALSE)) ->  | AB157: =IF(AA157="", COUNTIF(AA$5:AA157, ""),"") -> 138 | AC157: 00:00:01.322 | AD157: 1.53e-05
N158: 0 | O158: 0 | S158: =VLOOKUP(D158,PC_Rec!$O$5:$P$18,2,FALSE) ->  | T158: =IF(D158="","",VLOOKUP(D158,PC_Rec!$O$5:$Q$18,3,FALSE)) ->  | W158: =IF(V158="","",VLOOKUP(V158,'Aux1'!$A$1:$B$12,2,FALSE)) ->  | X158: Não pago | AA158: =IF(Z158="","",VLOOKUP(Z158,'Aux1'!$A$1:$B$12,2,FALSE)) ->  | AB158: =IF(AA158="", COUNTIF(AA$5:AA158, ""),"") -> 139 | AC158: 00:00:01.331 | AD158: 1.54e-05
N159: 0 | O159: 0 | S159: =VLOOKUP(D159,PC_Rec!$O$5:$P$18,2,FALSE) ->  | T159: =IF(D159="","",VLOOKUP(D159,PC_Rec!$O$5:$Q$18,3,FALSE)) ->  | W159: =IF(V159="","",VLOOKUP(V159,'Aux1'!$A$1:$B$12,2,FALSE)) ->  | X159: Não pago | AA159: =IF(Z159="","",VLOOKUP(Z159,'Aux1'!$A$1:$B$12,2,FALSE)) ->  | AB159: =IF(AA159="", COUNTIF(AA$5:AA159, ""),"") -> 140 | AC159: 00:00:01.339 | AD159: 1.55e-05
N160: 0 | O160: 0 | S160: =VLOOKUP(D160,PC_Rec!$O$5:$P$18,2,FALSE) ->  | T160: =IF(D160="","",VLOOKUP(D160,PC_Rec!$O$5:$Q$18,3,FALSE)) ->  | W160: =IF(V160="","",VLOOKUP(V160,'Aux1'!$A$1:$B$12,2,FALSE)) ->  | X160: Não pago | AA160: =IF(Z160="","",VLOOKUP(Z160,'Aux1'!$A$1:$B$12,2,FALSE)) ->  | AB160: =IF(AA160="", COUNTIF(AA$5:AA160, ""),"") -> 141 | AC160: 00:00:01.348 | AD160: 1.56e-05
N161: 0 | O161: 0 | S161: =VLOOKUP(D161,PC_Rec!$O$5:$P$18,2,FALSE) ->  | T161: =IF(D161="","",VLOOKUP(D161,PC_Rec!$O$5:$Q$18,3,FALSE)) ->  | W161: =IF(V161="","",VLOOKUP(V161,'Aux1'!$A$1:$B$12,2,FALSE)) ->  | X161: Não pago | AA161: =IF(Z161="","",VLOOKUP(Z161,'Aux1'!$A$1:$B$12,2,FALSE)) ->  | AB161: =IF(AA161="", COUNTIF(AA$5:AA161, ""),"") -> 142 | AC161: 00:00:01.356 | AD161: 1.57e-05
N162: 0 | O162: 0 | S162: =VLOOKUP(D162,PC_Rec!$O$5:$P$18,2,FALSE) ->  | T162: =IF(D162="","",VLOOKUP(D162,PC_Rec!$O$5:$Q$18,3,FALSE)) ->  | W162: =IF(V162="","",VLOOKUP(V162,'Aux1'!$A$1:$B$12,2,FALSE)) ->  | X162: Não pago | AA162: =IF(Z162="","",VLOOKUP(Z162,'Aux1'!$A$1:$B$12,2,FALSE)) ->  | AB162: =IF(AA162="", COUNTIF(AA$5:AA162, ""),"") -> 143 | AC162: 00:00:01.365 | AD162: 1.58e-05
N163: 0 | O163: 0 | S163: =VLOOKUP(D163,PC_Rec!$O$5:$P$18,2,FALSE) ->  | T163: =IF(D163="","",VLOOKUP(D163,PC_Rec!$O$5:$Q$18,3,FALSE)) ->  | W163: =IF(V163="","",VLOOKUP(V163,'Aux1'!$A$1:$B$12,2,FALSE)) ->  | X163: Não pago | AA163: =IF(Z163="","",VLOOKUP(Z163,'Aux1'!$A$1:$B$12,2,FALSE)) ->  | AB163: =IF(AA163="", COUNTIF(AA$5:AA163, ""),"") -> 144 | AC163: 00:00:01.374 | AD163: 1.59e-05
N164: 0 | O164: 0 | S164: =VLOOKUP(D164,PC_Rec!$O$5:$P$18,2,FALSE) ->  | T164: =IF(D164="","",VLOOKUP(D164,PC_Rec!$O$5:$Q$18,3,FALSE)) ->  | W164: =IF(V164="","",VLOOKUP(V164,'Aux1'!$A$1:$B$12,2,FALSE)) ->  | X164: Não pago | AA164: =IF(Z164="","",VLOOKUP(Z164,'Aux1'!$A$1:$B$12,2,FALSE)) ->  | AB164: =IF(AA164="", COUNTIF(AA$5:AA164, ""),"") -> 145 | AC164: 00:00:01.382 | AD164: 1.6e-05
N165: 0 | O165: 0 | S165: =VLOOKUP(D165,PC_Rec!$O$5:$P$18,2,FALSE) ->  | T165: =IF(D165="","",VLOOKUP(D165,PC_Rec!$O$5:$Q$18,3,FALSE)) ->  | W165: =IF(V165="","",VLOOKUP(V165,'Aux1'!$A$1:$B$12,2,FALSE)) ->  | X165: Não pago | AA165: =IF(Z165="","",VLOOKUP(Z165,'Aux1'!$A$1:$B$12,2,FALSE)) ->  | AB165: =IF(AA165="", COUNTIF(AA$5:AA165, ""),"") -> 146 | AC165: 00:00:01.391 | AD165: 1.61e-05
N166: 0 | O166: 0 | S166: =VLOOKUP(D166,PC_Rec!$O$5:$P$18,2,FALSE) ->  | T166: =IF(D166="","",VLOOKUP(D166,PC_Rec!$O$5:$Q$18,3,FALSE)) ->  | W166: =IF(V166="","",VLOOKUP(V166,'Aux1'!$A$1:$B$12,2,FALSE)) ->  | X166: Não pago | AA166: =IF(Z166="","",VLOOKUP(Z166,'Aux1'!$A$1:$B$12,2,FALSE)) ->  | AB166: =IF(AA166="", COUNTIF(AA$5:AA166, ""),"") -> 147 | AC166: 00:00:01.400 | AD166: 1.62e-05
N167: 0 | O167: 0 | S167: =VLOOKUP(D167,PC_Rec!$O$5:$P$18,2,FALSE) ->  | T167: =IF(D167="","",VLOOKUP(D167,PC_Rec!$O$5:$Q$18,3,FALSE)) ->  | W167: =IF(V167="","",VLOOKUP(V167,'Aux1'!$A$1:$B$12,2,FALSE)) ->  | X167: Não pago | AA167: =IF(Z167="","",VLOOKUP(Z167,'Aux1'!$A$1:$B$12,2,FALSE)) ->  | AB167: =IF(AA167="", COUNTIF(AA$5:AA167, ""),"") -> 148 | AC167: 00:00:01.408 | AD167: 1.63e-05
N168: 0 | O168: 0 | S168: =VLOOKUP(D168,PC_Rec!$O$5:$P$18,2,FALSE) ->  | T168: =IF(D168="","",VLOOKUP(D168,PC_Rec!$O$5:$Q$18,3,FALSE)) ->  | W168: =IF(V168="","",VLOOKUP(V168,'Aux1'!$A$1:$B$12,2,FALSE)) ->  | X168: Não pago | AA168: =IF(Z168="","",VLOOKUP(Z168,'Aux1'!$A$1:$B$12,2,FALSE)) ->  | AB168: =IF(AA168="", COUNTIF(AA$5:AA168, ""),"") -> 149 | AC168: 00:00:01.417 | AD168: 1.64e-05
N169: 0 | O169: 0 | S169: =VLOOKUP(D169,PC_Rec!$O$5:$P$18,2,FALSE) ->  | T169: =IF(D169="","",VLOOKUP(D169,PC_Rec!$O$5:$Q$18,3,FALSE)) ->  | W169: =IF(V169="","",VLOOKUP(V169,'Aux1'!$A$1:$B$12,2,FALSE)) ->  | X169: Não pago | AA169: =IF(Z169="","",VLOOKUP(Z169,'Aux1'!$A$1:$B$12,2,FALSE)) ->  | AB169: =IF(AA169="", COUNTIF(AA$5:AA169, ""),"") -> 150 | AC169: 00:00:01.426 | AD169: 1.65e-05
N170: 0 | O170: 0 | S170: =VLOOKUP(D170,PC_Rec!$O$5:$P$18,2,FALSE) ->  | T170: =IF(D170="","",VLOOKUP(D170,PC_Rec!$O$5:$Q$18,3,FALSE)) ->  | W170: =IF(V170="","",VLOOKUP(V170,'Aux1'!$A$1:$B$12,2,FALSE)) ->  | X170: Não pago | AA170: =IF(Z170="","",VLOOKUP(Z170,'Aux1'!$A$1:$B$12,2,FALSE)) ->  | AB170: =IF(AA170="", COUNTIF(AA$5:AA170, ""),"") -> 151 | AC170: 00:00:01.434 | AD170: 1.66e-05
N171: 0 | O171: 0 | S171: =VLOOKUP(D171,PC_Rec!$O$5:$P$18,2,FALSE) ->  | T171: =IF(D171="","",VLOOKUP(D171,PC_Rec!$O$5:$Q$18,3,FALSE)) ->  | W171: =IF(V171="","",VLOOKUP(V171,'Aux1'!$A$1:$B$12,2,FALSE)) ->  | X171: Não pago | AA171: =IF(Z171="","",VLOOKUP(Z171,'Aux1'!$A$1:$B$12,2,FALSE)) ->  | AB171: =IF(AA171="", COUNTIF(AA$5:AA171, ""),"") -> 152 | AC171: 00:00:01.443 | AD171: 1.67e-05
N172: 0 | O172: 0 | S172: =VLOOKUP(D172,PC_Rec!$O$5:$P$18,2,FALSE) ->  | T172: =IF(D172="","",VLOOKUP(D172,PC_Rec!$O$5:$Q$18,3,FALSE)) ->  | W172: =IF(V172="","",VLOOKUP(V172,'Aux1'!$A$1:$B$12,2,FALSE)) ->  | X172: Não pago | AA172: =IF(Z172="","",VLOOKUP(Z172,'Aux1'!$A$1:$B$12,2,FALSE)) ->  | AB172: =IF(AA172="", COUNTIF(AA$5:AA172, ""),"") -> 153 | AC172: 00:00:01.452 | AD172: 1.68e-05
N173: 0 | O173: 0 | S173: =VLOOKUP(D173,PC_Rec!$O$5:$P$18,2,FALSE) ->  | T173: =IF(D173="","",VLOOKUP(D173,PC_Rec!$O$5:$Q$18,3,FALSE)) ->  | W173: =IF(V173="","",VLOOKUP(V173,'Aux1'!$A$1:$B$12,2,FALSE)) ->  | X173: Não pago | AA173: =IF(Z173="","",VLOOKUP(Z173,'Aux1'!$A$1:$B$12,2,FALSE)) ->  | AB173: =IF(AA173="", COUNTIF(AA$5:AA173, ""),"") -> 154 | AC173: 00:00:01.460 | AD173: 1.69e-05
N174: 0 | O174: 0 | S174: =VLOOKUP(D174,PC_Rec!$O$5:$P$18,2,FALSE) ->  | T174: =IF(D174="","",VLOOKUP(D174,PC_Rec!$O$5:$Q$18,3,FALSE)) ->  | W174: =IF(V174="","",VLOOKUP(V174,'Aux1'!$A$1:$B$12,2,FALSE)) ->  | X174: Não pago | AA174: =IF(Z174="","",VLOOKUP(Z174,'Aux1'!$A$1:$B$12,2,FALSE)) ->  | AB174: =IF(AA174="", COUNTIF(AA$5:AA174, ""),"") -> 155 | AC174: 00:00:01.469 | AD174: 1.7e-05
N175: 0 | O175: 0 | S175: =VLOOKUP(D175,PC_Rec!$O$5:$P$18,2,FALSE) ->  | T175: =IF(D175="","",VLOOKUP(D175,PC_Rec!$O$5:$Q$18,3,FALSE)) ->  | W175: =IF(V175="","",VLOOKUP(V175,'Aux1'!$A$1:$B$12,2,FALSE)) ->  | X175: Não pago | AA175: =IF(Z175="","",VLOOKUP(Z175,'Aux1'!$A$1:$B$12,2,FALSE)) ->  | AB175: =IF(AA175="", COUNTIF(AA$5:AA175, ""),"") -> 156 | AC175: 00:00:01.477 | AD175: 1.71e-05
N176: 0 | O176: 0 | S176: =VLOOKUP(D176,PC_Rec!$O$5:$P$18,2,FALSE) ->  | T176: =IF(D176="","",VLOOKUP(D176,PC_Rec!$O$5:$Q$18,3,FALSE)) ->  | W176: =IF(V176="","",VLOOKUP(V176,'Aux1'!$A$1:$B$12,2,FALSE)) ->  | X176: Não pago | AA176: =IF(Z176="","",VLOOKUP(Z176,'Aux1'!$A$1:$B$12,2,FALSE)) ->  | AB176: =IF(AA176="", COUNTIF(AA$5:AA176, ""),"") -> 157 | AC176: 00:00:01.486 | AD176: 1.72e-05
N177: 0 | O177: 0 | S177: =VLOOKUP(D177,PC_Rec!$O$5:$P$18,2,FALSE) ->  | T177: =IF(D177="","",VLOOKUP(D177,PC_Rec!$O$5:$Q$18,3,FALSE)) ->  | W177: =IF(V177="","",VLOOKUP(V177,'Aux1'!$A$1:$B$12,2,FALSE)) ->  | X177: Não pago | AA177: =IF(Z177="","",VLOOKUP(Z177,'Aux1'!$A$1:$B$12,2,FALSE)) ->  | AB177: =IF(AA177="", COUNTIF(AA$5:AA177, ""),"") -> 158 | AC177: 00:00:01.495 | AD177: 1.73e-05
N178: 0 | O178: 0 | S178: =VLOOKUP(D178,PC_Rec!$O$5:$P$18,2,FALSE) ->  | T178: =IF(D178="","",VLOOKUP(D178,PC_Rec!$O$5:$Q$18,3,FALSE)) ->  | W178: =IF(V178="","",VLOOKUP(V178,'Aux1'!$A$1:$B$12,2,FALSE)) ->  | X178: Não pago | AA178: =IF(Z178="","",VLOOKUP(Z178,'Aux1'!$A$1:$B$12,2,FALSE)) ->  | AB178: =IF(AA178="", COUNTIF(AA$5:AA178, ""),"") -> 159 | AC178: 00:00:01.503 | AD178: 1.74e-05
N179: 0 | O179: 0 | S179: =VLOOKUP(D179,PC_Rec!$O$5:$P$18,2,FALSE) ->  | T179: =IF(D179="","",VLOOKUP(D179,PC_Rec!$O$5:$Q$18,3,FALSE)) ->  | W179: =IF(V179="","",VLOOKUP(V179,'Aux1'!$A$1:$B$12,2,FALSE)) ->  | X179: Não pago | AA179: =IF(Z179="","",VLOOKUP(Z179,'Aux1'!$A$1:$B$12,2,FALSE)) ->  | AB179: =IF(AA179="", COUNTIF(AA$5:AA179, ""),"") -> 160 | AC179: 00:00:01.512 | AD179: 1.75e-05
N180: 0 | O180: 0 | S180: =VLOOKUP(D180,PC_Rec!$O$5:$P$18,2,FALSE) ->  | T180: =IF(D180="","",VLOOKUP(D180,PC_Rec!$O$5:$Q$18,3,FALSE)) ->  | W180: =IF(V180="","",VLOOKUP(V180,'Aux1'!$A$1:$B$12,2,FALSE)) ->  | X180: Não pago | AA180: =IF(Z180="","",VLOOKUP(Z180,'Aux1'!$A$1:$B$12,2,FALSE)) ->  | AB180: =IF(AA180="", COUNTIF(AA$5:AA180, ""),"") -> 161 | AC180: 00:00:01.521 | AD180: 1.76e-05
N181: 0 | O181: 0 | S181: =VLOOKUP(D181,PC_Rec!$O$5:$P$18,2,FALSE) ->  | T181: =IF(D181="","",VLOOKUP(D181,PC_Rec!$O$5:$Q$18,3,FALSE)) ->  | W181: =IF(V181="","",VLOOKUP(V181,'Aux1'!$A$1:$B$12,2,FALSE)) ->  | X181: Não pago | AA181: =IF(Z181="","",VLOOKUP(Z181,'Aux1'!$A$1:$B$12,2,FALSE)) ->  | AB181: =IF(AA181="", COUNTIF(AA$5:AA181, ""),"") -> 162 | AC181: 00:00:01.529 | AD181: 1.77e-05
N182: 0 | O182: 0 | S182: =VLOOKUP(D182,PC_Rec!$O$5:$P$18,2,FALSE) ->  | T182: =IF(D182="","",VLOOKUP(D182,PC_Rec!$O$5:$Q$18,3,FALSE)) ->  | W182: =IF(V182="","",VLOOKUP(V182,'Aux1'!$A$1:$B$12,2,FALSE)) ->  | X182: Não pago | AA182: =IF(Z182="","",VLOOKUP(Z182,'Aux1'!$A$1:$B$12,2,FALSE)) ->  | AB182: =IF(AA182="", COUNTIF(AA$5:AA182, ""),"") -> 163 | AC182: 00:00:01.538 | AD182: 1.78e-05
N183: 0 | O183: 0 | S183: =VLOOKUP(D183,PC_Rec!$O$5:$P$18,2,FALSE) ->  | T183: =IF(D183="","",VLOOKUP(D183,PC_Rec!$O$5:$Q$18,3,FALSE)) ->  | W183: =IF(V183="","",VLOOKUP(V183,'Aux1'!$A$1:$B$12,2,FALSE)) ->  | X183: Não pago | AA183: =IF(Z183="","",VLOOKUP(Z183,'Aux1'!$A$1:$B$12,2,FALSE)) ->  | AB183: =IF(AA183="", COUNTIF(AA$5:AA183, ""),"") -> 164 | AC183: 00:00:01.547 | AD183: 1.79e-05
N184: 0 | O184: 0 | S184: =VLOOKUP(D184,PC_Rec!$O$5:$P$18,2,FALSE) ->  | T184: =IF(D184="","",VLOOKUP(D184,PC_Rec!$O$5:$Q$18,3,FALSE)) ->  | W184: =IF(V184="","",VLOOKUP(V184,'Aux1'!$A$1:$B$12,2,FALSE)) ->  | X184: Não pago | AA184: =IF(Z184="","",VLOOKUP(Z184,'Aux1'!$A$1:$B$12,2,FALSE)) ->  | AB184: =IF(AA184="", COUNTIF(AA$5:AA184, ""),"") -> 165 | AC184: 00:00:01.555 | AD184: 1.8e-05
N185: 0 | O185: 0 | S185: =VLOOKUP(D185,PC_Rec!$O$5:$P$18,2,FALSE) ->  | T185: =IF(D185="","",VLOOKUP(D185,PC_Rec!$O$5:$Q$18,3,FALSE)) ->  | W185: =IF(V185="","",VLOOKUP(V185,'Aux1'!$A$1:$B$12,2,FALSE)) ->  | X185: Não pago | AA185: =IF(Z185="","",VLOOKUP(Z185,'Aux1'!$A$1:$B$12,2,FALSE)) ->  | AB185: =IF(AA185="", COUNTIF(AA$5:AA185, ""),"") -> 166 | AC185: 00:00:01.564 | AD185: 1.81e-05
N186: 0 | O186: 0 | S186: =VLOOKUP(D186,PC_Rec!$O$5:$P$18,2,FALSE) ->  | T186: =IF(D186="","",VLOOKUP(D186,PC_Rec!$O$5:$Q$18,3,FALSE)) ->  | W186: =IF(V186="","",VLOOKUP(V186,'Aux1'!$A$1:$B$12,2,FALSE)) ->  | X186: Não pago | AA186: =IF(Z186="","",VLOOKUP(Z186,'Aux1'!$A$1:$B$12,2,FALSE)) ->  | AB186: =IF(AA186="", COUNTIF(AA$5:AA186, ""),"") -> 167 | AC186: 00:00:01.572 | AD186: 1.82e-05
N187: 0 | O187: 0 | S187: =VLOOKUP(D187,PC_Rec!$O$5:$P$18,2,FALSE) ->  | T187: =IF(D187="","",VLOOKUP(D187,PC_Rec!$O$5:$Q$18,3,FALSE)) ->  | W187: =IF(V187="","",VLOOKUP(V187,'Aux1'!$A$1:$B$12,2,FALSE)) ->  | X187: Não pago | AA187: =IF(Z187="","",VLOOKUP(Z187,'Aux1'!$A$1:$B$12,2,FALSE)) ->  | AB187: =IF(AA187="", COUNTIF(AA$5:AA187, ""),"") -> 168 | AC187: 00:00:01.581 | AD187: 1.83e-05
N188: 0 | O188: 0 | S188: =VLOOKUP(D188,PC_Rec!$O$5:$P$18,2,FALSE) ->  | T188: =IF(D188="","",VLOOKUP(D188,PC_Rec!$O$5:$Q$18,3,FALSE)) ->  | W188: =IF(V188="","",VLOOKUP(V188,'Aux1'!$A$1:$B$12,2,FALSE)) ->  | X188: Não pago | AA188: =IF(Z188="","",VLOOKUP(Z188,'Aux1'!$A$1:$B$12,2,FALSE)) ->  | AB188: =IF(AA188="", COUNTIF(AA$5:AA188, ""),"") -> 169 | AC188: 00:00:01.590 | AD188: 1.84e-05
N189: 0 | O189: 0 | S189: =VLOOKUP(D189,PC_Rec!$O$5:$P$18,2,FALSE) ->  | T189: =IF(D189="","",VLOOKUP(D189,PC_Rec!$O$5:$Q$18,3,FALSE)) ->  | W189: =IF(V189="","",VLOOKUP(V189,'Aux1'!$A$1:$B$12,2,FALSE)) ->  | X189: Não pago | AA189: =IF(Z189="","",VLOOKUP(Z189,'Aux1'!$A$1:$B$12,2,FALSE)) ->  | AB189: =IF(AA189="", COUNTIF(AA$5:AA189, ""),"") -> 170 | AC189: 00:00:01.598 | AD189: 1.85e-05
N190: 0 | O190: 0 | S190: =VLOOKUP(D190,PC_Rec!$O$5:$P$18,2,FALSE) ->  | T190: =IF(D190="","",VLOOKUP(D190,PC_Rec!$O$5:$Q$18,3,FALSE)) ->  | W190: =IF(V190="","",VLOOKUP(V190,'Aux1'!$A$1:$B$12,2,FALSE)) ->  | X190: Não pago | AA190: =IF(Z190="","",VLOOKUP(Z190,'Aux1'!$A$1:$B$12,2,FALSE)) ->  | AB190: =IF(AA190="", COUNTIF(AA$5:AA190, ""),"") -> 171 | AC190: 00:00:01.607 | AD190: 1.86e-05
N191: 0 | O191: 0 | S191: =VLOOKUP(D191,PC_Rec!$O$5:$P$18,2,FALSE) ->  | T191: =IF(D191="","",VLOOKUP(D191,PC_Rec!$O$5:$Q$18,3,FALSE)) ->  | W191: =IF(V191="","",VLOOKUP(V191,'Aux1'!$A$1:$B$12,2,FALSE)) ->  | X191: Não pago | AA191: =IF(Z191="","",VLOOKUP(Z191,'Aux1'!$A$1:$B$12,2,FALSE)) ->  | AB191: =IF(AA191="", COUNTIF(AA$5:AA191, ""),"") -> 172 | AC191: 00:00:01.616 | AD191: 1.87e-05
N192: 0 | O192: 0 | S192: =VLOOKUP(D192,PC_Rec!$O$5:$P$18,2,FALSE) ->  | T192: =IF(D192="","",VLOOKUP(D192,PC_Rec!$O$5:$Q$18,3,FALSE)) ->  | W192: =IF(V192="","",VLOOKUP(V192,'Aux1'!$A$1:$B$12,2,FALSE)) ->  | X192: Não pago | AA192: =IF(Z192="","",VLOOKUP(Z192,'Aux1'!$A$1:$B$12,2,FALSE)) ->  | AB192: =IF(AA192="", COUNTIF(AA$5:AA192, ""),"") -> 173 | AC192: 00:00:01.624 | AD192: 1.88e-05
N193: 0 | O193: 0 | S193: =VLOOKUP(D193,PC_Rec!$O$5:$P$18,2,FALSE) ->  | T193: =IF(D193="","",VLOOKUP(D193,PC_Rec!$O$5:$Q$18,3,FALSE)) ->  | W193: =IF(V193="","",VLOOKUP(V193,'Aux1'!$A$1:$B$12,2,FALSE)) ->  | X193: Não pago | AA193: =IF(Z193="","",VLOOKUP(Z193,'Aux1'!$A$1:$B$12,2,FALSE)) ->  | AB193: =IF(AA193="", COUNTIF(AA$5:AA193, ""),"") -> 174 | AC193: 00:00:01.633 | AD193: 1.89e-05
N194: 0 | O194: 0 | S194: =VLOOKUP(D194,PC_Rec!$O$5:$P$18,2,FALSE) ->  | T194: =IF(D194="","",VLOOKUP(D194,PC_Rec!$O$5:$Q$18,3,FALSE)) ->  | W194: =IF(V194="","",VLOOKUP(V194,'Aux1'!$A$1:$B$12,2,FALSE)) ->  | X194: Não pago | AA194: =IF(Z194="","",VLOOKUP(Z194,'Aux1'!$A$1:$B$12,2,FALSE)) ->  | AB194: =IF(AA194="", COUNTIF(AA$5:AA194, ""),"") -> 175 | AC194: 00:00:01.642 | AD194: 1.9e-05
N195: 0 | O195: 0 | S195: =VLOOKUP(D195,PC_Rec!$O$5:$P$18,2,FALSE) ->  | T195: =IF(D195="","",VLOOKUP(D195,PC_Rec!$O$5:$Q$18,3,FALSE)) ->  | W195: =IF(V195="","",VLOOKUP(V195,'Aux1'!$A$1:$B$12,2,FALSE)) ->  | X195: Não pago | AA195: =IF(Z195="","",VLOOKUP(Z195,'Aux1'!$A$1:$B$12,2,FALSE)) ->  | AB195: =IF(AA195="", COUNTIF(AA$5:AA195, ""),"") -> 176 | AC195: 00:00:01.650 | AD195: 1.91e-05
N196: 0 | O196: 0 | S196: =VLOOKUP(D196,PC_Rec!$O$5:$P$18,2,FALSE) ->  | T196: =IF(D196="","",VLOOKUP(D196,PC_Rec!$O$5:$Q$18,3,FALSE)) ->  | W196: =IF(V196="","",VLOOKUP(V196,'Aux1'!$A$1:$B$12,2,FALSE)) ->  | X196: Não pago | AA196: =IF(Z196="","",VLOOKUP(Z196,'Aux1'!$A$1:$B$12,2,FALSE)) ->  | AB196: =IF(AA196="", COUNTIF(AA$5:AA196, ""),"") -> 177 | AC196: 00:00:01.659 | AD196: 1.92e-05
N197: 0 | O197: 0 | S197: =VLOOKUP(D197,PC_Rec!$O$5:$P$18,2,FALSE) ->  | T197: =IF(D197="","",VLOOKUP(D197,PC_Rec!$O$5:$Q$18,3,FALSE)) ->  | U197: =IF(C197="","",DAY(C197)) ->  | V197: =IF(C197="","",MONTH(C197)) ->  | W197: =IF(V197="","",VLOOKUP(V197,'Aux1'!$A$1:$B$12,2,FALSE)) ->  | X197: =IF(M197<>"","Pago","Não pago") -> Não pago | Y197: =IF(M197="","",DAY(M197)) ->  | Z197: =IF(M197="","",MONTH(M197)) ->  | AA197: =IF(Z197="","",VLOOKUP(Z197,'Aux1'!$A$1:$B$12,2,FALSE)) ->  | AB197: =IF(AA197="", COUNTIF(AA$5:AA197, ""),"") -> 178 | AC197: 00:00:01.668 | AD197: 1.93e-05 | AE197: =IF(AND(X197="Não pago",L197<>0),C197,"") ->  | AF197: =IF(AE197="","",C197) ->  | AG197: =IF(AE197="","",D197) ->  | AH197: =IF(AE197="","",E197) ->  | AI197: =IF(AE197="","",F197) ->  | AJ197: =IF(AE197="","",L197) -> 
N198: 0 | O198: =Q198+IF(AND(T198="Ingresos",X198="Pago",AA198=$C$3),L198,IF(AND(T198="gasto",X198="Pago",AA198=$C$3),-L198,0)) -> 0 | S198: =VLOOKUP(D198,PC_Rec!$O$5:$P$18,2,FALSE) ->  | T198: =IF(D198="","",VLOOKUP(D198,PC_Rec!$O$5:$Q$18,3,FALSE)) ->  | W198: =IF(V198="","",VLOOKUP(V198,'Aux1'!$A$1:$B$12,2,FALSE)) ->  | X198: Não pago | AA198: =IF(Z198="","",VLOOKUP(Z198,'Aux1'!$A$1:$B$12,2,FALSE)) ->  | AB198: =IF(AA198="", COUNTIF(AA$5:AA198, ""),"") -> 179 | AC198: =SUM(AD198:AE198) -> 00:00:01.676 | AD198: 1.94e-05
N199: =O199 -> 0 | O199: 0 | S199: =VLOOKUP(D199,PC_Rec!$O$5:$P$18,2,FALSE) ->  | T199: =IF(D199="","",VLOOKUP(D199,PC_Rec!$O$5:$Q$18,3,FALSE)) ->  | W199: =IF(V199="","",VLOOKUP(V199,'Aux1'!$A$1:$B$12,2,FALSE)) ->  | X199: Não pago | AA199: =IF(Z199="","",VLOOKUP(Z199,'Aux1'!$A$1:$B$12,2,FALSE)) ->  | AB199: =IF(AA199="", COUNTIF(AA$5:AA199, ""),"") -> 180 | AC199: 00:00:01.685 | AD199: 1.95e-05
N200: 0 | O200: 0 | S200: =VLOOKUP(D200,PC_Rec!$O$5:$P$18,2,FALSE) ->  | T200: =IF(D200="","",VLOOKUP(D200,PC_Rec!$O$5:$Q$18,3,FALSE)) ->  | W200: =IF(V200="","",VLOOKUP(V200,'Aux1'!$A$1:$B$12,2,FALSE)) ->  | X200: Não pago | AA200: =IF(Z200="","",VLOOKUP(Z200,'Aux1'!$A$1:$B$12,2,FALSE)) ->  | AB200: =IF(AA200="", COUNTIF(AA$5:AA200, ""),"") -> 181 | AC200: 00:00:01.693 | AD200: 1.96e-05
N201: 0 | O201: 0 | S201: =VLOOKUP(D201,PC_Rec!$O$5:$P$18,2,FALSE) ->  | T201: =IF(D201="","",VLOOKUP(D201,PC_Rec!$O$5:$Q$18,3,FALSE)) ->  | W201: =IF(V201="","",VLOOKUP(V201,'Aux1'!$A$1:$B$12,2,FALSE)) ->  | X201: Não pago | AA201: =IF(Z201="","",VLOOKUP(Z201,'Aux1'!$A$1:$B$12,2,FALSE)) ->  | AB201: =IF(AA201="", COUNTIF(AA$5:AA201, ""),"") -> 182 | AC201: 00:00:01.702 | AD201: 1.97e-05
N202: 0 | O202: 0 | S202: =VLOOKUP(D202,PC_Rec!$O$5:$P$18,2,FALSE) ->  | T202: =IF(D202="","",VLOOKUP(D202,PC_Rec!$O$5:$Q$18,3,FALSE)) ->  | W202: =IF(V202="","",VLOOKUP(V202,'Aux1'!$A$1:$B$12,2,FALSE)) ->  | X202: Não pago | AA202: =IF(Z202="","",VLOOKUP(Z202,'Aux1'!$A$1:$B$12,2,FALSE)) ->  | AB202: =IF(AA202="", COUNTIF(AA$5:AA202, ""),"") -> 183 | AC202: 00:00:01.711 | AD202: 1.98e-05
... 402 more rows

Sheet Mar
C3: marzo
C4: Fecha de Publicación | D4: clasificación | E4: Plan de cuentas | F4: artículo | G4: Forma de pago | H4: Banco | I4: Descripción de la transacción | J4: Centro de coste | K4: cliente | L4: valor | M4: Fecha del pago | N4: acumulado | P4: resultado | Q4: =Q7-Q9 -> 1840 | S4: indirecta a la lista | T4: ingresos o gastos | U4: día de la venta | V4: el mes venta | W4: meses corresp venta | X4: remunerado o no | Y4: día del pago | Z4: mes de pago | AA4: meses corresp | AB4: Orden | AC4: repet | AD4: desempate | AE4: valor | AF4: repet 1 | AG4: 2 de repetición | AH4: 3 repet | AI4: repet 4 | AJ4: repet 5
C5: 2017-03-02 | D5: INGRESOS CON SERVICIOS | E5: consultoría financiera | F5: - | G5: dinero | H5: Banco 1 | J5: Centro de coste 1 | K5: al cliente 1 | L5: 500 | M5: 2017-03-02 | N5: =O5 -> 780 | O5: =Q5+IF(AND(T5="Ingresos",X5="Pago",AA5=$C$3),L5,IF(AND(T5="gasto",X5="Pago",AA5=$C$3),-L5,0)) -> 780 | P5: Saldo inicial | Q5: =Fev!Q11 -> 280 | S5: =VLOOKUP(D5,PC_Rec!$O$5:$P$18,2,FALSE) -> Receita2 | T5: =IF(D5="","",VLOOKUP(D5,PC_Rec!$O$5:$Q$18,3,FALSE)) -> Ingresos | U5: =IF(C5="","",DAY(C5)) -> 2 | V5: =IF(C5="","",MONTH(C5)) -> 3 | W5: =IF(V5="","",VLOOKUP(V5,'Aux1'!$A$1:$B$12,2,FALSE)) -> marzo | X5: =IF(M5<>"","Pago","Não pago") -> Pago | Y5: =IF(M5="","",DAY(M5)) -> 2 | Z5: =IF(M5="","",MONTH(M5)) -> 3 | AA5: =IF(Z5="","",VLOOKUP(Z5,'Aux1'!$A$1:$B$12,2,FALSE)) -> marzo | AB5: =IF(AA5="", COUNTIF(AA$5:AA5, ""),"") ->  | AC5: =SUM(AD5:AE5) -> 00:00:00.009 | AD5: 1e-07 | AE5: =IF(AND(X5="Não pago",L5<>0),C5,"") ->  | AF5: =IF(AE5="","",C5) ->  | AG5: =IF(AE5="","",D5) ->  | AH5: =IF(AE5="","",E5) ->  | AI5: =IF(AE5="","",F5) ->  | AJ5: =IF(AE5="","",L5) -> 
C6: 2017-03-03 | D6: INGRESOS CON SERVICIOS | E6: Consulta de marketing | F6: - | G6: débito | H6: Banco 2 | J6: Centro de coste 1 | K6: el cliente 2 | L6: 600 | M6: 2017-03-03 | N6: =O6 -> 600 | O6: =Q6+IF(AND(T6="Ingresos",X6="Pago",AA6=$C$3),L6,IF(AND(T6="gasto",X6="Pago",AA6=$C$3),-L6,0)) -> 600 | S6: =VLOOKUP(D6,PC_Rec!$O$5:$P$18,2,FALSE) -> Receita2 | T6: =IF(D6="","",VLOOKUP(D6,PC_Rec!$O$5:$Q$18,3,FALSE)) -> Ingresos | U6: 3 | V6: 3 | W6: =IF(V6="","",VLOOKUP(V6,'Aux1'!$A$1:$B$12,2,FALSE)) -> marzo | X6: Pago | Y6: 3 | Z6: 3 | AA6: =IF(Z6="","",VLOOKUP(Z6,'Aux1'!$A$1:$B$12,2,FALSE)) -> marzo | AB6: =IF(AA6="", COUNTIF(AA$5:AA6, ""),"") ->  | AC6: =SUM(AD6:AE6) -> 00:00:00.017 | AD6: 2e-07
C7: 2017-03-04 | D7: INGRESOS CON SERVICIOS | E7: consultoría estratégica | F7: - | G7: crédito | H7: Banco 3 | J7: Centro de coste 1 | K7: 3 cliente | L7: 700 | M7: 2017-03-04 | N7: =O7 -> 6000 | O7: 6000 | P7: Los ingresos totales | Q7: =SUMIFS('Aux2'!H2:H7202,'Aux2'!P2:P7202,$C$3,'Aux2'!I2:I7202,"Ingresos") -> 5300 | S7: =VLOOKUP(D7,PC_Rec!$O$5:$P$18,2,FALSE) -> Receita2 | T7: =IF(D7="","",VLOOKUP(D7,PC_Rec!$O$5:$Q$18,3,FALSE)) -> Ingresos | U7: 4 | V7: 3 | W7: =IF(V7="","",VLOOKUP(V7,'Aux1'!$A$1:$B$12,2,FALSE)) -> marzo | X7: Pago | Y7: 4 | Z7: 3 | AA7: =IF(Z7="","",VLOOKUP(Z7,'Aux1'!$A$1:$B$12,2,FALSE)) -> marzo | AB7: =IF(AA7="", COUNTIF(AA$5:AA7, ""),"") ->  | AC7: 00:00:00.026 | AD7: 3e-07
C8: 2017-03-05 | D8: INGRESOS CON SERVICIOS | E8: consultoría de calidad | F8: - | G8: entrega | H8: Banco 1 | J8: Centro de coste 1 | K8: 4 cliente | L8: 800 | M8: 2017-03-04 | N8: 800 | O8: 800 | S8: =VLOOKUP(D8,PC_Rec!$O$5:$P$18,2,FALSE) -> Receita2 | T8: =IF(D8="","",VLOOKUP(D8,PC_Rec!$O$5:$Q$18,3,FALSE)) -> Ingresos | U8: 5 | V8: 3 | W8: =IF(V8="","",VLOOKUP(V8,'Aux1'!$A$1:$B$12,2,FALSE)) -> marzo | X8: Pago | Y8: 4 | Z8: 3 | AA8: =IF(Z8="","",VLOOKUP(Z8,'Aux1'!$A$1:$B$12,2,FALSE)) -> marzo | AB8: =IF(AA8="", COUNTIF(AA$5:AA8, ""),"") ->  | AC8: 00:00:00.035 | AD8: 4e-07
C9: 2017-03-06 | D9: INGRESOS CON SERVICIOS | E9: Las personas Management Consulting | F9: - | G9: comprobar | H9: Banco 1 | J9: Centro de coste 1 | K9: 5 cliente | L9: 900 | M9: 2017-03-06 | N9: 4360 | O9: 4360 | P9: Los gastos totales | Q9: =SUMIFS('Aux2'!H2:H7202,'Aux2'!P2:P7202,$C$3,'Aux2'!I2:I7202,"gasto") -> 3460 | S9: =VLOOKUP(D9,PC_Rec!$O$5:$P$18,2,FALSE) -> Receita2 | T9: =IF(D9="","",VLOOKUP(D9,PC_Rec!$O$5:$Q$18,3,FALSE)) -> Ingresos | U9: 6 | V9: 3 | W9: =IF(V9="","",VLOOKUP(V9,'Aux1'!$A$1:$B$12,2,FALSE)) -> marzo | X9: Pago | Y9: 6 | Z9: 3 | AA9: =IF(Z9="","",VLOOKUP(Z9,'Aux1'!$A$1:$B$12,2,FALSE)) -> marzo | AB9: =IF(AA9="", COUNTIF(AA$5:AA9, ""),"") ->  | AC9: 00:00:00.043 | AD9: 5e-07
C10: 2017-03-07 | D10: INGRESOS CON LOS PRODUCTOS | E10: Estrategia folleto | F10: - | G10: dinero | H10: Banco 1 | J10: Centro de coste 1 | K10: el cliente 2 | L10: 600 | M10: 2017-03-07 | N10: 600 | O10: 600 | S10: =VLOOKUP(D10,PC_Rec!$O$5:$P$18,2,FALSE) -> recipe1 | T10: =IF(D10="","",VLOOKUP(D10,PC_Rec!$O$5:$Q$18,3,FALSE)) -> Ingresos | U10: 7 | V10: 3 | W10: =IF(V10="","",VLOOKUP(V10,'Aux1'!$A$1:$B$12,2,FALSE)) -> marzo | X10: Pago | Y10: 7 | Z10: 3 | AA10: =IF(Z10="","",VLOOKUP(Z10,'Aux1'!$A$1:$B$12,2,FALSE)) -> marzo | AB10: =IF(AA10="", COUNTIF(AA$5:AA10, ""),"") ->  | AC10: 00:00:00.052 | AD10: 6e-07
C11: 2017-03-08 | D11: OTROS INGRESOS | E11: conferencias | F11: - | G11: crédito | H11: Banco 2 | J11: Centro de coste 1 | K11: el cliente 2 | L11: 1200 | M11: 2017-03-08 | N11: 3320 | O11: 3320 | P11: acumulado | Q11: =Q5+Q4 -> 2120 | S11: =VLOOKUP(D11,PC_Rec!$O$5:$P$18,2,FALSE) -> Receita3 | T11: =IF(D11="","",VLOOKUP(D11,PC_Rec!$O$5:$Q$18,3,FALSE)) -> Ingresos | U11: 8 | V11: 3 | W11: =IF(V11="","",VLOOKUP(V11,'Aux1'!$A$1:$B$12,2,FALSE)) -> marzo | X11: Pago | Y11: 8 | Z11: 3 | AA11: =IF(Z11="","",VLOOKUP(Z11,'Aux1'!$A$1:$B$12,2,FALSE)) -> marzo | AB11: =IF(AA11="", COUNTIF(AA$5:AA11, ""),"") ->  | AC11: 00:00:00.060 | AD11: 7e-07
C12: 2017-03-09 | D12: GASTOS FINANCIEROS | E12: Tesoro directo | F12: - | G12: comprobar | H12: Banco 3 | J12: Centro de coste 1 | K12: el cliente 2 | L12: 400 | M12: 2017-03-09 | N12: -400 | O12: -400 | S12: =VLOOKUP(D12,PC_Rec!$O$5:$P$18,2,FALSE) -> Despesa5 | T12: =IF(D12="","",VLOOKUP(D12,PC_Rec!$O$5:$Q$18,3,FALSE)) -> gasto | U12: 9 | V12: 3 | W12: =IF(V12="","",VLOOKUP(V12,'Aux1'!$A$1:$B$12,2,FALSE)) -> marzo | X12: Pago | Y12: 9 | Z12: 3 | AA12: =IF(Z12="","",VLOOKUP(Z12,'Aux1'!$A$1:$B$12,2,FALSE)) -> marzo | AB12: =IF(AA12="", COUNTIF(AA$5:AA12, ""),"") ->  | AC12: 00:00:00.069 | AD12: 8e-07
C13: 2017-03-10 | D13: COSTO DE LOS PRODUCTOS | E13: costes de impresión | F13: - | G13: dinero | H13: Banco 1 | J13: Centro de coste 1 | K13: proveedor 1 | L13: 200 | M13: 2017-03-10 | N13: -200 | O13: -200 | S13: =VLOOKUP(D13,PC_Rec!$O$5:$P$18,2,FALSE) -> Costo1 | T13: =IF(D13="","",VLOOKUP(D13,PC_Rec!$O$5:$Q$18,3,FALSE)) -> gasto | U13: 10 | V13: 3 | W13: =IF(V13="","",VLOOKUP(V13,'Aux1'!$A$1:$B$12,2,FALSE)) -> marzo | X13: Pago | Y13: 10 | Z13: 3 | AA13: =IF(Z13="","",VLOOKUP(Z13,'Aux1'!$A$1:$B$12,2,FALSE)) -> marzo | AB13: =IF(AA13="", COUNTIF(AA$5:AA13, ""),"") ->  | AC13: 00:00:00.078 | AD13: 9e-07
C14: 2017-03-11 | D14: COSTE DE SERVICIOS | E14: personal externo | F14: - | G14: débito | H14: Banco 1 | J14: Centro de coste 1 | K14: proveedor 1 | L14: 300 | M14: 2017-03-11 | N14: -300 | O14: -300 | S14: =VLOOKUP(D14,PC_Rec!$O$5:$P$18,2,FALSE) -> Custo2 | T14: =IF(D14="","",VLOOKUP(D14,PC_Rec!$O$5:$Q$18,3,FALSE)) -> gasto | U14: 11 | V14: 3 | W14: =IF(V14="","",VLOOKUP(V14,'Aux1'!$A$1:$B$12,2,FALSE)) -> marzo | X14: Pago | Y14: 11 | Z14: 3 | AA14: =IF(Z14="","",VLOOKUP(Z14,'Aux1'!$A$1:$B$12,2,FALSE)) -> marzo | AB14: =IF(AA14="", COUNTIF(AA$5:AA14, ""),"") ->  | AC14: 00:00:00.086 | AD14: 1e-06
C15: 2017-03-12 | D15: OTROS GASTOS | E15: software específico | F15: - | G15: crédito | H15: Banco 1 | J15: Centro de coste 1 | K15: proveedor 1 | L15: 150 | M15: 2017-03-12 | N15: -150 | O15: -150 | S15: =VLOOKUP(D15,PC_Rec!$O$5:$P$18,2,FALSE) -> Custo3 | T15: =IF(D15="","",VLOOKUP(D15,PC_Rec!$O$5:$Q$18,3,FALSE)) -> gasto | U15: 12 | V15: 3 | W15: =IF(V15="","",VLOOKUP(V15,'Aux1'!$A$1:$B$12,2,FALSE)) -> marzo | X15: Pago | Y15: 12 | Z15: 3 | AA15: =IF(Z15="","",VLOOKUP(Z15,'Aux1'!$A$1:$B$12,2,FALSE)) -> marzo | AB15: =IF(AA15="", COUNTIF(AA$5:AA15, ""),"") ->  | AC15: 00:00:00.095 | AD15: 1.1e-06
C16: 2017-03-13 | D16: GASTO EN RRHH | E16: salario | F16: - | G16: entrega | H16: Banco 2 | J16: Centro de coste 1 | K16: proveedor 1 | L16: 1400 | N16: 0 | O16: 0 | S16: =VLOOKUP(D16,PC_Rec!$O$5:$P$18,2,FALSE) -> Despesa1 | T16: =IF(D16="","",VLOOKUP(D16,PC_Rec!$O$5:$Q$18,3,FALSE)) -> gasto | U16: 13 | V16: 3 | W16: =IF(V16="","",VLOOKUP(V16,'Aux1'!$A$1:$B$12,2,FALSE)) -> marzo | X16: Não pago | AA16: =IF(Z16="","",VLOOKUP(Z16,'Aux1'!$A$1:$B$12,2,FALSE)) ->  | AB16: =IF(AA16="", COUNTIF(AA$5:AA16, ""),"") -> 1 | AC16: 2017-03-13T00:00:00.104 | AD16: 1.2e-06 | AE16: 2017-03-13 | AF16: 2017-03-13 | AG16: GASTO EN RRHH | AH16: salario | AI16: - | AJ16: 1400
C17: 2017-03-14 | D17: GASTOS CON MARKETING | E17: Adwords | F17: - | G17: comprobar | H17: Banco 3 | J17: Centro de coste 1 | K17: proveedor 1 | L17: 600 | M17: 2017-03-14 | N17: -600 | O17: -600 | S17: =VLOOKUP(D17,PC_Rec!$O$5:$P$18,2,FALSE) -> Despesa2 | T17: =IF(D17="","",VLOOKUP(D17,PC_Rec!$O$5:$Q$18,3,FALSE)) -> gasto | U17: 14 | V17: 3 | W17: =IF(V17="","",VLOOKUP(V17,'Aux1'!$A$1:$B$12,2,FALSE)) -> marzo | X17: Pago | Y17: 14 | Z17: 3 | AA17: =IF(Z17="","",VLOOKUP(Z17,'Aux1'!$A$1:$B$12,2,FALSE)) -> marzo | AB17: =IF(AA17="", COUNTIF(AA$5:AA17, ""),"") ->  | AC17: 00:00:00.112 | AD17: 1.3e-06
C18: 2017-03-15 | D18: GASTOS DE FUNCIONAMIENTO | E18: contabilidad | F18: - | G18: dinero | H18: Banco 1 | J18: Centro de coste 1 | K18: proveedor 1 | L18: 500 | M18: 2017-03-15 | N18: -500 | O18: -500 | S18: =VLOOKUP(D18,PC_Rec!$O$5:$P$18,2,FALSE) -> Despesa3 | T18: =IF(D18="","",VLOOKUP(D18,PC_Rec!$O$5:$Q$18,3,FALSE)) -> gasto | U18: 15 | V18: 3 | W18: =IF(V18="","",VLOOKUP(V18,'Aux1'!$A$1:$B$12,2,FALSE)) -> marzo | X18: Pago | Y18: 15 | Z18: 3 | AA18: =IF(Z18="","",VLOOKUP(Z18,'Aux1'!$A$1:$B$12,2,FALSE)) -> marzo | AB18: =IF(AA18="", COUNTIF(AA$5:AA18, ""),"") ->  | AC18: 00:00:00.121 | AD18: 1.4e-06
C19: 2017-03-16 | D19: OTROS GASTOS | E19: Otros gastos | F19: - | G19: crédito | H19: Banco 1 | J19: Centro de coste 1 | K19: proveedor 1 | L19: 60 | M19: 2017-03-16 | N19: -60 | O19: -60 | S19: =VLOOKUP(D19,PC_Rec!$O$5:$P$18,2,FALSE) -> Custo3 | T19: =IF(D19="","",VLOOKUP(D19,PC_Rec!$O$5:$Q$18,3,FALSE)) -> gasto | U19: 16 | V19: 3 | W19: =IF(V19="","",VLOOKUP(V19,'Aux1'!$A$1:$B$12,2,FALSE)) -> marzo | X19: Pago | Y19: 16 | Z19: 3 | AA19: =IF(Z19="","",VLOOKUP(Z19,'Aux1'!$A$1:$B$12,2,FALSE)) -> marzo | AB19: =IF(AA19="", COUNTIF(AA$5:AA19, ""),"") ->  | AC19: 00:00:00.130 | AD19: 1.5e-06
C20: 2017-03-17 | D20: GASTOS FINANCIEROS | E20: PayPal | F20: - | G20: dinero | H20: Banco 3 | J20: Centro de coste 1 | K20: proveedor 1 | L20: 50 | M20: 2017-03-17 | N20: -50 | O20: -50 | S20: =VLOOKUP(D20,PC_Rec!$O$5:$P$18,2,FALSE) -> Despesa5 | T20: =IF(D20="","",VLOOKUP(D20,PC_Rec!$O$5:$Q$18,3,FALSE)) -> gasto | U20: 17 | V20: 3 | W20: =IF(V20="","",VLOOKUP(V20,'Aux1'!$A$1:$B$12,2,FALSE)) -> marzo | X20: Pago | Y20: 17 | Z20: 3 | AA20: =IF(Z20="","",VLOOKUP(Z20,'Aux1'!$A$1:$B$12,2,FALSE)) -> marzo | AB20: =IF(AA20="", COUNTIF(AA$5:AA20, ""),"") ->  | AC20: 00:00:00.138 | AD20: 1.6e-06
C21: 2017-03-18 | D21: IMPUESTOS | E21: sencillo | F21: - | G21: crédito | H21: Banco 3 | J21: Centro de coste 1 | K21: proveedor 1 | L21: 400 | M21: 2017-03-18 | N21: -400 | O21: -400 | S21: =VLOOKUP(D21,PC_Rec!$O$5:$P$18,2,FALSE) -> impuesto | T21: =IF(D21="","",VLOOKUP(D21,PC_Rec!$O$5:$Q$18,3,FALSE)) -> gasto | U21: 18 | V21: 3 | W21: =IF(V21="","",VLOOKUP(V21,'Aux1'!$A$1:$B$12,2,FALSE)) -> marzo | X21: Pago | Y21: 18 | Z21: 3 | AA21: =IF(Z21="","",VLOOKUP(Z21,'Aux1'!$A$1:$B$12,2,FALSE)) -> marzo | AB21: =IF(AA21="", COUNTIF(AA$5:AA21, ""),"") ->  | AC21: 00:00:00.147 | AD21: 1.7e-06
C22: 2017-03-19 | D22: INVERSIÓN | E22: reforma | F22: - | G22: comprobar | H22: Banco 2 | J22: Centro de coste 1 | K22: proveedor 1 | L22: 800 | M22: 2017-03-19 | N22: -800 | O22: -800 | S22: =VLOOKUP(D22,PC_Rec!$O$5:$P$18,2,FALSE) -> inversión | T22: =IF(D22="","",VLOOKUP(D22,PC_Rec!$O$5:$Q$18,3,FALSE)) -> gasto | U22: 19 | V22: 3 | W22: =IF(V22="","",VLOOKUP(V22,'Aux1'!$A$1:$B$12,2,FALSE)) -> marzo | X22: Pago | Y22: 19 | Z22: 3 | AA22: =IF(Z22="","",VLOOKUP(Z22,'Aux1'!$A$1:$B$12,2,FALSE)) -> marzo | AB22: =IF(AA22="", COUNTIF(AA$5:AA22, ""),"") ->  | AC22: 00:00:00.156 | AD22: 1.8e-06
N23: 0 | O23: 0 | S23: =VLOOKUP(D23,PC_Rec!$O$5:$P$18,2,FALSE) ->  | T23: =IF(D23="","",VLOOKUP(D23,PC_Rec!$O$5:$Q$18,3,FALSE)) ->  | W23: =IF(V23="","",VLOOKUP(V23,'Aux1'!$A$1:$B$12,2,FALSE)) ->  | X23: Não pago | AA23: =IF(Z23="","",VLOOKUP(Z23,'Aux1'!$A$1:$B$12,2,FALSE)) ->  | AB23: =IF(AA23="", COUNTIF(AA$5:AA23, ""),"") -> 2 | AC23: 00:00:00.164 | AD23: 1.9e-06
N24: 0 | O24: 0 | S24: =VLOOKUP(D24,PC_Rec!$O$5:$P$18,2,FALSE) ->  | T24: =IF(D24="","",VLOOKUP(D24,PC_Rec!$O$5:$Q$18,3,FALSE)) ->  | W24: =IF(V24="","",VLOOKUP(V24,'Aux1'!$A$1:$B$12,2,FALSE)) ->  | X24: Não pago | AA24: =IF(Z24="","",VLOOKUP(Z24,'Aux1'!$A$1:$B$12,2,FALSE)) ->  | AB24: =IF(AA24="", COUNTIF(AA$5:AA24, ""),"") -> 3 | AC24: 00:00:00.173 | AD24: 2e-06
N25: 0 | O25: 0 | S25: =VLOOKUP(D25,PC_Rec!$O$5:$P$18,2,FALSE) ->  | T25: =IF(D25="","",VLOOKUP(D25,PC_Rec!$O$5:$Q$18,3,FALSE)) ->  | W25: =IF(V25="","",VLOOKUP(V25,'Aux1'!$A$1:$B$12,2,FALSE)) ->  | X25: Não pago | AA25: =IF(Z25="","",VLOOKUP(Z25,'Aux1'!$A$1:$B$12,2,FALSE)) ->  | AB25: =IF(AA25="", COUNTIF(AA$5:AA25, ""),"") -> 4 | AC25: 00:00:00.181 | AD25: 2.1e-06
N26: 0 | O26: 0 | S26: =VLOOKUP(D26,PC_Rec!$O$5:$P$18,2,FALSE) ->  | T26: =IF(D26="","",VLOOKUP(D26,PC_Rec!$O$5:$Q$18,3,FALSE)) ->  | W26: =IF(V26="","",VLOOKUP(V26,'Aux1'!$A$1:$B$12,2,FALSE)) ->  | X26: Não pago | AA26: =IF(Z26="","",VLOOKUP(Z26,'Aux1'!$A$1:$B$12,2,FALSE)) ->  | AB26: =IF(AA26="", COUNTIF(AA$5:AA26, ""),"") -> 5 | AC26: 00:00:00.190 | AD26: 2.2e-06
N27: 0 | O27: 0 | S27: =VLOOKUP(D27,PC_Rec!$O$5:$P$18,2,FALSE) ->  | T27: =IF(D27="","",VLOOKUP(D27,PC_Rec!$O$5:$Q$18,3,FALSE)) ->  | W27: =IF(V27="","",VLOOKUP(V27,'Aux1'!$A$1:$B$12,2,FALSE)) ->  | X27: Não pago | AA27: =IF(Z27="","",VLOOKUP(Z27,'Aux1'!$A$1:$B$12,2,FALSE)) ->  | AB27: =IF(AA27="", COUNTIF(AA$5:AA27, ""),"") -> 6 | AC27: 00:00:00.199 | AD27: 2.3e-06
N28: 0 | O28: 0 | S28: =VLOOKUP(D28,PC_Rec!$O$5:$P$18,2,FALSE) ->  | T28: =IF(D28="","",VLOOKUP(D28,PC_Rec!$O$5:$Q$18,3,FALSE)) ->  | W28: =IF(V28="","",VLOOKUP(V28,'Aux1'!$A$1:$B$12,2,FALSE)) ->  | X28: Não pago | AA28: =IF(Z28="","",VLOOKUP(Z28,'Aux1'!$A$1:$B$12,2,FALSE)) ->  | AB28: =IF(AA28="", COUNTIF(AA$5:AA28, ""),"") -> 7 | AC28: 00:00:00.207 | AD28: 2.4e-06
N29: 0 | O29: 0 | S29: =VLOOKUP(D29,PC_Rec!$O$5:$P$18,2,FALSE) ->  | T29: =IF(D29="","",VLOOKUP(D29,PC_Rec!$O$5:$Q$18,3,FALSE)) ->  | W29: =IF(V29="","",VLOOKUP(V29,'Aux1'!$A$1:$B$12,2,FALSE)) ->  | X29: Não pago | AA29: =IF(Z29="","",VLOOKUP(Z29,'Aux1'!$A$1:$B$12,2,FALSE)) ->  | AB29: =IF(AA29="", COUNTIF(AA$5:AA29, ""),"") -> 8 | AC29: 00:00:00.216 | AD29: 2.5e-06
N30: 0 | O30: 0 | S30: =VLOOKUP(D30,PC_Rec!$O$5:$P$18,2,FALSE) ->  | T30: =IF(D30="","",VLOOKUP(D30,PC_Rec!$O$5:$Q$18,3,FALSE)) ->  | W30: =IF(V30="","",VLOOKUP(V30,'Aux1'!$A$1:$B$12,2,FALSE)) ->  | X30: Não pago | AA30: =IF(Z30="","",VLOOKUP(Z30,'Aux1'!$A$1:$B$12,2,FALSE)) ->  | AB30: =IF(AA30="", COUNTIF(AA$5:AA30, ""),"") -> 9 | AC30: 00:00:00.225 | AD30: 2.6e-06
N31: 0 | O31: 0 | S31: =VLOOKUP(D31,PC_Rec!$O$5:$P$18,2,FALSE) ->  | T31: =IF(D31="","",VLOOKUP(D31,PC_Rec!$O$5:$Q$18,3,FALSE)) ->  | W31: =IF(V31="","",VLOOKUP(V31,'Aux1'!$A$1:$B$12,2,FALSE)) ->  | X31: Não pago | AA31: =IF(Z31="","",VLOOKUP(Z31,'Aux1'!$A$1:$B$12,2,FALSE)) ->  | AB31: =IF(AA31="", COUNTIF(AA$5:AA31, ""),"") -> 10 | AC31: 00:00:00.233 | AD31: 2.7e-06
N32: 0 | O32: 0 | S32: =VLOOKUP(D32,PC_Rec!$O$5:$P$18,2,FALSE) ->  | T32: =IF(D32="","",VLOOKUP(D32,PC_Rec!$O$5:$Q$18,3,FALSE)) ->  | W32: =IF(V32="","",VLOOKUP(V32,'Aux1'!$A$1:$B$12,2,FALSE)) ->  | X32: Não pago | AA32: =IF(Z32="","",VLOOKUP(Z32,'Aux1'!$A$1:$B$12,2,FALSE)) ->  | AB32: =IF(AA32="", COUNTIF(AA$5:AA32, ""),"") -> 11 | AC32: 00:00:00.242 | AD32: 2.8e-06
N33: 0 | O33: 0 | S33: =VLOOKUP(D33,PC_Rec!$O$5:$P$18,2,FALSE) ->  | T33: =IF(D33="","",VLOOKUP(D33,PC_Rec!$O$5:$Q$18,3,FALSE)) ->  | W33: =IF(V33="","",VLOOKUP(V33,'Aux1'!$A$1:$B$12,2,FALSE)) ->  | X33: Não pago | AA33: =IF(Z33="","",VLOOKUP(Z33,'Aux1'!$A$1:$B$12,2,FALSE)) ->  | AB33: =IF(AA33="", COUNTIF(AA$5:AA33, ""),"") -> 12 | AC33: 00:00:00.251 | AD33: 2.9e-06
N34: 0 | O34: 0 | S34: =VLOOKUP(D34,PC_Rec!$O$5:$P$18,2,FALSE) ->  | T34: =IF(D34="","",VLOOKUP(D34,PC_Rec!$O$5:$Q$18,3,FALSE)) ->  | W34: =IF(V34="","",VLOOKUP(V34,'Aux1'!$A$1:$B$12,2,FALSE)) ->  | X34: Não pago | AA34: =IF(Z34="","",VLOOKUP(Z34,'Aux1'!$A$1:$B$12,2,FALSE)) ->  | AB34: =IF(AA34="", COUNTIF(AA$5:AA34, ""),"") -> 13 | AC34: 00:00:00.259 | AD34: 3e-06
N35: 0 | O35: 0 | S35: =VLOOKUP(D35,PC_Rec!$O$5:$P$18,2,FALSE) ->  | T35: =IF(D35="","",VLOOKUP(D35,PC_Rec!$O$5:$Q$18,3,FALSE)) ->  | W35: =IF(V35="","",VLOOKUP(V35,'Aux1'!$A$1:$B$12,2,FALSE)) ->  | X35: Não pago | AA35: =IF(Z35="","",VLOOKUP(Z35,'Aux1'!$A$1:$B$12,2,FALSE)) ->  | AB35: =IF(AA35="", COUNTIF(AA$5:AA35, ""),"") -> 14 | AC35: 00:00:00.268 | AD35: 3.1e-06
N36: 0 | O36: 0 | S36: =VLOOKUP(D36,PC_Rec!$O$5:$P$18,2,FALSE) ->  | T36: =IF(D36="","",VLOOKUP(D36,PC_Rec!$O$5:$Q$18,3,FALSE)) ->  | W36: =IF(V36="","",VLOOKUP(V36,'Aux1'!$A$1:$B$12,2,FALSE)) ->  | X36: Não pago | AA36: =IF(Z36="","",VLOOKUP(Z36,'Aux1'!$A$1:$B$12,2,FALSE)) ->  | AB36: =IF(AA36="", COUNTIF(AA$5:AA36, ""),"") -> 15 | AC36: 00:00:00.276 | AD36: 3.2e-06
N37: 0 | O37: 0 | S37: =VLOOKUP(D37,PC_Rec!$O$5:$P$18,2,FALSE) ->  | T37: =IF(D37="","",VLOOKUP(D37,PC_Rec!$O$5:$Q$18,3,FALSE)) ->  | W37: =IF(V37="","",VLOOKUP(V37,'Aux1'!$A$1:$B$12,2,FALSE)) ->  | X37: Não pago | AA37: =IF(Z37="","",VLOOKUP(Z37,'Aux1'!$A$1:$B$12,2,FALSE)) ->  | AB37: =IF(AA37="", COUNTIF(AA$5:AA37, ""),"") -> 16 | AC37: 00:00:00.285 | AD37: 3.3e-06
N38: 0 | O38: 0 | S38: =VLOOKUP(D38,PC_Rec!$O$5:$P$18,2,FALSE) ->  | T38: =IF(D38="","",VLOOKUP(D38,PC_Rec!$O$5:$Q$18,3,FALSE)) ->  | W38: =IF(V38="","",VLOOKUP(V38,'Aux1'!$A$1:$B$12,2,FALSE)) ->  | X38: Não pago | AA38: =IF(Z38="","",VLOOKUP(Z38,'Aux1'!$A$1:$B$12,2,FALSE)) ->  | AB38: =IF(AA38="", COUNTIF(AA$5:AA38, ""),"") -> 17 | AC38: 00:00:00.294 | AD38: 3.4e-06
N39: 0 | O39: 0 | S39: =VLOOKUP(D39,PC_Rec!$O$5:$P$18,2,FALSE) ->  | T39: =IF(D39="","",VLOOKUP(D39,PC_Rec!$O$5:$Q$18,3,FALSE)) ->  | W39: =IF(V39="","",VLOOKUP(V39,'Aux1'!$A$1:$B$12,2,FALSE)) ->  | X39: Não pago | AA39: =IF(Z39="","",VLOOKUP(Z39,'Aux1'!$A$1:$B$12,2,FALSE)) ->  | AB39: =IF(AA39="", COUNTIF(AA$5:AA39, ""),"") -> 18 | AC39: 00:00:00.302 | AD39: 3.5e-06
N40: 0 | O40: 0 | S40: =VLOOKUP(D40,PC_Rec!$O$5:$P$18,2,FALSE) ->  | T40: =IF(D40="","",VLOOKUP(D40,PC_Rec!$O$5:$Q$18,3,FALSE)) ->  | W40: =IF(V40="","",VLOOKUP(V40,'Aux1'!$A$1:$B$12,2,FALSE)) ->  | X40: Não pago | AA40: =IF(Z40="","",VLOOKUP(Z40,'Aux1'!$A$1:$B$12,2,FALSE)) ->  | AB40: =IF(AA40="", COUNTIF(AA$5:AA40, ""),"") -> 19 | AC40: 00:00:00.311 | AD40: 3.6e-06
N41: 0 | O41: 0 | S41: =VLOOKUP(D41,PC_Rec!$O$5:$P$18,2,FALSE) ->  | T41: =IF(D41="","",VLOOKUP(D41,PC_Rec!$O$5:$Q$18,3,FALSE)) ->  | W41: =IF(V41="","",VLOOKUP(V41,'Aux1'!$A$1:$B$12,2,FALSE)) ->  | X41: Não pago | AA41: =IF(Z41="","",VLOOKUP(Z41,'Aux1'!$A$1:$B$12,2,FALSE)) ->  | AB41: =IF(AA41="", COUNTIF(AA$5:AA41, ""),"") -> 20 | AC41: 00:00:00.320 | AD41: 3.7e-06
N42: 0 | O42: 0 | S42: =VLOOKUP(D42,PC_Rec!$O$5:$P$18,2,FALSE) ->  | T42: =IF(D42="","",VLOOKUP(D42,PC_Rec!$O$5:$Q$18,3,FALSE)) ->  | W42: =IF(V42="","",VLOOKUP(V42,'Aux1'!$A$1:$B$12,2,FALSE)) ->  | X42: Não pago | AA42: =IF(Z42="","",VLOOKUP(Z42,'Aux1'!$A$1:$B$12,2,FALSE)) ->  | AB42: =IF(AA42="", COUNTIF(AA$5:AA42, ""),"") -> 21 | AC42: 00:00:00.328 | AD42: 3.8e-06
N43: 0 | O43: 0 | S43: =VLOOKUP(D43,PC_Rec!$O$5:$P$18,2,FALSE) ->  | T43: =IF(D43="","",VLOOKUP(D43,PC_Rec!$O$5:$Q$18,3,FALSE)) ->  | W43: =IF(V43="","",VLOOKUP(V43,'Aux1'!$A$1:$B$12,2,FALSE)) ->  | X43: Não pago | AA43: =IF(Z43="","",VLOOKUP(Z43,'Aux1'!$A$1:$B$12,2,FALSE)) ->  | AB43: =IF(AA43="", COUNTIF(AA$5:AA43, ""),"") -> 22 | AC43: 00:00:00.337 | AD43: 3.9e-06
N44: 0 | O44: 0 | S44: =VLOOKUP(D44,PC_Rec!$O$5:$P$18,2,FALSE) ->  | T44: =IF(D44="","",VLOOKUP(D44,PC_Rec!$O$5:$Q$18,3,FALSE)) ->  | W44: =IF(V44="","",VLOOKUP(V44,'Aux1'!$A$1:$B$12,2,FALSE)) ->  | X44: Não pago | AA44: =IF(Z44="","",VLOOKUP(Z44,'Aux1'!$A$1:$B$12,2,FALSE)) ->  | AB44: =IF(AA44="", COUNTIF(AA$5:AA44, ""),"") -> 23 | AC44: 00:00:00.346 | AD44: 4e-06
N45: 0 | O45: 0 | S45: =VLOOKUP(D45,PC_Rec!$O$5:$P$18,2,FALSE) ->  | T45: =IF(D45="","",VLOOKUP(D45,PC_Rec!$O$5:$Q$18,3,FALSE)) ->  | W45: =IF(V45="","",VLOOKUP(V45,'Aux1'!$A$1:$B$12,2,FALSE)) ->  | X45: Não pago | AA45: =IF(Z45="","",VLOOKUP(Z45,'Aux1'!$A$1:$B$12,2,FALSE)) ->  | AB45: =IF(AA45="", COUNTIF(AA$5:AA45, ""),"") -> 24 | AC45: 00:00:00.354 | AD45: 4.1e-06
N46: 0 | O46: 0 | S46: =VLOOKUP(D46,PC_Rec!$O$5:$P$18,2,FALSE) ->  | T46: =IF(D46="","",VLOOKUP(D46,PC_Rec!$O$5:$Q$18,3,FALSE)) ->  | W46: =IF(V46="","",VLOOKUP(V46,'Aux1'!$A$1:$B$12,2,FALSE)) ->  | X46: Não pago | AA46: =IF(Z46="","",VLOOKUP(Z46,'Aux1'!$A$1:$B$12,2,FALSE)) ->  | AB46: =IF(AA46="", COUNTIF(AA$5:AA46, ""),"") -> 25 | AC46: 00:00:00.363 | AD46: 4.2e-06
N47: 0 | O47: 0 | S47: =VLOOKUP(D47,PC_Rec!$O$5:$P$18,2,FALSE) ->  | T47: =IF(D47="","",VLOOKUP(D47,PC_Rec!$O$5:$Q$18,3,FALSE)) ->  | W47: =IF(V47="","",VLOOKUP(V47,'Aux1'!$A$1:$B$12,2,FALSE)) ->  | X47: Não pago | AA47: =IF(Z47="","",VLOOKUP(Z47,'Aux1'!$A$1:$B$12,2,FALSE)) ->  | AB47: =IF(AA47="", COUNTIF(AA$5:AA47, ""),"") -> 26 | AC47: 00:00:00.372 | AD47: 4.3e-06
N48: 0 | O48: 0 | S48: =VLOOKUP(D48,PC_Rec!$O$5:$P$18,2,FALSE) ->  | T48: =IF(D48="","",VLOOKUP(D48,PC_Rec!$O$5:$Q$18,3,FALSE)) ->  | W48: =IF(V48="","",VLOOKUP(V48,'Aux1'!$A$1:$B$12,2,FALSE)) ->  | X48: Não pago | AA48: =IF(Z48="","",VLOOKUP(Z48,'Aux1'!$A$1:$B$12,2,FALSE)) ->  | AB48: =IF(AA48="", COUNTIF(AA$5:AA48, ""),"") -> 27 | AC48: 00:00:00.380 | AD48: 4.4e-06
N49: 0 | O49: 0 | S49: =VLOOKUP(D49,PC_Rec!$O$5:$P$18,2,FALSE) ->  | T49: =IF(D49="","",VLOOKUP(D49,PC_Rec!$O$5:$Q$18,3,FALSE)) ->  | W49: =IF(V49="","",VLOOKUP(V49,'Aux1'!$A$1:$B$12,2,FALSE)) ->  | X49: Não pago | AA49: =IF(Z49="","",VLOOKUP(Z49,'Aux1'!$A$1:$B$12,2,FALSE)) ->  | AB49: =IF(AA49="", COUNTIF(AA$5:AA49, ""),"") -> 28 | AC49: 00:00:00.389 | AD49: 4.5e-06
N50: 0 | O50: 0 | S50: =VLOOKUP(D50,PC_Rec!$O$5:$P$18,2,FALSE) ->  | T50: =IF(D50="","",VLOOKUP(D50,PC_Rec!$O$5:$Q$18,3,FALSE)) ->  | W50: =IF(V50="","",VLOOKUP(V50,'Aux1'!$A$1:$B$12,2,FALSE)) ->  | X50: Não pago | AA50: =IF(Z50="","",VLOOKUP(Z50,'Aux1'!$A$1:$B$12,2,FALSE)) ->  | AB50: =IF(AA50="", COUNTIF(AA$5:AA50, ""),"") -> 29 | AC50: 00:00:00.397 | AD50: 4.6e-06
N51: 0 | O51: 0 | S51: =VLOOKUP(D51,PC_Rec!$O$5:$P$18,2,FALSE) ->  | T51: =IF(D51="","",VLOOKUP(D51,PC_Rec!$O$5:$Q$18,3,FALSE)) ->  | W51: =IF(V51="","",VLOOKUP(V51,'Aux1'!$A$1:$B$12,2,FALSE)) ->  | X51: Não pago | AA51: =IF(Z51="","",VLOOKUP(Z51,'Aux1'!$A$1:$B$12,2,FALSE)) ->  | AB51: =IF(AA51="", COUNTIF(AA$5:AA51, ""),"") -> 30 | AC51: 00:00:00.406 | AD51: 4.7e-06
N52: 0 | O52: 0 | S52: =VLOOKUP(D52,PC_Rec!$O$5:$P$18,2,FALSE) ->  | T52: =IF(D52="","",VLOOKUP(D52,PC_Rec!$O$5:$Q$18,3,FALSE)) ->  | W52: =IF(V52="","",VLOOKUP(V52,'Aux1'!$A$1:$B$12,2,FALSE)) ->  | X52: Não pago | AA52: =IF(Z52="","",VLOOKUP(Z52,'Aux1'!$A$1:$B$12,2,FALSE)) ->  | AB52: =IF(AA52="", COUNTIF(AA$5:AA52, ""),"") -> 31 | AC52: 00:00:00.415 | AD52: 4.8e-06
N53: 0 | O53: 0 | S53: =VLOOKUP(D53,PC_Rec!$O$5:$P$18,2,FALSE) ->  | T53: =IF(D53="","",VLOOKUP(D53,PC_Rec!$O$5:$Q$18,3,FALSE)) ->  | W53: =IF(V53="","",VLOOKUP(V53,'Aux1'!$A$1:$B$12,2,FALSE)) ->  | X53: Não pago | AA53: =IF(Z53="","",VLOOKUP(Z53,'Aux1'!$A$1:$B$12,2,FALSE)) ->  | AB53: =IF(AA53="", COUNTIF(AA$5:AA53, ""),"") -> 32 | AC53: 00:00:00.423 | AD53: 4.9e-06
N54: 0 | O54: 0 | S54: =VLOOKUP(D54,PC_Rec!$O$5:$P$18,2,FALSE) ->  | T54: =IF(D54="","",VLOOKUP(D54,PC_Rec!$O$5:$Q$18,3,FALSE)) ->  | W54: =IF(V54="","",VLOOKUP(V54,'Aux1'!$A$1:$B$12,2,FALSE)) ->  | X54: Não pago | AA54: =IF(Z54="","",VLOOKUP(Z54,'Aux1'!$A$1:$B$12,2,FALSE)) ->  | AB54: =IF(AA54="", COUNTIF(AA$5:AA54, ""),"") -> 33 | AC54: 00:00:00.432 | AD54: 5e-06
N55: 0 | O55: 0 | S55: =VLOOKUP(D55,PC_Rec!$O$5:$P$18,2,FALSE) ->  | T55: =IF(D55="","",VLOOKUP(D55,PC_Rec!$O$5:$Q$18,3,FALSE)) ->  | W55: =IF(V55="","",VLOOKUP(V55,'Aux1'!$A$1:$B$12,2,FALSE)) ->  | X55: Não pago | AA55: =IF(Z55="","",VLOOKUP(Z55,'Aux1'!$A$1:$B$12,2,FALSE)) ->  | AB55: =IF(AA55="", COUNTIF(AA$5:AA55, ""),"") -> 34 | AC55: 00:00:00.441 | AD55: 5.1e-06
N56: 0 | O56: 0 | S56: =VLOOKUP(D56,PC_Rec!$O$5:$P$18,2,FALSE) ->  | T56: =IF(D56="","",VLOOKUP(D56,PC_Rec!$O$5:$Q$18,3,FALSE)) ->  | W56: =IF(V56="","",VLOOKUP(V56,'Aux1'!$A$1:$B$12,2,FALSE)) ->  | X56: Não pago | AA56: =IF(Z56="","",VLOOKUP(Z56,'Aux1'!$A$1:$B$12,2,FALSE)) ->  | AB56: =IF(AA56="", COUNTIF(AA$5:AA56, ""),"") -> 35 | AC56: 00:00:00.449 | AD56: 5.2e-06
N57: 0 | O57: 0 | S57: =VLOOKUP(D57,PC_Rec!$O$5:$P$18,2,FALSE) ->  | T57: =IF(D57="","",VLOOKUP(D57,PC_Rec!$O$5:$Q$18,3,FALSE)) ->  | W57: =IF(V57="","",VLOOKUP(V57,'Aux1'!$A$1:$B$12,2,FALSE)) ->  | X57: Não pago | AA57: =IF(Z57="","",VLOOKUP(Z57,'Aux1'!$A$1:$B$12,2,FALSE)) ->  | AB57: =IF(AA57="", COUNTIF(AA$5:AA57, ""),"") -> 36 | AC57: 00:00:00.458 | AD57: 5.3e-06
N58: 0 | O58: 0 | S58: =VLOOKUP(D58,PC_Rec!$O$5:$P$18,2,FALSE) ->  | T58: =IF(D58="","",VLOOKUP(D58,PC_Rec!$O$5:$Q$18,3,FALSE)) ->  | W58: =IF(V58="","",VLOOKUP(V58,'Aux1'!$A$1:$B$12,2,FALSE)) ->  | X58: Não pago | AA58: =IF(Z58="","",VLOOKUP(Z58,'Aux1'!$A$1:$B$12,2,FALSE)) ->  | AB58: =IF(AA58="", COUNTIF(AA$5:AA58, ""),"") -> 37 | AC58: 00:00:00.467 | AD58: 5.4e-06
N59: 0 | O59: 0 | S59: =VLOOKUP(D59,PC_Rec!$O$5:$P$18,2,FALSE) ->  | T59: =IF(D59="","",VLOOKUP(D59,PC_Rec!$O$5:$Q$18,3,FALSE)) ->  | W59: =IF(V59="","",VLOOKUP(V59,'Aux1'!$A$1:$B$12,2,FALSE)) ->  | X59: Não pago | AA59: =IF(Z59="","",VLOOKUP(Z59,'Aux1'!$A$1:$B$12,2,FALSE)) ->  | AB59: =IF(AA59="", COUNTIF(AA$5:AA59, ""),"") -> 38 | AC59: 00:00:00.475 | AD59: 5.5e-06
N60: 0 | O60: 0 | S60: =VLOOKUP(D60,PC_Rec!$O$5:$P$18,2,FALSE) ->  | T60: =IF(D60="","",VLOOKUP(D60,PC_Rec!$O$5:$Q$18,3,FALSE)) ->  | W60: =IF(V60="","",VLOOKUP(V60,'Aux1'!$A$1:$B$12,2,FALSE)) ->  | X60: Não pago | AA60: =IF(Z60="","",VLOOKUP(Z60,'Aux1'!$A$1:$B$12,2,FALSE)) ->  | AB60: =IF(AA60="", COUNTIF(AA$5:AA60, ""),"") -> 39 | AC60: 00:00:00.484 | AD60: 5.6e-06
N61: 0 | O61: 0 | S61: =VLOOKUP(D61,PC_Rec!$O$5:$P$18,2,FALSE) ->  | T61: =IF(D61="","",VLOOKUP(D61,PC_Rec!$O$5:$Q$18,3,FALSE)) ->  | W61: =IF(V61="","",VLOOKUP(V61,'Aux1'!$A$1:$B$12,2,FALSE)) ->  | X61: Não pago | AA61: =IF(Z61="","",VLOOKUP(Z61,'Aux1'!$A$1:$B$12,2,FALSE)) ->  | AB61: =IF(AA61="", COUNTIF(AA$5:AA61, ""),"") -> 40 | AC61: 00:00:00.492 | AD61: 5.7e-06
N62: 0 | O62: 0 | S62: =VLOOKUP(D62,PC_Rec!$O$5:$P$18,2,FALSE) ->  | T62: =IF(D62="","",VLOOKUP(D62,PC_Rec!$O$5:$Q$18,3,FALSE)) ->  | W62: =IF(V62="","",VLOOKUP(V62,'Aux1'!$A$1:$B$12,2,FALSE)) ->  | X62: Não pago | AA62: =IF(Z62="","",VLOOKUP(Z62,'Aux1'!$A$1:$B$12,2,FALSE)) ->  | AB62: =IF(AA62="", COUNTIF(AA$5:AA62, ""),"") -> 41 | AC62: 00:00:00.501 | AD62: 5.8e-06
N63: 0 | O63: 0 | S63: =VLOOKUP(D63,PC_Rec!$O$5:$P$18,2,FALSE) ->  | T63: =IF(D63="","",VLOOKUP(D63,PC_Rec!$O$5:$Q$18,3,FALSE)) ->  | W63: =IF(V63="","",VLOOKUP(V63,'Aux1'!$A$1:$B$12,2,FALSE)) ->  | X63: Não pago | AA63: =IF(Z63="","",VLOOKUP(Z63,'Aux1'!$A$1:$B$12,2,FALSE)) ->  | AB63: =IF(AA63="", COUNTIF(AA$5:AA63, ""),"") -> 42 | AC63: 00:00:00.510 | AD63: 5.9e-06
N64: 0 | O64: 0 | S64: =VLOOKUP(D64,PC_Rec!$O$5:$P$18,2,FALSE) ->  | T64: =IF(D64="","",VLOOKUP(D64,PC_Rec!$O$5:$Q$18,3,FALSE)) ->  | W64: =IF(V64="","",VLOOKUP(V64,'Aux1'!$A$1:$B$12,2,FALSE)) ->  | X64: Não pago | AA64: =IF(Z64="","",VLOOKUP(Z64,'Aux1'!$A$1:$B$12,2,FALSE)) ->  | AB64: =IF(AA64="", COUNTIF(AA$5:AA64, ""),"") -> 43 | AC64: 00:00:00.518 | AD64: 6e-06
N65: 0 | O65: 0 | S65: =VLOOKUP(D65,PC_Rec!$O$5:$P$18,2,FALSE) ->  | T65: =IF(D65="","",VLOOKUP(D65,PC_Rec!$O$5:$Q$18,3,FALSE)) ->  | W65: =IF(V65="","",VLOOKUP(V65,'Aux1'!$A$1:$B$12,2,FALSE)) ->  | X65: Não pago | AA65: =IF(Z65="","",VLOOKUP(Z65,'Aux1'!$A$1:$B$12,2,FALSE)) ->  | AB65: =IF(AA65="", COUNTIF(AA$5:AA65, ""),"") -> 44 | AC65: 00:00:00.527 | AD65: 6.1e-06
N66: 0 | O66: 0 | S66: =VLOOKUP(D66,PC_Rec!$O$5:$P$18,2,FALSE) ->  | T66: =IF(D66="","",VLOOKUP(D66,PC_Rec!$O$5:$Q$18,3,FALSE)) ->  | W66: =IF(V66="","",VLOOKUP(V66,'Aux1'!$A$1:$B$12,2,FALSE)) ->  | X66: Não pago | AA66: =IF(Z66="","",VLOOKUP(Z66,'Aux1'!$A$1:$B$12,2,FALSE)) ->  | AB66: =IF(AA66="", COUNTIF(AA$5:AA66, ""),"") -> 45 | AC66: 00:00:00.536 | AD66: 6.2e-06
N67: 0 | O67: 0 | S67: =VLOOKUP(D67,PC_Rec!$O$5:$P$18,2,FALSE) ->  | T67: =IF(D67="","",VLOOKUP(D67,PC_Rec!$O$5:$Q$18,3,FALSE)) ->  | W67: =IF(V67="","",VLOOKUP(V67,'Aux1'!$A$1:$B$12,2,FALSE)) ->  | X67: Não pago | AA67: =IF(Z67="","",VLOOKUP(Z67,'Aux1'!$A$1:$B$12,2,FALSE)) ->  | AB67: =IF(AA67="", COUNTIF(AA$5:AA67, ""),"") -> 46 | AC67: 00:00:00.544 | AD67: 6.3e-06
N68: 0 | O68: 0 | S68: =VLOOKUP(D68,PC_Rec!$O$5:$P$18,2,FALSE) ->  | T68: =IF(D68="","",VLOOKUP(D68,PC_Rec!$O$5:$Q$18,3,FALSE)) ->  | W68: =IF(V68="","",VLOOKUP(V68,'Aux1'!$A$1:$B$12,2,FALSE)) ->  | X68: Não pago | AA68: =IF(Z68="","",VLOOKUP(Z68,'Aux1'!$A$1:$B$12,2,FALSE)) ->  | AB68: =IF(AA68="", COUNTIF(AA$5:AA68, ""),"") -> 47 | AC68: 00:00:00.553 | AD68: 6.4e-06
N69: 0 | O69: 0 | S69: =VLOOKUP(D69,PC_Rec!$O$5:$P$18,2,FALSE) ->  | T69: =IF(D69="","",VLOOKUP(D69,PC_Rec!$O$5:$Q$18,3,FALSE)) ->  | U69: =IF(C69="","",DAY(C69)) ->  | V69: =IF(C69="","",MONTH(C69)) ->  | W69: =IF(V69="","",VLOOKUP(V69,'Aux1'!$A$1:$B$12,2,FALSE)) ->  | X69: =IF(M69<>"","Pago","Não pago") -> Não pago | Y69: =IF(M69="","",DAY(M69)) ->  | Z69: =IF(M69="","",MONTH(M69)) ->  | AA69: =IF(Z69="","",VLOOKUP(Z69,'Aux1'!$A$1:$B$12,2,FALSE)) ->  | AB69: =IF(AA69="", COUNTIF(AA$5:AA69, ""),"") -> 48 | AC69: 00:00:00.562 | AD69: 6.5e-06 | AE69: =IF(AND(X69="Não pago",L69<>0),C69,"") ->  | AF69: =IF(AE69="","",C69) ->  | AG69: =IF(AE69="","",D69) ->  | AH69: =IF(AE69="","",E69) ->  | AI69: =IF(AE69="","",F69) ->  | AJ69: =IF(AE69="","",L69) -> 
N70: 0 | O70: =Q70+IF(AND(T70="Ingresos",X70="Pago",AA70=$C$3),L70,IF(AND(T70="gasto",X70="Pago",AA70=$C$3),-L70,0)) -> 0 | S70: =VLOOKUP(D70,PC_Rec!$O$5:$P$18,2,FALSE) ->  | T70: =IF(D70="","",VLOOKUP(D70,PC_Rec!$O$5:$Q$18,3,FALSE)) ->  | W70: =IF(V70="","",VLOOKUP(V70,'Aux1'!$A$1:$B$12,2,FALSE)) ->  | X70: Não pago | AA70: =IF(Z70="","",VLOOKUP(Z70,'Aux1'!$A$1:$B$12,2,FALSE)) ->  | AB70: =IF(AA70="", COUNTIF(AA$5:AA70, ""),"") -> 49 | AC70: =SUM(AD70:AE70) -> 00:00:00.570 | AD70: 6.6e-06
N71: =O71 -> 0 | O71: 0 | S71: =VLOOKUP(D71,PC_Rec!$O$5:$P$18,2,FALSE) ->  | T71: =IF(D71="","",VLOOKUP(D71,PC_Rec!$O$5:$Q$18,3,FALSE)) ->  | W71: =IF(V71="","",VLOOKUP(V71,'Aux1'!$A$1:$B$12,2,FALSE)) ->  | X71: Não pago | AA71: =IF(Z71="","",VLOOKUP(Z71,'Aux1'!$A$1:$B$12,2,FALSE)) ->  | AB71: =IF(AA71="", COUNTIF(AA$5:AA71, ""),"") -> 50 | AC71: 00:00:00.579 | AD71: 6.7e-06
N72: 0 | O72: 0 | S72: =VLOOKUP(D72,PC_Rec!$O$5:$P$18,2,FALSE) ->  | T72: =IF(D72="","",VLOOKUP(D72,PC_Rec!$O$5:$Q$18,3,FALSE)) ->  | W72: =IF(V72="","",VLOOKUP(V72,'Aux1'!$A$1:$B$12,2,FALSE)) ->  | X72: Não pago | AA72: =IF(Z72="","",VLOOKUP(Z72,'Aux1'!$A$1:$B$12,2,FALSE)) ->  | AB72: =IF(AA72="", COUNTIF(AA$5:AA72, ""),"") -> 51 | AC72: 00:00:00.588 | AD72: 6.8e-06
N73: 0 | O73: 0 | S73: =VLOOKUP(D73,PC_Rec!$O$5:$P$18,2,FALSE) ->  | T73: =IF(D73="","",VLOOKUP(D73,PC_Rec!$O$5:$Q$18,3,FALSE)) ->  | W73: =IF(V73="","",VLOOKUP(V73,'Aux1'!$A$1:$B$12,2,FALSE)) ->  | X73: Não pago | AA73: =IF(Z73="","",VLOOKUP(Z73,'Aux1'!$A$1:$B$12,2,FALSE)) ->  | AB73: =IF(AA73="", COUNTIF(AA$5:AA73, ""),"") -> 52 | AC73: 00:00:00.596 | AD73: 6.9e-06
N74: 0 | O74: 0 | S74: =VLOOKUP(D74,PC_Rec!$O$5:$P$18,2,FALSE) ->  | T74: =IF(D74="","",VLOOKUP(D74,PC_Rec!$O$5:$Q$18,3,FALSE)) ->  | W74: =IF(V74="","",VLOOKUP(V74,'Aux1'!$A$1:$B$12,2,FALSE)) ->  | X74: Não pago | AA74: =IF(Z74="","",VLOOKUP(Z74,'Aux1'!$A$1:$B$12,2,FALSE)) ->  | AB74: =IF(AA74="", COUNTIF(AA$5:AA74, ""),"") -> 53 | AC74: 00:00:00.605 | AD74: 7e-06
N75: 0 | O75: 0 | S75: =VLOOKUP(D75,PC_Rec!$O$5:$P$18,2,FALSE) ->  | T75: =IF(D75="","",VLOOKUP(D75,PC_Rec!$O$5:$Q$18,3,FALSE)) ->  | W75: =IF(V75="","",VLOOKUP(V75,'Aux1'!$A$1:$B$12,2,FALSE)) ->  | X75: Não pago | AA75: =IF(Z75="","",VLOOKUP(Z75,'Aux1'!$A$1:$B$12,2,FALSE)) ->  | AB75: =IF(AA75="", COUNTIF(AA$5:AA75, ""),"") -> 54 | AC75: 00:00:00.613 | AD75: 7.1e-06
N76: 0 | O76: 0 | S76: =VLOOKUP(D76,PC_Rec!$O$5:$P$18,2,FALSE) ->  | T76: =IF(D76="","",VLOOKUP(D76,PC_Rec!$O$5:$Q$18,3,FALSE)) ->  | W76: =IF(V76="","",VLOOKUP(V76,'Aux1'!$A$1:$B$12,2,FALSE)) ->  | X76: Não pago | AA76: =IF(Z76="","",VLOOKUP(Z76,'Aux1'!$A$1:$B$12,2,FALSE)) ->  | AB76: =IF(AA76="", COUNTIF(AA$5:AA76, ""),"") -> 55 | AC76: 00:00:00.622 | AD76: 7.2e-06
N77: 0 | O77: 0 | S77: =VLOOKUP(D77,PC_Rec!$O$5:$P$18,2,FALSE) ->  | T77: =IF(D77="","",VLOOKUP(D77,PC_Rec!$O$5:$Q$18,3,FALSE)) ->  | W77: =IF(V77="","",VLOOKUP(V77,'Aux1'!$A$1:$B$12,2,FALSE)) ->  | X77: Não pago | AA77: =IF(Z77="","",VLOOKUP(Z77,'Aux1'!$A$1:$B$12,2,FALSE)) ->  | AB77: =IF(AA77="", COUNTIF(AA$5:AA77, ""),"") -> 56 | AC77: 00:00:00.631 | AD77: 7.3e-06
N78: 0 | O78: 0 | S78: =VLOOKUP(D78,PC_Rec!$O$5:$P$18,2,FALSE) ->  | T78: =IF(D78="","",VLOOKUP(D78,PC_Rec!$O$5:$Q$18,3,FALSE)) ->  | W78: =IF(V78="","",VLOOKUP(V78,'Aux1'!$A$1:$B$12,2,FALSE)) ->  | X78: Não pago | AA78: =IF(Z78="","",VLOOKUP(Z78,'Aux1'!$A$1:$B$12,2,FALSE)) ->  | AB78: =IF(AA78="", COUNTIF(AA$5:AA78, ""),"") -> 57 | AC78: 00:00:00.639 | AD78: 7.4e-06
N79: 0 | O79: 0 | S79: =VLOOKUP(D79,PC_Rec!$O$5:$P$18,2,FALSE) ->  | T79: =IF(D79="","",VLOOKUP(D79,PC_Rec!$O$5:$Q$18,3,FALSE)) ->  | W79: =IF(V79="","",VLOOKUP(V79,'Aux1'!$A$1:$B$12,2,FALSE)) ->  | X79: Não pago | AA79: =IF(Z79="","",VLOOKUP(Z79,'Aux1'!$A$1:$B$12,2,FALSE)) ->  | AB79: =IF(AA79="", COUNTIF(AA$5:AA79, ""),"") -> 58 | AC79: 00:00:00.648 | AD79: 7.5e-06
N80: 0 | O80: 0 | S80: =VLOOKUP(D80,PC_Rec!$O$5:$P$18,2,FALSE) ->  | T80: =IF(D80="","",VLOOKUP(D80,PC_Rec!$O$5:$Q$18,3,FALSE)) ->  | W80: =IF(V80="","",VLOOKUP(V80,'Aux1'!$A$1:$B$12,2,FALSE)) ->  | X80: Não pago | AA80: =IF(Z80="","",VLOOKUP(Z80,'Aux1'!$A$1:$B$12,2,FALSE)) ->  | AB80: =IF(AA80="", COUNTIF(AA$5:AA80, ""),"") -> 59 | AC80: 00:00:00.657 | AD80: 7.6e-06
N81: 0 | O81: 0 | S81: =VLOOKUP(D81,PC_Rec!$O$5:$P$18,2,FALSE) ->  | T81: =IF(D81="","",VLOOKUP(D81,PC_Rec!$O$5:$Q$18,3,FALSE)) ->  | W81: =IF(V81="","",VLOOKUP(V81,'Aux1'!$A$1:$B$12,2,FALSE)) ->  | X81: Não pago | AA81: =IF(Z81="","",VLOOKUP(Z81,'Aux1'!$A$1:$B$12,2,FALSE)) ->  | AB81: =IF(AA81="", COUNTIF(AA$5:AA81, ""),"") -> 60 | AC81: 00:00:00.665 | AD81: 7.7e-06
N82: 0 | O82: 0 | S82: =VLOOKUP(D82,PC_Rec!$O$5:$P$18,2,FALSE) ->  | T82: =IF(D82="","",VLOOKUP(D82,PC_Rec!$O$5:$Q$18,3,FALSE)) ->  | W82: =IF(V82="","",VLOOKUP(V82,'Aux1'!$A$1:$B$12,2,FALSE)) ->  | X82: Não pago | AA82: =IF(Z82="","",VLOOKUP(Z82,'Aux1'!$A$1:$B$12,2,FALSE)) ->  | AB82: =IF(AA82="", COUNTIF(AA$5:AA82, ""),"") -> 61 | AC82: 00:00:00.674 | AD82: 7.8e-06
N83: 0 | O83: 0 | S83: =VLOOKUP(D83,PC_Rec!$O$5:$P$18,2,FALSE) ->  | T83: =IF(D83="","",VLOOKUP(D83,PC_Rec!$O$5:$Q$18,3,FALSE)) ->  | W83: =IF(V83="","",VLOOKUP(V83,'Aux1'!$A$1:$B$12,2,FALSE)) ->  | X83: Não pago | AA83: =IF(Z83="","",VLOOKUP(Z83,'Aux1'!$A$1:$B$12,2,FALSE)) ->  | AB83: =IF(AA83="", COUNTIF(AA$5:AA83, ""),"") -> 62 | AC83: 00:00:00.683 | AD83: 7.9e-06
N84: 0 | O84: 0 | S84: =VLOOKUP(D84,PC_Rec!$O$5:$P$18,2,FALSE) ->  | T84: =IF(D84="","",VLOOKUP(D84,PC_Rec!$O$5:$Q$18,3,FALSE)) ->  | W84: =IF(V84="","",VLOOKUP(V84,'Aux1'!$A$1:$B$12,2,FALSE)) ->  | X84: Não pago | AA84: =IF(Z84="","",VLOOKUP(Z84,'Aux1'!$A$1:$B$12,2,FALSE)) ->  | AB84: =IF(AA84="", COUNTIF(AA$5:AA84, ""),"") -> 63 | AC84: 00:00:00.691 | AD84: 8e-06
N85: 0 | O85: 0 | S85: =VLOOKUP(D85,PC_Rec!$O$5:$P$18,2,FALSE) ->  | T85: =IF(D85="","",VLOOKUP(D85,PC_Rec!$O$5:$Q$18,3,FALSE)) ->  | W85: =IF(V85="","",VLOOKUP(V85,'Aux1'!$A$1:$B$12,2,FALSE)) ->  | X85: Não pago | AA85: =IF(Z85="","",VLOOKUP(Z85,'Aux1'!$A$1:$B$12,2,FALSE)) ->  | AB85: =IF(AA85="", COUNTIF(AA$5:AA85, ""),"") -> 64 | AC85: 00:00:00.700 | AD85: 8.1e-06
N86: 0 | O86: 0 | S86: =VLOOKUP(D86,PC_Rec!$O$5:$P$18,2,FALSE) ->  | T86: =IF(D86="","",VLOOKUP(D86,PC_Rec!$O$5:$Q$18,3,FALSE)) ->  | W86: =IF(V86="","",VLOOKUP(V86,'Aux1'!$A$1:$B$12,2,FALSE)) ->  | X86: Não pago | AA86: =IF(Z86="","",VLOOKUP(Z86,'Aux1'!$A$1:$B$12,2,FALSE)) ->  | AB86: =IF(AA86="", COUNTIF(AA$5:AA86, ""),"") -> 65 | AC86: 00:00:00.708 | AD86: 8.2e-06
N87: 0 | O87: 0 | S87: =VLOOKUP(D87,PC_Rec!$O$5:$P$18,2,FALSE) ->  | T87: =IF(D87="","",VLOOKUP(D87,PC_Rec!$O$5:$Q$18,3,FALSE)) ->  | W87: =IF(V87="","",VLOOKUP(V87,'Aux1'!$A$1:$B$12,2,FALSE)) ->  | X87: Não pago | AA87: =IF(Z87="","",VLOOKUP(Z87,'Aux1'!$A$1:$B$12,2,FALSE)) ->  | AB87: =IF(AA87="", COUNTIF(AA$5:AA87, ""),"") -> 66 | AC87: 00:00:00.717 | AD87: 8.3e-06
N88: 0 | O88: 0 | S88: =VLOOKUP(D88,PC_Rec!$O$5:$P$18,2,FALSE) ->  | T88: =IF(D88="","",VLOOKUP(D88,PC_Rec!$O$5:$Q$18,3,FALSE)) ->  | W88: =IF(V88="","",VLOOKUP(V88,'Aux1'!$A$1:$B$12,2,FALSE)) ->  | X88: Não pago | AA88: =IF(Z88="","",VLOOKUP(Z88,'Aux1'!$A$1:$B$12,2,FALSE)) ->  | AB88: =IF(AA88="", COUNTIF(AA$5:AA88, ""),"") -> 67 | AC88: 00:00:00.726 | AD88: 8.4e-06
N89: 0 | O89: 0 | S89: =VLOOKUP(D89,PC_Rec!$O$5:$P$18,2,FALSE) ->  | T89: =IF(D89="","",VLOOKUP(D89,PC_Rec!$O$5:$Q$18,3,FALSE)) ->  | W89: =IF(V89="","",VLOOKUP(V89,'Aux1'!$A$1:$B$12,2,FALSE)) ->  | X89: Não pago | AA89: =IF(Z89="","",VLOOKUP(Z89,'Aux1'!$A$1:$B$12,2,FALSE)) ->  | AB89: =IF(AA89="", COUNTIF(AA$5:AA89, ""),"") -> 68 | AC89: 00:00:00.734 | AD89: 8.5e-06
N90: 0 | O90: 0 | S90: =VLOOKUP(D90,PC_Rec!$O$5:$P$18,2,FALSE) ->  | T90: =IF(D90="","",VLOOKUP(D90,PC_Rec!$O$5:$Q$18,3,FALSE)) ->  | W90: =IF(V90="","",VLOOKUP(V90,'Aux1'!$A$1:$B$12,2,FALSE)) ->  | X90: Não pago | AA90: =IF(Z90="","",VLOOKUP(Z90,'Aux1'!$A$1:$B$12,2,FALSE)) ->  | AB90: =IF(AA90="", COUNTIF(AA$5:AA90, ""),"") -> 69 | AC90: 00:00:00.743 | AD90: 8.6e-06
N91: 0 | O91: 0 | S91: =VLOOKUP(D91,PC_Rec!$O$5:$P$18,2,FALSE) ->  | T91: =IF(D91="","",VLOOKUP(D91,PC_Rec!$O$5:$Q$18,3,FALSE)) ->  | W91: =IF(V91="","",VLOOKUP(V91,'Aux1'!$A$1:$B$12,2,FALSE)) ->  | X91: Não pago | AA91: =IF(Z91="","",VLOOKUP(Z91,'Aux1'!$A$1:$B$12,2,FALSE)) ->  | AB91: =IF(AA91="", COUNTIF(AA$5:AA91, ""),"") -> 70 | AC91: 00:00:00.752 | AD91: 8.7e-06
N92: 0 | O92: 0 | S92: =VLOOKUP(D92,PC_Rec!$O$5:$P$18,2,FALSE) ->  | T92: =IF(D92="","",VLOOKUP(D92,PC_Rec!$O$5:$Q$18,3,FALSE)) ->  | W92: =IF(V92="","",VLOOKUP(V92,'Aux1'!$A$1:$B$12,2,FALSE)) ->  | X92: Não pago | AA92: =IF(Z92="","",VLOOKUP(Z92,'Aux1'!$A$1:$B$12,2,FALSE)) ->  | AB92: =IF(AA92="", COUNTIF(AA$5:AA92, ""),"") -> 71 | AC92: 00:00:00.760 | AD92: 8.8e-06
N93: 0 | O93: 0 | S93: =VLOOKUP(D93,PC_Rec!$O$5:$P$18,2,FALSE) ->  | T93: =IF(D93="","",VLOOKUP(D93,PC_Rec!$O$5:$Q$18,3,FALSE)) ->  | W93: =IF(V93="","",VLOOKUP(V93,'Aux1'!$A$1:$B$12,2,FALSE)) ->  | X93: Não pago | AA93: =IF(Z93="","",VLOOKUP(Z93,'Aux1'!$A$1:$B$12,2,FALSE)) ->  | AB93: =IF(AA93="", COUNTIF(AA$5:AA93, ""),"") -> 72 | AC93: 00:00:00.769 | AD93: 8.9e-06
N94: 0 | O94: 0 | S94: =VLOOKUP(D94,PC_Rec!$O$5:$P$18,2,FALSE) ->  | T94: =IF(D94="","",VLOOKUP(D94,PC_Rec!$O$5:$Q$18,3,FALSE)) ->  | W94: =IF(V94="","",VLOOKUP(V94,'Aux1'!$A$1:$B$12,2,FALSE)) ->  | X94: Não pago | AA94: =IF(Z94="","",VLOOKUP(Z94,'Aux1'!$A$1:$B$12,2,FALSE)) ->  | AB94: =IF(AA94="", COUNTIF(AA$5:AA94, ""),"") -> 73 | AC94: 00:00:00.778 | AD94: 9e-06
N95: 0 | O95: 0 | S95: =VLOOKUP(D95,PC_Rec!$O$5:$P$18,2,FALSE) ->  | T95: =IF(D95="","",VLOOKUP(D95,PC_Rec!$O$5:$Q$18,3,FALSE)) ->  | W95: =IF(V95="","",VLOOKUP(V95,'Aux1'!$A$1:$B$12,2,FALSE)) ->  | X95: Não pago | AA95: =IF(Z95="","",VLOOKUP(Z95,'Aux1'!$A$1:$B$12,2,FALSE)) ->  | AB95: =IF(AA95="", COUNTIF(AA$5:AA95, ""),"") -> 74 | AC95: 00:00:00.786 | AD95: 9.1e-06
N96: 0 | O96: 0 | S96: =VLOOKUP(D96,PC_Rec!$O$5:$P$18,2,FALSE) ->  | T96: =IF(D96="","",VLOOKUP(D96,PC_Rec!$O$5:$Q$18,3,FALSE)) ->  | W96: =IF(V96="","",VLOOKUP(V96,'Aux1'!$A$1:$B$12,2,FALSE)) ->  | X96: Não pago | AA96: =IF(Z96="","",VLOOKUP(Z96,'Aux1'!$A$1:$B$12,2,FALSE)) ->  | AB96: =IF(AA96="", COUNTIF(AA$5:AA96, ""),"") -> 75 | AC96: 00:00:00.795 | AD96: 9.2e-06
N97: 0 | O97: 0 | S97: =VLOOKUP(D97,PC_Rec!$O$5:$P$18,2,FALSE) ->  | T97: =IF(D97="","",VLOOKUP(D97,PC_Rec!$O$5:$Q$18,3,FALSE)) ->  | W97: =IF(V97="","",VLOOKUP(V97,'Aux1'!$A$1:$B$12,2,FALSE)) ->  | X97: Não pago | AA97: =IF(Z97="","",VLOOKUP(Z97,'Aux1'!$A$1:$B$12,2,FALSE)) ->  | AB97: =IF(AA97="", COUNTIF(AA$5:AA97, ""),"") -> 76 | AC97: 00:00:00.804 | AD97: 9.3e-06
N98: 0 | O98: 0 | S98: =VLOOKUP(D98,PC_Rec!$O$5:$P$18,2,FALSE) ->  | T98: =IF(D98="","",VLOOKUP(D98,PC_Rec!$O$5:$Q$18,3,FALSE)) ->  | W98: =IF(V98="","",VLOOKUP(V98,'Aux1'!$A$1:$B$12,2,FALSE)) ->  | X98: Não pago | AA98: =IF(Z98="","",VLOOKUP(Z98,'Aux1'!$A$1:$B$12,2,FALSE)) ->  | AB98: =IF(AA98="", COUNTIF(AA$5:AA98, ""),"") -> 77 | AC98: 00:00:00.812 | AD98: 9.4e-06
N99: 0 | O99: 0 | S99: =VLOOKUP(D99,PC_Rec!$O$5:$P$18,2,FALSE) ->  | T99: =IF(D99="","",VLOOKUP(D99,PC_Rec!$O$5:$Q$18,3,FALSE)) ->  | W99: =IF(V99="","",VLOOKUP(V99,'Aux1'!$A$1:$B$12,2,FALSE)) ->  | X99: Não pago | AA99: =IF(Z99="","",VLOOKUP(Z99,'Aux1'!$A$1:$B$12,2,FALSE)) ->  | AB99: =IF(AA99="", COUNTIF(AA$5:AA99, ""),"") -> 78 | AC99: 00:00:00.821 | AD99: 9.5e-06
N100: 0 | O100: 0 | S100: =VLOOKUP(D100,PC_Rec!$O$5:$P$18,2,FALSE) ->  | T100: =IF(D100="","",VLOOKUP(D100,PC_Rec!$O$5:$Q$18,3,FALSE)) ->  | W100: =IF(V100="","",VLOOKUP(V100,'Aux1'!$A$1:$B$12,2,FALSE)) ->  | X100: Não pago | AA100: =IF(Z100="","",VLOOKUP(Z100,'Aux1'!$A$1:$B$12,2,FALSE)) ->  | AB100: =IF(AA100="", COUNTIF(AA$5:AA100, ""),"") -> 79 | AC100: 00:00:00.829 | AD100: 9.6e-06
N101: 0 | O101: 0 | S101: =VLOOKUP(D101,PC_Rec!$O$5:$P$18,2,FALSE) ->  | T101: =IF(D101="","",VLOOKUP(D101,PC_Rec!$O$5:$Q$18,3,FALSE)) ->  | W101: =IF(V101="","",VLOOKUP(V101,'Aux1'!$A$1:$B$12,2,FALSE)) ->  | X101: Não pago | AA101: =IF(Z101="","",VLOOKUP(Z101,'Aux1'!$A$1:$B$12,2,FALSE)) ->  | AB101: =IF(AA101="", COUNTIF(AA$5:AA101, ""),"") -> 80 | AC101: 00:00:00.838 | AD101: 9.7e-06
N102: 0 | O102: 0 | S102: =VLOOKUP(D102,PC_Rec!$O$5:$P$18,2,FALSE) ->  | T102: =IF(D102="","",VLOOKUP(D102,PC_Rec!$O$5:$Q$18,3,FALSE)) ->  | W102: =IF(V102="","",VLOOKUP(V102,'Aux1'!$A$1:$B$12,2,FALSE)) ->  | X102: Não pago | AA102: =IF(Z102="","",VLOOKUP(Z102,'Aux1'!$A$1:$B$12,2,FALSE)) ->  | AB102: =IF(AA102="", COUNTIF(AA$5:AA102, ""),"") -> 81 | AC102: 00:00:00.847 | AD102: 9.8e-06
N103: 0 | O103: 0 | S103: =VLOOKUP(D103,PC_Rec!$O$5:$P$18,2,FALSE) ->  | T103: =IF(D103="","",VLOOKUP(D103,PC_Rec!$O$5:$Q$18,3,FALSE)) ->  | W103: =IF(V103="","",VLOOKUP(V103,'Aux1'!$A$1:$B$12,2,FALSE)) ->  | X103: Não pago | AA103: =IF(Z103="","",VLOOKUP(Z103,'Aux1'!$A$1:$B$12,2,FALSE)) ->  | AB103: =IF(AA103="", COUNTIF(AA$5:AA103, ""),"") -> 82 | AC103: 00:00:00.855 | AD103: 9.9e-06
N104: 0 | O104: 0 | S104: =VLOOKUP(D104,PC_Rec!$O$5:$P$18,2,FALSE) ->  | T104: =IF(D104="","",VLOOKUP(D104,PC_Rec!$O$5:$Q$18,3,FALSE)) ->  | W104: =IF(V104="","",VLOOKUP(V104,'Aux1'!$A$1:$B$12,2,FALSE)) ->  | X104: Não pago | AA104: =IF(Z104="","",VLOOKUP(Z104,'Aux1'!$A$1:$B$12,2,FALSE)) ->  | AB104: =IF(AA104="", COUNTIF(AA$5:AA104, ""),"") -> 83 | AC104: 00:00:00.864 | AD104: 1e-05
N105: 0 | O105: 0 | S105: =VLOOKUP(D105,PC_Rec!$O$5:$P$18,2,FALSE) ->  | T105: =IF(D105="","",VLOOKUP(D105,PC_Rec!$O$5:$Q$18,3,FALSE)) ->  | W105: =IF(V105="","",VLOOKUP(V105,'Aux1'!$A$1:$B$12,2,FALSE)) ->  | X105: Não pago | AA105: =IF(Z105="","",VLOOKUP(Z105,'Aux1'!$A$1:$B$12,2,FALSE)) ->  | AB105: =IF(AA105="", COUNTIF(AA$5:AA105, ""),"") -> 84 | AC105: 00:00:00.873 | AD105: 1.01e-05
N106: 0 | O106: 0 | S106: =VLOOKUP(D106,PC_Rec!$O$5:$P$18,2,FALSE) ->  | T106: =IF(D106="","",VLOOKUP(D106,PC_Rec!$O$5:$Q$18,3,FALSE)) ->  | W106: =IF(V106="","",VLOOKUP(V106,'Aux1'!$A$1:$B$12,2,FALSE)) ->  | X106: Não pago | AA106: =IF(Z106="","",VLOOKUP(Z106,'Aux1'!$A$1:$B$12,2,FALSE)) ->  | AB106: =IF(AA106="", COUNTIF(AA$5:AA106, ""),"") -> 85 | AC106: 00:00:00.881 | AD106: 1.02e-05
N107: 0 | O107: 0 | S107: =VLOOKUP(D107,PC_Rec!$O$5:$P$18,2,FALSE) ->  | T107: =IF(D107="","",VLOOKUP(D107,PC_Rec!$O$5:$Q$18,3,FALSE)) ->  | W107: =IF(V107="","",VLOOKUP(V107,'Aux1'!$A$1:$B$12,2,FALSE)) ->  | X107: Não pago | AA107: =IF(Z107="","",VLOOKUP(Z107,'Aux1'!$A$1:$B$12,2,FALSE)) ->  | AB107: =IF(AA107="", COUNTIF(AA$5:AA107, ""),"") -> 86 | AC107: 00:00:00.890 | AD107: 1.03e-05
N108: 0 | O108: 0 | S108: =VLOOKUP(D108,PC_Rec!$O$5:$P$18,2,FALSE) ->  | T108: =IF(D108="","",VLOOKUP(D108,PC_Rec!$O$5:$Q$18,3,FALSE)) ->  | W108: =IF(V108="","",VLOOKUP(V108,'Aux1'!$A$1:$B$12,2,FALSE)) ->  | X108: Não pago | AA108: =IF(Z108="","",VLOOKUP(Z108,'Aux1'!$A$1:$B$12,2,FALSE)) ->  | AB108: =IF(AA108="", COUNTIF(AA$5:AA108, ""),"") -> 87 | AC108: 00:00:00.899 | AD108: 1.04e-05
N109: 0 | O109: 0 | S109: =VLOOKUP(D109,PC_Rec!$O$5:$P$18,2,FALSE) ->  | T109: =IF(D109="","",VLOOKUP(D109,PC_Rec!$O$5:$Q$18,3,FALSE)) ->  | W109: =IF(V109="","",VLOOKUP(V109,'Aux1'!$A$1:$B$12,2,FALSE)) ->  | X109: Não pago | AA109: =IF(Z109="","",VLOOKUP(Z109,'Aux1'!$A$1:$B$12,2,FALSE)) ->  | AB109: =IF(AA109="", COUNTIF(AA$5:AA109, ""),"") -> 88 | AC109: 00:00:00.907 | AD109: 1.05e-05
N110: 0 | O110: 0 | S110: =VLOOKUP(D110,PC_Rec!$O$5:$P$18,2,FALSE) ->  | T110: =IF(D110="","",VLOOKUP(D110,PC_Rec!$O$5:$Q$18,3,FALSE)) ->  | W110: =IF(V110="","",VLOOKUP(V110,'Aux1'!$A$1:$B$12,2,FALSE)) ->  | X110: Não pago | AA110: =IF(Z110="","",VLOOKUP(Z110,'Aux1'!$A$1:$B$12,2,FALSE)) ->  | AB110: =IF(AA110="", COUNTIF(AA$5:AA110, ""),"") -> 89 | AC110: 00:00:00.916 | AD110: 1.06e-05
N111: 0 | O111: 0 | S111: =VLOOKUP(D111,PC_Rec!$O$5:$P$18,2,FALSE) ->  | T111: =IF(D111="","",VLOOKUP(D111,PC_Rec!$O$5:$Q$18,3,FALSE)) ->  | W111: =IF(V111="","",VLOOKUP(V111,'Aux1'!$A$1:$B$12,2,FALSE)) ->  | X111: Não pago | AA111: =IF(Z111="","",VLOOKUP(Z111,'Aux1'!$A$1:$B$12,2,FALSE)) ->  | AB111: =IF(AA111="", COUNTIF(AA$5:AA111, ""),"") -> 90 | AC111: 00:00:00.924 | AD111: 1.07e-05
N112: 0 | O112: 0 | S112: =VLOOKUP(D112,PC_Rec!$O$5:$P$18,2,FALSE) ->  | T112: =IF(D112="","",VLOOKUP(D112,PC_Rec!$O$5:$Q$18,3,FALSE)) ->  | W112: =IF(V112="","",VLOOKUP(V112,'Aux1'!$A$1:$B$12,2,FALSE)) ->  | X112: Não pago | AA112: =IF(Z112="","",VLOOKUP(Z112,'Aux1'!$A$1:$B$12,2,FALSE)) ->  | AB112: =IF(AA112="", COUNTIF(AA$5:AA112, ""),"") -> 91 | AC112: 00:00:00.933 | AD112: 1.08e-05
N113: 0 | O113: 0 | S113: =VLOOKUP(D113,PC_Rec!$O$5:$P$18,2,FALSE) ->  | T113: =IF(D113="","",VLOOKUP(D113,PC_Rec!$O$5:$Q$18,3,FALSE)) ->  | W113: =IF(V113="","",VLOOKUP(V113,'Aux1'!$A$1:$B$12,2,FALSE)) ->  | X113: Não pago | AA113: =IF(Z113="","",VLOOKUP(Z113,'Aux1'!$A$1:$B$12,2,FALSE)) ->  | AB113: =IF(AA113="", COUNTIF(AA$5:AA113, ""),"") -> 92 | AC113: 00:00:00.942 | AD113: 1.09e-05
N114: 0 | O114: 0 | S114: =VLOOKUP(D114,PC_Rec!$O$5:$P$18,2,FALSE) ->  | T114: =IF(D114="","",VLOOKUP(D114,PC_Rec!$O$5:$Q$18,3,FALSE)) ->  | W114: =IF(V114="","",VLOOKUP(V114,'Aux1'!$A$1:$B$12,2,FALSE)) ->  | X114: Não pago | AA114: =IF(Z114="","",VLOOKUP(Z114,'Aux1'!$A$1:$B$12,2,FALSE)) ->  | AB114: =IF(AA114="", COUNTIF(AA$5:AA114, ""),"") -> 93 | AC114: 00:00:00.950 | AD114: 1.1e-05
N115: 0 | O115: 0 | S115: =VLOOKUP(D115,PC_Rec!$O$5:$P$18,2,FALSE) ->  | T115: =IF(D115="","",VLOOKUP(D115,PC_Rec!$O$5:$Q$18,3,FALSE)) ->  | W115: =IF(V115="","",VLOOKUP(V115,'Aux1'!$A$1:$B$12,2,FALSE)) ->  | X115: Não pago | AA115: =IF(Z115="","",VLOOKUP(Z115,'Aux1'!$A$1:$B$12,2,FALSE)) ->  | AB115: =IF(AA115="", COUNTIF(AA$5:AA115, ""),"") -> 94 | AC115: 00:00:00.959 | AD115: 1.11e-05
N116: 0 | O116: 0 | S116: =VLOOKUP(D116,PC_Rec!$O$5:$P$18,2,FALSE) ->  | T116: =IF(D116="","",VLOOKUP(D116,PC_Rec!$O$5:$Q$18,3,FALSE)) ->  | W116: =IF(V116="","",VLOOKUP(V116,'Aux1'!$A$1:$B$12,2,FALSE)) ->  | X116: Não pago | AA116: =IF(Z116="","",VLOOKUP(Z116,'Aux1'!$A$1:$B$12,2,FALSE)) ->  | AB116: =IF(AA116="", COUNTIF(AA$5:AA116, ""),"") -> 95 | AC116: 00:00:00.968 | AD116: 1.12e-05
N117: 0 | O117: 0 | S117: =VLOOKUP(D117,PC_Rec!$O$5:$P$18,2,FALSE) ->  | T117: =IF(D117="","",VLOOKUP(D117,PC_Rec!$O$5:$Q$18,3,FALSE)) ->  | W117: =IF(V117="","",VLOOKUP(V117,'Aux1'!$A$1:$B$12,2,FALSE)) ->  | X117: Não pago | AA117: =IF(Z117="","",VLOOKUP(Z117,'Aux1'!$A$1:$B$12,2,FALSE)) ->  | AB117: =IF(AA117="", COUNTIF(AA$5:AA117, ""),"") -> 96 | AC117: 00:00:00.976 | AD117: 1.13e-05
N118: 0 | O118: 0 | S118: =VLOOKUP(D118,PC_Rec!$O$5:$P$18,2,FALSE) ->  | T118: =IF(D118="","",VLOOKUP(D118,PC_Rec!$O$5:$Q$18,3,FALSE)) ->  | W118: =IF(V118="","",VLOOKUP(V118,'Aux1'!$A$1:$B$12,2,FALSE)) ->  | X118: Não pago | AA118: =IF(Z118="","",VLOOKUP(Z118,'Aux1'!$A$1:$B$12,2,FALSE)) ->  | AB118: =IF(AA118="", COUNTIF(AA$5:AA118, ""),"") -> 97 | AC118: 00:00:00.985 | AD118: 1.14e-05
N119: 0 | O119: 0 | S119: =VLOOKUP(D119,PC_Rec!$O$5:$P$18,2,FALSE) ->  | T119: =IF(D119="","",VLOOKUP(D119,PC_Rec!$O$5:$Q$18,3,FALSE)) ->  | W119: =IF(V119="","",VLOOKUP(V119,'Aux1'!$A$1:$B$12,2,FALSE)) ->  | X119: Não pago | AA119: =IF(Z119="","",VLOOKUP(Z119,'Aux1'!$A$1:$B$12,2,FALSE)) ->  | AB119: =IF(AA119="", COUNTIF(AA$5:AA119, ""),"") -> 98 | AC119: 00:00:00.994 | AD119: 1.15e-05
N120: 0 | O120: 0 | S120: =VLOOKUP(D120,PC_Rec!$O$5:$P$18,2,FALSE) ->  | T120: =IF(D120="","",VLOOKUP(D120,PC_Rec!$O$5:$Q$18,3,FALSE)) ->  | W120: =IF(V120="","",VLOOKUP(V120,'Aux1'!$A$1:$B$12,2,FALSE)) ->  | X120: Não pago | AA120: =IF(Z120="","",VLOOKUP(Z120,'Aux1'!$A$1:$B$12,2,FALSE)) ->  | AB120: =IF(AA120="", COUNTIF(AA$5:AA120, ""),"") -> 99 | AC120: 00:00:01.002 | AD120: 1.16e-05
N121: 0 | O121: 0 | S121: =VLOOKUP(D121,PC_Rec!$O$5:$P$18,2,FALSE) ->  | T121: =IF(D121="","",VLOOKUP(D121,PC_Rec!$O$5:$Q$18,3,FALSE)) ->  | W121: =IF(V121="","",VLOOKUP(V121,'Aux1'!$A$1:$B$12,2,FALSE)) ->  | X121: Não pago | AA121: =IF(Z121="","",VLOOKUP(Z121,'Aux1'!$A$1:$B$12,2,FALSE)) ->  | AB121: =IF(AA121="", COUNTIF(AA$5:AA121, ""),"") -> 100 | AC121: 00:00:01.011 | AD121: 1.17e-05
N122: 0 | O122: 0 | S122: =VLOOKUP(D122,PC_Rec!$O$5:$P$18,2,FALSE) ->  | T122: =IF(D122="","",VLOOKUP(D122,PC_Rec!$O$5:$Q$18,3,FALSE)) ->  | W122: =IF(V122="","",VLOOKUP(V122,'Aux1'!$A$1:$B$12,2,FALSE)) ->  | X122: Não pago | AA122: =IF(Z122="","",VLOOKUP(Z122,'Aux1'!$A$1:$B$12,2,FALSE)) ->  | AB122: =IF(AA122="", COUNTIF(AA$5:AA122, ""),"") -> 101 | AC122: 00:00:01.020 | AD122: 1.18e-05
N123: 0 | O123: 0 | S123: =VLOOKUP(D123,PC_Rec!$O$5:$P$18,2,FALSE) ->  | T123: =IF(D123="","",VLOOKUP(D123,PC_Rec!$O$5:$Q$18,3,FALSE)) ->  | W123: =IF(V123="","",VLOOKUP(V123,'Aux1'!$A$1:$B$12,2,FALSE)) ->  | X123: Não pago | AA123: =IF(Z123="","",VLOOKUP(Z123,'Aux1'!$A$1:$B$12,2,FALSE)) ->  | AB123: =IF(AA123="", COUNTIF(AA$5:AA123, ""),"") -> 102 | AC123: 00:00:01.028 | AD123: 1.19e-05
N124: 0 | O124: 0 | S124: =VLOOKUP(D124,PC_Rec!$O$5:$P$18,2,FALSE) ->  | T124: =IF(D124="","",VLOOKUP(D124,PC_Rec!$O$5:$Q$18,3,FALSE)) ->  | W124: =IF(V124="","",VLOOKUP(V124,'Aux1'!$A$1:$B$12,2,FALSE)) ->  | X124: Não pago | AA124: =IF(Z124="","",VLOOKUP(Z124,'Aux1'!$A$1:$B$12,2,FALSE)) ->  | AB124: =IF(AA124="", COUNTIF(AA$5:AA124, ""),"") -> 103 | AC124: 00:00:01.037 | AD124: 1.2e-05
N125: 0 | O125: 0 | S125: =VLOOKUP(D125,PC_Rec!$O$5:$P$18,2,FALSE) ->  | T125: =IF(D125="","",VLOOKUP(D125,PC_Rec!$O$5:$Q$18,3,FALSE)) ->  | W125: =IF(V125="","",VLOOKUP(V125,'Aux1'!$A$1:$B$12,2,FALSE)) ->  | X125: Não pago | AA125: =IF(Z125="","",VLOOKUP(Z125,'Aux1'!$A$1:$B$12,2,FALSE)) ->  | AB125: =IF(AA125="", COUNTIF(AA$5:AA125, ""),"") -> 104 | AC125: 00:00:01.045 | AD125: 1.21e-05
N126: 0 | O126: 0 | S126: =VLOOKUP(D126,PC_Rec!$O$5:$P$18,2,FALSE) ->  | T126: =IF(D126="","",VLOOKUP(D126,PC_Rec!$O$5:$Q$18,3,FALSE)) ->  | W126: =IF(V126="","",VLOOKUP(V126,'Aux1'!$A$1:$B$12,2,FALSE)) ->  | X126: Não pago | AA126: =IF(Z126="","",VLOOKUP(Z126,'Aux1'!$A$1:$B$12,2,FALSE)) ->  | AB126: =IF(AA126="", COUNTIF(AA$5:AA126, ""),"") -> 105 | AC126: 00:00:01.054 | AD126: 1.22e-05
N127: 0 | O127: 0 | S127: =VLOOKUP(D127,PC_Rec!$O$5:$P$18,2,FALSE) ->  | T127: =IF(D127="","",VLOOKUP(D127,PC_Rec!$O$5:$Q$18,3,FALSE)) ->  | W127: =IF(V127="","",VLOOKUP(V127,'Aux1'!$A$1:$B$12,2,FALSE)) ->  | X127: Não pago | AA127: =IF(Z127="","",VLOOKUP(Z127,'Aux1'!$A$1:$B$12,2,FALSE)) ->  | AB127: =IF(AA127="", COUNTIF(AA$5:AA127, ""),"") -> 106 | AC127: 00:00:01.063 | AD127: 1.23e-05
N128: 0 | O128: 0 | S128: =VLOOKUP(D128,PC_Rec!$O$5:$P$18,2,FALSE) ->  | T128: =IF(D128="","",VLOOKUP(D128,PC_Rec!$O$5:$Q$18,3,FALSE)) ->  | W128: =IF(V128="","",VLOOKUP(V128,'Aux1'!$A$1:$B$12,2,FALSE)) ->  | X128: Não pago | AA128: =IF(Z128="","",VLOOKUP(Z128,'Aux1'!$A$1:$B$12,2,FALSE)) ->  | AB128: =IF(AA128="", COUNTIF(AA$5:AA128, ""),"") -> 107 | AC128: 00:00:01.071 | AD128: 1.24e-05
N129: 0 | O129: 0 | S129: =VLOOKUP(D129,PC_Rec!$O$5:$P$18,2,FALSE) ->  | T129: =IF(D129="","",VLOOKUP(D129,PC_Rec!$O$5:$Q$18,3,FALSE)) ->  | W129: =IF(V129="","",VLOOKUP(V129,'Aux1'!$A$1:$B$12,2,FALSE)) ->  | X129: Não pago | AA129: =IF(Z129="","",VLOOKUP(Z129,'Aux1'!$A$1:$B$12,2,FALSE)) ->  | AB129: =IF(AA129="", COUNTIF(AA$5:AA129, ""),"") -> 108 | AC129: 00:00:01.080 | AD129: 1.25e-05
N130: 0 | O130: 0 | S130: =VLOOKUP(D130,PC_Rec!$O$5:$P$18,2,FALSE) ->  | T130: =IF(D130="","",VLOOKUP(D130,PC_Rec!$O$5:$Q$18,3,FALSE)) ->  | W130: =IF(V130="","",VLOOKUP(V130,'Aux1'!$A$1:$B$12,2,FALSE)) ->  | X130: Não pago | AA130: =IF(Z130="","",VLOOKUP(Z130,'Aux1'!$A$1:$B$12,2,FALSE)) ->  | AB130: =IF(AA130="", COUNTIF(AA$5:AA130, ""),"") -> 109 | AC130: 00:00:01.089 | AD130: 1.26e-05
N131: 0 | O131: 0 | S131: =VLOOKUP(D131,PC_Rec!$O$5:$P$18,2,FALSE) ->  | T131: =IF(D131="","",VLOOKUP(D131,PC_Rec!$O$5:$Q$18,3,FALSE)) ->  | W131: =IF(V131="","",VLOOKUP(V131,'Aux1'!$A$1:$B$12,2,FALSE)) ->  | X131: Não pago | AA131: =IF(Z131="","",VLOOKUP(Z131,'Aux1'!$A$1:$B$12,2,FALSE)) ->  | AB131: =IF(AA131="", COUNTIF(AA$5:AA131, ""),"") -> 110 | AC131: 00:00:01.097 | AD131: 1.27e-05
N132: 0 | O132: 0 | S132: =VLOOKUP(D132,PC_Rec!$O$5:$P$18,2,FALSE) ->  | T132: =IF(D132="","",VLOOKUP(D132,PC_Rec!$O$5:$Q$18,3,FALSE)) ->  | W132: =IF(V132="","",VLOOKUP(V132,'Aux1'!$A$1:$B$12,2,FALSE)) ->  | X132: Não pago | AA132: =IF(Z132="","",VLOOKUP(Z132,'Aux1'!$A$1:$B$12,2,FALSE)) ->  | AB132: =IF(AA132="", COUNTIF(AA$5:AA132, ""),"") -> 111 | AC132: 00:00:01.106 | AD132: 1.28e-05
N133: 0 | O133: 0 | S133: =VLOOKUP(D133,PC_Rec!$O$5:$P$18,2,FALSE) ->  | T133: =IF(D133="","",VLOOKUP(D133,PC_Rec!$O$5:$Q$18,3,FALSE)) ->  | U133: =IF(C133="","",DAY(C133)) ->  | V133: =IF(C133="","",MONTH(C133)) ->  | W133: =IF(V133="","",VLOOKUP(V133,'Aux1'!$A$1:$B$12,2,FALSE)) ->  | X133: =IF(M133<>"","Pago","Não pago") -> Não pago | Y133: =IF(M133="","",DAY(M133)) ->  | Z133: =IF(M133="","",MONTH(M133)) ->  | AA133: =IF(Z133="","",VLOOKUP(Z133,'Aux1'!$A$1:$B$12,2,FALSE)) ->  | AB133: =IF(AA133="", COUNTIF(AA$5:AA133, ""),"") -> 112 | AC133: 00:00:01.115 | AD133: 1.29e-05 | AE133: =IF(AND(X133="Não pago",L133<>0),C133,"") ->  | AF133: =IF(AE133="","",C133) ->  | AG133: =IF(AE133="","",D133) ->  | AH133: =IF(AE133="","",E133) ->  | AI133: =IF(AE133="","",F133) ->  | AJ133: =IF(AE133="","",L133) -> 
N134: 0 | O134: =Q134+IF(AND(T134="Ingresos",X134="Pago",AA134=$C$3),L134,IF(AND(T134="gasto",X134="Pago",AA134=$C$3),-L134,0)) -> 0 | S134: =VLOOKUP(D134,PC_Rec!$O$5:$P$18,2,FALSE) ->  | T134: =IF(D134="","",VLOOKUP(D134,PC_Rec!$O$5:$Q$18,3,FALSE)) ->  | W134: =IF(V134="","",VLOOKUP(V134,'Aux1'!$A$1:$B$12,2,FALSE)) ->  | X134: Não pago | AA134: =IF(Z134="","",VLOOKUP(Z134,'Aux1'!$A$1:$B$12,2,FALSE)) ->  | AB134: =IF(AA134="", COUNTIF(AA$5:AA134, ""),"") -> 113 | AC134: =SUM(AD134:AE134) -> 00:00:01.123 | AD134: 1.3e-05
N135: =O135 -> 0 | O135: 0 | S135: =VLOOKUP(D135,PC_Rec!$O$5:$P$18,2,FALSE) ->  | T135: =IF(D135="","",VLOOKUP(D135,PC_Rec!$O$5:$Q$18,3,FALSE)) ->  | W135: =IF(V135="","",VLOOKUP(V135,'Aux1'!$A$1:$B$12,2,FALSE)) ->  | X135: Não pago | AA135: =IF(Z135="","",VLOOKUP(Z135,'Aux1'!$A$1:$B$12,2,FALSE)) ->  | AB135: =IF(AA135="", COUNTIF(AA$5:AA135, ""),"") -> 114 | AC135: 00:00:01.132 | AD135: 1.31e-05
N136: 0 | O136: 0 | S136: =VLOOKUP(D136,PC_Rec!$O$5:$P$18,2,FALSE) ->  | T136: =IF(D136="","",VLOOKUP(D136,PC_Rec!$O$5:$Q$18,3,FALSE)) ->  | W136: =IF(V136="","",VLOOKUP(V136,'Aux1'!$A$1:$B$12,2,FALSE)) ->  | X136: Não pago | AA136: =IF(Z136="","",VLOOKUP(Z136,'Aux1'!$A$1:$B$12,2,FALSE)) ->  | AB136: =IF(AA136="", COUNTIF(AA$5:AA136, ""),"") -> 115 | AC136: 00:00:01.140 | AD136: 1.32e-05
N137: 0 | O137: 0 | S137: =VLOOKUP(D137,PC_Rec!$O$5:$P$18,2,FALSE) ->  | T137: =IF(D137="","",VLOOKUP(D137,PC_Rec!$O$5:$Q$18,3,FALSE)) ->  | W137: =IF(V137="","",VLOOKUP(V137,'Aux1'!$A$1:$B$12,2,FALSE)) ->  | X137: Não pago | AA137: =IF(Z137="","",VLOOKUP(Z137,'Aux1'!$A$1:$B$12,2,FALSE)) ->  | AB137: =IF(AA137="", COUNTIF(AA$5:AA137, ""),"") -> 116 | AC137: 00:00:01.149 | AD137: 1.33e-05
N138: 0 | O138: 0 | S138: =VLOOKUP(D138,PC_Rec!$O$5:$P$18,2,FALSE) ->  | T138: =IF(D138="","",VLOOKUP(D138,PC_Rec!$O$5:$Q$18,3,FALSE)) ->  | W138: =IF(V138="","",VLOOKUP(V138,'Aux1'!$A$1:$B$12,2,FALSE)) ->  | X138: Não pago | AA138: =IF(Z138="","",VLOOKUP(Z138,'Aux1'!$A$1:$B$12,2,FALSE)) ->  | AB138: =IF(AA138="", COUNTIF(AA$5:AA138, ""),"") -> 117 | AC138: 00:00:01.158 | AD138: 1.34e-05
N139: 0 | O139: 0 | S139: =VLOOKUP(D139,PC_Rec!$O$5:$P$18,2,FALSE) ->  | T139: =IF(D139="","",VLOOKUP(D139,PC_Rec!$O$5:$Q$18,3,FALSE)) ->  | W139: =IF(V139="","",VLOOKUP(V139,'Aux1'!$A$1:$B$12,2,FALSE)) ->  | X139: Não pago | AA139: =IF(Z139="","",VLOOKUP(Z139,'Aux1'!$A$1:$B$12,2,FALSE)) ->  | AB139: =IF(AA139="", COUNTIF(AA$5:AA139, ""),"") -> 118 | AC139: 00:00:01.166 | AD139: 1.35e-05
N140: 0 | O140: 0 | S140: =VLOOKUP(D140,PC_Rec!$O$5:$P$18,2,FALSE) ->  | T140: =IF(D140="","",VLOOKUP(D140,PC_Rec!$O$5:$Q$18,3,FALSE)) ->  | W140: =IF(V140="","",VLOOKUP(V140,'Aux1'!$A$1:$B$12,2,FALSE)) ->  | X140: Não pago | AA140: =IF(Z140="","",VLOOKUP(Z140,'Aux1'!$A$1:$B$12,2,FALSE)) ->  | AB140: =IF(AA140="", COUNTIF(AA$5:AA140, ""),"") -> 119 | AC140: 00:00:01.175 | AD140: 1.36e-05
N141: 0 | O141: 0 | S141: =VLOOKUP(D141,PC_Rec!$O$5:$P$18,2,FALSE) ->  | T141: =IF(D141="","",VLOOKUP(D141,PC_Rec!$O$5:$Q$18,3,FALSE)) ->  | W141: =IF(V141="","",VLOOKUP(V141,'Aux1'!$A$1:$B$12,2,FALSE)) ->  | X141: Não pago | AA141: =IF(Z141="","",VLOOKUP(Z141,'Aux1'!$A$1:$B$12,2,FALSE)) ->  | AB141: =IF(AA141="", COUNTIF(AA$5:AA141, ""),"") -> 120 | AC141: 00:00:01.184 | AD141: 1.37e-05
N142: 0 | O142: 0 | S142: =VLOOKUP(D142,PC_Rec!$O$5:$P$18,2,FALSE) ->  | T142: =IF(D142="","",VLOOKUP(D142,PC_Rec!$O$5:$Q$18,3,FALSE)) ->  | W142: =IF(V142="","",VLOOKUP(V142,'Aux1'!$A$1:$B$12,2,FALSE)) ->  | X142: Não pago | AA142: =IF(Z142="","",VLOOKUP(Z142,'Aux1'!$A$1:$B$12,2,FALSE)) ->  | AB142: =IF(AA142="", COUNTIF(AA$5:AA142, ""),"") -> 121 | AC142: 00:00:01.192 | AD142: 1.38e-05
N143: 0 | O143: 0 | S143: =VLOOKUP(D143,PC_Rec!$O$5:$P$18,2,FALSE) ->  | T143: =IF(D143="","",VLOOKUP(D143,PC_Rec!$O$5:$Q$18,3,FALSE)) ->  | W143: =IF(V143="","",VLOOKUP(V143,'Aux1'!$A$1:$B$12,2,FALSE)) ->  | X143: Não pago | AA143: =IF(Z143="","",VLOOKUP(Z143,'Aux1'!$A$1:$B$12,2,FALSE)) ->  | AB143: =IF(AA143="", COUNTIF(AA$5:AA143, ""),"") -> 122 | AC143: 00:00:01.201 | AD143: 1.39e-05
N144: 0 | O144: 0 | S144: =VLOOKUP(D144,PC_Rec!$O$5:$P$18,2,FALSE) ->  | T144: =IF(D144="","",VLOOKUP(D144,PC_Rec!$O$5:$Q$18,3,FALSE)) ->  | W144: =IF(V144="","",VLOOKUP(V144,'Aux1'!$A$1:$B$12,2,FALSE)) ->  | X144: Não pago | AA144: =IF(Z144="","",VLOOKUP(Z144,'Aux1'!$A$1:$B$12,2,FALSE)) ->  | AB144: =IF(AA144="", COUNTIF(AA$5:AA144, ""),"") -> 123 | AC144: 00:00:01.210 | AD144: 1.4e-05
N145: 0 | O145: 0 | S145: =VLOOKUP(D145,PC_Rec!$O$5:$P$18,2,FALSE) ->  | T145: =IF(D145="","",VLOOKUP(D145,PC_Rec!$O$5:$Q$18,3,FALSE)) ->  | W145: =IF(V145="","",VLOOKUP(V145,'Aux1'!$A$1:$B$12,2,FALSE)) ->  | X145: Não pago | AA145: =IF(Z145="","",VLOOKUP(Z145,'Aux1'!$A$1:$B$12,2,FALSE)) ->  | AB145: =IF(AA145="", COUNTIF(AA$5:AA145, ""),"") -> 124 | AC145: 00:00:01.218 | AD145: 1.41e-05
N146: 0 | O146: 0 | S146: =VLOOKUP(D146,PC_Rec!$O$5:$P$18,2,FALSE) ->  | T146: =IF(D146="","",VLOOKUP(D146,PC_Rec!$O$5:$Q$18,3,FALSE)) ->  | W146: =IF(V146="","",VLOOKUP(V146,'Aux1'!$A$1:$B$12,2,FALSE)) ->  | X146: Não pago | AA146: =IF(Z146="","",VLOOKUP(Z146,'Aux1'!$A$1:$B$12,2,FALSE)) ->  | AB146: =IF(AA146="", COUNTIF(AA$5:AA146, ""),"") -> 125 | AC146: 00:00:01.227 | AD146: 1.42e-05
N147: 0 | O147: 0 | S147: =VLOOKUP(D147,PC_Rec!$O$5:$P$18,2,FALSE) ->  | T147: =IF(D147="","",VLOOKUP(D147,PC_Rec!$O$5:$Q$18,3,FALSE)) ->  | W147: =IF(V147="","",VLOOKUP(V147,'Aux1'!$A$1:$B$12,2,FALSE)) ->  | X147: Não pago | AA147: =IF(Z147="","",VLOOKUP(Z147,'Aux1'!$A$1:$B$12,2,FALSE)) ->  | AB147: =IF(AA147="", COUNTIF(AA$5:AA147, ""),"") -> 126 | AC147: 00:00:01.236 | AD147: 1.43e-05
N148: 0 | O148: 0 | S148: =VLOOKUP(D148,PC_Rec!$O$5:$P$18,2,FALSE) ->  | T148: =IF(D148="","",VLOOKUP(D148,PC_Rec!$O$5:$Q$18,3,FALSE)) ->  | W148: =IF(V148="","",VLOOKUP(V148,'Aux1'!$A$1:$B$12,2,FALSE)) ->  | X148: Não pago | AA148: =IF(Z148="","",VLOOKUP(Z148,'Aux1'!$A$1:$B$12,2,FALSE)) ->  | AB148: =IF(AA148="", COUNTIF(AA$5:AA148, ""),"") -> 127 | AC148: 00:00:01.244 | AD148: 1.44e-05
N149: 0 | O149: 0 | S149: =VLOOKUP(D149,PC_Rec!$O$5:$P$18,2,FALSE) ->  | T149: =IF(D149="","",VLOOKUP(D149,PC_Rec!$O$5:$Q$18,3,FALSE)) ->  | W149: =IF(V149="","",VLOOKUP(V149,'Aux1'!$A$1:$B$12,2,FALSE)) ->  | X149: Não pago | AA149: =IF(Z149="","",VLOOKUP(Z149,'Aux1'!$A$1:$B$12,2,FALSE)) ->  | AB149: =IF(AA149="", COUNTIF(AA$5:AA149, ""),"") -> 128 | AC149: 00:00:01.253 | AD149: 1.45e-05
N150: 0 | O150: 0 | S150: =VLOOKUP(D150,PC_Rec!$O$5:$P$18,2,FALSE) ->  | T150: =IF(D150="","",VLOOKUP(D150,PC_Rec!$O$5:$Q$18,3,FALSE)) ->  | W150: =IF(V150="","",VLOOKUP(V150,'Aux1'!$A$1:$B$12,2,FALSE)) ->  | X150: Não pago | AA150: =IF(Z150="","",VLOOKUP(Z150,'Aux1'!$A$1:$B$12,2,FALSE)) ->  | AB150: =IF(AA150="", COUNTIF(AA$5:AA150, ""),"") -> 129 | AC150: 00:00:01.261 | AD150: 1.46e-05
N151: 0 | O151: 0 | S151: =VLOOKUP(D151,PC_Rec!$O$5:$P$18,2,FALSE) ->  | T151: =IF(D151="","",VLOOKUP(D151,PC_Rec!$O$5:$Q$18,3,FALSE)) ->  | W151: =IF(V151="","",VLOOKUP(V151,'Aux1'!$A$1:$B$12,2,FALSE)) ->  | X151: Não pago | AA151: =IF(Z151="","",VLOOKUP(Z151,'Aux1'!$A$1:$B$12,2,FALSE)) ->  | AB151: =IF(AA151="", COUNTIF(AA$5:AA151, ""),"") -> 130 | AC151: 00:00:01.270 | AD151: 1.47e-05
N152: 0 | O152: 0 | S152: =VLOOKUP(D152,PC_Rec!$O$5:$P$18,2,FALSE) ->  | T152: =IF(D152="","",VLOOKUP(D152,PC_Rec!$O$5:$Q$18,3,FALSE)) ->  | W152: =IF(V152="","",VLOOKUP(V152,'Aux1'!$A$1:$B$12,2,FALSE)) ->  | X152: Não pago | AA152: =IF(Z152="","",VLOOKUP(Z152,'Aux1'!$A$1:$B$12,2,FALSE)) ->  | AB152: =IF(AA152="", COUNTIF(AA$5:AA152, ""),"") -> 131 | AC152: 00:00:01.279 | AD152: 1.48e-05
N153: 0 | O153: 0 | S153: =VLOOKUP(D153,PC_Rec!$O$5:$P$18,2,FALSE) ->  | T153: =IF(D153="","",VLOOKUP(D153,PC_Rec!$O$5:$Q$18,3,FALSE)) ->  | W153: =IF(V153="","",VLOOKUP(V153,'Aux1'!$A$1:$B$12,2,FALSE)) ->  | X153: Não pago | AA153: =IF(Z153="","",VLOOKUP(Z153,'Aux1'!$A$1:$B$12,2,FALSE)) ->  | AB153: =IF(AA153="", COUNTIF(AA$5:AA153, ""),"") -> 132 | AC153: 00:00:01.287 | AD153: 1.49e-05
N154: 0 | O154: 0 | S154: =VLOOKUP(D154,PC_Rec!$O$5:$P$18,2,FALSE) ->  | T154: =IF(D154="","",VLOOKUP(D154,PC_Rec!$O$5:$Q$18,3,FALSE)) ->  | W154: =IF(V154="","",VLOOKUP(V154,'Aux1'!$A$1:$B$12,2,FALSE)) ->  | X154: Não pago | AA154: =IF(Z154="","",VLOOKUP(Z154,'Aux1'!$A$1:$B$12,2,FALSE)) ->  | AB154: =IF(AA154="", COUNTIF(AA$5:AA154, ""),"") -> 133 | AC154: 00:00:01.296 | AD154: 1.5e-05
N155: 0 | O155: 0 | S155: =VLOOKUP(D155,PC_Rec!$O$5:$P$18,2,FALSE) ->  | T155: =IF(D155="","",VLOOKUP(D155,PC_Rec!$O$5:$Q$18,3,FALSE)) ->  | W155: =IF(V155="","",VLOOKUP(V155,'Aux1'!$A$1:$B$12,2,FALSE)) ->  | X155: Não pago | AA155: =IF(Z155="","",VLOOKUP(Z155,'Aux1'!$A$1:$B$12,2,FALSE)) ->  | AB155: =IF(AA155="", COUNTIF(AA$5:AA155, ""),"") -> 134 | AC155: 00:00:01.305 | AD155: 1.51e-05
N156: 0 | O156: 0 | S156: =VLOOKUP(D156,PC_Rec!$O$5:$P$18,2,FALSE) ->  | T156: =IF(D156="","",VLOOKUP(D156,PC_Rec!$O$5:$Q$18,3,FALSE)) ->  | W156: =IF(V156="","",VLOOKUP(V156,'Aux1'!$A$1:$B$12,2,FALSE)) ->  | X156: Não pago | AA156: =IF(Z156="","",VLOOKUP(Z156,'Aux1'!$A$1:$B$12,2,FALSE)) ->  | AB156: =IF(AA156="", COUNTIF(AA$5:AA156, ""),"") -> 135 | AC156: 00:00:01.313 | AD156: 1.52e-05
N157: 0 | O157: 0 | S157: =VLOOKUP(D157,PC_Rec!$O$5:$P$18,2,FALSE) ->  | T157: =IF(D157="","",VLOOKUP(D157,PC_Rec!$O$5:$Q$18,3,FALSE)) ->  | W157: =IF(V157="","",VLOOKUP(V157,'Aux1'!$A$1:$B$12,2,FALSE)) ->  | X157: Não pago | AA157: =IF(Z157="","",VLOOKUP(Z157,'Aux1'!$A$1:$B$12,2,FALSE)) ->  | AB157: =IF(AA157="", COUNTIF(AA$5:AA157, ""),"") -> 136 | AC157: 00:00:01.322 | AD157: 1.53e-05
N158: 0 | O158: 0 | S158: =VLOOKUP(D158,PC_Rec!$O$5:$P$18,2,FALSE) ->  | T158: =IF(D158="","",VLOOKUP(D158,PC_Rec!$O$5:$Q$18,3,FALSE)) ->  | W158: =IF(V158="","",VLOOKUP(V158,'Aux1'!$A$1:$B$12,2,FALSE)) ->  | X158: Não pago | AA158: =IF(Z158="","",VLOOKUP(Z158,'Aux1'!$A$1:$B$12,2,FALSE)) ->  | AB158: =IF(AA158="", COUNTIF(AA$5:AA158, ""),"") -> 137 | AC158: 00:00:01.331 | AD158: 1.54e-05
N159: 0 | O159: 0 | S159: =VLOOKUP(D159,PC_Rec!$O$5:$P$18,2,FALSE) ->  | T159: =IF(D159="","",VLOOKUP(D159,PC_Rec!$O$5:$Q$18,3,FALSE)) ->  | W159: =IF(V159="","",VLOOKUP(V159,'Aux1'!$A$1:$B$12,2,FALSE)) ->  | X159: Não pago | AA159: =IF(Z159="","",VLOOKUP(Z159,'Aux1'!$A$1:$B$12,2,FALSE)) ->  | AB159: =IF(AA159="", COUNTIF(AA$5:AA159, ""),"") -> 138 | AC159: 00:00:01.339 | AD159: 1.55e-05
N160: 0 | O160: 0 | S160: =VLOOKUP(D160,PC_Rec!$O$5:$P$18,2,FALSE) ->  | T160: =IF(D160="","",VLOOKUP(D160,PC_Rec!$O$5:$Q$18,3,FALSE)) ->  | W160: =IF(V160="","",VLOOKUP(V160,'Aux1'!$A$1:$B$12,2,FALSE)) ->  | X160: Não pago | AA160: =IF(Z160="","",VLOOKUP(Z160,'Aux1'!$A$1:$B$12,2,FALSE)) ->  | AB160: =IF(AA160="", COUNTIF(AA$5:AA160, ""),"") -> 139 | AC160: 00:00:01.348 | AD160: 1.56e-05
N161: 0 | O161: 0 | S161: =VLOOKUP(D161,PC_Rec!$O$5:$P$18,2,FALSE) ->  | T161: =IF(D161="","",VLOOKUP(D161,PC_Rec!$O$5:$Q$18,3,FALSE)) ->  | W161: =IF(V161="","",VLOOKUP(V161,'Aux1'!$A$1:$B$12,2,FALSE)) ->  | X161: Não pago | AA161: =IF(Z161="","",VLOOKUP(Z161,'Aux1'!$A$1:$B$12,2,FALSE)) ->  | AB161: =IF(AA161="", COUNTIF(AA$5:AA161, ""),"") -> 140 | AC161: 00:00:01.356 | AD161: 1.57e-05
N162: 0 | O162: 0 | S162: =VLOOKUP(D162,PC_Rec!$O$5:$P$18,2,FALSE) ->  | T162: =IF(D162="","",VLOOKUP(D162,PC_Rec!$O$5:$Q$18,3,FALSE)) ->  | W162: =IF(V162="","",VLOOKUP(V162,'Aux1'!$A$1:$B$12,2,FALSE)) ->  | X162: Não pago | AA162: =IF(Z162="","",VLOOKUP(Z162,'Aux1'!$A$1:$B$12,2,FALSE)) ->  | AB162: =IF(AA162="", COUNTIF(AA$5:AA162, ""),"") -> 141 | AC162: 00:00:01.365 | AD162: 1.58e-05
N163: 0 | O163: 0 | S163: =VLOOKUP(D163,PC_Rec!$O$5:$P$18,2,FALSE) ->  | T163: =IF(D163="","",VLOOKUP(D163,PC_Rec!$O$5:$Q$18,3,FALSE)) ->  | W163: =IF(V163="","",VLOOKUP(V163,'Aux1'!$A$1:$B$12,2,FALSE)) ->  | X163: Não pago | AA163: =IF(Z163="","",VLOOKUP(Z163,'Aux1'!$A$1:$B$12,2,FALSE)) ->  | AB163: =IF(AA163="", COUNTIF(AA$5:AA163, ""),"") -> 142 | AC163: 00:00:01.374 | AD163: 1.59e-05
N164: 0 | O164: 0 | S164: =VLOOKUP(D164,PC_Rec!$O$5:$P$18,2,FALSE) ->  | T164: =IF(D164="","",VLOOKUP(D164,PC_Rec!$O$5:$Q$18,3,FALSE)) ->  | W164: =IF(V164="","",VLOOKUP(V164,'Aux1'!$A$1:$B$12,2,FALSE)) ->  | X164: Não pago | AA164: =IF(Z164="","",VLOOKUP(Z164,'Aux1'!$A$1:$B$12,2,FALSE)) ->  | AB164: =IF(AA164="", COUNTIF(AA$5:AA164, ""),"") -> 143 | AC164: 00:00:01.382 | AD164: 1.6e-05
N165: 0 | O165: 0 | S165: =VLOOKUP(D165,PC_Rec!$O$5:$P$18,2,FALSE) ->  | T165: =IF(D165="","",VLOOKUP(D165,PC_Rec!$O$5:$Q$18,3,FALSE)) ->  | W165: =IF(V165="","",VLOOKUP(V165,'Aux1'!$A$1:$B$12,2,FALSE)) ->  | X165: Não pago | AA165: =IF(Z165="","",VLOOKUP(Z165,'Aux1'!$A$1:$B$12,2,FALSE)) ->  | AB165: =IF(AA165="", COUNTIF(AA$5:AA165, ""),"") -> 144 | AC165: 00:00:01.391 | AD165: 1.61e-05
N166: 0 | O166: 0 | S166: =VLOOKUP(D166,PC_Rec!$O$5:$P$18,2,FALSE) ->  | T166: =IF(D166="","",VLOOKUP(D166,PC_Rec!$O$5:$Q$18,3,FALSE)) ->  | W166: =IF(V166="","",VLOOKUP(V166,'Aux1'!$A$1:$B$12,2,FALSE)) ->  | X166: Não pago | AA166: =IF(Z166="","",VLOOKUP(Z166,'Aux1'!$A$1:$B$12,2,FALSE)) ->  | AB166: =IF(AA166="", COUNTIF(AA$5:AA166, ""),"") -> 145 | AC166: 00:00:01.400 | AD166: 1.62e-05
N167: 0 | O167: 0 | S167: =VLOOKUP(D167,PC_Rec!$O$5:$P$18,2,FALSE) ->  | T167: =IF(D167="","",VLOOKUP(D167,PC_Rec!$O$5:$Q$18,3,FALSE)) ->  | W167: =IF(V167="","",VLOOKUP(V167,'Aux1'!$A$1:$B$12,2,FALSE)) ->  | X167: Não pago | AA167: =IF(Z167="","",VLOOKUP(Z167,'Aux1'!$A$1:$B$12,2,FALSE)) ->  | AB167: =IF(AA167="", COUNTIF(AA$5:AA167, ""),"") -> 146 | AC167: 00:00:01.408 | AD167: 1.63e-05
N168: 0 | O168: 0 | S168: =VLOOKUP(D168,PC_Rec!$O$5:$P$18,2,FALSE) ->  | T168: =IF(D168="","",VLOOKUP(D168,PC_Rec!$O$5:$Q$18,3,FALSE)) ->  | W168: =IF(V168="","",VLOOKUP(V168,'Aux1'!$A$1:$B$12,2,FALSE)) ->  | X168: Não pago | AA168: =IF(Z168="","",VLOOKUP(Z168,'Aux1'!$A$1:$B$12,2,FALSE)) ->  | AB168: =IF(AA168="", COUNTIF(AA$5:AA168, ""),"") -> 147 | AC168: 00:00:01.417 | AD168: 1.64e-05
N169: 0 | O169: 0 | S169: =VLOOKUP(D169,PC_Rec!$O$5:$P$18,2,FALSE) ->  | T169: =IF(D169="","",VLOOKUP(D169,PC_Rec!$O$5:$Q$18,3,FALSE)) ->  | W169: =IF(V169="","",VLOOKUP(V169,'Aux1'!$A$1:$B$12,2,FALSE)) ->  | X169: Não pago | AA169: =IF(Z169="","",VLOOKUP(Z169,'Aux1'!$A$1:$B$12,2,FALSE)) ->  | AB169: =IF(AA169="", COUNTIF(AA$5:AA169, ""),"") -> 148 | AC169: 00:00:01.426 | AD169: 1.65e-05
N170: 0 | O170: 0 | S170: =VLOOKUP(D170,PC_Rec!$O$5:$P$18,2,FALSE) ->  | T170: =IF(D170="","",VLOOKUP(D170,PC_Rec!$O$5:$Q$18,3,FALSE)) ->  | W170: =IF(V170="","",VLOOKUP(V170,'Aux1'!$A$1:$B$12,2,FALSE)) ->  | X170: Não pago | AA170: =IF(Z170="","",VLOOKUP(Z170,'Aux1'!$A$1:$B$12,2,FALSE)) ->  | AB170: =IF(AA170="", COUNTIF(AA$5:AA170, ""),"") -> 149 | AC170: 00:00:01.434 | AD170: 1.66e-05
N171: 0 | O171: 0 | S171: =VLOOKUP(D171,PC_Rec!$O$5:$P$18,2,FALSE) ->  | T171: =IF(D171="","",VLOOKUP(D171,PC_Rec!$O$5:$Q$18,3,FALSE)) ->  | W171: =IF(V171="","",VLOOKUP(V171,'Aux1'!$A$1:$B$12,2,FALSE)) ->  | X171: Não pago | AA171: =IF(Z171="","",VLOOKUP(Z171,'Aux1'!$A$1:$B$12,2,FALSE)) ->  | AB171: =IF(AA171="", COUNTIF(AA$5:AA171, ""),"") -> 150 | AC171: 00:00:01.443 | AD171: 1.67e-05
N172: 0 | O172: 0 | S172: =VLOOKUP(D172,PC_Rec!$O$5:$P$18,2,FALSE) ->  | T172: =IF(D172="","",VLOOKUP(D172,PC_Rec!$O$5:$Q$18,3,FALSE)) ->  | W172: =IF(V172="","",VLOOKUP(V172,'Aux1'!$A$1:$B$12,2,FALSE)) ->  | X172: Não pago | AA172: =IF(Z172="","",VLOOKUP(Z172,'Aux1'!$A$1:$B$12,2,FALSE)) ->  | AB172: =IF(AA172="", COUNTIF(AA$5:AA172, ""),"") -> 151 | AC172: 00:00:01.452 | AD172: 1.68e-05
N173: 0 | O173: 0 | S173: =VLOOKUP(D173,PC_Rec!$O$5:$P$18,2,FALSE) ->  | T173: =IF(D173="","",VLOOKUP(D173,PC_Rec!$O$5:$Q$18,3,FALSE)) ->  | W173: =IF(V173="","",VLOOKUP(V173,'Aux1'!$A$1:$B$12,2,FALSE)) ->  | X173: Não pago | AA173: =IF(Z173="","",VLOOKUP(Z173,'Aux1'!$A$1:$B$12,2,FALSE)) ->  | AB173: =IF(AA173="", COUNTIF(AA$5:AA173, ""),"") -> 152 | AC173: 00:00:01.460 | AD173: 1.69e-05
N174: 0 | O174: 0 | S174: =VLOOKUP(D174,PC_Rec!$O$5:$P$18,2,FALSE) ->  | T174: =IF(D174="","",VLOOKUP(D174,PC_Rec!$O$5:$Q$18,3,FALSE)) ->  | W174: =IF(V174="","",VLOOKUP(V174,'Aux1'!$A$1:$B$12,2,FALSE)) ->  | X174: Não pago | AA174: =IF(Z174="","",VLOOKUP(Z174,'Aux1'!$A$1:$B$12,2,FALSE)) ->  | AB174: =IF(AA174="", COUNTIF(AA$5:AA174, ""),"") -> 153 | AC174: 00:00:01.469 | AD174: 1.7e-05
N175: 0 | O175: 0 | S175: =VLOOKUP(D175,PC_Rec!$O$5:$P$18,2,FALSE) ->  | T175: =IF(D175="","",VLOOKUP(D175,PC_Rec!$O$5:$Q$18,3,FALSE)) ->  | W175: =IF(V175="","",VLOOKUP(V175,'Aux1'!$A$1:$B$12,2,FALSE)) ->  | X175: Não pago | AA175: =IF(Z175="","",VLOOKUP(Z175,'Aux1'!$A$1:$B$12,2,FALSE)) ->  | AB175: =IF(AA175="", COUNTIF(AA$5:AA175, ""),"") -> 154 | AC175: 00:00:01.477 | AD175: 1.71e-05
N176: 0 | O176: 0 | S176: =VLOOKUP(D176,PC_Rec!$O$5:$P$18,2,FALSE) ->  | T176: =IF(D176="","",VLOOKUP(D176,PC_Rec!$O$5:$Q$18,3,FALSE)) ->  | W176: =IF(V176="","",VLOOKUP(V176,'Aux1'!$A$1:$B$12,2,FALSE)) ->  | X176: Não pago | AA176: =IF(Z176="","",VLOOKUP(Z176,'Aux1'!$A$1:$B$12,2,FALSE)) ->  | AB176: =IF(AA176="", COUNTIF(AA$5:AA176, ""),"") -> 155 | AC176: 00:00:01.486 | AD176: 1.72e-05
N177: 0 | O177: 0 | S177: =VLOOKUP(D177,PC_Rec!$O$5:$P$18,2,FALSE) ->  | T177: =IF(D177="","",VLOOKUP(D177,PC_Rec!$O$5:$Q$18,3,FALSE)) ->  | W177: =IF(V177="","",VLOOKUP(V177,'Aux1'!$A$1:$B$12,2,FALSE)) ->  | X177: Não pago | AA177: =IF(Z177="","",VLOOKUP(Z177,'Aux1'!$A$1:$B$12,2,FALSE)) ->  | AB177: =IF(AA177="", COUNTIF(AA$5:AA177, ""),"") -> 156 | AC177: 00:00:01.495 | AD177: 1.73e-05
N178: 0 | O178: 0 | S178: =VLOOKUP(D178,PC_Rec!$O$5:$P$18,2,FALSE) ->  | T178: =IF(D178="","",VLOOKUP(D178,PC_Rec!$O$5:$Q$18,3,FALSE)) ->  | W178: =IF(V178="","",VLOOKUP(V178,'Aux1'!$A$1:$B$12,2,FALSE)) ->  | X178: Não pago | AA178: =IF(Z178="","",VLOOKUP(Z178,'Aux1'!$A$1:$B$12,2,FALSE)) ->  | AB178: =IF(AA178="", COUNTIF(AA$5:AA178, ""),"") -> 157 | AC178: 00:00:01.503 | AD178: 1.74e-05
N179: 0 | O179: 0 | S179: =VLOOKUP(D179,PC_Rec!$O$5:$P$18,2,FALSE) ->  | T179: =IF(D179="","",VLOOKUP(D179,PC_Rec!$O$5:$Q$18,3,FALSE)) ->  | W179: =IF(V179="","",VLOOKUP(V179,'Aux1'!$A$1:$B$12,2,FALSE)) ->  | X179: Não pago | AA179: =IF(Z179="","",VLOOKUP(Z179,'Aux1'!$A$1:$B$12,2,FALSE)) ->  | AB179: =IF(AA179="", COUNTIF(AA$5:AA179, ""),"") -> 158 | AC179: 00:00:01.512 | AD179: 1.75e-05
N180: 0 | O180: 0 | S180: =VLOOKUP(D180,PC_Rec!$O$5:$P$18,2,FALSE) ->  | T180: =IF(D180="","",VLOOKUP(D180,PC_Rec!$O$5:$Q$18,3,FALSE)) ->  | W180: =IF(V180="","",VLOOKUP(V180,'Aux1'!$A$1:$B$12,2,FALSE)) ->  | X180: Não pago | AA180: =IF(Z180="","",VLOOKUP(Z180,'Aux1'!$A$1:$B$12,2,FALSE)) ->  | AB180: =IF(AA180="", COUNTIF(AA$5:AA180, ""),"") -> 159 | AC180: 00:00:01.521 | AD180: 1.76e-05
N181: 0 | O181: 0 | S181: =VLOOKUP(D181,PC_Rec!$O$5:$P$18,2,FALSE) ->  | T181: =IF(D181="","",VLOOKUP(D181,PC_Rec!$O$5:$Q$18,3,FALSE)) ->  | W181: =IF(V181="","",VLOOKUP(V181,'Aux1'!$A$1:$B$12,2,FALSE)) ->  | X181: Não pago | AA181: =IF(Z181="","",VLOOKUP(Z181,'Aux1'!$A$1:$B$12,2,FALSE)) ->  | AB181: =IF(AA181="", COUNTIF(AA$5:AA181, ""),"") -> 160 | AC181: 00:00:01.529 | AD181: 1.77e-05
N182: 0 | O182: 0 | S182: =VLOOKUP(D182,PC_Rec!$O$5:$P$18,2,FALSE) ->  | T182: =IF(D182="","",VLOOKUP(D182,PC_Rec!$O$5:$Q$18,3,FALSE)) ->  | W182: =IF(V182="","",VLOOKUP(V182,'Aux1'!$A$1:$B$12,2,FALSE)) ->  | X182: Não pago | AA182: =IF(Z182="","",VLOOKUP(Z182,'Aux1'!$A$1:$B$12,2,FALSE)) ->  | AB182: =IF(AA182="", COUNTIF(AA$5:AA182, ""),"") -> 161 | AC182: 00:00:01.538 | AD182: 1.78e-05
N183: 0 | O183: 0 | S183: =VLOOKUP(D183,PC_Rec!$O$5:$P$18,2,FALSE) ->  | T183: =IF(D183="","",VLOOKUP(D183,PC_Rec!$O$5:$Q$18,3,FALSE)) ->  | W183: =IF(V183="","",VLOOKUP(V183,'Aux1'!$A$1:$B$12,2,FALSE)) ->  | X183: Não pago | AA183: =IF(Z183="","",VLOOKUP(Z183,'Aux1'!$A$1:$B$12,2,FALSE)) ->  | AB183: =IF(AA183="", COUNTIF(AA$5:AA183, ""),"") -> 162 | AC183: 00:00:01.547 | AD183: 1.79e-05
N184: 0 | O184: 0 | S184: =VLOOKUP(D184,PC_Rec!$O$5:$P$18,2,FALSE) ->  | T184: =IF(D184="","",VLOOKUP(D184,PC_Rec!$O$5:$Q$18,3,FALSE)) ->  | W184: =IF(V184="","",VLOOKUP(V184,'Aux1'!$A$1:$B$12,2,FALSE)) ->  | X184: Não pago | AA184: =IF(Z184="","",VLOOKUP(Z184,'Aux1'!$A$1:$B$12,2,FALSE)) ->  | AB184: =IF(AA184="", COUNTIF(AA$5:AA184, ""),"") -> 163 | AC184: 00:00:01.555 | AD184: 1.8e-05
N185: 0 | O185: 0 | S185: =VLOOKUP(D185,PC_Rec!$O$5:$P$18,2,FALSE) ->  | T185: =IF(D185="","",VLOOKUP(D185,PC_Rec!$O$5:$Q$18,3,FALSE)) ->  | W185: =IF(V185="","",VLOOKUP(V185,'Aux1'!$A$1:$B$12,2,FALSE)) ->  | X185: Não pago | AA185: =IF(Z185="","",VLOOKUP(Z185,'Aux1'!$A$1:$B$12,2,FALSE)) ->  | AB185: =IF(AA185="", COUNTIF(AA$5:AA185, ""),"") -> 164 | AC185: 00:00:01.564 | AD185: 1.81e-05
N186: 0 | O186: 0 | S186: =VLOOKUP(D186,PC_Rec!$O$5:$P$18,2,FALSE) ->  | T186: =IF(D186="","",VLOOKUP(D186,PC_Rec!$O$5:$Q$18,3,FALSE)) ->  | W186: =IF(V186="","",VLOOKUP(V186,'Aux1'!$A$1:$B$12,2,FALSE)) ->  | X186: Não pago | AA186: =IF(Z186="","",VLOOKUP(Z186,'Aux1'!$A$1:$B$12,2,FALSE)) ->  | AB186: =IF(AA186="", COUNTIF(AA$5:AA186, ""),"") -> 165 | AC186: 00:00:01.572 | AD186: 1.82e-05
N187: 0 | O187: 0 | S187: =VLOOKUP(D187,PC_Rec!$O$5:$P$18,2,FALSE) ->  | T187: =IF(D187="","",VLOOKUP(D187,PC_Rec!$O$5:$Q$18,3,FALSE)) ->  | W187: =IF(V187="","",VLOOKUP(V187,'Aux1'!$A$1:$B$12,2,FALSE)) ->  | X187: Não pago | AA187: =IF(Z187="","",VLOOKUP(Z187,'Aux1'!$A$1:$B$12,2,FALSE)) ->  | AB187: =IF(AA187="", COUNTIF(AA$5:AA187, ""),"") -> 166 | AC187: 00:00:01.581 | AD187: 1.83e-05
N188: 0 | O188: 0 | S188: =VLOOKUP(D188,PC_Rec!$O$5:$P$18,2,FALSE) ->  | T188: =IF(D188="","",VLOOKUP(D188,PC_Rec!$O$5:$Q$18,3,FALSE)) ->  | W188: =IF(V188="","",VLOOKUP(V188,'Aux1'!$A$1:$B$12,2,FALSE)) ->  | X188: Não pago | AA188: =IF(Z188="","",VLOOKUP(Z188,'Aux1'!$A$1:$B$12,2,FALSE)) ->  | AB188: =IF(AA188="", COUNTIF(AA$5:AA188, ""),"") -> 167 | AC188: 00:00:01.590 | AD188: 1.84e-05
N189: 0 | O189: 0 | S189: =VLOOKUP(D189,PC_Rec!$O$5:$P$18,2,FALSE) ->  | T189: =IF(D189="","",VLOOKUP(D189,PC_Rec!$O$5:$Q$18,3,FALSE)) ->  | W189: =IF(V189="","",VLOOKUP(V189,'Aux1'!$A$1:$B$12,2,FALSE)) ->  | X189: Não pago | AA189: =IF(Z189="","",VLOOKUP(Z189,'Aux1'!$A$1:$B$12,2,FALSE)) ->  | AB189: =IF(AA189="", COUNTIF(AA$5:AA189, ""),"") -> 168 | AC189: 00:00:01.598 | AD189: 1.85e-05
N190: 0 | O190: 0 | S190: =VLOOKUP(D190,PC_Rec!$O$5:$P$18,2,FALSE) ->  | T190: =IF(D190="","",VLOOKUP(D190,PC_Rec!$O$5:$Q$18,3,FALSE)) ->  | W190: =IF(V190="","",VLOOKUP(V190,'Aux1'!$A$1:$B$12,2,FALSE)) ->  | X190: Não pago | AA190: =IF(Z190="","",VLOOKUP(Z190,'Aux1'!$A$1:$B$12,2,FALSE)) ->  | AB190: =IF(AA190="", COUNTIF(AA$5:AA190, ""),"") -> 169 | AC190: 00:00:01.607 | AD190: 1.86e-05
N191: 0 | O191: 0 | S191: =VLOOKUP(D191,PC_Rec!$O$5:$P$18,2,FALSE) ->  | T191: =IF(D191="","",VLOOKUP(D191,PC_Rec!$O$5:$Q$18,3,FALSE)) ->  | W191: =IF(V191="","",VLOOKUP(V191,'Aux1'!$A$1:$B$12,2,FALSE)) ->  | X191: Não pago | AA191: =IF(Z191="","",VLOOKUP(Z191,'Aux1'!$A$1:$B$12,2,FALSE)) ->  | AB191: =IF(AA191="", COUNTIF(AA$5:AA191, ""),"") -> 170 | AC191: 00:00:01.616 | AD191: 1.87e-05
N192: 0 | O192: 0 | S192: =VLOOKUP(D192,PC_Rec!$O$5:$P$18,2,FALSE) ->  | T192: =IF(D192="","",VLOOKUP(D192,PC_Rec!$O$5:$Q$18,3,FALSE)) ->  | W192: =IF(V192="","",VLOOKUP(V192,'Aux1'!$A$1:$B$12,2,FALSE)) ->  | X192: Não pago | AA192: =IF(Z192="","",VLOOKUP(Z192,'Aux1'!$A$1:$B$12,2,FALSE)) ->  | AB192: =IF(AA192="", COUNTIF(AA$5:AA192, ""),"") -> 171 | AC192: 00:00:01.624 | AD192: 1.88e-05
N193: 0 | O193: 0 | S193: =VLOOKUP(D193,PC_Rec!$O$5:$P$18,2,FALSE) ->  | T193: =IF(D193="","",VLOOKUP(D193,PC_Rec!$O$5:$Q$18,3,FALSE)) ->  | W193: =IF(V193="","",VLOOKUP(V193,'Aux1'!$A$1:$B$12,2,FALSE)) ->  | X193: Não pago | AA193: =IF(Z193="","",VLOOKUP(Z193,'Aux1'!$A$1:$B$12,2,FALSE)) ->  | AB193: =IF(AA193="", COUNTIF(AA$5:AA193, ""),"") -> 172 | AC193: 00:00:01.633 | AD193: 1.89e-05
N194: 0 | O194: 0 | S194: =VLOOKUP(D194,PC_Rec!$O$5:$P$18,2,FALSE) ->  | T194: =IF(D194="","",VLOOKUP(D194,PC_Rec!$O$5:$Q$18,3,FALSE)) ->  | W194: =IF(V194="","",VLOOKUP(V194,'Aux1'!$A$1:$B$12,2,FALSE)) ->  | X194: Não pago | AA194: =IF(Z194="","",VLOOKUP(Z194,'Aux1'!$A$1:$B$12,2,FALSE)) ->  | AB194: =IF(AA194="", COUNTIF(AA$5:AA194, ""),"") -> 173 | AC194: 00:00:01.642 | AD194: 1.9e-05
N195: 0 | O195: 0 | S195: =VLOOKUP(D195,PC_Rec!$O$5:$P$18,2,FALSE) ->  | T195: =IF(D195="","",VLOOKUP(D195,PC_Rec!$O$5:$Q$18,3,FALSE)) ->  | W195: =IF(V195="","",VLOOKUP(V195,'Aux1'!$A$1:$B$12,2,FALSE)) ->  | X195: Não pago | AA195: =IF(Z195="","",VLOOKUP(Z195,'Aux1'!$A$1:$B$12,2,FALSE)) ->  | AB195: =IF(AA195="", COUNTIF(AA$5:AA195, ""),"") -> 174 | AC195: 00:00:01.650 | AD195: 1.91e-05
N196: 0 | O196: 0 | S196: =VLOOKUP(D196,PC_Rec!$O$5:$P$18,2,FALSE) ->  | T196: =IF(D196="","",VLOOKUP(D196,PC_Rec!$O$5:$Q$18,3,FALSE)) ->  | W196: =IF(V196="","",VLOOKUP(V196,'Aux1'!$A$1:$B$12,2,FALSE)) ->  | X196: Não pago | AA196: =IF(Z196="","",VLOOKUP(Z196,'Aux1'!$A$1:$B$12,2,FALSE)) ->  | AB196: =IF(AA196="", COUNTIF(AA$5:AA196, ""),"") -> 175 | AC196: 00:00:01.659 | AD196: 1.92e-05
N197: 0 | O197: 0 | S197: =VLOOKUP(D197,PC_Rec!$O$5:$P$18,2,FALSE) ->  | T197: =IF(D197="","",VLOOKUP(D197,PC_Rec!$O$5:$Q$18,3,FALSE)) ->  | U197: =IF(C197="","",DAY(C197)) ->  | V197: =IF(C197="","",MONTH(C197)) ->  | W197: =IF(V197="","",VLOOKUP(V197,'Aux1'!$A$1:$B$12,2,FALSE)) ->  | X197: =IF(M197<>"","Pago","Não pago") -> Não pago | Y197: =IF(M197="","",DAY(M197)) ->  | Z197: =IF(M197="","",MONTH(M197)) ->  | AA197: =IF(Z197="","",VLOOKUP(Z197,'Aux1'!$A$1:$B$12,2,FALSE)) ->  | AB197: =IF(AA197="", COUNTIF(AA$5:AA197, ""),"") -> 176 | AC197: 00:00:01.668 | AD197: 1.93e-05 | AE197: =IF(AND(X197="Não pago",L197<>0),C197,"") ->  | AF197: =IF(AE197="","",C197) ->  | AG197: =IF(AE197="","",D197) ->  | AH197: =IF(AE197="","",E197) ->  | AI197: =IF(AE197="","",F197) ->  | AJ197: =IF(AE197="","",L197) -> 
N198: 0 | O198: =Q198+IF(AND(T198="Ingresos",X198="Pago",AA198=$C$3),L198,IF(AND(T198="gasto",X198="Pago",AA198=$C$3),-L198,0)) -> 0 | S198: =VLOOKUP(D198,PC_Rec!$O$5:$P$18,2,FALSE) ->  | T198: =IF(D198="","",VLOOKUP(D198,PC_Rec!$O$5:$Q$18,3,FALSE)) ->  | W198: =IF(V198="","",VLOOKUP(V198,'Aux1'!$A$1:$B$12,2,FALSE)) ->  | X198: Não pago | AA198: =IF(Z198="","",VLOOKUP(Z198,'Aux1'!$A$1:$B$12,2,FALSE)) ->  | AB198: =IF(AA198="", COUNTIF(AA$5:AA198, ""),"") -> 177 | AC198: =SUM(AD198:AE198) -> 00:00:01.676 | AD198: 1.94e-05
N199: =O199 -> 0 | O199: 0 | S199: =VLOOKUP(D199,PC_Rec!$O$5:$P$18,2,FALSE) ->  | T199: =IF(D199="","",VLOOKUP(D199,PC_Rec!$O$5:$Q$18,3,FALSE)) ->  | W199: =IF(V199="","",VLOOKUP(V199,'Aux1'!$A$1:$B$12,2,FALSE)) ->  | X199: Não pago | AA199: =IF(Z199="","",VLOOKUP(Z199,'Aux1'!$A$1:$B$12,2,FALSE)) ->  | AB199: =IF(AA199="", COUNTIF(AA$5:AA199, ""),"") -> 178 | AC199: 00:00:01.685 | AD199: 1.95e-05
N200: 0 | O200: 0 | S200: =VLOOKUP(D200,PC_Rec!$O$5:$P$18,2,FALSE) ->  | T200: =IF(D200="","",VLOOKUP(D200,PC_Rec!$O$5:$Q$18,3,FALSE)) ->  | W200: =IF(V200="","",VLOOKUP(V200,'Aux1'!$A$1:$B$12,2,FALSE)) ->  | X200: Não pago | AA200: =IF(Z200="","",VLOOKUP(Z200,'Aux1'!$A$1:$B$12,2,FALSE)) ->  | AB200: =IF(AA200="", COUNTIF(AA$5:AA200, ""),"") -> 179 | AC200: 00:00:01.693 | AD200: 1.96e-05
N201: 0 | O201: 0 | S201: =VLOOKUP(D201,PC_Rec!$O$5:$P$18,2,FALSE) ->  | T201: =IF(D201="","",VLOOKUP(D201,PC_Rec!$O$5:$Q$18,3,FALSE)) ->  | W201: =IF(V201="","",VLOOKUP(V201,'Aux1'!$A$1:$B$12,2,FALSE)) ->  | X201: Não pago | AA201: =IF(Z201="","",VLOOKUP(Z201,'Aux1'!$A$1:$B$12,2,FALSE)) ->  | AB201: =IF(AA201="", COUNTIF(AA$5:AA201, ""),"") -> 180 | AC201: 00:00:01.702 | AD201: 1.97e-05
N202: 0 | O202: 0 | S202: =VLOOKUP(D202,PC_Rec!$O$5:$P$18,2,FALSE) ->  | T202: =IF(D202="","",VLOOKUP(D202,PC_Rec!$O$5:$Q$18,3,FALSE)) ->  | W202: =IF(V202="","",VLOOKUP(V202,'Aux1'!$A$1:$B$12,2,FALSE)) ->  | X202: Não pago | AA202: =IF(Z202="","",VLOOKUP(Z202,'Aux1'!$A$1:$B$12,2,FALSE)) ->  | AB202: =IF(AA202="", COUNTIF(AA$5:AA202, ""),"") -> 181 | AC202: 00:00:01.711 | AD202: 1.98e-05
... 402 more rows

Sheet Abr
C3: abril
C4: Fecha de Publicación | D4: clasificación | E4: Plan de cuentas | F4: artículo | G4: Forma de pago | H4: Banco | I4: Descripción de la transacción | J4: Centro de coste | K4: cliente | L4: valor | M4: Fecha del pago | N4: acumulado | P4: resultado | Q4: =Q7-Q9 -> 0 | S4: indirecta a la lista | T4: ingresos o gastos | U4: día de la venta | V4: el mes venta | W4: meses corresp venta | X4: remunerado o no | Y4: día del pago | Z4: mes de pago | AA4: meses corresp | AB4: Orden | AC4: repet | AD4: desempate | AE4: valor | AF4: repet 1 | AG4: 2 de repetición | AH4: 3 repet | AI4: repet 4 | AJ4: repet 5
N5: =O5 -> 2120 | O5: =Q5+IF(AND(T5="Ingresos",X5="Pago",AA5=$C$3),L5,IF(AND(T5="gasto",X5="Pago",AA5=$C$3),-L5,0)) -> 2120 | P5: Saldo inicial | Q5: =Mar!Q11 -> 2120 | S5: =VLOOKUP(D5,PC_Rec!$O$5:$P$18,2,FALSE) ->  | T5: =IF(D5="","",VLOOKUP(D5,PC_Rec!$O$5:$Q$18,3,FALSE)) ->  | U5: =IF(C5="","",DAY(C5)) ->  | V5: =IF(C5="","",MONTH(C5)) ->  | W5: =IF(V5="","",VLOOKUP(V5,'Aux1'!$A$1:$B$12,2,FALSE)) ->  | X5: =IF(M5<>"","Pago","Não pago") -> Não pago | Y5: =IF(M5="","",DAY(M5)) ->  | Z5: =IF(M5="","",MONTH(M5)) ->  | AA5: =IF(Z5="","",VLOOKUP(Z5,'Aux1'!$A$1:$B$12,2,FALSE)) ->  | AB5: =IF(AA5="", COUNTIF(AA$5:AA5, ""),"") -> 1 | AC5: =SUM(AD5:AE5) -> 00:00:00.009 | AD5: 1e-07 | AE5: =IF(AND(X5="Não pago",L5<>0),C5,"") ->  | AF5: =IF(AE5="","",C5) ->  | AG5: =IF(AE5="","",D5) ->  | AH5: =IF(AE5="","",E5) ->  | AI5: =IF(AE5="","",F5) ->  | AJ5: =IF(AE5="","",L5) -> 
N6: =O6 -> 0 | O6: =Q6+IF(AND(T6="Ingresos",X6="Pago",AA6=$C$3),L6,IF(AND(T6="gasto",X6="Pago",AA6=$C$3),-L6,0)) -> 0 | S6: =VLOOKUP(D6,PC_Rec!$O$5:$P$18,2,FALSE) ->  | T6: =IF(D6="","",VLOOKUP(D6,PC_Rec!$O$5:$Q$18,3,FALSE)) ->  | W6: =IF(V6="","",VLOOKUP(V6,'Aux1'!$A$1:$B$12,2,FALSE)) ->  | X6: Não pago | AA6: =IF(Z6="","",VLOOKUP(Z6,'Aux1'!$A$1:$B$12,2,FALSE)) ->  | AB6: =IF(AA6="", COUNTIF(AA$5:AA6, ""),"") -> 2 | AC6: =SUM(AD6:AE6) -> 00:00:00.017 | AD6: 2e-07
N7: 0 | O7: 0 | P7: Los ingresos totales | Q7: =SUMIFS('Aux2'!H2:H7202,'Aux2'!P2:P7202,$C$3,'Aux2'!I2:I7202,"Ingresos") -> 0 | S7: =VLOOKUP(D7,PC_Rec!$O$5:$P$18,2,FALSE) ->  | T7: =IF(D7="","",VLOOKUP(D7,PC_Rec!$O$5:$Q$18,3,FALSE)) ->  | W7: =IF(V7="","",VLOOKUP(V7,'Aux1'!$A$1:$B$12,2,FALSE)) ->  | X7: Não pago | AA7: =IF(Z7="","",VLOOKUP(Z7,'Aux1'!$A$1:$B$12,2,FALSE)) ->  | AB7: =IF(AA7="", COUNTIF(AA$5:AA7, ""),"") -> 3 | AC7: 00:00:00.026 | AD7: 3e-07
N8: 0 | O8: 0 | S8: =VLOOKUP(D8,PC_Rec!$O$5:$P$18,2,FALSE) ->  | T8: =IF(D8="","",VLOOKUP(D8,PC_Rec!$O$5:$Q$18,3,FALSE)) ->  | W8: =IF(V8="","",VLOOKUP(V8,'Aux1'!$A$1:$B$12,2,FALSE)) ->  | X8: Não pago | AA8: =IF(Z8="","",VLOOKUP(Z8,'Aux1'!$A$1:$B$12,2,FALSE)) ->  | AB8: =IF(AA8="", COUNTIF(AA$5:AA8, ""),"") -> 4 | AC8: 00:00:00.035 | AD8: 4e-07
N9: 0 | O9: 0 | P9: Los gastos totales | Q9: =SUMIFS('Aux2'!H2:H7202,'Aux2'!P2:P7202,$C$3,'Aux2'!I2:I7202,"gasto") -> 0 | S9: =VLOOKUP(D9,PC_Rec!$O$5:$P$18,2,FALSE) ->  | T9: =IF(D9="","",VLOOKUP(D9,PC_Rec!$O$5:$Q$18,3,FALSE)) ->  | W9: =IF(V9="","",VLOOKUP(V9,'Aux1'!$A$1:$B$12,2,FALSE)) ->  | X9: Não pago | AA9: =IF(Z9="","",VLOOKUP(Z9,'Aux1'!$A$1:$B$12,2,FALSE)) ->  | AB9: =IF(AA9="", COUNTIF(AA$5:AA9, ""),"") -> 5 | AC9: 00:00:00.043 | AD9: 5e-07
N10: 0 | O10: 0 | S10: =VLOOKUP(D10,PC_Rec!$O$5:$P$18,2,FALSE) ->  | T10: =IF(D10="","",VLOOKUP(D10,PC_Rec!$O$5:$Q$18,3,FALSE)) ->  | W10: =IF(V10="","",VLOOKUP(V10,'Aux1'!$A$1:$B$12,2,FALSE)) ->  | X10: Não pago | AA10: =IF(Z10="","",VLOOKUP(Z10,'Aux1'!$A$1:$B$12,2,FALSE)) ->  | AB10: =IF(AA10="", COUNTIF(AA$5:AA10, ""),"") -> 6 | AC10: 00:00:00.052 | AD10: 6e-07
N11: 2120 | O11: 2120 | P11: acumulado | Q11: =Q5+Q4 -> 2120 | S11: =VLOOKUP(D11,PC_Rec!$O$5:$P$18,2,FALSE) ->  | T11: =IF(D11="","",VLOOKUP(D11,PC_Rec!$O$5:$Q$18,3,FALSE)) ->  | W11: =IF(V11="","",VLOOKUP(V11,'Aux1'!$A$1:$B$12,2,FALSE)) ->  | X11: Não pago | AA11: =IF(Z11="","",VLOOKUP(Z11,'Aux1'!$A$1:$B$12,2,FALSE)) ->  | AB11: =IF(AA11="", COUNTIF(AA$5:AA11, ""),"") -> 7 | AC11: 00:00:00.060 | AD11: 7e-07
N12: 0 | O12: 0 | S12: =VLOOKUP(D12,PC_Rec!$O$5:$P$18,2,FALSE) ->  | T12: =IF(D12="","",VLOOKUP(D12,PC_Rec!$O$5:$Q$18,3,FALSE)) ->  | W12: =IF(V12="","",VLOOKUP(V12,'Aux1'!$A$1:$B$12,2,FALSE)) ->  | X12: Não pago | AA12: =IF(Z12="","",VLOOKUP(Z12,'Aux1'!$A$1:$B$12,2,FALSE)) ->  | AB12: =IF(AA12="", COUNTIF(AA$5:AA12, ""),"") -> 8 | AC12: 00:00:00.069 | AD12: 8e-07
N13: 0 | O13: 0 | S13: =VLOOKUP(D13,PC_Rec!$O$5:$P$18,2,FALSE) ->  | T13: =IF(D13="","",VLOOKUP(D13,PC_Rec!$O$5:$Q$18,3,FALSE)) ->  | W13: =IF(V13="","",VLOOKUP(V13,'Aux1'!$A$1:$B$12,2,FALSE)) ->  | X13: Não pago | AA13: =IF(Z13="","",VLOOKUP(Z13,'Aux1'!$A$1:$B$12,2,FALSE)) ->  | AB13: =IF(AA13="", COUNTIF(AA$5:AA13, ""),"") -> 9 | AC13: 00:00:00.078 | AD13: 9e-07
N14: 0 | O14: 0 | S14: =VLOOKUP(D14,PC_Rec!$O$5:$P$18,2,FALSE) ->  | T14: =IF(D14="","",VLOOKUP(D14,PC_Rec!$O$5:$Q$18,3,FALSE)) ->  | W14: =IF(V14="","",VLOOKUP(V14,'Aux1'!$A$1:$B$12,2,FALSE)) ->  | X14: Não pago | AA14: =IF(Z14="","",VLOOKUP(Z14,'Aux1'!$A$1:$B$12,2,FALSE)) ->  | AB14: =IF(AA14="", COUNTIF(AA$5:AA14, ""),"") -> 10 | AC14: 00:00:00.086 | AD14: 1e-06
N15: 0 | O15: 0 | S15: =VLOOKUP(D15,PC_Rec!$O$5:$P$18,2,FALSE) ->  | T15: =IF(D15="","",VLOOKUP(D15,PC_Rec!$O$5:$Q$18,3,FALSE)) ->  | W15: =IF(V15="","",VLOOKUP(V15,'Aux1'!$A$1:$B$12,2,FALSE)) ->  | X15: Não pago | AA15: =IF(Z15="","",VLOOKUP(Z15,'Aux1'!$A$1:$B$12,2,FALSE)) ->  | AB15: =IF(AA15="", COUNTIF(AA$5:AA15, ""),"") -> 11 | AC15: 00:00:00.095 | AD15: 1.1e-06
N16: 0 | O16: 0 | S16: =VLOOKUP(D16,PC_Rec!$O$5:$P$18,2,FALSE) ->  | T16: =IF(D16="","",VLOOKUP(D16,PC_Rec!$O$5:$Q$18,3,FALSE)) ->  | W16: =IF(V16="","",VLOOKUP(V16,'Aux1'!$A$1:$B$12,2,FALSE)) ->  | X16: Não pago | AA16: =IF(Z16="","",VLOOKUP(Z16,'Aux1'!$A$1:$B$12,2,FALSE)) ->  | AB16: =IF(AA16="", COUNTIF(AA$5:AA16, ""),"") -> 12 | AC16: 00:00:00.104 | AD16: 1.2e-06
N17: 0 | O17: 0 | S17: =VLOOKUP(D17,PC_Rec!$O$5:$P$18,2,FALSE) ->  | T17: =IF(D17="","",VLOOKUP(D17,PC_Rec!$O$5:$Q$18,3,FALSE)) ->  | W17: =IF(V17="","",VLOOKUP(V17,'Aux1'!$A$1:$B$12,2,FALSE)) ->  | X17: Não pago | AA17: =IF(Z17="","",VLOOKUP(Z17,'Aux1'!$A$1:$B$12,2,FALSE)) ->  | AB17: =IF(AA17="", COUNTIF(AA$5:AA17, ""),"") -> 13 | AC17: 00:00:00.112 | AD17: 1.3e-06
N18: 0 | O18: 0 | S18: =VLOOKUP(D18,PC_Rec!$O$5:$P$18,2,FALSE) ->  | T18: =IF(D18="","",VLOOKUP(D18,PC_Rec!$O$5:$Q$18,3,FALSE)) ->  | W18: =IF(V18="","",VLOOKUP(V18,'Aux1'!$A$1:$B$12,2,FALSE)) ->  | X18: Não pago | AA18: =IF(Z18="","",VLOOKUP(Z18,'Aux1'!$A$1:$B$12,2,FALSE)) ->  | AB18: =IF(AA18="", COUNTIF(AA$5:AA18, ""),"") -> 14 | AC18: 00:00:00.121 | AD18: 1.4e-06
N19: 0 | O19: 0 | S19: =VLOOKUP(D19,PC_Rec!$O$5:$P$18,2,FALSE) ->  | T19: =IF(D19="","",VLOOKUP(D19,PC_Rec!$O$5:$Q$18,3,FALSE)) ->  | W19: =IF(V19="","",VLOOKUP(V19,'Aux1'!$A$1:$B$12,2,FALSE)) ->  | X19: Não pago | AA19: =IF(Z19="","",VLOOKUP(Z19,'Aux1'!$A$1:$B$12,2,FALSE)) ->  | AB19: =IF(AA19="", COUNTIF(AA$5:AA19, ""),"") -> 15 | AC19: 00:00:00.130 | AD19: 1.5e-06
N20: 0 | O20: 0 | S20: =VLOOKUP(D20,PC_Rec!$O$5:$P$18,2,FALSE) ->  | T20: =IF(D20="","",VLOOKUP(D20,PC_Rec!$O$5:$Q$18,3,FALSE)) ->  | W20: =IF(V20="","",VLOOKUP(V20,'Aux1'!$A$1:$B$12,2,FALSE)) ->  | X20: Não pago | AA20: =IF(Z20="","",VLOOKUP(Z20,'Aux1'!$A$1:$B$12,2,FALSE)) ->  | AB20: =IF(AA20="", COUNTIF(AA$5:AA20, ""),"") -> 16 | AC20: 00:00:00.138 | AD20: 1.6e-06
N21: 0 | O21: 0 | S21: =VLOOKUP(D21,PC_Rec!$O$5:$P$18,2,FALSE) ->  | T21: =IF(D21="","",VLOOKUP(D21,PC_Rec!$O$5:$Q$18,3,FALSE)) ->  | W21: =IF(V21="","",VLOOKUP(V21,'Aux1'!$A$1:$B$12,2,FALSE)) ->  | X21: Não pago | AA21: =IF(Z21="","",VLOOKUP(Z21,'Aux1'!$A$1:$B$12,2,FALSE)) ->  | AB21: =IF(AA21="", COUNTIF(AA$5:AA21, ""),"") -> 17 | AC21: 00:00:00.147 | AD21: 1.7e-06
N22: 0 | O22: 0 | S22: =VLOOKUP(D22,PC_Rec!$O$5:$P$18,2,FALSE) ->  | T22: =IF(D22="","",VLOOKUP(D22,PC_Rec!$O$5:$Q$18,3,FALSE)) ->  | W22: =IF(V22="","",VLOOKUP(V22,'Aux1'!$A$1:$B$12,2,FALSE)) ->  | X22: Não pago | AA22: =IF(Z22="","",VLOOKUP(Z22,'Aux1'!$A$1:$B$12,2,FALSE)) ->  | AB22: =IF(AA22="", COUNTIF(AA$5:AA22, ""),"") -> 18 | AC22: 00:00:00.156 | AD22: 1.8e-06
N23: 0 | O23: 0 | S23: =VLOOKUP(D23,PC_Rec!$O$5:$P$18,2,FALSE) ->  | T23: =IF(D23="","",VLOOKUP(D23,PC_Rec!$O$5:$Q$18,3,FALSE)) ->  | W23: =IF(V23="","",VLOOKUP(V23,'Aux1'!$A$1:$B$12,2,FALSE)) ->  | X23: Não pago | AA23: =IF(Z23="","",VLOOKUP(Z23,'Aux1'!$A$1:$B$12,2,FALSE)) ->  | AB23: =IF(AA23="", COUNTIF(AA$5:AA23, ""),"") -> 19 | AC23: 00:00:00.164 | AD23: 1.9e-06
N24: 0 | O24: 0 | S24: =VLOOKUP(D24,PC_Rec!$O$5:$P$18,2,FALSE) ->  | T24: =IF(D24="","",VLOOKUP(D24,PC_Rec!$O$5:$Q$18,3,FALSE)) ->  | W24: =IF(V24="","",VLOOKUP(V24,'Aux1'!$A$1:$B$12,2,FALSE)) ->  | X24: Não pago | AA24: =IF(Z24="","",VLOOKUP(Z24,'Aux1'!$A$1:$B$12,2,FALSE)) ->  | AB24: =IF(AA24="", COUNTIF(AA$5:AA24, ""),"") -> 20 | AC24: 00:00:00.173 | AD24: 2e-06
N25: 0 | O25: 0 | S25: =VLOOKUP(D25,PC_Rec!$O$5:$P$18,2,FALSE) ->  | T25: =IF(D25="","",VLOOKUP(D25,PC_Rec!$O$5:$Q$18,3,FALSE)) ->  | W25: =IF(V25="","",VLOOKUP(V25,'Aux1'!$A$1:$B$12,2,FALSE)) ->  | X25: Não pago | AA25: =IF(Z25="","",VLOOKUP(Z25,'Aux1'!$A$1:$B$12,2,FALSE)) ->  | AB25: =IF(AA25="", COUNTIF(AA$5:AA25, ""),"") -> 21 | AC25: 00:00:00.181 | AD25: 2.1e-06
N26: 0 | O26: 0 | S26: =VLOOKUP(D26,PC_Rec!$O$5:$P$18,2,FALSE) ->  | T26: =IF(D26="","",VLOOKUP(D26,PC_Rec!$O$5:$Q$18,3,FALSE)) ->  | W26: =IF(V26="","",VLOOKUP(V26,'Aux1'!$A$1:$B$12,2,FALSE)) ->  | X26: Não pago | AA26: =IF(Z26="","",VLOOKUP(Z26,'Aux1'!$A$1:$B$12,2,FALSE)) ->  | AB26: =IF(AA26="", COUNTIF(AA$5:AA26, ""),"") -> 22 | AC26: 00:00:00.190 | AD26: 2.2e-06
N27: 0 | O27: 0 | S27: =VLOOKUP(D27,PC_Rec!$O$5:$P$18,2,FALSE) ->  | T27: =IF(D27="","",VLOOKUP(D27,PC_Rec!$O$5:$Q$18,3,FALSE)) ->  | W27: =IF(V27="","",VLOOKUP(V27,'Aux1'!$A$1:$B$12,2,FALSE)) ->  | X27: Não pago | AA27: =IF(Z27="","",VLOOKUP(Z27,'Aux1'!$A$1:$B$12,2,FALSE)) ->  | AB27: =IF(AA27="", COUNTIF(AA$5:AA27, ""),"") -> 23 | AC27: 00:00:00.199 | AD27: 2.3e-06
N28: 0 | O28: 0 | S28: =VLOOKUP(D28,PC_Rec!$O$5:$P$18,2,FALSE) ->  | T28: =IF(D28="","",VLOOKUP(D28,PC_Rec!$O$5:$Q$18,3,FALSE)) ->  | W28: =IF(V28="","",VLOOKUP(V28,'Aux1'!$A$1:$B$12,2,FALSE)) ->  | X28: Não pago | AA28: =IF(Z28="","",VLOOKUP(Z28,'Aux1'!$A$1:$B$12,2,FALSE)) ->  | AB28: =IF(AA28="", COUNTIF(AA$5:AA28, ""),"") -> 24 | AC28: 00:00:00.207 | AD28: 2.4e-06
N29: 0 | O29: 0 | S29: =VLOOKUP(D29,PC_Rec!$O$5:$P$18,2,FALSE) ->  | T29: =IF(D29="","",VLOOKUP(D29,PC_Rec!$O$5:$Q$18,3,FALSE)) ->  | W29: =IF(V29="","",VLOOKUP(V29,'Aux1'!$A$1:$B$12,2,FALSE)) ->  | X29: Não pago | AA29: =IF(Z29="","",VLOOKUP(Z29,'Aux1'!$A$1:$B$12,2,FALSE)) ->  | AB29: =IF(AA29="", COUNTIF(AA$5:AA29, ""),"") -> 25 | AC29: 00:00:00.216 | AD29: 2.5e-06
N30: 0 | O30: 0 | S30: =VLOOKUP(D30,PC_Rec!$O$5:$P$18,2,FALSE) ->  | T30: =IF(D30="","",VLOOKUP(D30,PC_Rec!$O$5:$Q$18,3,FALSE)) ->  | W30: =IF(V30="","",VLOOKUP(V30,'Aux1'!$A$1:$B$12,2,FALSE)) ->  | X30: Não pago | AA30: =IF(Z30="","",VLOOKUP(Z30,'Aux1'!$A$1:$B$12,2,FALSE)) ->  | AB30: =IF(AA30="", COUNTIF(AA$5:AA30, ""),"") -> 26 | AC30: 00:00:00.225 | AD30: 2.6e-06
N31: 0 | O31: 0 | S31: =VLOOKUP(D31,PC_Rec!$O$5:$P$18,2,FALSE) ->  | T31: =IF(D31="","",VLOOKUP(D31,PC_Rec!$O$5:$Q$18,3,FALSE)) ->  | W31: =IF(V31="","",VLOOKUP(V31,'Aux1'!$A$1:$B$12,2,FALSE)) ->  | X31: Não pago | AA31: =IF(Z31="","",VLOOKUP(Z31,'Aux1'!$A$1:$B$12,2,FALSE)) ->  | AB31: =IF(AA31="", COUNTIF(AA$5:AA31, ""),"") -> 27 | AC31: 00:00:00.233 | AD31: 2.7e-06
N32: 0 | O32: 0 | S32: =VLOOKUP(D32,PC_Rec!$O$5:$P$18,2,FALSE) ->  | T32: =IF(D32="","",VLOOKUP(D32,PC_Rec!$O$5:$Q$18,3,FALSE)) ->  | W32: =IF(V32="","",VLOOKUP(V32,'Aux1'!$A$1:$B$12,2,FALSE)) ->  | X32: Não pago | AA32: =IF(Z32="","",VLOOKUP(Z32,'Aux1'!$A$1:$B$12,2,FALSE)) ->  | AB32: =IF(AA32="", COUNTIF(AA$5:AA32, ""),"") -> 28 | AC32: 00:00:00.242 | AD32: 2.8e-06
N33: 0 | O33: 0 | S33: =VLOOKUP(D33,PC_Rec!$O$5:$P$18,2,FALSE) ->  | T33: =IF(D33="","",VLOOKUP(D33,PC_Rec!$O$5:$Q$18,3,FALSE)) ->  | W33: =IF(V33="","",VLOOKUP(V33,'Aux1'!$A$1:$B$12,2,FALSE)) ->  | X33: Não pago | AA33: =IF(Z33="","",VLOOKUP(Z33,'Aux1'!$A$1:$B$12,2,FALSE)) ->  | AB33: =IF(AA33="", COUNTIF(AA$5:AA33, ""),"") -> 29 | AC33: 00:00:00.251 | AD33: 2.9e-06
N34: 0 | O34: 0 | S34: =VLOOKUP(D34,PC_Rec!$O$5:$P$18,2,FALSE) ->  | T34: =IF(D34="","",VLOOKUP(D34,PC_Rec!$O$5:$Q$18,3,FALSE)) ->  | W34: =IF(V34="","",VLOOKUP(V34,'Aux1'!$A$1:$B$12,2,FALSE)) ->  | X34: Não pago | AA34: =IF(Z34="","",VLOOKUP(Z34,'Aux1'!$A$1:$B$12,2,FALSE)) ->  | AB34: =IF(AA34="", COUNTIF(AA$5:AA34, ""),"") -> 30 | AC34: 00:00:00.259 | AD34: 3e-06
N35: 0 | O35: 0 | S35: =VLOOKUP(D35,PC_Rec!$O$5:$P$18,2,FALSE) ->  | T35: =IF(D35="","",VLOOKUP(D35,PC_Rec!$O$5:$Q$18,3,FALSE)) ->  | W35: =IF(V35="","",VLOOKUP(V35,'Aux1'!$A$1:$B$12,2,FALSE)) ->  | X35: Não pago | AA35: =IF(Z35="","",VLOOKUP(Z35,'Aux1'!$A$1:$B$12,2,FALSE)) ->  | AB35: =IF(AA35="", COUNTIF(AA$5:AA35, ""),"") -> 31 | AC35: 00:00:00.268 | AD35: 3.1e-06
N36: 0 | O36: 0 | S36: =VLOOKUP(D36,PC_Rec!$O$5:$P$18,2,FALSE) ->  | T36: =IF(D36="","",VLOOKUP(D36,PC_Rec!$O$5:$Q$18,3,FALSE)) ->  | W36: =IF(V36="","",VLOOKUP(V36,'Aux1'!$A$1:$B$12,2,FALSE)) ->  | X36: Não pago | AA36: =IF(Z36="","",VLOOKUP(Z36,'Aux1'!$A$1:$B$12,2,FALSE)) ->  | AB36: =IF(AA36="", COUNTIF(AA$5:AA36, ""),"") -> 32 | AC36: 00:00:00.276 | AD36: 3.2e-06
N37: 0 | O37: 0 | S37: =VLOOKUP(D37,PC_Rec!$O$5:$P$18,2,FALSE) ->  | T37: =IF(D37="","",VLOOKUP(D37,PC_Rec!$O$5:$Q$18,3,FALSE)) ->  | W37: =IF(V37="","",VLOOKUP(V37,'Aux1'!$A$1:$B$12,2,FALSE)) ->  | X37: Não pago | AA37: =IF(Z37="","",VLOOKUP(Z37,'Aux1'!$A$1:$B$12,2,FALSE)) ->  | AB37: =IF(AA37="", COUNTIF(AA$5:AA37, ""),"") -> 33 | AC37: 00:00:00.285 | AD37: 3.3e-06
N38: 0 | O38: 0 | S38: =VLOOKUP(D38,PC_Rec!$O$5:$P$18,2,FALSE) ->  | T38: =IF(D38="","",VLOOKUP(D38,PC_Rec!$O$5:$Q$18,3,FALSE)) ->  | W38: =IF(V38="","",VLOOKUP(V38,'Aux1'!$A$1:$B$12,2,FALSE)) ->  | X38: Não pago | AA38: =IF(Z38="","",VLOOKUP(Z38,'Aux1'!$A$1:$B$12,2,FALSE)) ->  | AB38: =IF(AA38="", COUNTIF(AA$5:AA38, ""),"") -> 34 | AC38: 00:00:00.294 | AD38: 3.4e-06
N39: 0 | O39: 0 | S39: =VLOOKUP(D39,PC_Rec!$O$5:$P$18,2,FALSE) ->  | T39: =IF(D39="","",VLOOKUP(D39,PC_Rec!$O$5:$Q$18,3,FALSE)) ->  | W39: =IF(V39="","",VLOOKUP(V39,'Aux1'!$A$1:$B$12,2,FALSE)) ->  | X39: Não pago | AA39: =IF(Z39="","",VLOOKUP(Z39,'Aux1'!$A$1:$B$12,2,FALSE)) ->  | AB39: =IF(AA39="", COUNTIF(AA$5:AA39, ""),"") -> 35 | AC39: 00:00:00.302 | AD39: 3.5e-06
N40: 0 | O40: 0 | S40: =VLOOKUP(D40,PC_Rec!$O$5:$P$18,2,FALSE) ->  | T40: =IF(D40="","",VLOOKUP(D40,PC_Rec!$O$5:$Q$18,3,FALSE)) ->  | W40: =IF(V40="","",VLOOKUP(V40,'Aux1'!$A$1:$B$12,2,FALSE)) ->  | X40: Não pago | AA40: =IF(Z40="","",VLOOKUP(Z40,'Aux1'!$A$1:$B$12,2,FALSE)) ->  | AB40: =IF(AA40="", COUNTIF(AA$5:AA40, ""),"") -> 36 | AC40: 00:00:00.311 | AD40: 3.6e-06
N41: 0 | O41: 0 | S41: =VLOOKUP(D41,PC_Rec!$O$5:$P$18,2,FALSE) ->  | T41: =IF(D41="","",VLOOKUP(D41,PC_Rec!$O$5:$Q$18,3,FALSE)) ->  | W41: =IF(V41="","",VLOOKUP(V41,'Aux1'!$A$1:$B$12,2,FALSE)) ->  | X41: Não pago | AA41: =IF(Z41="","",VLOOKUP(Z41,'Aux1'!$A$1:$B$12,2,FALSE)) ->  | AB41: =IF(AA41="", COUNTIF(AA$5:AA41, ""),"") -> 37 | AC41: 00:00:00.320 | AD41: 3.7e-06
N42: 0 | O42: 0 | S42: =VLOOKUP(D42,PC_Rec!$O$5:$P$18,2,FALSE) ->  | T42: =IF(D42="","",VLOOKUP(D42,PC_Rec!$O$5:$Q$18,3,FALSE)) ->  | W42: =IF(V42="","",VLOOKUP(V42,'Aux1'!$A$1:$B$12,2,FALSE)) ->  | X42: Não pago | AA42: =IF(Z42="","",VLOOKUP(Z42,'Aux1'!$A$1:$B$12,2,FALSE)) ->  | AB42: =IF(AA42="", COUNTIF(AA$5:AA42, ""),"") -> 38 | AC42: 00:00:00.328 | AD42: 3.8e-06
N43: 0 | O43: 0 | S43: =VLOOKUP(D43,PC_Rec!$O$5:$P$18,2,FALSE) ->  | T43: =IF(D43="","",VLOOKUP(D43,PC_Rec!$O$5:$Q$18,3,FALSE)) ->  | W43: =IF(V43="","",VLOOKUP(V43,'Aux1'!$A$1:$B$12,2,FALSE)) ->  | X43: Não pago | AA43: =IF(Z43="","",VLOOKUP(Z43,'Aux1'!$A$1:$B$12,2,FALSE)) ->  | AB43: =IF(AA43="", COUNTIF(AA$5:AA43, ""),"") -> 39 | AC43: 00:00:00.337 | AD43: 3.9e-06
N44: 0 | O44: 0 | S44: =VLOOKUP(D44,PC_Rec!$O$5:$P$18,2,FALSE) ->  | T44: =IF(D44="","",VLOOKUP(D44,PC_Rec!$O$5:$Q$18,3,FALSE)) ->  | W44: =IF(V44="","",VLOOKUP(V44,'Aux1'!$A$1:$B$12,2,FALSE)) ->  | X44: Não pago | AA44: =IF(Z44="","",VLOOKUP(Z44,'Aux1'!$A$1:$B$12,2,FALSE)) ->  | AB44: =IF(AA44="", COUNTIF(AA$5:AA44, ""),"") -> 40 | AC44: 00:00:00.346 | AD44: 4e-06
N45: 0 | O45: 0 | S45: =VLOOKUP(D45,PC_Rec!$O$5:$P$18,2,FALSE) ->  | T45: =IF(D45="","",VLOOKUP(D45,PC_Rec!$O$5:$Q$18,3,FALSE)) ->  | W45: =IF(V45="","",VLOOKUP(V45,'Aux1'!$A$1:$B$12,2,FALSE)) ->  | X45: Não pago | AA45: =IF(Z45="","",VLOOKUP(Z45,'Aux1'!$A$1:$B$12,2,FALSE)) ->  | AB45: =IF(AA45="", COUNTIF(AA$5:AA45, ""),"") -> 41 | AC45: 00:00:00.354 | AD45: 4.1e-06
N46: 0 | O46: 0 | S46: =VLOOKUP(D46,PC_Rec!$O$5:$P$18,2,FALSE) ->  | T46: =IF(D46="","",VLOOKUP(D46,PC_Rec!$O$5:$Q$18,3,FALSE)) ->  | W46: =IF(V46="","",VLOOKUP(V46,'Aux1'!$A$1:$B$12,2,FALSE)) ->  | X46: Não pago | AA46: =IF(Z46="","",VLOOKUP(Z46,'Aux1'!$A$1:$B$12,2,FALSE)) ->  | AB46: =IF(AA46="", COUNTIF(AA$5:AA46, ""),"") -> 42 | AC46: 00:00:00.363 | AD46: 4.2e-06
N47: 0 | O47: 0 | S47: =VLOOKUP(D47,PC_Rec!$O$5:$P$18,2,FALSE) ->  | T47: =IF(D47="","",VLOOKUP(D47,PC_Rec!$O$5:$Q$18,3,FALSE)) ->  | W47: =IF(V47="","",VLOOKUP(V47,'Aux1'!$A$1:$B$12,2,FALSE)) ->  | X47: Não pago | AA47: =IF(Z47="","",VLOOKUP(Z47,'Aux1'!$A$1:$B$12,2,FALSE)) ->  | AB47: =IF(AA47="", COUNTIF(AA$5:AA47, ""),"") -> 43 | AC47: 00:00:00.372 | AD47: 4.3e-06
N48: 0 | O48: 0 | S48: =VLOOKUP(D48,PC_Rec!$O$5:$P$18,2,FALSE) ->  | T48: =IF(D48="","",VLOOKUP(D48,PC_Rec!$O$5:$Q$18,3,FALSE)) ->  | W48: =IF(V48="","",VLOOKUP(V48,'Aux1'!$A$1:$B$12,2,FALSE)) ->  | X48: Não pago | AA48: =IF(Z48="","",VLOOKUP(Z48,'Aux1'!$A$1:$B$12,2,FALSE)) ->  | AB48: =IF(AA48="", COUNTIF(AA$5:AA48, ""),"") -> 44 | AC48: 00:00:00.380 | AD48: 4.4e-06
N49: 0 | O49: 0 | S49: =VLOOKUP(D49,PC_Rec!$O$5:$P$18,2,FALSE) ->  | T49: =IF(D49="","",VLOOKUP(D49,PC_Rec!$O$5:$Q$18,3,FALSE)) ->  | W49: =IF(V49="","",VLOOKUP(V49,'Aux1'!$A$1:$B$12,2,FALSE)) ->  | X49: Não pago | AA49: =IF(Z49="","",VLOOKUP(Z49,'Aux1'!$A$1:$B$12,2,FALSE)) ->  | AB49: =IF(AA49="", COUNTIF(AA$5:AA49, ""),"") -> 45 | AC49: 00:00:00.389 | AD49: 4.5e-06
N50: 0 | O50: 0 | S50: =VLOOKUP(D50,PC_Rec!$O$5:$P$18,2,FALSE) ->  | T50: =IF(D50="","",VLOOKUP(D50,PC_Rec!$O$5:$Q$18,3,FALSE)) ->  | W50: =IF(V50="","",VLOOKUP(V50,'Aux1'!$A$1:$B$12,2,FALSE)) ->  | X50: Não pago | AA50: =IF(Z50="","",VLOOKUP(Z50,'Aux1'!$A$1:$B$12,2,FALSE)) ->  | AB50: =IF(AA50="", COUNTIF(AA$5:AA50, ""),"") -> 46 | AC50: 00:00:00.397 | AD50: 4.6e-06
N51: 0 | O51: 0 | S51: =VLOOKUP(D51,PC_Rec!$O$5:$P$18,2,FALSE) ->  | T51: =IF(D51="","",VLOOKUP(D51,PC_Rec!$O$5:$Q$18,3,FALSE)) ->  | W51: =IF(V51="","",VLOOKUP(V51,'Aux1'!$A$1:$B$12,2,FALSE)) ->  | X51: Não pago | AA51: =IF(Z51="","",VLOOKUP(Z51,'Aux1'!$A$1:$B$12,2,FALSE)) ->  | AB51: =IF(AA51="", COUNTIF(AA$5:AA51, ""),"") -> 47 | AC51: 00:00:00.406 | AD51: 4.7e-06
N52: 0 | O52: 0 | S52: =VLOOKUP(D52,PC_Rec!$O$5:$P$18,2,FALSE) ->  | T52: =IF(D52="","",VLOOKUP(D52,PC_Rec!$O$5:$Q$18,3,FALSE)) ->  | W52: =IF(V52="","",VLOOKUP(V52,'Aux1'!$A$1:$B$12,2,FALSE)) ->  | X52: Não pago | AA52: =IF(Z52="","",VLOOKUP(Z52,'Aux1'!$A$1:$B$12,2,FALSE)) ->  | AB52: =IF(AA52="", COUNTIF(AA$5:AA52, ""),"") -> 48 | AC52: 00:00:00.415 | AD52: 4.8e-06
N53: 0 | O53: 0 | S53: =VLOOKUP(D53,PC_Rec!$O$5:$P$18,2,FALSE) ->  | T53: =IF(D53="","",VLOOKUP(D53,PC_Rec!$O$5:$Q$18,3,FALSE)) ->  | W53: =IF(V53="","",VLOOKUP(V53,'Aux1'!$A$1:$B$12,2,FALSE)) ->  | X53: Não pago | AA53: =IF(Z53="","",VLOOKUP(Z53,'Aux1'!$A$1:$B$12,2,FALSE)) ->  | AB53: =IF(AA53="", COUNTIF(AA$5:AA53, ""),"") -> 49 | AC53: 00:00:00.423 | AD53: 4.9e-06
N54: 0 | O54: 0 | S54: =VLOOKUP(D54,PC_Rec!$O$5:$P$18,2,FALSE) ->  | T54: =IF(D54="","",VLOOKUP(D54,PC_Rec!$O$5:$Q$18,3,FALSE)) ->  | W54: =IF(V54="","",VLOOKUP(V54,'Aux1'!$A$1:$B$12,2,FALSE)) ->  | X54: Não pago | AA54: =IF(Z54="","",VLOOKUP(Z54,'Aux1'!$A$1:$B$12,2,FALSE)) ->  | AB54: =IF(AA54="", COUNTIF(AA$5:AA54, ""),"") -> 50 | AC54: 00:00:00.432 | AD54: 5e-06
N55: 0 | O55: 0 | S55: =VLOOKUP(D55,PC_Rec!$O$5:$P$18,2,FALSE) ->  | T55: =IF(D55="","",VLOOKUP(D55,PC_Rec!$O$5:$Q$18,3,FALSE)) ->  | W55: =IF(V55="","",VLOOKUP(V55,'Aux1'!$A$1:$B$12,2,FALSE)) ->  | X55: Não pago | AA55: =IF(Z55="","",VLOOKUP(Z55,'Aux1'!$A$1:$B$12,2,FALSE)) ->  | AB55: =IF(AA55="", COUNTIF(AA$5:AA55, ""),"") -> 51 | AC55: 00:00:00.441 | AD55: 5.1e-06
N56: 0 | O56: 0 | S56: =VLOOKUP(D56,PC_Rec!$O$5:$P$18,2,FALSE) ->  | T56: =IF(D56="","",VLOOKUP(D56,PC_Rec!$O$5:$Q$18,3,FALSE)) ->  | W56: =IF(V56="","",VLOOKUP(V56,'Aux1'!$A$1:$B$12,2,FALSE)) ->  | X56: Não pago | AA56: =IF(Z56="","",VLOOKUP(Z56,'Aux1'!$A$1:$B$12,2,FALSE)) ->  | AB56: =IF(AA56="", COUNTIF(AA$5:AA56, ""),"") -> 52 | AC56: 00:00:00.449 | AD56: 5.2e-06
N57: 0 | O57: 0 | S57: =VLOOKUP(D57,PC_Rec!$O$5:$P$18,2,FALSE) ->  | T57: =IF(D57="","",VLOOKUP(D57,PC_Rec!$O$5:$Q$18,3,FALSE)) ->  | W57: =IF(V57="","",VLOOKUP(V57,'Aux1'!$A$1:$B$12,2,FALSE)) ->  | X57: Não pago | AA57: =IF(Z57="","",VLOOKUP(Z57,'Aux1'!$A$1:$B$12,2,FALSE)) ->  | AB57: =IF(AA57="", COUNTIF(AA$5:AA57, ""),"") -> 53 | AC57: 00:00:00.458 | AD57: 5.3e-06
N58: 0 | O58: 0 | S58: =VLOOKUP(D58,PC_Rec!$O$5:$P$18,2,FALSE) ->  | T58: =IF(D58="","",VLOOKUP(D58,PC_Rec!$O$5:$Q$18,3,FALSE)) ->  | W58: =IF(V58="","",VLOOKUP(V58,'Aux1'!$A$1:$B$12,2,FALSE)) ->  | X58: Não pago | AA58: =IF(Z58="","",VLOOKUP(Z58,'Aux1'!$A$1:$B$12,2,FALSE)) ->  | AB58: =IF(AA58="", COUNTIF(AA$5:AA58, ""),"") -> 54 | AC58: 00:00:00.467 | AD58: 5.4e-06
N59: 0 | O59: 0 | S59: =VLOOKUP(D59,PC_Rec!$O$5:$P$18,2,FALSE) ->  | T59: =IF(D59="","",VLOOKUP(D59,PC_Rec!$O$5:$Q$18,3,FALSE)) ->  | W59: =IF(V59="","",VLOOKUP(V59,'Aux1'!$A$1:$B$12,2,FALSE)) ->  | X59: Não pago | AA59: =IF(Z59="","",VLOOKUP(Z59,'Aux1'!$A$1:$B$12,2,FALSE)) ->  | AB59: =IF(AA59="", COUNTIF(AA$5:AA59, ""),"") -> 55 | AC59: 00:00:00.475 | AD59: 5.5e-06
N60: 0 | O60: 0 | S60: =VLOOKUP(D60,PC_Rec!$O$5:$P$18,2,FALSE) ->  | T60: =IF(D60="","",VLOOKUP(D60,PC_Rec!$O$5:$Q$18,3,FALSE)) ->  | W60: =IF(V60="","",VLOOKUP(V60,'Aux1'!$A$1:$B$12,2,FALSE)) ->  | X60: Não pago | AA60: =IF(Z60="","",VLOOKUP(Z60,'Aux1'!$A$1:$B$12,2,FALSE)) ->  | AB60: =IF(AA60="", COUNTIF(AA$5:AA60, ""),"") -> 56 | AC60: 00:00:00.484 | AD60: 5.6e-06
N61: 0 | O61: 0 | S61: =VLOOKUP(D61,PC_Rec!$O$5:$P$18,2,FALSE) ->  | T61: =IF(D61="","",VLOOKUP(D61,PC_Rec!$O$5:$Q$18,3,FALSE)) ->  | W61: =IF(V61="","",VLOOKUP(V61,'Aux1'!$A$1:$B$12,2,FALSE)) ->  | X61: Não pago | AA61: =IF(Z61="","",VLOOKUP(Z61,'Aux1'!$A$1:$B$12,2,FALSE)) ->  | AB61: =IF(AA61="", COUNTIF(AA$5:AA61, ""),"") -> 57 | AC61: 00:00:00.492 | AD61: 5.7e-06
N62: 0 | O62: 0 | S62: =VLOOKUP(D62,PC_Rec!$O$5:$P$18,2,FALSE) ->  | T62: =IF(D62="","",VLOOKUP(D62,PC_Rec!$O$5:$Q$18,3,FALSE)) ->  | W62: =IF(V62="","",VLOOKUP(V62,'Aux1'!$A$1:$B$12,2,FALSE)) ->  | X62: Não pago | AA62: =IF(Z62="","",VLOOKUP(Z62,'Aux1'!$A$1:$B$12,2,FALSE)) ->  | AB62: =IF(AA62="", COUNTIF(AA$5:AA62, ""),"") -> 58 | AC62: 00:00:00.501 | AD62: 5.8e-06
N63: 0 | O63: 0 | S63: =VLOOKUP(D63,PC_Rec!$O$5:$P$18,2,FALSE) ->  | T63: =IF(D63="","",VLOOKUP(D63,PC_Rec!$O$5:$Q$18,3,FALSE)) ->  | W63: =IF(V63="","",VLOOKUP(V63,'Aux1'!$A$1:$B$12,2,FALSE)) ->  | X63: Não pago | AA63: =IF(Z63="","",VLOOKUP(Z63,'Aux1'!$A$1:$B$12,2,FALSE)) ->  | AB63: =IF(AA63="", COUNTIF(AA$5:AA63, ""),"") -> 59 | AC63: 00:00:00.510 | AD63: 5.9e-06
N64: 0 | O64: 0 | S64: =VLOOKUP(D64,PC_Rec!$O$5:$P$18,2,FALSE) ->  | T64: =IF(D64="","",VLOOKUP(D64,PC_Rec!$O$5:$Q$18,3,FALSE)) ->  | W64: =IF(V64="","",VLOOKUP(V64,'Aux1'!$A$1:$B$12,2,FALSE)) ->  | X64: Não pago | AA64: =IF(Z64="","",VLOOKUP(Z64,'Aux1'!$A$1:$B$12,2,FALSE)) ->  | AB64: =IF(AA64="", COUNTIF(AA$5:AA64, ""),"") -> 60 | AC64: 00:00:00.518 | AD64: 6e-06
N65: 0 | O65: 0 | S65: =VLOOKUP(D65,PC_Rec!$O$5:$P$18,2,FALSE) ->  | T65: =IF(D65="","",VLOOKUP(D65,PC_Rec!$O$5:$Q$18,3,FALSE)) ->  | W65: =IF(V65="","",VLOOKUP(V65,'Aux1'!$A$1:$B$12,2,FALSE)) ->  | X65: Não pago | AA65: =IF(Z65="","",VLOOKUP(Z65,'Aux1'!$A$1:$B$12,2,FALSE)) ->  | AB65: =IF(AA65="", COUNTIF(AA$5:AA65, ""),"") -> 61 | AC65: 00:00:00.527 | AD65: 6.1e-06
N66: 0 | O66: 0 | S66: =VLOOKUP(D66,PC_Rec!$O$5:$P$18,2,FALSE) ->  | T66: =IF(D66="","",VLOOKUP(D66,PC_Rec!$O$5:$Q$18,3,FALSE)) ->  | W66: =IF(V66="","",VLOOKUP(V66,'Aux1'!$A$1:$B$12,2,FALSE)) ->  | X66: Não pago | AA66: =IF(Z66="","",VLOOKUP(Z66,'Aux1'!$A$1:$B$12,2,FALSE)) ->  | AB66: =IF(AA66="", COUNTIF(AA$5:AA66, ""),"") -> 62 | AC66: 00:00:00.536 | AD66: 6.2e-06
N67: 0 | O67: 0 | S67: =VLOOKUP(D67,PC_Rec!$O$5:$P$18,2,FALSE) ->  | T67: =IF(D67="","",VLOOKUP(D67,PC_Rec!$O$5:$Q$18,3,FALSE)) ->  | W67: =IF(V67="","",VLOOKUP(V67,'Aux1'!$A$1:$B$12,2,FALSE)) ->  | X67: Não pago | AA67: =IF(Z67="","",VLOOKUP(Z67,'Aux1'!$A$1:$B$12,2,FALSE)) ->  | AB67: =IF(AA67="", COUNTIF(AA$5:AA67, ""),"") -> 63 | AC67: 00:00:00.544 | AD67: 6.3e-06
N68: 0 | O68: 0 | S68: =VLOOKUP(D68,PC_Rec!$O$5:$P$18,2,FALSE) ->  | T68: =IF(D68="","",VLOOKUP(D68,PC_Rec!$O$5:$Q$18,3,FALSE)) ->  | W68: =IF(V68="","",VLOOKUP(V68,'Aux1'!$A$1:$B$12,2,FALSE)) ->  | X68: Não pago | AA68: =IF(Z68="","",VLOOKUP(Z68,'Aux1'!$A$1:$B$12,2,FALSE)) ->  | AB68: =IF(AA68="", COUNTIF(AA$5:AA68, ""),"") -> 64 | AC68: 00:00:00.553 | AD68: 6.4e-06
N69: 0 | O69: 0 | S69: =VLOOKUP(D69,PC_Rec!$O$5:$P$18,2,FALSE) ->  | T69: =IF(D69="","",VLOOKUP(D69,PC_Rec!$O$5:$Q$18,3,FALSE)) ->  | U69: =IF(C69="","",DAY(C69)) ->  | V69: =IF(C69="","",MONTH(C69)) ->  | W69: =IF(V69="","",VLOOKUP(V69,'Aux1'!$A$1:$B$12,2,FALSE)) ->  | X69: =IF(M69<>"","Pago","Não pago") -> Não pago | Y69: =IF(M69="","",DAY(M69)) ->  | Z69: =IF(M69="","",MONTH(M69)) ->  | AA69: =IF(Z69="","",VLOOKUP(Z69,'Aux1'!$A$1:$B$12,2,FALSE)) ->  | AB69: =IF(AA69="", COUNTIF(AA$5:AA69, ""),"") -> 65 | AC69: 00:00:00.562 | AD69: 6.5e-06 | AE69: =IF(AND(X69="Não pago",L69<>0),C69,"") ->  | AF69: =IF(AE69="","",C69) ->  | AG69: =IF(AE69="","",D69) ->  | AH69: =IF(AE69="","",E69) ->  | AI69: =IF(AE69="","",F69) ->  | AJ69: =IF(AE69="","",L69) -> 
N70: =O70 -> 0 | O70: =Q70+IF(AND(T70="Ingresos",X70="Pago",AA70=$C$3),L70,IF(AND(T70="gasto",X70="Pago",AA70=$C$3),-L70,0)) -> 0 | S70: =VLOOKUP(D70,PC_Rec!$O$5:$P$18,2,FALSE) ->  | T70: =IF(D70="","",VLOOKUP(D70,PC_Rec!$O$5:$Q$18,3,FALSE)) ->  | W70: =IF(V70="","",VLOOKUP(V70,'Aux1'!$A$1:$B$12,2,FALSE)) ->  | X70: Não pago | AA70: =IF(Z70="","",VLOOKUP(Z70,'Aux1'!$A$1:$B$12,2,FALSE)) ->  | AB70: =IF(AA70="", COUNTIF(AA$5:AA70, ""),"") -> 66 | AC70: =SUM(AD70:AE70) -> 00:00:00.570 | AD70: 6.6e-06
N71: 0 | O71: 0 | S71: =VLOOKUP(D71,PC_Rec!$O$5:$P$18,2,FALSE) ->  | T71: =IF(D71="","",VLOOKUP(D71,PC_Rec!$O$5:$Q$18,3,FALSE)) ->  | W71: =IF(V71="","",VLOOKUP(V71,'Aux1'!$A$1:$B$12,2,FALSE)) ->  | X71: Não pago | AA71: =IF(Z71="","",VLOOKUP(Z71,'Aux1'!$A$1:$B$12,2,FALSE)) ->  | AB71: =IF(AA71="", COUNTIF(AA$5:AA71, ""),"") -> 67 | AC71: 00:00:00.579 | AD71: 6.7e-06
N72: 0 | O72: 0 | S72: =VLOOKUP(D72,PC_Rec!$O$5:$P$18,2,FALSE) ->  | T72: =IF(D72="","",VLOOKUP(D72,PC_Rec!$O$5:$Q$18,3,FALSE)) ->  | W72: =IF(V72="","",VLOOKUP(V72,'Aux1'!$A$1:$B$12,2,FALSE)) ->  | X72: Não pago | AA72: =IF(Z72="","",VLOOKUP(Z72,'Aux1'!$A$1:$B$12,2,FALSE)) ->  | AB72: =IF(AA72="", COUNTIF(AA$5:AA72, ""),"") -> 68 | AC72: 00:00:00.588 | AD72: 6.8e-06
N73: 0 | O73: 0 | S73: =VLOOKUP(D73,PC_Rec!$O$5:$P$18,2,FALSE) ->  | T73: =IF(D73="","",VLOOKUP(D73,PC_Rec!$O$5:$Q$18,3,FALSE)) ->  | W73: =IF(V73="","",VLOOKUP(V73,'Aux1'!$A$1:$B$12,2,FALSE)) ->  | X73: Não pago | AA73: =IF(Z73="","",VLOOKUP(Z73,'Aux1'!$A$1:$B$12,2,FALSE)) ->  | AB73: =IF(AA73="", COUNTIF(AA$5:AA73, ""),"") -> 69 | AC73: 00:00:00.596 | AD73: 6.9e-06
N74: 0 | O74: 0 | S74: =VLOOKUP(D74,PC_Rec!$O$5:$P$18,2,FALSE) ->  | T74: =IF(D74="","",VLOOKUP(D74,PC_Rec!$O$5:$Q$18,3,FALSE)) ->  | W74: =IF(V74="","",VLOOKUP(V74,'Aux1'!$A$1:$B$12,2,FALSE)) ->  | X74: Não pago | AA74: =IF(Z74="","",VLOOKUP(Z74,'Aux1'!$A$1:$B$12,2,FALSE)) ->  | AB74: =IF(AA74="", COUNTIF(AA$5:AA74, ""),"") -> 70 | AC74: 00:00:00.605 | AD74: 7e-06
N75: 0 | O75: 0 | S75: =VLOOKUP(D75,PC_Rec!$O$5:$P$18,2,FALSE) ->  | T75: =IF(D75="","",VLOOKUP(D75,PC_Rec!$O$5:$Q$18,3,FALSE)) ->  | W75: =IF(V75="","",VLOOKUP(V75,'Aux1'!$A$1:$B$12,2,FALSE)) ->  | X75: Não pago | AA75: =IF(Z75="","",VLOOKUP(Z75,'Aux1'!$A$1:$B$12,2,FALSE)) ->  | AB75: =IF(AA75="", COUNTIF(AA$5:AA75, ""),"") -> 71 | AC75: 00:00:00.613 | AD75: 7.1e-06
N76: 0 | O76: 0 | S76: =VLOOKUP(D76,PC_Rec!$O$5:$P$18,2,FALSE) ->  | T76: =IF(D76="","",VLOOKUP(D76,PC_Rec!$O$5:$Q$18,3,FALSE)) ->  | W76: =IF(V76="","",VLOOKUP(V76,'Aux1'!$A$1:$B$12,2,FALSE)) ->  | X76: Não pago | AA76: =IF(Z76="","",VLOOKUP(Z76,'Aux1'!$A$1:$B$12,2,FALSE)) ->  | AB76: =IF(AA76="", COUNTIF(AA$5:AA76, ""),"") -> 72 | AC76: 00:00:00.622 | AD76: 7.2e-06
N77: 0 | O77: 0 | S77: =VLOOKUP(D77,PC_Rec!$O$5:$P$18,2,FALSE) ->  | T77: =IF(D77="","",VLOOKUP(D77,PC_Rec!$O$5:$Q$18,3,FALSE)) ->  | W77: =IF(V77="","",VLOOKUP(V77,'Aux1'!$A$1:$B$12,2,FALSE)) ->  | X77: Não pago | AA77: =IF(Z77="","",VLOOKUP(Z77,'Aux1'!$A$1:$B$12,2,FALSE)) ->  | AB77: =IF(AA77="", COUNTIF(AA$5:AA77, ""),"") -> 73 | AC77: 00:00:00.631 | AD77: 7.3e-06
N78: 0 | O78: 0 | S78: =VLOOKUP(D78,PC_Rec!$O$5:$P$18,2,FALSE) ->  | T78: =IF(D78="","",VLOOKUP(D78,PC_Rec!$O$5:$Q$18,3,FALSE)) ->  | W78: =IF(V78="","",VLOOKUP(V78,'Aux1'!$A$1:$B$12,2,FALSE)) ->  | X78: Não pago | AA78: =IF(Z78="","",VLOOKUP(Z78,'Aux1'!$A$1:$B$12,2,FALSE)) ->  | AB78: =IF(AA78="", COUNTIF(AA$5:AA78, ""),"") -> 74 | AC78: 00:00:00.639 | AD78: 7.4e-06
N79: 0 | O79: 0 | S79: =VLOOKUP(D79,PC_Rec!$O$5:$P$18,2,FALSE) ->  | T79: =IF(D79="","",VLOOKUP(D79,PC_Rec!$O$5:$Q$18,3,FALSE)) ->  | W79: =IF(V79="","",VLOOKUP(V79,'Aux1'!$A$1:$B$12,2,FALSE)) ->  | X79: Não pago | AA79: =IF(Z79="","",VLOOKUP(Z79,'Aux1'!$A$1:$B$12,2,FALSE)) ->  | AB79: =IF(AA79="", COUNTIF(AA$5:AA79, ""),"") -> 75 | AC79: 00:00:00.648 | AD79: 7.5e-06
N80: 0 | O80: 0 | S80: =VLOOKUP(D80,PC_Rec!$O$5:$P$18,2,FALSE) ->  | T80: =IF(D80="","",VLOOKUP(D80,PC_Rec!$O$5:$Q$18,3,FALSE)) ->  | W80: =IF(V80="","",VLOOKUP(V80,'Aux1'!$A$1:$B$12,2,FALSE)) ->  | X80: Não pago | AA80: =IF(Z80="","",VLOOKUP(Z80,'Aux1'!$A$1:$B$12,2,FALSE)) ->  | AB80: =IF(AA80="", COUNTIF(AA$5:AA80, ""),"") -> 76 | AC80: 00:00:00.657 | AD80: 7.6e-06
N81: 0 | O81: 0 | S81: =VLOOKUP(D81,PC_Rec!$O$5:$P$18,2,FALSE) ->  | T81: =IF(D81="","",VLOOKUP(D81,PC_Rec!$O$5:$Q$18,3,FALSE)) ->  | W81: =IF(V81="","",VLOOKUP(V81,'Aux1'!$A$1:$B$12,2,FALSE)) ->  | X81: Não pago | AA81: =IF(Z81="","",VLOOKUP(Z81,'Aux1'!$A$1:$B$12,2,FALSE)) ->  | AB81: =IF(AA81="", COUNTIF(AA$5:AA81, ""),"") -> 77 | AC81: 00:00:00.665 | AD81: 7.7e-06
N82: 0 | O82: 0 | S82: =VLOOKUP(D82,PC_Rec!$O$5:$P$18,2,FALSE) ->  | T82: =IF(D82="","",VLOOKUP(D82,PC_Rec!$O$5:$Q$18,3,FALSE)) ->  | W82: =IF(V82="","",VLOOKUP(V82,'Aux1'!$A$1:$B$12,2,FALSE)) ->  | X82: Não pago | AA82: =IF(Z82="","",VLOOKUP(Z82,'Aux1'!$A$1:$B$12,2,FALSE)) ->  | AB82: =IF(AA82="", COUNTIF(AA$5:AA82, ""),"") -> 78 | AC82: 00:00:00.674 | AD82: 7.8e-06
N83: 0 | O83: 0 | S83: =VLOOKUP(D83,PC_Rec!$O$5:$P$18,2,FALSE) ->  | T83: =IF(D83="","",VLOOKUP(D83,PC_Rec!$O$5:$Q$18,3,FALSE)) ->  | W83: =IF(V83="","",VLOOKUP(V83,'Aux1'!$A$1:$B$12,2,FALSE)) ->  | X83: Não pago | AA83: =IF(Z83="","",VLOOKUP(Z83,'Aux1'!$A$1:$B$12,2,FALSE)) ->  | AB83: =IF(AA83="", COUNTIF(AA$5:AA83, ""),"") -> 79 | AC83: 00:00:00.683 | AD83: 7.9e-06
N84: 0 | O84: 0 | S84: =VLOOKUP(D84,PC_Rec!$O$5:$P$18,2,FALSE) ->  | T84: =IF(D84="","",VLOOKUP(D84,PC_Rec!$O$5:$Q$18,3,FALSE)) ->  | W84: =IF(V84="","",VLOOKUP(V84,'Aux1'!$A$1:$B$12,2,FALSE)) ->  | X84: Não pago | AA84: =IF(Z84="","",VLOOKUP(Z84,'Aux1'!$A$1:$B$12,2,FALSE)) ->  | AB84: =IF(AA84="", COUNTIF(AA$5:AA84, ""),"") -> 80 | AC84: 00:00:00.691 | AD84: 8e-06
N85: 0 | O85: 0 | S85: =VLOOKUP(D85,PC_Rec!$O$5:$P$18,2,FALSE) ->  | T85: =IF(D85="","",VLOOKUP(D85,PC_Rec!$O$5:$Q$18,3,FALSE)) ->  | W85: =IF(V85="","",VLOOKUP(V85,'Aux1'!$A$1:$B$12,2,FALSE)) ->  | X85: Não pago | AA85: =IF(Z85="","",VLOOKUP(Z85,'Aux1'!$A$1:$B$12,2,FALSE)) ->  | AB85: =IF(AA85="", COUNTIF(AA$5:AA85, ""),"") -> 81 | AC85: 00:00:00.700 | AD85: 8.1e-06
N86: 0 | O86: 0 | S86: =VLOOKUP(D86,PC_Rec!$O$5:$P$18,2,FALSE) ->  | T86: =IF(D86="","",VLOOKUP(D86,PC_Rec!$O$5:$Q$18,3,FALSE)) ->  | W86: =IF(V86="","",VLOOKUP(V86,'Aux1'!$A$1:$B$12,2,FALSE)) ->  | X86: Não pago | AA86: =IF(Z86="","",VLOOKUP(Z86,'Aux1'!$A$1:$B$12,2,FALSE)) ->  | AB86: =IF(AA86="", COUNTIF(AA$5:AA86, ""),"") -> 82 | AC86: 00:00:00.708 | AD86: 8.2e-06
N87: 0 | O87: 0 | S87: =VLOOKUP(D87,PC_Rec!$O$5:$P$18,2,FALSE) ->  | T87: =IF(D87="","",VLOOKUP(D87,PC_Rec!$O$5:$Q$18,3,FALSE)) ->  | W87: =IF(V87="","",VLOOKUP(V87,'Aux1'!$A$1:$B$12,2,FALSE)) ->  | X87: Não pago | AA87: =IF(Z87="","",VLOOKUP(Z87,'Aux1'!$A$1:$B$12,2,FALSE)) ->  | AB87: =IF(AA87="", COUNTIF(AA$5:AA87, ""),"") -> 83 | AC87: 00:00:00.717 | AD87: 8.3e-06
N88: 0 | O88: 0 | S88: =VLOOKUP(D88,PC_Rec!$O$5:$P$18,2,FALSE) ->  | T88: =IF(D88="","",VLOOKUP(D88,PC_Rec!$O$5:$Q$18,3,FALSE)) ->  | W88: =IF(V88="","",VLOOKUP(V88,'Aux1'!$A$1:$B$12,2,FALSE)) ->  | X88: Não pago | AA88: =IF(Z88="","",VLOOKUP(Z88,'Aux1'!$A$1:$B$12,2,FALSE)) ->  | AB88: =IF(AA88="", COUNTIF(AA$5:AA88, ""),"") -> 84 | AC88: 00:00:00.726 | AD88: 8.4e-06
N89: 0 | O89: 0 | S89: =VLOOKUP(D89,PC_Rec!$O$5:$P$18,2,FALSE) ->  | T89: =IF(D89="","",VLOOKUP(D89,PC_Rec!$O$5:$Q$18,3,FALSE)) ->  | W89: =IF(V89="","",VLOOKUP(V89,'Aux1'!$A$1:$B$12,2,FALSE)) ->  | X89: Não pago | AA89: =IF(Z89="","",VLOOKUP(Z89,'Aux1'!$A$1:$B$12,2,FALSE)) ->  | AB89: =IF(AA89="", COUNTIF(AA$5:AA89, ""),"") -> 85 | AC89: 00:00:00.734 | AD89: 8.5e-06
N90: 0 | O90: 0 | S90: =VLOOKUP(D90,PC_Rec!$O$5:$P$18,2,FALSE) ->  | T90: =IF(D90="","",VLOOKUP(D90,PC_Rec!$O$5:$Q$18,3,FALSE)) ->  | W90: =IF(V90="","",VLOOKUP(V90,'Aux1'!$A$1:$B$12,2,FALSE)) ->  | X90: Não pago | AA90: =IF(Z90="","",VLOOKUP(Z90,'Aux1'!$A$1:$B$12,2,FALSE)) ->  | AB90: =IF(AA90="", COUNTIF(AA$5:AA90, ""),"") -> 86 | AC90: 00:00:00.743 | AD90: 8.6e-06
N91: 0 | O91: 0 | S91: =VLOOKUP(D91,PC_Rec!$O$5:$P$18,2,FALSE) ->  | T91: =IF(D91="","",VLOOKUP(D91,PC_Rec!$O$5:$Q$18,3,FALSE)) ->  | W91: =IF(V91="","",VLOOKUP(V91,'Aux1'!$A$1:$B$12,2,FALSE)) ->  | X91: Não pago | AA91: =IF(Z91="","",VLOOKUP(Z91,'Aux1'!$A$1:$B$12,2,FALSE)) ->  | AB91: =IF(AA91="", COUNTIF(AA$5:AA91, ""),"") -> 87 | AC91: 00:00:00.752 | AD91: 8.7e-06
N92: 0 | O92: 0 | S92: =VLOOKUP(D92,PC_Rec!$O$5:$P$18,2,FALSE) ->  | T92: =IF(D92="","",VLOOKUP(D92,PC_Rec!$O$5:$Q$18,3,FALSE)) ->  | W92: =IF(V92="","",VLOOKUP(V92,'Aux1'!$A$1:$B$12,2,FALSE)) ->  | X92: Não pago | AA92: =IF(Z92="","",VLOOKUP(Z92,'Aux1'!$A$1:$B$12,2,FALSE)) ->  | AB92: =IF(AA92="", COUNTIF(AA$5:AA92, ""),"") -> 88 | AC92: 00:00:00.760 | AD92: 8.8e-06
N93: 0 | O93: 0 | S93: =VLOOKUP(D93,PC_Rec!$O$5:$P$18,2,FALSE) ->  | T93: =IF(D93="","",VLOOKUP(D93,PC_Rec!$O$5:$Q$18,3,FALSE)) ->  | W93: =IF(V93="","",VLOOKUP(V93,'Aux1'!$A$1:$B$12,2,FALSE)) ->  | X93: Não pago | AA93: =IF(Z93="","",VLOOKUP(Z93,'Aux1'!$A$1:$B$12,2,FALSE)) ->  | AB93: =IF(AA93="", COUNTIF(AA$5:AA93, ""),"") -> 89 | AC93: 00:00:00.769 | AD93: 8.9e-06
N94: 0 | O94: 0 | S94: =VLOOKUP(D94,PC_Rec!$O$5:$P$18,2,FALSE) ->  | T94: =IF(D94="","",VLOOKUP(D94,PC_Rec!$O$5:$Q$18,3,FALSE)) ->  | W94: =IF(V94="","",VLOOKUP(V94,'Aux1'!$A$1:$B$12,2,FALSE)) ->  | X94: Não pago | AA94: =IF(Z94="","",VLOOKUP(Z94,'Aux1'!$A$1:$B$12,2,FALSE)) ->  | AB94: =IF(AA94="", COUNTIF(AA$5:AA94, ""),"") -> 90 | AC94: 00:00:00.778 | AD94: 9e-06
N95: 0 | O95: 0 | S95: =VLOOKUP(D95,PC_Rec!$O$5:$P$18,2,FALSE) ->  | T95: =IF(D95="","",VLOOKUP(D95,PC_Rec!$O$5:$Q$18,3,FALSE)) ->  | W95: =IF(V95="","",VLOOKUP(V95,'Aux1'!$A$1:$B$12,2,FALSE)) ->  | X95: Não pago | AA95: =IF(Z95="","",VLOOKUP(Z95,'Aux1'!$A$1:$B$12,2,FALSE)) ->  | AB95: =IF(AA95="", COUNTIF(AA$5:AA95, ""),"") -> 91 | AC95: 00:00:00.786 | AD95: 9.1e-06
N96: 0 | O96: 0 | S96: =VLOOKUP(D96,PC_Rec!$O$5:$P$18,2,FALSE) ->  | T96: =IF(D96="","",VLOOKUP(D96,PC_Rec!$O$5:$Q$18,3,FALSE)) ->  | W96: =IF(V96="","",VLOOKUP(V96,'Aux1'!$A$1:$B$12,2,FALSE)) ->  | X96: Não pago | AA96: =IF(Z96="","",VLOOKUP(Z96,'Aux1'!$A$1:$B$12,2,FALSE)) ->  | AB96: =IF(AA96="", COUNTIF(AA$5:AA96, ""),"") -> 92 | AC96: 00:00:00.795 | AD96: 9.2e-06
N97: 0 | O97: 0 | S97: =VLOOKUP(D97,PC_Rec!$O$5:$P$18,2,FALSE) ->  | T97: =IF(D97="","",VLOOKUP(D97,PC_Rec!$O$5:$Q$18,3,FALSE)) ->  | W97: =IF(V97="","",VLOOKUP(V97,'Aux1'!$A$1:$B$12,2,FALSE)) ->  | X97: Não pago | AA97: =IF(Z97="","",VLOOKUP(Z97,'Aux1'!$A$1:$B$12,2,FALSE)) ->  | AB97: =IF(AA97="", COUNTIF(AA$5:AA97, ""),"") -> 93 | AC97: 00:00:00.804 | AD97: 9.3e-06
N98: 0 | O98: 0 | S98: =VLOOKUP(D98,PC_Rec!$O$5:$P$18,2,FALSE) ->  | T98: =IF(D98="","",VLOOKUP(D98,PC_Rec!$O$5:$Q$18,3,FALSE)) ->  | W98: =IF(V98="","",VLOOKUP(V98,'Aux1'!$A$1:$B$12,2,FALSE)) ->  | X98: Não pago | AA98: =IF(Z98="","",VLOOKUP(Z98,'Aux1'!$A$1:$B$12,2,FALSE)) ->  | AB98: =IF(AA98="", COUNTIF(AA$5:AA98, ""),"") -> 94 | AC98: 00:00:00.812 | AD98: 9.4e-06
N99: 0 | O99: 0 | S99: =VLOOKUP(D99,PC_Rec!$O$5:$P$18,2,FALSE) ->  | T99: =IF(D99="","",VLOOKUP(D99,PC_Rec!$O$5:$Q$18,3,FALSE)) ->  | W99: =IF(V99="","",VLOOKUP(V99,'Aux1'!$A$1:$B$12,2,FALSE)) ->  | X99: Não pago | AA99: =IF(Z99="","",VLOOKUP(Z99,'Aux1'!$A$1:$B$12,2,FALSE)) ->  | AB99: =IF(AA99="", COUNTIF(AA$5:AA99, ""),"") -> 95 | AC99: 00:00:00.821 | AD99: 9.5e-06
N100: 0 | O100: 0 | S100: =VLOOKUP(D100,PC_Rec!$O$5:$P$18,2,FALSE) ->  | T100: =IF(D100="","",VLOOKUP(D100,PC_Rec!$O$5:$Q$18,3,FALSE)) ->  | W100: =IF(V100="","",VLOOKUP(V100,'Aux1'!$A$1:$B$12,2,FALSE)) ->  | X100: Não pago | AA100: =IF(Z100="","",VLOOKUP(Z100,'Aux1'!$A$1:$B$12,2,FALSE)) ->  | AB100: =IF(AA100="", COUNTIF(AA$5:AA100, ""),"") -> 96 | AC100: 00:00:00.829 | AD100: 9.6e-06
N101: 0 | O101: 0 | S101: =VLOOKUP(D101,PC_Rec!$O$5:$P$18,2,FALSE) ->  | T101: =IF(D101="","",VLOOKUP(D101,PC_Rec!$O$5:$Q$18,3,FALSE)) ->  | W101: =IF(V101="","",VLOOKUP(V101,'Aux1'!$A$1:$B$12,2,FALSE)) ->  | X101: Não pago | AA101: =IF(Z101="","",VLOOKUP(Z101,'Aux1'!$A$1:$B$12,2,FALSE)) ->  | AB101: =IF(AA101="", COUNTIF(AA$5:AA101, ""),"") -> 97 | AC101: 00:00:00.838 | AD101: 9.7e-06
N102: 0 | O102: 0 | S102: =VLOOKUP(D102,PC_Rec!$O$5:$P$18,2,FALSE) ->  | T102: =IF(D102="","",VLOOKUP(D102,PC_Rec!$O$5:$Q$18,3,FALSE)) ->  | W102: =IF(V102="","",VLOOKUP(V102,'Aux1'!$A$1:$B$12,2,FALSE)) ->  | X102: Não pago | AA102: =IF(Z102="","",VLOOKUP(Z102,'Aux1'!$A$1:$B$12,2,FALSE)) ->  | AB102: =IF(AA102="", COUNTIF(AA$5:AA102, ""),"") -> 98 | AC102: 00:00:00.847 | AD102: 9.8e-06
N103: 0 | O103: 0 | S103: =VLOOKUP(D103,PC_Rec!$O$5:$P$18,2,FALSE) ->  | T103: =IF(D103="","",VLOOKUP(D103,PC_Rec!$O$5:$Q$18,3,FALSE)) ->  | W103: =IF(V103="","",VLOOKUP(V103,'Aux1'!$A$1:$B$12,2,FALSE)) ->  | X103: Não pago | AA103: =IF(Z103="","",VLOOKUP(Z103,'Aux1'!$A$1:$B$12,2,FALSE)) ->  | AB103: =IF(AA103="", COUNTIF(AA$5:AA103, ""),"") -> 99 | AC103: 00:00:00.855 | AD103: 9.9e-06
N104: 0 | O104: 0 | S104: =VLOOKUP(D104,PC_Rec!$O$5:$P$18,2,FALSE) ->  | T104: =IF(D104="","",VLOOKUP(D104,PC_Rec!$O$5:$Q$18,3,FALSE)) ->  | W104: =IF(V104="","",VLOOKUP(V104,'Aux1'!$A$1:$B$12,2,FALSE)) ->  | X104: Não pago | AA104: =IF(Z104="","",VLOOKUP(Z104,'Aux1'!$A$1:$B$12,2,FALSE)) ->  | AB104: =IF(AA104="", COUNTIF(AA$5:AA104, ""),"") -> 100 | AC104: 00:00:00.864 | AD104: 1e-05
N105: 0 | O105: 0 | S105: =VLOOKUP(D105,PC_Rec!$O$5:$P$18,2,FALSE) ->  | T105: =IF(D105="","",VLOOKUP(D105,PC_Rec!$O$5:$Q$18,3,FALSE)) ->  | W105: =IF(V105="","",VLOOKUP(V105,'Aux1'!$A$1:$B$12,2,FALSE)) ->  | X105: Não pago | AA105: =IF(Z105="","",VLOOKUP(Z105,'Aux1'!$A$1:$B$12,2,FALSE)) ->  | AB105: =IF(AA105="", COUNTIF(AA$5:AA105, ""),"") -> 101 | AC105: 00:00:00.873 | AD105: 1.01e-05
N106: 0 | O106: 0 | S106: =VLOOKUP(D106,PC_Rec!$O$5:$P$18,2,FALSE) ->  | T106: =IF(D106="","",VLOOKUP(D106,PC_Rec!$O$5:$Q$18,3,FALSE)) ->  | W106: =IF(V106="","",VLOOKUP(V106,'Aux1'!$A$1:$B$12,2,FALSE)) ->  | X106: Não pago | AA106: =IF(Z106="","",VLOOKUP(Z106,'Aux1'!$A$1:$B$12,2,FALSE)) ->  | AB106: =IF(AA106="", COUNTIF(AA$5:AA106, ""),"") -> 102 | AC106: 00:00:00.881 | AD106: 1.02e-05
N107: 0 | O107: 0 | S107: =VLOOKUP(D107,PC_Rec!$O$5:$P$18,2,FALSE) ->  | T107: =IF(D107="","",VLOOKUP(D107,PC_Rec!$O$5:$Q$18,3,FALSE)) ->  | W107: =IF(V107="","",VLOOKUP(V107,'Aux1'!$A$1:$B$12,2,FALSE)) ->  | X107: Não pago | AA107: =IF(Z107="","",VLOOKUP(Z107,'Aux1'!$A$1:$B$12,2,FALSE)) ->  | AB107: =IF(AA107="", COUNTIF(AA$5:AA107, ""),"") -> 103 | AC107: 00:00:00.890 | AD107: 1.03e-05
N108: 0 | O108: 0 | S108: =VLOOKUP(D108,PC_Rec!$O$5:$P$18,2,FALSE) ->  | T108: =IF(D108="","",VLOOKUP(D108,PC_Rec!$O$5:$Q$18,3,FALSE)) ->  | W108: =IF(V108="","",VLOOKUP(V108,'Aux1'!$A$1:$B$12,2,FALSE)) ->  | X108: Não pago | AA108: =IF(Z108="","",VLOOKUP(Z108,'Aux1'!$A$1:$B$12,2,FALSE)) ->  | AB108: =IF(AA108="", COUNTIF(AA$5:AA108, ""),"") -> 104 | AC108: 00:00:00.899 | AD108: 1.04e-05
N109: 0 | O109: 0 | S109: =VLOOKUP(D109,PC_Rec!$O$5:$P$18,2,FALSE) ->  | T109: =IF(D109="","",VLOOKUP(D109,PC_Rec!$O$5:$Q$18,3,FALSE)) ->  | W109: =IF(V109="","",VLOOKUP(V109,'Aux1'!$A$1:$B$12,2,FALSE)) ->  | X109: Não pago | AA109: =IF(Z109="","",VLOOKUP(Z109,'Aux1'!$A$1:$B$12,2,FALSE)) ->  | AB109: =IF(AA109="", COUNTIF(AA$5:AA109, ""),"") -> 105 | AC109: 00:00:00.907 | AD109: 1.05e-05
N110: 0 | O110: 0 | S110: =VLOOKUP(D110,PC_Rec!$O$5:$P$18,2,FALSE) ->  | T110: =IF(D110="","",VLOOKUP(D110,PC_Rec!$O$5:$Q$18,3,FALSE)) ->  | W110: =IF(V110="","",VLOOKUP(V110,'Aux1'!$A$1:$B$12,2,FALSE)) ->  | X110: Não pago | AA110: =IF(Z110="","",VLOOKUP(Z110,'Aux1'!$A$1:$B$12,2,FALSE)) ->  | AB110: =IF(AA110="", COUNTIF(AA$5:AA110, ""),"") -> 106 | AC110: 00:00:00.916 | AD110: 1.06e-05
N111: 0 | O111: 0 | S111: =VLOOKUP(D111,PC_Rec!$O$5:$P$18,2,FALSE) ->  | T111: =IF(D111="","",VLOOKUP(D111,PC_Rec!$O$5:$Q$18,3,FALSE)) ->  | W111: =IF(V111="","",VLOOKUP(V111,'Aux1'!$A$1:$B$12,2,FALSE)) ->  | X111: Não pago | AA111: =IF(Z111="","",VLOOKUP(Z111,'Aux1'!$A$1:$B$12,2,FALSE)) ->  | AB111: =IF(AA111="", COUNTIF(AA$5:AA111, ""),"") -> 107 | AC111: 00:00:00.924 | AD111: 1.07e-05
N112: 0 | O112: 0 | S112: =VLOOKUP(D112,PC_Rec!$O$5:$P$18,2,FALSE) ->  | T112: =IF(D112="","",VLOOKUP(D112,PC_Rec!$O$5:$Q$18,3,FALSE)) ->  | W112: =IF(V112="","",VLOOKUP(V112,'Aux1'!$A$1:$B$12,2,FALSE)) ->  | X112: Não pago | AA112: =IF(Z112="","",VLOOKUP(Z112,'Aux1'!$A$1:$B$12,2,FALSE)) ->  | AB112: =IF(AA112="", COUNTIF(AA$5:AA112, ""),"") -> 108 | AC112: 00:00:00.933 | AD112: 1.08e-05
N113: 0 | O113: 0 | S113: =VLOOKUP(D113,PC_Rec!$O$5:$P$18,2,FALSE) ->  | T113: =IF(D113="","",VLOOKUP(D113,PC_Rec!$O$5:$Q$18,3,FALSE)) ->  | W113: =IF(V113="","",VLOOKUP(V113,'Aux1'!$A$1:$B$12,2,FALSE)) ->  | X113: Não pago | AA113: =IF(Z113="","",VLOOKUP(Z113,'Aux1'!$A$1:$B$12,2,FALSE)) ->  | AB113: =IF(AA113="", COUNTIF(AA$5:AA113, ""),"") -> 109 | AC113: 00:00:00.942 | AD113: 1.09e-05
N114: 0 | O114: 0 | S114: =VLOOKUP(D114,PC_Rec!$O$5:$P$18,2,FALSE) ->  | T114: =IF(D114="","",VLOOKUP(D114,PC_Rec!$O$5:$Q$18,3,FALSE)) ->  | W114: =IF(V114="","",VLOOKUP(V114,'Aux1'!$A$1:$B$12,2,FALSE)) ->  | X114: Não pago | AA114: =IF(Z114="","",VLOOKUP(Z114,'Aux1'!$A$1:$B$12,2,FALSE)) ->  | AB114: =IF(AA114="", COUNTIF(AA$5:AA114, ""),"") -> 110 | AC114: 00:00:00.950 | AD114: 1.1e-05
N115: 0 | O115: 0 | S115: =VLOOKUP(D115,PC_Rec!$O$5:$P$18,2,FALSE) ->  | T115: =IF(D115="","",VLOOKUP(D115,PC_Rec!$O$5:$Q$18,3,FALSE)) ->  | W115: =IF(V115="","",VLOOKUP(V115,'Aux1'!$A$1:$B$12,2,FALSE)) ->  | X115: Não pago | AA115: =IF(Z115="","",VLOOKUP(Z115,'Aux1'!$A$1:$B$12,2,FALSE)) ->  | AB115: =IF(AA115="", COUNTIF(AA$5:AA115, ""),"") -> 111 | AC115: 00:00:00.959 | AD115: 1.11e-05
N116: 0 | O116: 0 | S116: =VLOOKUP(D116,PC_Rec!$O$5:$P$18,2,FALSE) ->  | T116: =IF(D116="","",VLOOKUP(D116,PC_Rec!$O$5:$Q$18,3,FALSE)) ->  | W116: =IF(V116="","",VLOOKUP(V116,'Aux1'!$A$1:$B$12,2,FALSE)) ->  | X116: Não pago | AA116: =IF(Z116="","",VLOOKUP(Z116,'Aux1'!$A$1:$B$12,2,FALSE)) ->  | AB116: =IF(AA116="", COUNTIF(AA$5:AA116, ""),"") -> 112 | AC116: 00:00:00.968 | AD116: 1.12e-05
N117: 0 | O117: 0 | S117: =VLOOKUP(D117,PC_Rec!$O$5:$P$18,2,FALSE) ->  | T117: =IF(D117="","",VLOOKUP(D117,PC_Rec!$O$5:$Q$18,3,FALSE)) ->  | W117: =IF(V117="","",VLOOKUP(V117,'Aux1'!$A$1:$B$12,2,FALSE)) ->  | X117: Não pago | AA117: =IF(Z117="","",VLOOKUP(Z117,'Aux1'!$A$1:$B$12,2,FALSE)) ->  | AB117: =IF(AA117="", COUNTIF(AA$5:AA117, ""),"") -> 113 | AC117: 00:00:00.976 | AD117: 1.13e-05
N118: 0 | O118: 0 | S118: =VLOOKUP(D118,PC_Rec!$O$5:$P$18,2,FALSE) ->  | T118: =IF(D118="","",VLOOKUP(D118,PC_Rec!$O$5:$Q$18,3,FALSE)) ->  | W118: =IF(V118="","",VLOOKUP(V118,'Aux1'!$A$1:$B$12,2,FALSE)) ->  | X118: Não pago | AA118: =IF(Z118="","",VLOOKUP(Z118,'Aux1'!$A$1:$B$12,2,FALSE)) ->  | AB118: =IF(AA118="", COUNTIF(AA$5:AA118, ""),"") -> 114 | AC118: 00:00:00.985 | AD118: 1.14e-05
N119: 0 | O119: 0 | S119: =VLOOKUP(D119,PC_Rec!$O$5:$P$18,2,FALSE) ->  | T119: =IF(D119="","",VLOOKUP(D119,PC_Rec!$O$5:$Q$18,3,FALSE)) ->  | W119: =IF(V119="","",VLOOKUP(V119,'Aux1'!$A$1:$B$12,2,FALSE)) ->  | X119: Não pago | AA119: =IF(Z119="","",VLOOKUP(Z119,'Aux1'!$A$1:$B$12,2,FALSE)) ->  | AB119: =IF(AA119="", COUNTIF(AA$5:AA119, ""),"") -> 115 | AC119: 00:00:00.994 | AD119: 1.15e-05
N120: 0 | O120: 0 | S120: =VLOOKUP(D120,PC_Rec!$O$5:$P$18,2,FALSE) ->  | T120: =IF(D120="","",VLOOKUP(D120,PC_Rec!$O$5:$Q$18,3,FALSE)) ->  | W120: =IF(V120="","",VLOOKUP(V120,'Aux1'!$A$1:$B$12,2,FALSE)) ->  | X120: Não pago | AA120: =IF(Z120="","",VLOOKUP(Z120,'Aux1'!$A$1:$B$12,2,FALSE)) ->  | AB120: =IF(AA120="", COUNTIF(AA$5:AA120, ""),"") -> 116 | AC120: 00:00:01.002 | AD120: 1.16e-05
N121: 0 | O121: 0 | S121: =VLOOKUP(D121,PC_Rec!$O$5:$P$18,2,FALSE) ->  | T121: =IF(D121="","",VLOOKUP(D121,PC_Rec!$O$5:$Q$18,3,FALSE)) ->  | W121: =IF(V121="","",VLOOKUP(V121,'Aux1'!$A$1:$B$12,2,FALSE)) ->  | X121: Não pago | AA121: =IF(Z121="","",VLOOKUP(Z121,'Aux1'!$A$1:$B$12,2,FALSE)) ->  | AB121: =IF(AA121="", COUNTIF(AA$5:AA121, ""),"") -> 117 | AC121: 00:00:01.011 | AD121: 1.17e-05
N122: 0 | O122: 0 | S122: =VLOOKUP(D122,PC_Rec!$O$5:$P$18,2,FALSE) ->  | T122: =IF(D122="","",VLOOKUP(D122,PC_Rec!$O$5:$Q$18,3,FALSE)) ->  | W122: =IF(V122="","",VLOOKUP(V122,'Aux1'!$A$1:$B$12,2,FALSE)) ->  | X122: Não pago | AA122: =IF(Z122="","",VLOOKUP(Z122,'Aux1'!$A$1:$B$12,2,FALSE)) ->  | AB122: =IF(AA122="", COUNTIF(AA$5:AA122, ""),"") -> 118 | AC122: 00:00:01.020 | AD122: 1.18e-05
N123: 0 | O123: 0 | S123: =VLOOKUP(D123,PC_Rec!$O$5:$P$18,2,FALSE) ->  | T123: =IF(D123="","",VLOOKUP(D123,PC_Rec!$O$5:$Q$18,3,FALSE)) ->  | W123: =IF(V123="","",VLOOKUP(V123,'Aux1'!$A$1:$B$12,2,FALSE)) ->  | X123: Não pago | AA123: =IF(Z123="","",VLOOKUP(Z123,'Aux1'!$A$1:$B$12,2,FALSE)) ->  | AB123: =IF(AA123="", COUNTIF(AA$5:AA123, ""),"") -> 119 | AC123: 00:00:01.028 | AD123: 1.19e-05
N124: 0 | O124: 0 | S124: =VLOOKUP(D124,PC_Rec!$O$5:$P$18,2,FALSE) ->  | T124: =IF(D124="","",VLOOKUP(D124,PC_Rec!$O$5:$Q$18,3,FALSE)) ->  | W124: =IF(V124="","",VLOOKUP(V124,'Aux1'!$A$1:$B$12,2,FALSE)) ->  | X124: Não pago | AA124: =IF(Z124="","",VLOOKUP(Z124,'Aux1'!$A$1:$B$12,2,FALSE)) ->  | AB124: =IF(AA124="", COUNTIF(AA$5:AA124, ""),"") -> 120 | AC124: 00:00:01.037 | AD124: 1.2e-05
N125: 0 | O125: 0 | S125: =VLOOKUP(D125,PC_Rec!$O$5:$P$18,2,FALSE) ->  | T125: =IF(D125="","",VLOOKUP(D125,PC_Rec!$O$5:$Q$18,3,FALSE)) ->  | W125: =IF(V125="","",VLOOKUP(V125,'Aux1'!$A$1:$B$12,2,FALSE)) ->  | X125: Não pago | AA125: =IF(Z125="","",VLOOKUP(Z125,'Aux1'!$A$1:$B$12,2,FALSE)) ->  | AB125: =IF(AA125="", COUNTIF(AA$5:AA125, ""),"") -> 121 | AC125: 00:00:01.045 | AD125: 1.21e-05
N126: 0 | O126: 0 | S126: =VLOOKUP(D126,PC_Rec!$O$5:$P$18,2,FALSE) ->  | T126: =IF(D126="","",VLOOKUP(D126,PC_Rec!$O$5:$Q$18,3,FALSE)) ->  | W126: =IF(V126="","",VLOOKUP(V126,'Aux1'!$A$1:$B$12,2,FALSE)) ->  | X126: Não pago | AA126: =IF(Z126="","",VLOOKUP(Z126,'Aux1'!$A$1:$B$12,2,FALSE)) ->  | AB126: =IF(AA126="", COUNTIF(AA$5:AA126, ""),"") -> 122 | AC126: 00:00:01.054 | AD126: 1.22e-05
N127: 0 | O127: 0 | S127: =VLOOKUP(D127,PC_Rec!$O$5:$P$18,2,FALSE) ->  | T127: =IF(D127="","",VLOOKUP(D127,PC_Rec!$O$5:$Q$18,3,FALSE)) ->  | W127: =IF(V127="","",VLOOKUP(V127,'Aux1'!$A$1:$B$12,2,FALSE)) ->  | X127: Não pago | AA127: =IF(Z127="","",VLOOKUP(Z127,'Aux1'!$A$1:$B$12,2,FALSE)) ->  | AB127: =IF(AA127="", COUNTIF(AA$5:AA127, ""),"") -> 123 | AC127: 00:00:01.063 | AD127: 1.23e-05
N128: 0 | O128: 0 | S128: =VLOOKUP(D128,PC_Rec!$O$5:$P$18,2,FALSE) ->  | T128: =IF(D128="","",VLOOKUP(D128,PC_Rec!$O$5:$Q$18,3,FALSE)) ->  | W128: =IF(V128="","",VLOOKUP(V128,'Aux1'!$A$1:$B$12,2,FALSE)) ->  | X128: Não pago | AA128: =IF(Z128="","",VLOOKUP(Z128,'Aux1'!$A$1:$B$12,2,FALSE)) ->  | AB128: =IF(AA128="", COUNTIF(AA$5:AA128, ""),"") -> 124 | AC128: 00:00:01.071 | AD128: 1.24e-05
N129: 0 | O129: 0 | S129: =VLOOKUP(D129,PC_Rec!$O$5:$P$18,2,FALSE) ->  | T129: =IF(D129="","",VLOOKUP(D129,PC_Rec!$O$5:$Q$18,3,FALSE)) ->  | W129: =IF(V129="","",VLOOKUP(V129,'Aux1'!$A$1:$B$12,2,FALSE)) ->  | X129: Não pago | AA129: =IF(Z129="","",VLOOKUP(Z129,'Aux1'!$A$1:$B$12,2,FALSE)) ->  | AB129: =IF(AA129="", COUNTIF(AA$5:AA129, ""),"") -> 125 | AC129: 00:00:01.080 | AD129: 1.25e-05
N130: 0 | O130: 0 | S130: =VLOOKUP(D130,PC_Rec!$O$5:$P$18,2,FALSE) ->  | T130: =IF(D130="","",VLOOKUP(D130,PC_Rec!$O$5:$Q$18,3,FALSE)) ->  | W130: =IF(V130="","",VLOOKUP(V130,'Aux1'!$A$1:$B$12,2,FALSE)) ->  | X130: Não pago | AA130: =IF(Z130="","",VLOOKUP(Z130,'Aux1'!$A$1:$B$12,2,FALSE)) ->  | AB130: =IF(AA130="", COUNTIF(AA$5:AA130, ""),"") -> 126 | AC130: 00:00:01.089 | AD130: 1.26e-05
N131: 0 | O131: 0 | S131: =VLOOKUP(D131,PC_Rec!$O$5:$P$18,2,FALSE) ->  | T131: =IF(D131="","",VLOOKUP(D131,PC_Rec!$O$5:$Q$18,3,FALSE)) ->  | W131: =IF(V131="","",VLOOKUP(V131,'Aux1'!$A$1:$B$12,2,FALSE)) ->  | X131: Não pago | AA131: =IF(Z131="","",VLOOKUP(Z131,'Aux1'!$A$1:$B$12,2,FALSE)) ->  | AB131: =IF(AA131="", COUNTIF(AA$5:AA131, ""),"") -> 127 | AC131: 00:00:01.097 | AD131: 1.27e-05
N132: 0 | O132: 0 | S132: =VLOOKUP(D132,PC_Rec!$O$5:$P$18,2,FALSE) ->  | T132: =IF(D132="","",VLOOKUP(D132,PC_Rec!$O$5:$Q$18,3,FALSE)) ->  | W132: =IF(V132="","",VLOOKUP(V132,'Aux1'!$A$1:$B$12,2,FALSE)) ->  | X132: Não pago | AA132: =IF(Z132="","",VLOOKUP(Z132,'Aux1'!$A$1:$B$12,2,FALSE)) ->  | AB132: =IF(AA132="", COUNTIF(AA$5:AA132, ""),"") -> 128 | AC132: 00:00:01.106 | AD132: 1.28e-05
N133: 0 | O133: 0 | S133: =VLOOKUP(D133,PC_Rec!$O$5:$P$18,2,FALSE) ->  | T133: =IF(D133="","",VLOOKUP(D133,PC_Rec!$O$5:$Q$18,3,FALSE)) ->  | U133: =IF(C133="","",DAY(C133)) ->  | V133: =IF(C133="","",MONTH(C133)) ->  | W133: =IF(V133="","",VLOOKUP(V133,'Aux1'!$A$1:$B$12,2,FALSE)) ->  | X133: =IF(M133<>"","Pago","Não pago") -> Não pago | Y133: =IF(M133="","",DAY(M133)) ->  | Z133: =IF(M133="","",MONTH(M133)) ->  | AA133: =IF(Z133="","",VLOOKUP(Z133,'Aux1'!$A$1:$B$12,2,FALSE)) ->  | AB133: =IF(AA133="", COUNTIF(AA$5:AA133, ""),"") -> 129 | AC133: 00:00:01.115 | AD133: 1.29e-05 | AE133: =IF(AND(X133="Não pago",L133<>0),C133,"") ->  | AF133: =IF(AE133="","",C133) ->  | AG133: =IF(AE133="","",D133) ->  | AH133: =IF(AE133="","",E133) ->  | AI133: =IF(AE133="","",F133) ->  | AJ133: =IF(AE133="","",L133) -> 
N134: =O134 -> 0 | O134: =Q134+IF(AND(T134="Ingresos",X134="Pago",AA134=$C$3),L134,IF(AND(T134="gasto",X134="Pago",AA134=$C$3),-L134,0)) -> 0 | S134: =VLOOKUP(D134,PC_Rec!$O$5:$P$18,2,FALSE) ->  | T134: =IF(D134="","",VLOOKUP(D134,PC_Rec!$O$5:$Q$18,3,FALSE)) ->  | W134: =IF(V134="","",VLOOKUP(V134,'Aux1'!$A$1:$B$12,2,FALSE)) ->  | X134: Não pago | AA134: =IF(Z134="","",VLOOKUP(Z134,'Aux1'!$A$1:$B$12,2,FALSE)) ->  | AB134: =IF(AA134="", COUNTIF(AA$5:AA134, ""),"") -> 130 | AC134: =SUM(AD134:AE134) -> 00:00:01.123 | AD134: 1.3e-05
N135: 0 | O135: 0 | S135: =VLOOKUP(D135,PC_Rec!$O$5:$P$18,2,FALSE) ->  | T135: =IF(D135="","",VLOOKUP(D135,PC_Rec!$O$5:$Q$18,3,FALSE)) ->  | W135: =IF(V135="","",VLOOKUP(V135,'Aux1'!$A$1:$B$12,2,FALSE)) ->  | X135: Não pago | AA135: =IF(Z135="","",VLOOKUP(Z135,'Aux1'!$A$1:$B$12,2,FALSE)) ->  | AB135: =IF(AA135="", COUNTIF(AA$5:AA135, ""),"") -> 131 | AC135: 00:00:01.132 | AD135: 1.31e-05
N136: 0 | O136: 0 | S136: =VLOOKUP(D136,PC_Rec!$O$5:$P$18,2,FALSE) ->  | T136: =IF(D136="","",VLOOKUP(D136,PC_Rec!$O$5:$Q$18,3,FALSE)) ->  | W136: =IF(V136="","",VLOOKUP(V136,'Aux1'!$A$1:$B$12,2,FALSE)) ->  | X136: Não pago | AA136: =IF(Z136="","",VLOOKUP(Z136,'Aux1'!$A$1:$B$12,2,FALSE)) ->  | AB136: =IF(AA136="", COUNTIF(AA$5:AA136, ""),"") -> 132 | AC136: 00:00:01.140 | AD136: 1.32e-05
N137: 0 | O137: 0 | S137: =VLOOKUP(D137,PC_Rec!$O$5:$P$18,2,FALSE) ->  | T137: =IF(D137="","",VLOOKUP(D137,PC_Rec!$O$5:$Q$18,3,FALSE)) ->  | W137: =IF(V137="","",VLOOKUP(V137,'Aux1'!$A$1:$B$12,2,FALSE)) ->  | X137: Não pago | AA137: =IF(Z137="","",VLOOKUP(Z137,'Aux1'!$A$1:$B$12,2,FALSE)) ->  | AB137: =IF(AA137="", COUNTIF(AA$5:AA137, ""),"") -> 133 | AC137: 00:00:01.149 | AD137: 1.33e-05
N138: 0 | O138: 0 | S138: =VLOOKUP(D138,PC_Rec!$O$5:$P$18,2,FALSE) ->  | T138: =IF(D138="","",VLOOKUP(D138,PC_Rec!$O$5:$Q$18,3,FALSE)) ->  | W138: =IF(V138="","",VLOOKUP(V138,'Aux1'!$A$1:$B$12,2,FALSE)) ->  | X138: Não pago | AA138: =IF(Z138="","",VLOOKUP(Z138,'Aux1'!$A$1:$B$12,2,FALSE)) ->  | AB138: =IF(AA138="", COUNTIF(AA$5:AA138, ""),"") -> 134 | AC138: 00:00:01.158 | AD138: 1.34e-05
N139: 0 | O139: 0 | S139: =VLOOKUP(D139,PC_Rec!$O$5:$P$18,2,FALSE) ->  | T139: =IF(D139="","",VLOOKUP(D139,PC_Rec!$O$5:$Q$18,3,FALSE)) ->  | W139: =IF(V139="","",VLOOKUP(V139,'Aux1'!$A$1:$B$12,2,FALSE)) ->  | X139: Não pago | AA139: =IF(Z139="","",VLOOKUP(Z139,'Aux1'!$A$1:$B$12,2,FALSE)) ->  | AB139: =IF(AA139="", COUNTIF(AA$5:AA139, ""),"") -> 135 | AC139: 00:00:01.166 | AD139: 1.35e-05
N140: 0 | O140: 0 | S140: =VLOOKUP(D140,PC_Rec!$O$5:$P$18,2,FALSE) ->  | T140: =IF(D140="","",VLOOKUP(D140,PC_Rec!$O$5:$Q$18,3,FALSE)) ->  | W140: =IF(V140="","",VLOOKUP(V140,'Aux1'!$A$1:$B$12,2,FALSE)) ->  | X140: Não pago | AA140: =IF(Z140="","",VLOOKUP(Z140,'Aux1'!$A$1:$B$12,2,FALSE)) ->  | AB140: =IF(AA140="", COUNTIF(AA$5:AA140, ""),"") -> 136 | AC140: 00:00:01.175 | AD140: 1.36e-05
N141: 0 | O141: 0 | S141: =VLOOKUP(D141,PC_Rec!$O$5:$P$18,2,FALSE) ->  | T141: =IF(D141="","",VLOOKUP(D141,PC_Rec!$O$5:$Q$18,3,FALSE)) ->  | W141: =IF(V141="","",VLOOKUP(V141,'Aux1'!$A$1:$B$12,2,FALSE)) ->  | X141: Não pago | AA141: =IF(Z141="","",VLOOKUP(Z141,'Aux1'!$A$1:$B$12,2,FALSE)) ->  | AB141: =IF(AA141="", COUNTIF(AA$5:AA141, ""),"") -> 137 | AC141: 00:00:01.184 | AD141: 1.37e-05
N142: 0 | O142: 0 | S142: =VLOOKUP(D142,PC_Rec!$O$5:$P$18,2,FALSE) ->  | T142: =IF(D142="","",VLOOKUP(D142,PC_Rec!$O$5:$Q$18,3,FALSE)) ->  | W142: =IF(V142="","",VLOOKUP(V142,'Aux1'!$A$1:$B$12,2,FALSE)) ->  | X142: Não pago | AA142: =IF(Z142="","",VLOOKUP(Z142,'Aux1'!$A$1:$B$12,2,FALSE)) ->  | AB142: =IF(AA142="", COUNTIF(AA$5:AA142, ""),"") -> 138 | AC142: 00:00:01.192 | AD142: 1.38e-05
N143: 0 | O143: 0 | S143: =VLOOKUP(D143,PC_Rec!$O$5:$P$18,2,FALSE) ->  | T143: =IF(D143="","",VLOOKUP(D143,PC_Rec!$O$5:$Q$18,3,FALSE)) ->  | W143: =IF(V143="","",VLOOKUP(V143,'Aux1'!$A$1:$B$12,2,FALSE)) ->  | X143: Não pago | AA143: =IF(Z143="","",VLOOKUP(Z143,'Aux1'!$A$1:$B$12,2,FALSE)) ->  | AB143: =IF(AA143="", COUNTIF(AA$5:AA143, ""),"") -> 139 | AC143: 00:00:01.201 | AD143: 1.39e-05
N144: 0 | O144: 0 | S144: =VLOOKUP(D144,PC_Rec!$O$5:$P$18,2,FALSE) ->  | T144: =IF(D144="","",VLOOKUP(D144,PC_Rec!$O$5:$Q$18,3,FALSE)) ->  | W144: =IF(V144="","",VLOOKUP(V144,'Aux1'!$A$1:$B$12,2,FALSE)) ->  | X144: Não pago | AA144: =IF(Z144="","",VLOOKUP(Z144,'Aux1'!$A$1:$B$12,2,FALSE)) ->  | AB144: =IF(AA144="", COUNTIF(AA$5:AA144, ""),"") -> 140 | AC144: 00:00:01.210 | AD144: 1.4e-05
N145: 0 | O145: 0 | S145: =VLOOKUP(D145,PC_Rec!$O$5:$P$18,2,FALSE) ->  | T145: =IF(D145="","",VLOOKUP(D145,PC_Rec!$O$5:$Q$18,3,FALSE)) ->  | W145: =IF(V145="","",VLOOKUP(V145,'Aux1'!$A$1:$B$12,2,FALSE)) ->  | X145: Não pago | AA145: =IF(Z145="","",VLOOKUP(Z145,'Aux1'!$A$1:$B$12,2,FALSE)) ->  | AB145: =IF(AA145="", COUNTIF(AA$5:AA145, ""),"") -> 141 | AC145: 00:00:01.218 | AD145: 1.41e-05
N146: 0 | O146: 0 | S146: =VLOOKUP(D146,PC_Rec!$O$5:$P$18,2,FALSE) ->  | T146: =IF(D146="","",VLOOKUP(D146,PC_Rec!$O$5:$Q$18,3,FALSE)) ->  | W146: =IF(V146="","",VLOOKUP(V146,'Aux1'!$A$1:$B$12,2,FALSE)) ->  | X146: Não pago | AA146: =IF(Z146="","",VLOOKUP(Z146,'Aux1'!$A$1:$B$12,2,FALSE)) ->  | AB146: =IF(AA146="", COUNTIF(AA$5:AA146, ""),"") -> 142 | AC146: 00:00:01.227 | AD146: 1.42e-05
N147: 0 | O147: 0 | S147: =VLOOKUP(D147,PC_Rec!$O$5:$P$18,2,FALSE) ->  | T147: =IF(D147="","",VLOOKUP(D147,PC_Rec!$O$5:$Q$18,3,FALSE)) ->  | W147: =IF(V147="","",VLOOKUP(V147,'Aux1'!$A$1:$B$12,2,FALSE)) ->  | X147: Não pago | AA147: =IF(Z147="","",VLOOKUP(Z147,'Aux1'!$A$1:$B$12,2,FALSE)) ->  | AB147: =IF(AA147="", COUNTIF(AA$5:AA147, ""),"") -> 143 | AC147: 00:00:01.236 | AD147: 1.43e-05
N148: 0 | O148: 0 | S148: =VLOOKUP(D148,PC_Rec!$O$5:$P$18,2,FALSE) ->  | T148: =IF(D148="","",VLOOKUP(D148,PC_Rec!$O$5:$Q$18,3,FALSE)) ->  | W148: =IF(V148="","",VLOOKUP(V148,'Aux1'!$A$1:$B$12,2,FALSE)) ->  | X148: Não pago | AA148: =IF(Z148="","",VLOOKUP(Z148,'Aux1'!$A$1:$B$12,2,FALSE)) ->  | AB148: =IF(AA148="", COUNTIF(AA$5:AA148, ""),"") -> 144 | AC148: 00:00:01.244 | AD148: 1.44e-05
N149: 0 | O149: 0 | S149: =VLOOKUP(D149,PC_Rec!$O$5:$P$18,2,FALSE) ->  | T149: =IF(D149="","",VLOOKUP(D149,PC_Rec!$O$5:$Q$18,3,FALSE)) ->  | W149: =IF(V149="","",VLOOKUP(V149,'Aux1'!$A$1:$B$12,2,FALSE)) ->  | X149: Não pago | AA149: =IF(Z149="","",VLOOKUP(Z149,'Aux1'!$A$1:$B$12,2,FALSE)) ->  | AB149: =IF(AA149="", COUNTIF(AA$5:AA149, ""),"") -> 145 | AC149: 00:00:01.253 | AD149: 1.45e-05
N150: 0 | O150: 0 | S150: =VLOOKUP(D150,PC_Rec!$O$5:$P$18,2,FALSE) ->  | T150: =IF(D150="","",VLOOKUP(D150,PC_Rec!$O$5:$Q$18,3,FALSE)) ->  | W150: =IF(V150="","",VLOOKUP(V150,'Aux1'!$A$1:$B$12,2,FALSE)) ->  | X150: Não pago | AA150: =IF(Z150="","",VLOOKUP(Z150,'Aux1'!$A$1:$B$12,2,FALSE)) ->  | AB150: =IF(AA150="", COUNTIF(AA$5:AA150, ""),"") -> 146 | AC150: 00:00:01.261 | AD150: 1.46e-05
N151: 0 | O151: 0 | S151: =VLOOKUP(D151,PC_Rec!$O$5:$P$18,2,FALSE) ->  | T151: =IF(D151="","",VLOOKUP(D151,PC_Rec!$O$5:$Q$18,3,FALSE)) ->  | W151: =IF(V151="","",VLOOKUP(V151,'Aux1'!$A$1:$B$12,2,FALSE)) ->  | X151: Não pago | AA151: =IF(Z151="","",VLOOKUP(Z151,'Aux1'!$A$1:$B$12,2,FALSE)) ->  | AB151: =IF(AA151="", COUNTIF(AA$5:AA151, ""),"") -> 147 | AC151: 00:00:01.270 | AD151: 1.47e-05
N152: 0 | O152: 0 | S152: =VLOOKUP(D152,PC_Rec!$O$5:$P$18,2,FALSE) ->  | T152: =IF(D152="","",VLOOKUP(D152,PC_Rec!$O$5:$Q$18,3,FALSE)) ->  | W152: =IF(V152="","",VLOOKUP(V152,'Aux1'!$A$1:$B$12,2,FALSE)) ->  | X152: Não pago | AA152: =IF(Z152="","",VLOOKUP(Z152,'Aux1'!$A$1:$B$12,2,FALSE)) ->  | AB152: =IF(AA152="", COUNTIF(AA$5:AA152, ""),"") -> 148 | AC152: 00:00:01.279 | AD152: 1.48e-05
N153: 0 | O153: 0 | S153: =VLOOKUP(D153,PC_Rec!$O$5:$P$18,2,FALSE) ->  | T153: =IF(D153="","",VLOOKUP(D153,PC_Rec!$O$5:$Q$18,3,FALSE)) ->  | W153: =IF(V153="","",VLOOKUP(V153,'Aux1'!$A$1:$B$12,2,FALSE)) ->  | X153: Não pago | AA153: =IF(Z153="","",VLOOKUP(Z153,'Aux1'!$A$1:$B$12,2,FALSE)) ->  | AB153: =IF(AA153="", COUNTIF(AA$5:AA153, ""),"") -> 149 | AC153: 00:00:01.287 | AD153: 1.49e-05
N154: 0 | O154: 0 | S154: =VLOOKUP(D154,PC_Rec!$O$5:$P$18,2,FALSE) ->  | T154: =IF(D154="","",VLOOKUP(D154,PC_Rec!$O$5:$Q$18,3,FALSE)) ->  | W154: =IF(V154="","",VLOOKUP(V154,'Aux1'!$A$1:$B$12,2,FALSE)) ->  | X154: Não pago | AA154: =IF(Z154="","",VLOOKUP(Z154,'Aux1'!$A$1:$B$12,2,FALSE)) ->  | AB154: =IF(AA154="", COUNTIF(AA$5:AA154, ""),"") -> 150 | AC154: 00:00:01.296 | AD154: 1.5e-05
N155: 0 | O155: 0 | S155: =VLOOKUP(D155,PC_Rec!$O$5:$P$18,2,FALSE) ->  | T155: =IF(D155="","",VLOOKUP(D155,PC_Rec!$O$5:$Q$18,3,FALSE)) ->  | W155: =IF(V155="","",VLOOKUP(V155,'Aux1'!$A$1:$B$12,2,FALSE)) ->  | X155: Não pago | AA155: =IF(Z155="","",VLOOKUP(Z155,'Aux1'!$A$1:$B$12,2,FALSE)) ->  | AB155: =IF(AA155="", COUNTIF(AA$5:AA155, ""),"") -> 151 | AC155: 00:00:01.305 | AD155: 1.51e-05
N156: 0 | O156: 0 | S156: =VLOOKUP(D156,PC_Rec!$O$5:$P$18,2,FALSE) ->  | T156: =IF(D156="","",VLOOKUP(D156,PC_Rec!$O$5:$Q$18,3,FALSE)) ->  | W156: =IF(V156="","",VLOOKUP(V156,'Aux1'!$A$1:$B$12,2,FALSE)) ->  | X156: Não pago | AA156: =IF(Z156="","",VLOOKUP(Z156,'Aux1'!$A$1:$B$12,2,FALSE)) ->  | AB156: =IF(AA156="", COUNTIF(AA$5:AA156, ""),"") -> 152 | AC156: 00:00:01.313 | AD156: 1.52e-05
N157: 0 | O157: 0 | S157: =VLOOKUP(D157,PC_Rec!$O$5:$P$18,2,FALSE) ->  | T157: =IF(D157="","",VLOOKUP(D157,PC_Rec!$O$5:$Q$18,3,FALSE)) ->  | W157: =IF(V157="","",VLOOKUP(V157,'Aux1'!$A$1:$B$12,2,FALSE)) ->  | X157: Não pago | AA157: =IF(Z157="","",VLOOKUP(Z157,'Aux1'!$A$1:$B$12,2,FALSE)) ->  | AB157: =IF(AA157="", COUNTIF(AA$5:AA157, ""),"") -> 153 | AC157: 00:00:01.322 | AD157: 1.53e-05
N158: 0 | O158: 0 | S158: =VLOOKUP(D158,PC_Rec!$O$5:$P$18,2,FALSE) ->  | T158: =IF(D158="","",VLOOKUP(D158,PC_Rec!$O$5:$Q$18,3,FALSE)) ->  | W158: =IF(V158="","",VLOOKUP(V158,'Aux1'!$A$1:$B$12,2,FALSE)) ->  | X158: Não pago | AA158: =IF(Z158="","",VLOOKUP(Z158,'Aux1'!$A$1:$B$12,2,FALSE)) ->  | AB158: =IF(AA158="", COUNTIF(AA$5:AA158, ""),"") -> 154 | AC158: 00:00:01.331 | AD158: 1.54e-05
N159: 0 | O159: 0 | S159: =VLOOKUP(D159,PC_Rec!$O$5:$P$18,2,FALSE) ->  | T159: =IF(D159="","",VLOOKUP(D159,PC_Rec!$O$5:$Q$18,3,FALSE)) ->  | W159: =IF(V159="","",VLOOKUP(V159,'Aux1'!$A$1:$B$12,2,FALSE)) ->  | X159: Não pago | AA159: =IF(Z159="","",VLOOKUP(Z159,'Aux1'!$A$1:$B$12,2,FALSE)) ->  | AB159: =IF(AA159="", COUNTIF(AA$5:AA159, ""),"") -> 155 | AC159: 00:00:01.339 | AD159: 1.55e-05
N160: 0 | O160: 0 | S160: =VLOOKUP(D160,PC_Rec!$O$5:$P$18,2,FALSE) ->  | T160: =IF(D160="","",VLOOKUP(D160,PC_Rec!$O$5:$Q$18,3,FALSE)) ->  | W160: =IF(V160="","",VLOOKUP(V160,'Aux1'!$A$1:$B$12,2,FALSE)) ->  | X160: Não pago | AA160: =IF(Z160="","",VLOOKUP(Z160,'Aux1'!$A$1:$B$12,2,FALSE)) ->  | AB160: =IF(AA160="", COUNTIF(AA$5:AA160, ""),"") -> 156 | AC160: 00:00:01.348 | AD160: 1.56e-05
N161: 0 | O161: 0 | S161: =VLOOKUP(D161,PC_Rec!$O$5:$P$18,2,FALSE) ->  | T161: =IF(D161="","",VLOOKUP(D161,PC_Rec!$O$5:$Q$18,3,FALSE)) ->  | W161: =IF(V161="","",VLOOKUP(V161,'Aux1'!$A$1:$B$12,2,FALSE)) ->  | X161: Não pago | AA161: =IF(Z161="","",VLOOKUP(Z161,'Aux1'!$A$1:$B$12,2,FALSE)) ->  | AB161: =IF(AA161="", COUNTIF(AA$5:AA161, ""),"") -> 157 | AC161: 00:00:01.356 | AD161: 1.57e-05
N162: 0 | O162: 0 | S162: =VLOOKUP(D162,PC_Rec!$O$5:$P$18,2,FALSE) ->  | T162: =IF(D162="","",VLOOKUP(D162,PC_Rec!$O$5:$Q$18,3,FALSE)) ->  | W162: =IF(V162="","",VLOOKUP(V162,'Aux1'!$A$1:$B$12,2,FALSE)) ->  | X162: Não pago | AA162: =IF(Z162="","",VLOOKUP(Z162,'Aux1'!$A$1:$B$12,2,FALSE)) ->  | AB162: =IF(AA162="", COUNTIF(AA$5:AA162, ""),"") -> 158 | AC162: 00:00:01.365 | AD162: 1.58e-05
N163: 0 | O163: 0 | S163: =VLOOKUP(D163,PC_Rec!$O$5:$P$18,2,FALSE) ->  | T163: =IF(D163="","",VLOOKUP(D163,PC_Rec!$O$5:$Q$18,3,FALSE)) ->  | W163: =IF(V163="","",VLOOKUP(V163,'Aux1'!$A$1:$B$12,2,FALSE)) ->  | X163: Não pago | AA163: =IF(Z163="","",VLOOKUP(Z163,'Aux1'!$A$1:$B$12,2,FALSE)) ->  | AB163: =IF(AA163="", COUNTIF(AA$5:AA163, ""),"") -> 159 | AC163: 00:00:01.374 | AD163: 1.59e-05
N164: 0 | O164: 0 | S164: =VLOOKUP(D164,PC_Rec!$O$5:$P$18,2,FALSE) ->  | T164: =IF(D164="","",VLOOKUP(D164,PC_Rec!$O$5:$Q$18,3,FALSE)) ->  | W164: =IF(V164="","",VLOOKUP(V164,'Aux1'!$A$1:$B$12,2,FALSE)) ->  | X164: Não pago | AA164: =IF(Z164="","",VLOOKUP(Z164,'Aux1'!$A$1:$B$12,2,FALSE)) ->  | AB164: =IF(AA164="", COUNTIF(AA$5:AA164, ""),"") -> 160 | AC164: 00:00:01.382 | AD164: 1.6e-05
N165: 0 | O165: 0 | S165: =VLOOKUP(D165,PC_Rec!$O$5:$P$18,2,FALSE) ->  | T165: =IF(D165="","",VLOOKUP(D165,PC_Rec!$O$5:$Q$18,3,FALSE)) ->  | W165: =IF(V165="","",VLOOKUP(V165,'Aux1'!$A$1:$B$12,2,FALSE)) ->  | X165: Não pago | AA165: =IF(Z165="","",VLOOKUP(Z165,'Aux1'!$A$1:$B$12,2,FALSE)) ->  | AB165: =IF(AA165="", COUNTIF(AA$5:AA165, ""),"") -> 161 | AC165: 00:00:01.391 | AD165: 1.61e-05
N166: 0 | O166: 0 | S166: =VLOOKUP(D166,PC_Rec!$O$5:$P$18,2,FALSE) ->  | T166: =IF(D166="","",VLOOKUP(D166,PC_Rec!$O$5:$Q$18,3,FALSE)) ->  | W166: =IF(V166="","",VLOOKUP(V166,'Aux1'!$A$1:$B$12,2,FALSE)) ->  | X166: Não pago | AA166: =IF(Z166="","",VLOOKUP(Z166,'Aux1'!$A$1:$B$12,2,FALSE)) ->  | AB166: =IF(AA166="", COUNTIF(AA$5:AA166, ""),"") -> 162 | AC166: 00:00:01.400 | AD166: 1.62e-05
N167: 0 | O167: 0 | S167: =VLOOKUP(D167,PC_Rec!$O$5:$P$18,2,FALSE) ->  | T167: =IF(D167="","",VLOOKUP(D167,PC_Rec!$O$5:$Q$18,3,FALSE)) ->  | W167: =IF(V167="","",VLOOKUP(V167,'Aux1'!$A$1:$B$12,2,FALSE)) ->  | X167: Não pago | AA167: =IF(Z167="","",VLOOKUP(Z167,'Aux1'!$A$1:$B$12,2,FALSE)) ->  | AB167: =IF(AA167="", COUNTIF(AA$5:AA167, ""),"") -> 163 | AC167: 00:00:01.408 | AD167: 1.63e-05
N168: 0 | O168: 0 | S168: =VLOOKUP(D168,PC_Rec!$O$5:$P$18,2,FALSE) ->  | T168: =IF(D168="","",VLOOKUP(D168,PC_Rec!$O$5:$Q$18,3,FALSE)) ->  | W168: =IF(V168="","",VLOOKUP(V168,'Aux1'!$A$1:$B$12,2,FALSE)) ->  | X168: Não pago | AA168: =IF(Z168="","",VLOOKUP(Z168,'Aux1'!$A$1:$B$12,2,FALSE)) ->  | AB168: =IF(AA168="", COUNTIF(AA$5:AA168, ""),"") -> 164 | AC168: 00:00:01.417 | AD168: 1.64e-05
N169: 0 | O169: 0 | S169: =VLOOKUP(D169,PC_Rec!$O$5:$P$18,2,FALSE) ->  | T169: =IF(D169="","",VLOOKUP(D169,PC_Rec!$O$5:$Q$18,3,FALSE)) ->  | W169: =IF(V169="","",VLOOKUP(V169,'Aux1'!$A$1:$B$12,2,FALSE)) ->  | X169: Não pago | AA169: =IF(Z169="","",VLOOKUP(Z169,'Aux1'!$A$1:$B$12,2,FALSE)) ->  | AB169: =IF(AA169="", COUNTIF(AA$5:AA169, ""),"") -> 165 | AC169: 00:00:01.426 | AD169: 1.65e-05
N170: 0 | O170: 0 | S170: =VLOOKUP(D170,PC_Rec!$O$5:$P$18,2,FALSE) ->  | T170: =IF(D170="","",VLOOKUP(D170,PC_Rec!$O$5:$Q$18,3,FALSE)) ->  | W170: =IF(V170="","",VLOOKUP(V170,'Aux1'!$A$1:$B$12,2,FALSE)) ->  | X170: Não pago | AA170: =IF(Z170="","",VLOOKUP(Z170,'Aux1'!$A$1:$B$12,2,FALSE)) ->  | AB170: =IF(AA170="", COUNTIF(AA$5:AA170, ""),"") -> 166 | AC170: 00:00:01.434 | AD170: 1.66e-05
N171: 0 | O171: 0 | S171: =VLOOKUP(D171,PC_Rec!$O$5:$P$18,2,FALSE) ->  | T171: =IF(D171="","",VLOOKUP(D171,PC_Rec!$O$5:$Q$18,3,FALSE)) ->  | W171: =IF(V171="","",VLOOKUP(V171,'Aux1'!$A$1:$B$12,2,FALSE)) ->  | X171: Não pago | AA171: =IF(Z171="","",VLOOKUP(Z171,'Aux1'!$A$1:$B$12,2,FALSE)) ->  | AB171: =IF(AA171="", COUNTIF(AA$5:AA171, ""),"") -> 167 | AC171: 00:00:01.443 | AD171: 1.67e-05
N172: 0 | O172: 0 | S172: =VLOOKUP(D172,PC_Rec!$O$5:$P$18,2,FALSE) ->  | T172: =IF(D172="","",VLOOKUP(D172,PC_Rec!$O$5:$Q$18,3,FALSE)) ->  | W172: =IF(V172="","",VLOOKUP(V172,'Aux1'!$A$1:$B$12,2,FALSE)) ->  | X172: Não pago | AA172: =IF(Z172="","",VLOOKUP(Z172,'Aux1'!$A$1:$B$12,2,FALSE)) ->  | AB172: =IF(AA172="", COUNTIF(AA$5:AA172, ""),"") -> 168 | AC172: 00:00:01.452 | AD172: 1.68e-05
N173: 0 | O173: 0 | S173: =VLOOKUP(D173,PC_Rec!$O$5:$P$18,2,FALSE) ->  | T173: =IF(D173="","",VLOOKUP(D173,PC_Rec!$O$5:$Q$18,3,FALSE)) ->  | W173: =IF(V173="","",VLOOKUP(V173,'Aux1'!$A$1:$B$12,2,FALSE)) ->  | X173: Não pago | AA173: =IF(Z173="","",VLOOKUP(Z173,'Aux1'!$A$1:$B$12,2,FALSE)) ->  | AB173: =IF(AA173="", COUNTIF(AA$5:AA173, ""),"") -> 169 | AC173: 00:00:01.460 | AD173: 1.69e-05
N174: 0 | O174: 0 | S174: =VLOOKUP(D174,PC_Rec!$O$5:$P$18,2,FALSE) ->  | T174: =IF(D174="","",VLOOKUP(D174,PC_Rec!$O$5:$Q$18,3,FALSE)) ->  | W174: =IF(V174="","",VLOOKUP(V174,'Aux1'!$A$1:$B$12,2,FALSE)) ->  | X174: Não pago | AA174: =IF(Z174="","",VLOOKUP(Z174,'Aux1'!$A$1:$B$12,2,FALSE)) ->  | AB174: =IF(AA174="", COUNTIF(AA$5:AA174, ""),"") -> 170 | AC174: 00:00:01.469 | AD174: 1.7e-05
N175: 0 | O175: 0 | S175: =VLOOKUP(D175,PC_Rec!$O$5:$P$18,2,FALSE) ->  | T175: =IF(D175="","",VLOOKUP(D175,PC_Rec!$O$5:$Q$18,3,FALSE)) ->  | W175: =IF(V175="","",VLOOKUP(V175,'Aux1'!$A$1:$B$12,2,FALSE)) ->  | X175: Não pago | AA175: =IF(Z175="","",VLOOKUP(Z175,'Aux1'!$A$1:$B$12,2,FALSE)) ->  | AB175: =IF(AA175="", COUNTIF(AA$5:AA175, ""),"") -> 171 | AC175: 00:00:01.477 | AD175: 1.71e-05
N176: 0 | O176: 0 | S176: =VLOOKUP(D176,PC_Rec!$O$5:$P$18,2,FALSE) ->  | T176: =IF(D176="","",VLOOKUP(D176,PC_Rec!$O$5:$Q$18,3,FALSE)) ->  | W176: =IF(V176="","",VLOOKUP(V176,'Aux1'!$A$1:$B$12,2,FALSE)) ->  | X176: Não pago | AA176: =IF(Z176="","",VLOOKUP(Z176,'Aux1'!$A$1:$B$12,2,FALSE)) ->  | AB176: =IF(AA176="", COUNTIF(AA$5:AA176, ""),"") -> 172 | AC176: 00:00:01.486 | AD176: 1.72e-05
N177: 0 | O177: 0 | S177: =VLOOKUP(D177,PC_Rec!$O$5:$P$18,2,FALSE) ->  | T177: =IF(D177="","",VLOOKUP(D177,PC_Rec!$O$5:$Q$18,3,FALSE)) ->  | W177: =IF(V177="","",VLOOKUP(V177,'Aux1'!$A$1:$B$12,2,FALSE)) ->  | X177: Não pago | AA177: =IF(Z177="","",VLOOKUP(Z177,'Aux1'!$A$1:$B$12,2,FALSE)) ->  | AB177: =IF(AA177="", COUNTIF(AA$5:AA177, ""),"") -> 173 | AC177: 00:00:01.495 | AD177: 1.73e-05
N178: 0 | O178: 0 | S178: =VLOOKUP(D178,PC_Rec!$O$5:$P$18,2,FALSE) ->  | T178: =IF(D178="","",VLOOKUP(D178,PC_Rec!$O$5:$Q$18,3,FALSE)) ->  | W178: =IF(V178="","",VLOOKUP(V178,'Aux1'!$A$1:$B$12,2,FALSE)) ->  | X178: Não pago | AA178: =IF(Z178="","",VLOOKUP(Z178,'Aux1'!$A$1:$B$12,2,FALSE)) ->  | AB178: =IF(AA178="", COUNTIF(AA$5:AA178, ""),"") -> 174 | AC178: 00:00:01.503 | AD178: 1.74e-05
N179: 0 | O179: 0 | S179: =VLOOKUP(D179,PC_Rec!$O$5:$P$18,2,FALSE) ->  | T179: =IF(D179="","",VLOOKUP(D179,PC_Rec!$O$5:$Q$18,3,FALSE)) ->  | W179: =IF(V179="","",VLOOKUP(V179,'Aux1'!$A$1:$B$12,2,FALSE)) ->  | X179: Não pago | AA179: =IF(Z179="","",VLOOKUP(Z179,'Aux1'!$A$1:$B$12,2,FALSE)) ->  | AB179: =IF(AA179="", COUNTIF(AA$5:AA179, ""),"") -> 175 | AC179: 00:00:01.512 | AD179: 1.75e-05
N180: 0 | O180: 0 | S180: =VLOOKUP(D180,PC_Rec!$O$5:$P$18,2,FALSE) ->  | T180: =IF(D180="","",VLOOKUP(D180,PC_Rec!$O$5:$Q$18,3,FALSE)) ->  | W180: =IF(V180="","",VLOOKUP(V180,'Aux1'!$A$1:$B$12,2,FALSE)) ->  | X180: Não pago | AA180: =IF(Z180="","",VLOOKUP(Z180,'Aux1'!$A$1:$B$12,2,FALSE)) ->  | AB180: =IF(AA180="", COUNTIF(AA$5:AA180, ""),"") -> 176 | AC180: 00:00:01.521 | AD180: 1.76e-05
N181: 0 | O181: 0 | S181: =VLOOKUP(D181,PC_Rec!$O$5:$P$18,2,FALSE) ->  | T181: =IF(D181="","",VLOOKUP(D181,PC_Rec!$O$5:$Q$18,3,FALSE)) ->  | W181: =IF(V181="","",VLOOKUP(V181,'Aux1'!$A$1:$B$12,2,FALSE)) ->  | X181: Não pago | AA181: =IF(Z181="","",VLOOKUP(Z181,'Aux1'!$A$1:$B$12,2,FALSE)) ->  | AB181: =IF(AA181="", COUNTIF(AA$5:AA181, ""),"") -> 177 | AC181: 00:00:01.529 | AD181: 1.77e-05
N182: 0 | O182: 0 | S182: =VLOOKUP(D182,PC_Rec!$O$5:$P$18,2,FALSE) ->  | T182: =IF(D182="","",VLOOKUP(D182,PC_Rec!$O$5:$Q$18,3,FALSE)) ->  | W182: =IF(V182="","",VLOOKUP(V182,'Aux1'!$A$1:$B$12,2,FALSE)) ->  | X182: Não pago | AA182: =IF(Z182="","",VLOOKUP(Z182,'Aux1'!$A$1:$B$12,2,FALSE)) ->  | AB182: =IF(AA182="", COUNTIF(AA$5:AA182, ""),"") -> 178 | AC182: 00:00:01.538 | AD182: 1.78e-05
N183: 0 | O183: 0 | S183: =VLOOKUP(D183,PC_Rec!$O$5:$P$18,2,FALSE) ->  | T183: =IF(D183="","",VLOOKUP(D183,PC_Rec!$O$5:$Q$18,3,FALSE)) ->  | W183: =IF(V183="","",VLOOKUP(V183,'Aux1'!$A$1:$B$12,2,FALSE)) ->  | X183: Não pago | AA183: =IF(Z183="","",VLOOKUP(Z183,'Aux1'!$A$1:$B$12,2,FALSE)) ->  | AB183: =IF(AA183="", COUNTIF(AA$5:AA183, ""),"") -> 179 | AC183: 00:00:01.547 | AD183: 1.79e-05
N184: 0 | O184: 0 | S184: =VLOOKUP(D184,PC_Rec!$O$5:$P$18,2,FALSE) ->  | T184: =IF(D184="","",VLOOKUP(D184,PC_Rec!$O$5:$Q$18,3,FALSE)) ->  | W184: =IF(V184="","",VLOOKUP(V184,'Aux1'!$A$1:$B$12,2,FALSE)) ->  | X184: Não pago | AA184: =IF(Z184="","",VLOOKUP(Z184,'Aux1'!$A$1:$B$12,2,FALSE)) ->  | AB184: =IF(AA184="", COUNTIF(AA$5:AA184, ""),"") -> 180 | AC184: 00:00:01.555 | AD184: 1.8e-05
N185: 0 | O185: 0 | S185: =VLOOKUP(D185,PC_Rec!$O$5:$P$18,2,FALSE) ->  | T185: =IF(D185="","",VLOOKUP(D185,PC_Rec!$O$5:$Q$18,3,FALSE)) ->  | W185: =IF(V185="","",VLOOKUP(V185,'Aux1'!$A$1:$B$12,2,FALSE)) ->  | X185: Não pago | AA185: =IF(Z185="","",VLOOKUP(Z185,'Aux1'!$A$1:$B$12,2,FALSE)) ->  | AB185: =IF(AA185="", COUNTIF(AA$5:AA185, ""),"") -> 181 | AC185: 00:00:01.564 | AD185: 1.81e-05
N186: 0 | O186: 0 | S186: =VLOOKUP(D186,PC_Rec!$O$5:$P$18,2,FALSE) ->  | T186: =IF(D186="","",VLOOKUP(D186,PC_Rec!$O$5:$Q$18,3,FALSE)) ->  | W186: =IF(V186="","",VLOOKUP(V186,'Aux1'!$A$1:$B$12,2,FALSE)) ->  | X186: Não pago | AA186: =IF(Z186="","",VLOOKUP(Z186,'Aux1'!$A$1:$B$12,2,FALSE)) ->  | AB186: =IF(AA186="", COUNTIF(AA$5:AA186, ""),"") -> 182 | AC186: 00:00:01.572 | AD186: 1.82e-05
N187: 0 | O187: 0 | S187: =VLOOKUP(D187,PC_Rec!$O$5:$P$18,2,FALSE) ->  | T187: =IF(D187="","",VLOOKUP(D187,PC_Rec!$O$5:$Q$18,3,FALSE)) ->  | W187: =IF(V187="","",VLOOKUP(V187,'Aux1'!$A$1:$B$12,2,FALSE)) ->  | X187: Não pago | AA187: =IF(Z187="","",VLOOKUP(Z187,'Aux1'!$A$1:$B$12,2,FALSE)) ->  | AB187: =IF(AA187="", COUNTIF(AA$5:AA187, ""),"") -> 183 | AC187: 00:00:01.581 | AD187: 1.83e-05
N188: 0 | O188: 0 | S188: =VLOOKUP(D188,PC_Rec!$O$5:$P$18,2,FALSE) ->  | T188: =IF(D188="","",VLOOKUP(D188,PC_Rec!$O$5:$Q$18,3,FALSE)) ->  | W188: =IF(V188="","",VLOOKUP(V188,'Aux1'!$A$1:$B$12,2,FALSE)) ->  | X188: Não pago | AA188: =IF(Z188="","",VLOOKUP(Z188,'Aux1'!$A$1:$B$12,2,FALSE)) ->  | AB188: =IF(AA188="", COUNTIF(AA$5:AA188, ""),"") -> 184 | AC188: 00:00:01.590 | AD188: 1.84e-05
N189: 0 | O189: 0 | S189: =VLOOKUP(D189,PC_Rec!$O$5:$P$18,2,FALSE) ->  | T189: =IF(D189="","",VLOOKUP(D189,PC_Rec!$O$5:$Q$18,3,FALSE)) ->  | W189: =IF(V189="","",VLOOKUP(V189,'Aux1'!$A$1:$B$12,2,FALSE)) ->  | X189: Não pago | AA189: =IF(Z189="","",VLOOKUP(Z189,'Aux1'!$A$1:$B$12,2,FALSE)) ->  | AB189: =IF(AA189="", COUNTIF(AA$5:AA189, ""),"") -> 185 | AC189: 00:00:01.598 | AD189: 1.85e-05
N190: 0 | O190: 0 | S190: =VLOOKUP(D190,PC_Rec!$O$5:$P$18,2,FALSE) ->  | T190: =IF(D190="","",VLOOKUP(D190,PC_Rec!$O$5:$Q$18,3,FALSE)) ->  | W190: =IF(V190="","",VLOOKUP(V190,'Aux1'!$A$1:$B$12,2,FALSE)) ->  | X190: Não pago | AA190: =IF(Z190="","",VLOOKUP(Z190,'Aux1'!$A$1:$B$12,2,FALSE)) ->  | AB190: =IF(AA190="", COUNTIF(AA$5:AA190, ""),"") -> 186 | AC190: 00:00:01.607 | AD190: 1.86e-05
N191: 0 | O191: 0 | S191: =VLOOKUP(D191,PC_Rec!$O$5:$P$18,2,FALSE) ->  | T191: =IF(D191="","",VLOOKUP(D191,PC_Rec!$O$5:$Q$18,3,FALSE)) ->  | W191: =IF(V191="","",VLOOKUP(V191,'Aux1'!$A$1:$B$12,2,FALSE)) ->  | X191: Não pago | AA191: =IF(Z191="","",VLOOKUP(Z191,'Aux1'!$A$1:$B$12,2,FALSE)) ->  | AB191: =IF(AA191="", COUNTIF(AA$5:AA191, ""),"") -> 187 | AC191: 00:00:01.616 | AD191: 1.87e-05
N192: 0 | O192: 0 | S192: =VLOOKUP(D192,PC_Rec!$O$5:$P$18,2,FALSE) ->  | T192: =IF(D192="","",VLOOKUP(D192,PC_Rec!$O$5:$Q$18,3,FALSE)) ->  | W192: =IF(V192="","",VLOOKUP(V192,'Aux1'!$A$1:$B$12,2,FALSE)) ->  | X192: Não pago | AA192: =IF(Z192="","",VLOOKUP(Z192,'Aux1'!$A$1:$B$12,2,FALSE)) ->  | AB192: =IF(AA192="", COUNTIF(AA$5:AA192, ""),"") -> 188 | AC192: 00:00:01.624 | AD192: 1.88e-05
N193: 0 | O193: 0 | S193: =VLOOKUP(D193,PC_Rec!$O$5:$P$18,2,FALSE) ->  | T193: =IF(D193="","",VLOOKUP(D193,PC_Rec!$O$5:$Q$18,3,FALSE)) ->  | W193: =IF(V193="","",VLOOKUP(V193,'Aux1'!$A$1:$B$12,2,FALSE)) ->  | X193: Não pago | AA193: =IF(Z193="","",VLOOKUP(Z193,'Aux1'!$A$1:$B$12,2,FALSE)) ->  | AB193: =IF(AA193="", COUNTIF(AA$5:AA193, ""),"") -> 189 | AC193: 00:00:01.633 | AD193: 1.89e-05
N194: 0 | O194: 0 | S194: =VLOOKUP(D194,PC_Rec!$O$5:$P$18,2,FALSE) ->  | T194: =IF(D194="","",VLOOKUP(D194,PC_Rec!$O$5:$Q$18,3,FALSE)) ->  | W194: =IF(V194="","",VLOOKUP(V194,'Aux1'!$A$1:$B$12,2,FALSE)) ->  | X194: Não pago | AA194: =IF(Z194="","",VLOOKUP(Z194,'Aux1'!$A$1:$B$12,2,FALSE)) ->  | AB194: =IF(AA194="", COUNTIF(AA$5:AA194, ""),"") -> 190 | AC194: 00:00:01.642 | AD194: 1.9e-05
N195: 0 | O195: 0 | S195: =VLOOKUP(D195,PC_Rec!$O$5:$P$18,2,FALSE) ->  | T195: =IF(D195="","",VLOOKUP(D195,PC_Rec!$O$5:$Q$18,3,FALSE)) ->  | W195: =IF(V195="","",VLOOKUP(V195,'Aux1'!$A$1:$B$12,2,FALSE)) ->  | X195: Não pago | AA195: =IF(Z195="","",VLOOKUP(Z195,'Aux1'!$A$1:$B$12,2,FALSE)) ->  | AB195: =IF(AA195="", COUNTIF(AA$5:AA195, ""),"") -> 191 | AC195: 00:00:01.650 | AD195: 1.91e-05
N196: 0 | O196: 0 | S196: =VLOOKUP(D196,PC_Rec!$O$5:$P$18,2,FALSE) ->  | T196: =IF(D196="","",VLOOKUP(D196,PC_Rec!$O$5:$Q$18,3,FALSE)) ->  | W196: =IF(V196="","",VLOOKUP(V196,'Aux1'!$A$1:$B$12,2,FALSE)) ->  | X196: Não pago | AA196: =IF(Z196="","",VLOOKUP(Z196,'Aux1'!$A$1:$B$12,2,FALSE)) ->  | AB196: =IF(AA196="", COUNTIF(AA$5:AA196, ""),"") -> 192 | AC196: 00:00:01.659 | AD196: 1.92e-05
N197: 0 | O197: 0 | S197: =VLOOKUP(D197,PC_Rec!$O$5:$P$18,2,FALSE) ->  | T197: =IF(D197="","",VLOOKUP(D197,PC_Rec!$O$5:$Q$18,3,FALSE)) ->  | U197: =IF(C197="","",DAY(C197)) ->  | V197: =IF(C197="","",MONTH(C197)) ->  | W197: =IF(V197="","",VLOOKUP(V197,'Aux1'!$A$1:$B$12,2,FALSE)) ->  | X197: =IF(M197<>"","Pago","Não pago") -> Não pago | Y197: =IF(M197="","",DAY(M197)) ->  | Z197: =IF(M197="","",MONTH(M197)) ->  | AA197: =IF(Z197="","",VLOOKUP(Z197,'Aux1'!$A$1:$B$12,2,FALSE)) ->  | AB197: =IF(AA197="", COUNTIF(AA$5:AA197, ""),"") -> 193 | AC197: 00:00:01.668 | AD197: 1.93e-05 | AE197: =IF(AND(X197="Não pago",L197<>0),C197,"") ->  | AF197: =IF(AE197="","",C197) ->  | AG197: =IF(AE197="","",D197) ->  | AH197: =IF(AE197="","",E197) ->  | AI197: =IF(AE197="","",F197) ->  | AJ197: =IF(AE197="","",L197) -> 
N198: =O198 -> 0 | O198: =Q198+IF(AND(T198="Ingresos",X198="Pago",AA198=$C$3),L198,IF(AND(T198="gasto",X198="Pago",AA198=$C$3),-L198,0)) -> 0 | S198: =VLOOKUP(D198,PC_Rec!$O$5:$P$18,2,FALSE) ->  | T198: =IF(D198="","",VLOOKUP(D198,PC_Rec!$O$5:$Q$18,3,FALSE)) ->  | W198: =IF(V198="","",VLOOKUP(V198,'Aux1'!$A$1:$B$12,2,FALSE)) ->  | X198: Não pago | AA198: =IF(Z198="","",VLOOKUP(Z198,'Aux1'!$A$1:$B$12,2,FALSE)) ->  | AB198: =IF(AA198="", COUNTIF(AA$5:AA198, ""),"") -> 194 | AC198: =SUM(AD198:AE198) -> 00:00:01.676 | AD198: 1.94e-05
N199: 0 | O199: 0 | S199: =VLOOKUP(D199,PC_Rec!$O$5:$P$18,2,FALSE) ->  | T199: =IF(D199="","",VLOOKUP(D199,PC_Rec!$O$5:$Q$18,3,FALSE)) ->  | W199: =IF(V199="","",VLOOKUP(V199,'Aux1'!$A$1:$B$12,2,FALSE)) ->  | X199: Não pago | AA199: =IF(Z199="","",VLOOKUP(Z199,'Aux1'!$A$1:$B$12,2,FALSE)) ->  | AB199: =IF(AA199="", COUNTIF(AA$5:AA199, ""),"") -> 195 | AC199: 00:00:01.685 | AD199: 1.95e-05
N200: 0 | O200: 0 | S200: =VLOOKUP(D200,PC_Rec!$O$5:$P$18,2,FALSE) ->  | T200: =IF(D200="","",VLOOKUP(D200,PC_Rec!$O$5:$Q$18,3,FALSE)) ->  | W200: =IF(V200="","",VLOOKUP(V200,'Aux1'!$A$1:$B$12,2,FALSE)) ->  | X200: Não pago | AA200: =IF(Z200="","",VLOOKUP(Z200,'Aux1'!$A$1:$B$12,2,FALSE)) ->  | AB200: =IF(AA200="", COUNTIF(AA$5:AA200, ""),"") -> 196 | AC200: 00:00:01.693 | AD200: 1.96e-05
N201: 0 | O201: 0 | S201: =VLOOKUP(D201,PC_Rec!$O$5:$P$18,2,FALSE) ->  | T201: =IF(D201="","",VLOOKUP(D201,PC_Rec!$O$5:$Q$18,3,FALSE)) ->  | W201: =IF(V201="","",VLOOKUP(V201,'Aux1'!$A$1:$B$12,2,FALSE)) ->  | X201: Não pago | AA201: =IF(Z201="","",VLOOKUP(Z201,'Aux1'!$A$1:$B$12,2,FALSE)) ->  | AB201: =IF(AA201="", COUNTIF(AA$5:AA201, ""),"") -> 197 | AC201: 00:00:01.702 | AD201: 1.97e-05
N202: 0 | O202: 0 | S202: =VLOOKUP(D202,PC_Rec!$O$5:$P$18,2,FALSE) ->  | T202: =IF(D202="","",VLOOKUP(D202,PC_Rec!$O$5:$Q$18,3,FALSE)) ->  | W202: =IF(V202="","",VLOOKUP(V202,'Aux1'!$A$1:$B$12,2,FALSE)) ->  | X202: Não pago | AA202: =IF(Z202="","",VLOOKUP(Z202,'Aux1'!$A$1:$B$12,2,FALSE)) ->  | AB202: =IF(AA202="", COUNTIF(AA$5:AA202, ""),"") -> 198 | AC202: 00:00:01.711 | AD202: 1.98e-05
... 402 more rows

Sheet Mai
C3: mayo
C4: Fecha de Publicación | D4: clasificación | E4: Plan de cuentas | F4: artículo | G4: Forma de pago | H4: Banco | I4: Descripción de la transacción | J4: Centro de coste | K4: cliente | L4: valor | M4: Fecha del pago | N4: acumulado | P4: resultado | Q4: =Q7-Q9 -> 0 | S4: indirecta a la lista | T4: ingresos o gastos | U4: día de la venta | V4: el mes venta | W4: meses corresp venta | X4: remunerado o no | Y4: día del pago | Z4: mes de pago | AA4: meses corresp | AB4: Orden | AC4: repet | AD4: desempate | AE4: valor | AF4: repet 1 | AG4: 2 de repetición | AH4: 3 repet | AI4: repet 4 | AJ4: repet 5
N5: =O5 -> 2120 | O5: =Q5+IF(AND(T5="Ingresos",X5="Pago",AA5=$C$3),L5,IF(AND(T5="gasto",X5="Pago",AA5=$C$3),-L5,0)) -> 2120 | P5: Saldo inicial | Q5: =Abr!Q11 -> 2120 | S5: =VLOOKUP(D5,PC_Rec!$O$5:$P$18,2,FALSE) ->  | T5: =IF(D5="","",VLOOKUP(D5,PC_Rec!$O$5:$Q$18,3,FALSE)) ->  | U5: =IF(C5="","",DAY(C5)) ->  | V5: =IF(C5="","",MONTH(C5)) ->  | W5: =IF(V5="","",VLOOKUP(V5,'Aux1'!$A$1:$B$12,2,FALSE)) ->  | X5: =IF(M5<>"","Pago","Não pago") -> Não pago | Y5: =IF(M5="","",DAY(M5)) ->  | Z5: =IF(M5="","",MONTH(M5)) ->  | AA5: =IF(Z5="","",VLOOKUP(Z5,'Aux1'!$A$1:$B$12,2,FALSE)) ->  | AB5: =IF(AA5="", COUNTIF(AA$5:AA5, ""),"") -> 1 | AC5: =SUM(AD5:AE5) -> 00:00:00.009 | AD5: 1e-07 | AE5: =IF(AND(X5="Não pago",L5<>0),C5,"") ->  | AF5: =IF(AE5="","",C5) ->  | AG5: =IF(AE5="","",D5) ->  | AH5: =IF(AE5="","",E5) ->  | AI5: =IF(AE5="","",F5) ->  | AJ5: =IF(AE5="","",L5) -> 
N6: =O6 -> 0 | O6: =Q6+IF(AND(T6="Ingresos",X6="Pago",AA6=$C$3),L6,IF(AND(T6="gasto",X6="Pago",AA6=$C$3),-L6,0)) -> 0 | S6: =VLOOKUP(D6,PC_Rec!$O$5:$P$18,2,FALSE) ->  | T6: =IF(D6="","",VLOOKUP(D6,PC_Rec!$O$5:$Q$18,3,FALSE)) ->  | W6: =IF(V6="","",VLOOKUP(V6,'Aux1'!$A$1:$B$12,2,FALSE)) ->  | X6: Não pago | AA6: =IF(Z6="","",VLOOKUP(Z6,'Aux1'!$A$1:$B$12,2,FALSE)) ->  | AB6: =IF(AA6="", COUNTIF(AA$5:AA6, ""),"") -> 2 | AC6: =SUM(AD6:AE6) -> 00:00:00.017 | AD6: 2e-07
N7: =O7 -> 0 | O7: 0 | P7: Los ingresos totales | Q7: =SUMIFS('Aux2'!H2:H7202,'Aux2'!P2:P7202,$C$3,'Aux2'!I2:I7202,"Ingresos") -> 0 | S7: =VLOOKUP(D7,PC_Rec!$O$5:$P$18,2,FALSE) ->  | T7: =IF(D7="","",VLOOKUP(D7,PC_Rec!$O$5:$Q$18,3,FALSE)) ->  | W7: =IF(V7="","",VLOOKUP(V7,'Aux1'!$A$1:$B$12,2,FALSE)) ->  | X7: Não pago | AA7: =IF(Z7="","",VLOOKUP(Z7,'Aux1'!$A$1:$B$12,2,FALSE)) ->  | AB7: =IF(AA7="", COUNTIF(AA$5:AA7, ""),"") -> 3 | AC7: 00:00:00.026 | AD7: 3e-07
N8: 0 | O8: 0 | S8: =VLOOKUP(D8,PC_Rec!$O$5:$P$18,2,FALSE) ->  | T8: =IF(D8="","",VLOOKUP(D8,PC_Rec!$O$5:$Q$18,3,FALSE)) ->  | W8: =IF(V8="","",VLOOKUP(V8,'Aux1'!$A$1:$B$12,2,FALSE)) ->  | X8: Não pago | AA8: =IF(Z8="","",VLOOKUP(Z8,'Aux1'!$A$1:$B$12,2,FALSE)) ->  | AB8: =IF(AA8="", COUNTIF(AA$5:AA8, ""),"") -> 4 | AC8: 00:00:00.035 | AD8: 4e-07
N9: 0 | O9: 0 | P9: Los gastos totales | Q9: =SUMIFS('Aux2'!H2:H7202,'Aux2'!P2:P7202,$C$3,'Aux2'!I2:I7202,"gasto") -> 0 | S9: =VLOOKUP(D9,PC_Rec!$O$5:$P$18,2,FALSE) ->  | T9: =IF(D9="","",VLOOKUP(D9,PC_Rec!$O$5:$Q$18,3,FALSE)) ->  | W9: =IF(V9="","",VLOOKUP(V9,'Aux1'!$A$1:$B$12,2,FALSE)) ->  | X9: Não pago | AA9: =IF(Z9="","",VLOOKUP(Z9,'Aux1'!$A$1:$B$12,2,FALSE)) ->  | AB9: =IF(AA9="", COUNTIF(AA$5:AA9, ""),"") -> 5 | AC9: 00:00:00.043 | AD9: 5e-07
N10: 0 | O10: 0 | S10: =VLOOKUP(D10,PC_Rec!$O$5:$P$18,2,FALSE) ->  | T10: =IF(D10="","",VLOOKUP(D10,PC_Rec!$O$5:$Q$18,3,FALSE)) ->  | W10: =IF(V10="","",VLOOKUP(V10,'Aux1'!$A$1:$B$12,2,FALSE)) ->  | X10: Não pago | AA10: =IF(Z10="","",VLOOKUP(Z10,'Aux1'!$A$1:$B$12,2,FALSE)) ->  | AB10: =IF(AA10="", COUNTIF(AA$5:AA10, ""),"") -> 6 | AC10: 00:00:00.052 | AD10: 6e-07
N11: 2120 | O11: 2120 | P11: acumulado | Q11: =Q5+Q4 -> 2120 | S11: =VLOOKUP(D11,PC_Rec!$O$5:$P$18,2,FALSE) ->  | T11: =IF(D11="","",VLOOKUP(D11,PC_Rec!$O$5:$Q$18,3,FALSE)) ->  | W11: =IF(V11="","",VLOOKUP(V11,'Aux1'!$A$1:$B$12,2,FALSE)) ->  | X11: Não pago | AA11: =IF(Z11="","",VLOOKUP(Z11,'Aux1'!$A$1:$B$12,2,FALSE)) ->  | AB11: =IF(AA11="", COUNTIF(AA$5:AA11, ""),"") -> 7 | AC11: 00:00:00.060 | AD11: 7e-07
N12: 0 | O12: 0 | S12: =VLOOKUP(D12,PC_Rec!$O$5:$P$18,2,FALSE) ->  | T12: =IF(D12="","",VLOOKUP(D12,PC_Rec!$O$5:$Q$18,3,FALSE)) ->  | W12: =IF(V12="","",VLOOKUP(V12,'Aux1'!$A$1:$B$12,2,FALSE)) ->  | X12: Não pago | AA12: =IF(Z12="","",VLOOKUP(Z12,'Aux1'!$A$1:$B$12,2,FALSE)) ->  | AB12: =IF(AA12="", COUNTIF(AA$5:AA12, ""),"") -> 8 | AC12: 00:00:00.069 | AD12: 8e-07
N13: 0 | O13: 0 | S13: =VLOOKUP(D13,PC_Rec!$O$5:$P$18,2,FALSE) ->  | T13: =IF(D13="","",VLOOKUP(D13,PC_Rec!$O$5:$Q$18,3,FALSE)) ->  | W13: =IF(V13="","",VLOOKUP(V13,'Aux1'!$A$1:$B$12,2,FALSE)) ->  | X13: Não pago | AA13: =IF(Z13="","",VLOOKUP(Z13,'Aux1'!$A$1:$B$12,2,FALSE)) ->  | AB13: =IF(AA13="", COUNTIF(AA$5:AA13, ""),"") -> 9 | AC13: 00:00:00.078 | AD13: 9e-07
N14: 0 | O14: 0 | S14: =VLOOKUP(D14,PC_Rec!$O$5:$P$18,2,FALSE) ->  | T14: =IF(D14="","",VLOOKUP(D14,PC_Rec!$O$5:$Q$18,3,FALSE)) ->  | W14: =IF(V14="","",VLOOKUP(V14,'Aux1'!$A$1:$B$12,2,FALSE)) ->  | X14: Não pago | AA14: =IF(Z14="","",VLOOKUP(Z14,'Aux1'!$A$1:$B$12,2,FALSE)) ->  | AB14: =IF(AA14="", COUNTIF(AA$5:AA14, ""),"") -> 10 | AC14: 00:00:00.086 | AD14: 1e-06
N15: 0 | O15: 0 | S15: =VLOOKUP(D15,PC_Rec!$O$5:$P$18,2,FALSE) ->  | T15: =IF(D15="","",VLOOKUP(D15,PC_Rec!$O$5:$Q$18,3,FALSE)) ->  | W15: =IF(V15="","",VLOOKUP(V15,'Aux1'!$A$1:$B$12,2,FALSE)) ->  | X15: Não pago | AA15: =IF(Z15="","",VLOOKUP(Z15,'Aux1'!$A$1:$B$12,2,FALSE)) ->  | AB15: =IF(AA15="", COUNTIF(AA$5:AA15, ""),"") -> 11 | AC15: 00:00:00.095 | AD15: 1.1e-06
N16: 0 | O16: 0 | S16: =VLOOKUP(D16,PC_Rec!$O$5:$P$18,2,FALSE) ->  | T16: =IF(D16="","",VLOOKUP(D16,PC_Rec!$O$5:$Q$18,3,FALSE)) ->  | W16: =IF(V16="","",VLOOKUP(V16,'Aux1'!$A$1:$B$12,2,FALSE)) ->  | X16: Não pago | AA16: =IF(Z16="","",VLOOKUP(Z16,'Aux1'!$A$1:$B$12,2,FALSE)) ->  | AB16: =IF(AA16="", COUNTIF(AA$5:AA16, ""),"") -> 12 | AC16: 00:00:00.104 | AD16: 1.2e-06
N17: 0 | O17: 0 | S17: =VLOOKUP(D17,PC_Rec!$O$5:$P$18,2,FALSE) ->  | T17: =IF(D17="","",VLOOKUP(D17,PC_Rec!$O$5:$Q$18,3,FALSE)) ->  | W17: =IF(V17="","",VLOOKUP(V17,'Aux1'!$A$1:$B$12,2,FALSE)) ->  | X17: Não pago | AA17: =IF(Z17="","",VLOOKUP(Z17,'Aux1'!$A$1:$B$12,2,FALSE)) ->  | AB17: =IF(AA17="", COUNTIF(AA$5:AA17, ""),"") -> 13 | AC17: 00:00:00.112 | AD17: 1.3e-06
N18: 0 | O18: 0 | S18: =VLOOKUP(D18,PC_Rec!$O$5:$P$18,2,FALSE) ->  | T18: =IF(D18="","",VLOOKUP(D18,PC_Rec!$O$5:$Q$18,3,FALSE)) ->  | W18: =IF(V18="","",VLOOKUP(V18,'Aux1'!$A$1:$B$12,2,FALSE)) ->  | X18: Não pago | AA18: =IF(Z18="","",VLOOKUP(Z18,'Aux1'!$A$1:$B$12,2,FALSE)) ->  | AB18: =IF(AA18="", COUNTIF(AA$5:AA18, ""),"") -> 14 | AC18: 00:00:00.121 | AD18: 1.4e-06
N19: 0 | O19: 0 | S19: =VLOOKUP(D19,PC_Rec!$O$5:$P$18,2,FALSE) ->  | T19: =IF(D19="","",VLOOKUP(D19,PC_Rec!$O$5:$Q$18,3,FALSE)) ->  | W19: =IF(V19="","",VLOOKUP(V19,'Aux1'!$A$1:$B$12,2,FALSE)) ->  | X19: Não pago | AA19: =IF(Z19="","",VLOOKUP(Z19,'Aux1'!$A$1:$B$12,2,FALSE)) ->  | AB19: =IF(AA19="", COUNTIF(AA$5:AA19, ""),"") -> 15 | AC19: 00:00:00.130 | AD19: 1.5e-06
N20: 0 | O20: 0 | S20: =VLOOKUP(D20,PC_Rec!$O$5:$P$18,2,FALSE) ->  | T20: =IF(D20="","",VLOOKUP(D20,PC_Rec!$O$5:$Q$18,3,FALSE)) ->  | W20: =IF(V20="","",VLOOKUP(V20,'Aux1'!$A$1:$B$12,2,FALSE)) ->  | X20: Não pago | AA20: =IF(Z20="","",VLOOKUP(Z20,'Aux1'!$A$1:$B$12,2,FALSE)) ->  | AB20: =IF(AA20="", COUNTIF(AA$5:AA20, ""),"") -> 16 | AC20: 00:00:00.138 | AD20: 1.6e-06
N21: 0 | O21: 0 | S21: =VLOOKUP(D21,PC_Rec!$O$5:$P$18,2,FALSE) ->  | T21: =IF(D21="","",VLOOKUP(D21,PC_Rec!$O$5:$Q$18,3,FALSE)) ->  | W21: =IF(V21="","",VLOOKUP(V21,'Aux1'!$A$1:$B$12,2,FALSE)) ->  | X21: Não pago | AA21: =IF(Z21="","",VLOOKUP(Z21,'Aux1'!$A$1:$B$12,2,FALSE)) ->  | AB21: =IF(AA21="", COUNTIF(AA$5:AA21, ""),"") -> 17 | AC21: 00:00:00.147 | AD21: 1.7e-06
N22: 0 | O22: 0 | S22: =VLOOKUP(D22,PC_Rec!$O$5:$P$18,2,FALSE) ->  | T22: =IF(D22="","",VLOOKUP(D22,PC_Rec!$O$5:$Q$18,3,FALSE)) ->  | W22: =IF(V22="","",VLOOKUP(V22,'Aux1'!$A$1:$B$12,2,FALSE)) ->  | X22: Não pago | AA22: =IF(Z22="","",VLOOKUP(Z22,'Aux1'!$A$1:$B$12,2,FALSE)) ->  | AB22: =IF(AA22="", COUNTIF(AA$5:AA22, ""),"") -> 18 | AC22: 00:00:00.156 | AD22: 1.8e-06
N23: 0 | O23: 0 | S23: =VLOOKUP(D23,PC_Rec!$O$5:$P$18,2,FALSE) ->  | T23: =IF(D23="","",VLOOKUP(D23,PC_Rec!$O$5:$Q$18,3,FALSE)) ->  | W23: =IF(V23="","",VLOOKUP(V23,'Aux1'!$A$1:$B$12,2,FALSE)) ->  | X23: Não pago | AA23: =IF(Z23="","",VLOOKUP(Z23,'Aux1'!$A$1:$B$12,2,FALSE)) ->  | AB23: =IF(AA23="", COUNTIF(AA$5:AA23, ""),"") -> 19 | AC23: 00:00:00.164 | AD23: 1.9e-06
N24: 0 | O24: 0 | S24: =VLOOKUP(D24,PC_Rec!$O$5:$P$18,2,FALSE) ->  | T24: =IF(D24="","",VLOOKUP(D24,PC_Rec!$O$5:$Q$18,3,FALSE)) ->  | W24: =IF(V24="","",VLOOKUP(V24,'Aux1'!$A$1:$B$12,2,FALSE)) ->  | X24: Não pago | AA24: =IF(Z24="","",VLOOKUP(Z24,'Aux1'!$A$1:$B$12,2,FALSE)) ->  | AB24: =IF(AA24="", COUNTIF(AA$5:AA24, ""),"") -> 20 | AC24: 00:00:00.173 | AD24: 2e-06
N25: 0 | O25: 0 | S25: =VLOOKUP(D25,PC_Rec!$O$5:$P$18,2,FALSE) ->  | T25: =IF(D25="","",VLOOKUP(D25,PC_Rec!$O$5:$Q$18,3,FALSE)) ->  | W25: =IF(V25="","",VLOOKUP(V25,'Aux1'!$A$1:$B$12,2,FALSE)) ->  | X25: Não pago | AA25: =IF(Z25="","",VLOOKUP(Z25,'Aux1'!$A$1:$B$12,2,FALSE)) ->  | AB25: =IF(AA25="", COUNTIF(AA$5:AA25, ""),"") -> 21 | AC25: 00:00:00.181 | AD25: 2.1e-06
N26: 0 | O26: 0 | S26: =VLOOKUP(D26,PC_Rec!$O$5:$P$18,2,FALSE) ->  | T26: =IF(D26="","",VLOOKUP(D26,PC_Rec!$O$5:$Q$18,3,FALSE)) ->  | W26: =IF(V26="","",VLOOKUP(V26,'Aux1'!$A$1:$B$12,2,FALSE)) ->  | X26: Não pago | AA26: =IF(Z26="","",VLOOKUP(Z26,'Aux1'!$A$1:$B$12,2,FALSE)) ->  | AB26: =IF(AA26="", COUNTIF(AA$5:AA26, ""),"") -> 22 | AC26: 00:00:00.190 | AD26: 2.2e-06
N27: 0 | O27: 0 | S27: =VLOOKUP(D27,PC_Rec!$O$5:$P$18,2,FALSE) ->  | T27: =IF(D27="","",VLOOKUP(D27,PC_Rec!$O$5:$Q$18,3,FALSE)) ->  | W27: =IF(V27="","",VLOOKUP(V27,'Aux1'!$A$1:$B$12,2,FALSE)) ->  | X27: Não pago | AA27: =IF(Z27="","",VLOOKUP(Z27,'Aux1'!$A$1:$B$12,2,FALSE)) ->  | AB27: =IF(AA27="", COUNTIF(AA$5:AA27, ""),"") -> 23 | AC27: 00:00:00.199 | AD27: 2.3e-06
N28: 0 | O28: 0 | S28: =VLOOKUP(D28,PC_Rec!$O$5:$P$18,2,FALSE) ->  | T28: =IF(D28="","",VLOOKUP(D28,PC_Rec!$O$5:$Q$18,3,FALSE)) ->  | W28: =IF(V28="","",VLOOKUP(V28,'Aux1'!$A$1:$B$12,2,FALSE)) ->  | X28: Não pago | AA28: =IF(Z28="","",VLOOKUP(Z28,'Aux1'!$A$1:$B$12,2,FALSE)) ->  | AB28: =IF(AA28="", COUNTIF(AA$5:AA28, ""),"") -> 24 | AC28: 00:00:00.207 | AD28: 2.4e-06
N29: 0 | O29: 0 | S29: =VLOOKUP(D29,PC_Rec!$O$5:$P$18,2,FALSE) ->  | T29: =IF(D29="","",VLOOKUP(D29,PC_Rec!$O$5:$Q$18,3,FALSE)) ->  | W29: =IF(V29="","",VLOOKUP(V29,'Aux1'!$A$1:$B$12,2,FALSE)) ->  | X29: Não pago | AA29: =IF(Z29="","",VLOOKUP(Z29,'Aux1'!$A$1:$B$12,2,FALSE)) ->  | AB29: =IF(AA29="", COUNTIF(AA$5:AA29, ""),"") -> 25 | AC29: 00:00:00.216 | AD29: 2.5e-06
N30: 0 | O30: 0 | S30: =VLOOKUP(D30,PC_Rec!$O$5:$P$18,2,FALSE) ->  | T30: =IF(D30="","",VLOOKUP(D30,PC_Rec!$O$5:$Q$18,3,FALSE)) ->  | W30: =IF(V30="","",VLOOKUP(V30,'Aux1'!$A$1:$B$12,2,FALSE)) ->  | X30: Não pago | AA30: =IF(Z30="","",VLOOKUP(Z30,'Aux1'!$A$1:$B$12,2,FALSE)) ->  | AB30: =IF(AA30="", COUNTIF(AA$5:AA30, ""),"") -> 26 | AC30: 00:00:00.225 | AD30: 2.6e-06
N31: 0 | O31: 0 | S31: =VLOOKUP(D31,PC_Rec!$O$5:$P$18,2,FALSE) ->  | T31: =IF(D31="","",VLOOKUP(D31,PC_Rec!$O$5:$Q$18,3,FALSE)) ->  | W31: =IF(V31="","",VLOOKUP(V31,'Aux1'!$A$1:$B$12,2,FALSE)) ->  | X31: Não pago | AA31: =IF(Z31="","",VLOOKUP(Z31,'Aux1'!$A$1:$B$12,2,FALSE)) ->  | AB31: =IF(AA31="", COUNTIF(AA$5:AA31, ""),"") -> 27 | AC31: 00:00:00.233 | AD31: 2.7e-06
N32: 0 | O32: 0 | S32: =VLOOKUP(D32,PC_Rec!$O$5:$P$18,2,FALSE) ->  | T32: =IF(D32="","",VLOOKUP(D32,PC_Rec!$O$5:$Q$18,3,FALSE)) ->  | W32: =IF(V32="","",VLOOKUP(V32,'Aux1'!$A$1:$B$12,2,FALSE)) ->  | X32: Não pago | AA32: =IF(Z32="","",VLOOKUP(Z32,'Aux1'!$A$1:$B$12,2,FALSE)) ->  | AB32: =IF(AA32="", COUNTIF(AA$5:AA32, ""),"") -> 28 | AC32: 00:00:00.242 | AD32: 2.8e-06
N33: 0 | O33: 0 | S33: =VLOOKUP(D33,PC_Rec!$O$5:$P$18,2,FALSE) ->  | T33: =IF(D33="","",VLOOKUP(D33,PC_Rec!$O$5:$Q$18,3,FALSE)) ->  | W33: =IF(V33="","",VLOOKUP(V33,'Aux1'!$A$1:$B$12,2,FALSE)) ->  | X33: Não pago | AA33: =IF(Z33="","",VLOOKUP(Z33,'Aux1'!$A$1:$B$12,2,FALSE)) ->  | AB33: =IF(AA33="", COUNTIF(AA$5:AA33, ""),"") -> 29 | AC33: 00:00:00.251 | AD33: 2.9e-06
N34: 0 | O34: 0 | S34: =VLOOKUP(D34,PC_Rec!$O$5:$P$18,2,FALSE) ->  | T34: =IF(D34="","",VLOOKUP(D34,PC_Rec!$O$5:$Q$18,3,FALSE)) ->  | W34: =IF(V34="","",VLOOKUP(V34,'Aux1'!$A$1:$B$12,2,FALSE)) ->  | X34: Não pago | AA34: =IF(Z34="","",VLOOKUP(Z34,'Aux1'!$A$1:$B$12,2,FALSE)) ->  | AB34: =IF(AA34="", COUNTIF(AA$5:AA34, ""),"") -> 30 | AC34: 00:00:00.259 | AD34: 3e-06
N35: 0 | O35: 0 | S35: =VLOOKUP(D35,PC_Rec!$O$5:$P$18,2,FALSE) ->  | T35: =IF(D35="","",VLOOKUP(D35,PC_Rec!$O$5:$Q$18,3,FALSE)) ->  | W35: =IF(V35="","",VLOOKUP(V35,'Aux1'!$A$1:$B$12,2,FALSE)) ->  | X35: Não pago | AA35: =IF(Z35="","",VLOOKUP(Z35,'Aux1'!$A$1:$B$12,2,FALSE)) ->  | AB35: =IF(AA35="", COUNTIF(AA$5:AA35, ""),"") -> 31 | AC35: 00:00:00.268 | AD35: 3.1e-06
N36: 0 | O36: 0 | S36: =VLOOKUP(D36,PC_Rec!$O$5:$P$18,2,FALSE) ->  | T36: =IF(D36="","",VLOOKUP(D36,PC_Rec!$O$5:$Q$18,3,FALSE)) ->  | W36: =IF(V36="","",VLOOKUP(V36,'Aux1'!$A$1:$B$12,2,FALSE)) ->  | X36: Não pago | AA36: =IF(Z36="","",VLOOKUP(Z36,'Aux1'!$A$1:$B$12,2,FALSE)) ->  | AB36: =IF(AA36="", COUNTIF(AA$5:AA36, ""),"") -> 32 | AC36: 00:00:00.276 | AD36: 3.2e-06
N37: 0 | O37: 0 | S37: =VLOOKUP(D37,PC_Rec!$O$5:$P$18,2,FALSE) ->  | T37: =IF(D37="","",VLOOKUP(D37,PC_Rec!$O$5:$Q$18,3,FALSE)) ->  | W37: =IF(V37="","",VLOOKUP(V37,'Aux1'!$A$1:$B$12,2,FALSE)) ->  | X37: Não pago | AA37: =IF(Z37="","",VLOOKUP(Z37,'Aux1'!$A$1:$B$12,2,FALSE)) ->  | AB37: =IF(AA37="", COUNTIF(AA$5:AA37, ""),"") -> 33 | AC37: 00:00:00.285 | AD37: 3.3e-06
N38: 0 | O38: 0 | S38: =VLOOKUP(D38,PC_Rec!$O$5:$P$18,2,FALSE) ->  | T38: =IF(D38="","",VLOOKUP(D38,PC_Rec!$O$5:$Q$18,3,FALSE)) ->  | W38: =IF(V38="","",VLOOKUP(V38,'Aux1'!$A$1:$B$12,2,FALSE)) ->  | X38: Não pago | AA38: =IF(Z38="","",VLOOKUP(Z38,'Aux1'!$A$1:$B$12,2,FALSE)) ->  | AB38: =IF(AA38="", COUNTIF(AA$5:AA38, ""),"") -> 34 | AC38: 00:00:00.294 | AD38: 3.4e-06
N39: 0 | O39: 0 | S39: =VLOOKUP(D39,PC_Rec!$O$5:$P$18,2,FALSE) ->  | T39: =IF(D39="","",VLOOKUP(D39,PC_Rec!$O$5:$Q$18,3,FALSE)) ->  | W39: =IF(V39="","",VLOOKUP(V39,'Aux1'!$A$1:$B$12,2,FALSE)) ->  | X39: Não pago | AA39: =IF(Z39="","",VLOOKUP(Z39,'Aux1'!$A$1:$B$12,2,FALSE)) ->  | AB39: =IF(AA39="", COUNTIF(AA$5:AA39, ""),"") -> 35 | AC39: 00:00:00.302 | AD39: 3.5e-06
N40: 0 | O40: 0 | S40: =VLOOKUP(D40,PC_Rec!$O$5:$P$18,2,FALSE) ->  | T40: =IF(D40="","",VLOOKUP(D40,PC_Rec!$O$5:$Q$18,3,FALSE)) ->  | W40: =IF(V40="","",VLOOKUP(V40,'Aux1'!$A$1:$B$12,2,FALSE)) ->  | X40: Não pago | AA40: =IF(Z40="","",VLOOKUP(Z40,'Aux1'!$A$1:$B$12,2,FALSE)) ->  | AB40: =IF(AA40="", COUNTIF(AA$5:AA40, ""),"") -> 36 | AC40: 00:00:00.311 | AD40: 3.6e-06
N41: 0 | O41: 0 | S41: =VLOOKUP(D41,PC_Rec!$O$5:$P$18,2,FALSE) ->  | T41: =IF(D41="","",VLOOKUP(D41,PC_Rec!$O$5:$Q$18,3,FALSE)) ->  | W41: =IF(V41="","",VLOOKUP(V41,'Aux1'!$A$1:$B$12,2,FALSE)) ->  | X41: Não pago | AA41: =IF(Z41="","",VLOOKUP(Z41,'Aux1'!$A$1:$B$12,2,FALSE)) ->  | AB41: =IF(AA41="", COUNTIF(AA$5:AA41, ""),"") -> 37 | AC41: 00:00:00.320 | AD41: 3.7e-06
N42: 0 | O42: 0 | S42: =VLOOKUP(D42,PC_Rec!$O$5:$P$18,2,FALSE) ->  | T42: =IF(D42="","",VLOOKUP(D42,PC_Rec!$O$5:$Q$18,3,FALSE)) ->  | W42: =IF(V42="","",VLOOKUP(V42,'Aux1'!$A$1:$B$12,2,FALSE)) ->  | X42: Não pago | AA42: =IF(Z42="","",VLOOKUP(Z42,'Aux1'!$A$1:$B$12,2,FALSE)) ->  | AB42: =IF(AA42="", COUNTIF(AA$5:AA42, ""),"") -> 38 | AC42: 00:00:00.328 | AD42: 3.8e-06
N43: 0 | O43: 0 | S43: =VLOOKUP(D43,PC_Rec!$O$5:$P$18,2,FALSE) ->  | T43: =IF(D43="","",VLOOKUP(D43,PC_Rec!$O$5:$Q$18,3,FALSE)) ->  | W43: =IF(V43="","",VLOOKUP(V43,'Aux1'!$A$1:$B$12,2,FALSE)) ->  | X43: Não pago | AA43: =IF(Z43="","",VLOOKUP(Z43,'Aux1'!$A$1:$B$12,2,FALSE)) ->  | AB43: =IF(AA43="", COUNTIF(AA$5:AA43, ""),"") -> 39 | AC43: 00:00:00.337 | AD43: 3.9e-06
N44: 0 | O44: 0 | S44: =VLOOKUP(D44,PC_Rec!$O$5:$P$18,2,FALSE) ->  | T44: =IF(D44="","",VLOOKUP(D44,PC_Rec!$O$5:$Q$18,3,FALSE)) ->  | W44: =IF(V44="","",VLOOKUP(V44,'Aux1'!$A$1:$B$12,2,FALSE)) ->  | X44: Não pago | AA44: =IF(Z44="","",VLOOKUP(Z44,'Aux1'!$A$1:$B$12,2,FALSE)) ->  | AB44: =IF(AA44="", COUNTIF(AA$5:AA44, ""),"") -> 40 | AC44: 00:00:00.346 | AD44: 4e-06
N45: 0 | O45: 0 | S45: =VLOOKUP(D45,PC_Rec!$O$5:$P$18,2,FALSE) ->  | T45: =IF(D45="","",VLOOKUP(D45,PC_Rec!$O$5:$Q$18,3,FALSE)) ->  | W45: =IF(V45="","",VLOOKUP(V45,'Aux1'!$A$1:$B$12,2,FALSE)) ->  | X45: Não pago | AA45: =IF(Z45="","",VLOOKUP(Z45,'Aux1'!$A$1:$B$12,2,FALSE)) ->  | AB45: =IF(AA45="", COUNTIF(AA$5:AA45, ""),"") -> 41 | AC45: 00:00:00.354 | AD45: 4.1e-06
N46: 0 | O46: 0 | S46: =VLOOKUP(D46,PC_Rec!$O$5:$P$18,2,FALSE) ->  | T46: =IF(D46="","",VLOOKUP(D46,PC_Rec!$O$5:$Q$18,3,FALSE)) ->  | W46: =IF(V46="","",VLOOKUP(V46,'Aux1'!$A$1:$B$12,2,FALSE)) ->  | X46: Não pago | AA46: =IF(Z46="","",VLOOKUP(Z46,'Aux1'!$A$1:$B$12,2,FALSE)) ->  | AB46: =IF(AA46="", COUNTIF(AA$5:AA46, ""),"") -> 42 | AC46: 00:00:00.363 | AD46: 4.2e-06
N47: 0 | O47: 0 | S47: =VLOOKUP(D47,PC_Rec!$O$5:$P$18,2,FALSE) ->  | T47: =IF(D47="","",VLOOKUP(D47,PC_Rec!$O$5:$Q$18,3,FALSE)) ->  | W47: =IF(V47="","",VLOOKUP(V47,'Aux1'!$A$1:$B$12,2,FALSE)) ->  | X47: Não pago | AA47: =IF(Z47="","",VLOOKUP(Z47,'Aux1'!$A$1:$B$12,2,FALSE)) ->  | AB47: =IF(AA47="", COUNTIF(AA$5:AA47, ""),"") -> 43 | AC47: 00:00:00.372 | AD47: 4.3e-06
N48: 0 | O48: 0 | S48: =VLOOKUP(D48,PC_Rec!$O$5:$P$18,2,FALSE) ->  | T48: =IF(D48="","",VLOOKUP(D48,PC_Rec!$O$5:$Q$18,3,FALSE)) ->  | W48: =IF(V48="","",VLOOKUP(V48,'Aux1'!$A$1:$B$12,2,FALSE)) ->  | X48: Não pago | AA48: =IF(Z48="","",VLOOKUP(Z48,'Aux1'!$A$1:$B$12,2,FALSE)) ->  | AB48: =IF(AA48="", COUNTIF(AA$5:AA48, ""),"") -> 44 | AC48: 00:00:00.380 | AD48: 4.4e-06
N49: 0 | O49: 0 | S49: =VLOOKUP(D49,PC_Rec!$O$5:$P$18,2,FALSE) ->  | T49: =IF(D49="","",VLOOKUP(D49,PC_Rec!$O$5:$Q$18,3,FALSE)) ->  | W49: =IF(V49="","",VLOOKUP(V49,'Aux1'!$A$1:$B$12,2,FALSE)) ->  | X49: Não pago | AA49: =IF(Z49="","",VLOOKUP(Z49,'Aux1'!$A$1:$B$12,2,FALSE)) ->  | AB49: =IF(AA49="", COUNTIF(AA$5:AA49, ""),"") -> 45 | AC49: 00:00:00.389 | AD49: 4.5e-06
N50: 0 | O50: 0 | S50: =VLOOKUP(D50,PC_Rec!$O$5:$P$18,2,FALSE) ->  | T50: =IF(D50="","",VLOOKUP(D50,PC_Rec!$O$5:$Q$18,3,FALSE)) ->  | W50: =IF(V50="","",VLOOKUP(V50,'Aux1'!$A$1:$B$12,2,FALSE)) ->  | X50: Não pago | AA50: =IF(Z50="","",VLOOKUP(Z50,'Aux1'!$A$1:$B$12,2,FALSE)) ->  | AB50: =IF(AA50="", COUNTIF(AA$5:AA50, ""),"") -> 46 | AC50: 00:00:00.397 | AD50: 4.6e-06
N51: 0 | O51: 0 | S51: =VLOOKUP(D51,PC_Rec!$O$5:$P$18,2,FALSE) ->  | T51: =IF(D51="","",VLOOKUP(D51,PC_Rec!$O$5:$Q$18,3,FALSE)) ->  | W51: =IF(V51="","",VLOOKUP(V51,'Aux1'!$A$1:$B$12,2,FALSE)) ->  | X51: Não pago | AA51: =IF(Z51="","",VLOOKUP(Z51,'Aux1'!$A$1:$B$12,2,FALSE)) ->  | AB51: =IF(AA51="", COUNTIF(AA$5:AA51, ""),"") -> 47 | AC51: 00:00:00.406 | AD51: 4.7e-06
N52: 0 | O52: 0 | S52: =VLOOKUP(D52,PC_Rec!$O$5:$P$18,2,FALSE) ->  | T52: =IF(D52="","",VLOOKUP(D52,PC_Rec!$O$5:$Q$18,3,FALSE)) ->  | W52: =IF(V52="","",VLOOKUP(V52,'Aux1'!$A$1:$B$12,2,FALSE)) ->  | X52: Não pago | AA52: =IF(Z52="","",VLOOKUP(Z52,'Aux1'!$A$1:$B$12,2,FALSE)) ->  | AB52: =IF(AA52="", COUNTIF(AA$5:AA52, ""),"") -> 48 | AC52: 00:00:00.415 | AD52: 4.8e-06
N53: 0 | O53: 0 | S53: =VLOOKUP(D53,PC_Rec!$O$5:$P$18,2,FALSE) ->  | T53: =IF(D53="","",VLOOKUP(D53,PC_Rec!$O$5:$Q$18,3,FALSE)) ->  | W53: =IF(V53="","",VLOOKUP(V53,'Aux1'!$A$1:$B$12,2,FALSE)) ->  | X53: Não pago | AA53: =IF(Z53="","",VLOOKUP(Z53,'Aux1'!$A$1:$B$12,2,FALSE)) ->  | AB53: =IF(AA53="", COUNTIF(AA$5:AA53, ""),"") -> 49 | AC53: 00:00:00.423 | AD53: 4.9e-06
N54: 0 | O54: 0 | S54: =VLOOKUP(D54,PC_Rec!$O$5:$P$18,2,FALSE) ->  | T54: =IF(D54="","",VLOOKUP(D54,PC_Rec!$O$5:$Q$18,3,FALSE)) ->  | W54: =IF(V54="","",VLOOKUP(V54,'Aux1'!$A$1:$B$12,2,FALSE)) ->  | X54: Não pago | AA54: =IF(Z54="","",VLOOKUP(Z54,'Aux1'!$A$1:$B$12,2,FALSE)) ->  | AB54: =IF(AA54="", COUNTIF(AA$5:AA54, ""),"") -> 50 | AC54: 00:00:00.432 | AD54: 5e-06
N55: 0 | O55: 0 | S55: =VLOOKUP(D55,PC_Rec!$O$5:$P$18,2,FALSE) ->  | T55: =IF(D55="","",VLOOKUP(D55,PC_Rec!$O$5:$Q$18,3,FALSE)) ->  | W55: =IF(V55="","",VLOOKUP(V55,'Aux1'!$A$1:$B$12,2,FALSE)) ->  | X55: Não pago | AA55: =IF(Z55="","",VLOOKUP(Z55,'Aux1'!$A$1:$B$12,2,FALSE)) ->  | AB55: =IF(AA55="", COUNTIF(AA$5:AA55, ""),"") -> 51 | AC55: 00:00:00.441 | AD55: 5.1e-06
N56: 0 | O56: 0 | S56: =VLOOKUP(D56,PC_Rec!$O$5:$P$18,2,FALSE) ->  | T56: =IF(D56="","",VLOOKUP(D56,PC_Rec!$O$5:$Q$18,3,FALSE)) ->  | W56: =IF(V56="","",VLOOKUP(V56,'Aux1'!$A$1:$B$12,2,FALSE)) ->  | X56: Não pago | AA56: =IF(Z56="","",VLOOKUP(Z56,'Aux1'!$A$1:$B$12,2,FALSE)) ->  | AB56: =IF(AA56="", COUNTIF(AA$5:AA56, ""),"") -> 52 | AC56: 00:00:00.449 | AD56: 5.2e-06
N57: 0 | O57: 0 | S57: =VLOOKUP(D57,PC_Rec!$O$5:$P$18,2,FALSE) ->  | T57: =IF(D57="","",VLOOKUP(D57,PC_Rec!$O$5:$Q$18,3,FALSE)) ->  | W57: =IF(V57="","",VLOOKUP(V57,'Aux1'!$A$1:$B$12,2,FALSE)) ->  | X57: Não pago | AA57: =IF(Z57="","",VLOOKUP(Z57,'Aux1'!$A$1:$B$12,2,FALSE)) ->  | AB57: =IF(AA57="", COUNTIF(AA$5:AA57, ""),"") -> 53 | AC57: 00:00:00.458 | AD57: 5.3e-06
N58: 0 | O58: 0 | S58: =VLOOKUP(D58,PC_Rec!$O$5:$P$18,2,FALSE) ->  | T58: =IF(D58="","",VLOOKUP(D58,PC_Rec!$O$5:$Q$18,3,FALSE)) ->  | W58: =IF(V58="","",VLOOKUP(V58,'Aux1'!$A$1:$B$12,2,FALSE)) ->  | X58: Não pago | AA58: =IF(Z58="","",VLOOKUP(Z58,'Aux1'!$A$1:$B$12,2,FALSE)) ->  | AB58: =IF(AA58="", COUNTIF(AA$5:AA58, ""),"") -> 54 | AC58: 00:00:00.467 | AD58: 5.4e-06
N59: 0 | O59: 0 | S59: =VLOOKUP(D59,PC_Rec!$O$5:$P$18,2,FALSE) ->  | T59: =IF(D59="","",VLOOKUP(D59,PC_Rec!$O$5:$Q$18,3,FALSE)) ->  | W59: =IF(V59="","",VLOOKUP(V59,'Aux1'!$A$1:$B$12,2,FALSE)) ->  | X59: Não pago | AA59: =IF(Z59="","",VLOOKUP(Z59,'Aux1'!$A$1:$B$12,2,FALSE)) ->  | AB59: =IF(AA59="", COUNTIF(AA$5:AA59, ""),"") -> 55 | AC59: 00:00:00.475 | AD59: 5.5e-06
N60: 0 | O60: 0 | S60: =VLOOKUP(D60,PC_Rec!$O$5:$P$18,2,FALSE) ->  | T60: =IF(D60="","",VLOOKUP(D60,PC_Rec!$O$5:$Q$18,3,FALSE)) ->  | W60: =IF(V60="","",VLOOKUP(V60,'Aux1'!$A$1:$B$12,2,FALSE)) ->  | X60: Não pago | AA60: =IF(Z60="","",VLOOKUP(Z60,'Aux1'!$A$1:$B$12,2,FALSE)) ->  | AB60: =IF(AA60="", COUNTIF(AA$5:AA60, ""),"") -> 56 | AC60: 00:00:00.484 | AD60: 5.6e-06
N61: 0 | O61: 0 | S61: =VLOOKUP(D61,PC_Rec!$O$5:$P$18,2,FALSE) ->  | T61: =IF(D61="","",VLOOKUP(D61,PC_Rec!$O$5:$Q$18,3,FALSE)) ->  | W61: =IF(V61="","",VLOOKUP(V61,'Aux1'!$A$1:$B$12,2,FALSE)) ->  | X61: Não pago | AA61: =IF(Z61="","",VLOOKUP(Z61,'Aux1'!$A$1:$B$12,2,FALSE)) ->  | AB61: =IF(AA61="", COUNTIF(AA$5:AA61, ""),"") -> 57 | AC61: 00:00:00.492 | AD61: 5.7e-06
N62: 0 | O62: 0 | S62: =VLOOKUP(D62,PC_Rec!$O$5:$P$18,2,FALSE) ->  | T62: =IF(D62="","",VLOOKUP(D62,PC_Rec!$O$5:$Q$18,3,FALSE)) ->  | W62: =IF(V62="","",VLOOKUP(V62,'Aux1'!$A$1:$B$12,2,FALSE)) ->  | X62: Não pago | AA62: =IF(Z62="","",VLOOKUP(Z62,'Aux1'!$A$1:$B$12,2,FALSE)) ->  | AB62: =IF(AA62="", COUNTIF(AA$5:AA62, ""),"") -> 58 | AC62: 00:00:00.501 | AD62: 5.8e-06
N63: 0 | O63: 0 | S63: =VLOOKUP(D63,PC_Rec!$O$5:$P$18,2,FALSE) ->  | T63: =IF(D63="","",VLOOKUP(D63,PC_Rec!$O$5:$Q$18,3,FALSE)) ->  | W63: =IF(V63="","",VLOOKUP(V63,'Aux1'!$A$1:$B$12,2,FALSE)) ->  | X63: Não pago | AA63: =IF(Z63="","",VLOOKUP(Z63,'Aux1'!$A$1:$B$12,2,FALSE)) ->  | AB63: =IF(AA63="", COUNTIF(AA$5:AA63, ""),"") -> 59 | AC63: 00:00:00.510 | AD63: 5.9e-06
N64: 0 | O64: 0 | S64: =VLOOKUP(D64,PC_Rec!$O$5:$P$18,2,FALSE) ->  | T64: =IF(D64="","",VLOOKUP(D64,PC_Rec!$O$5:$Q$18,3,FALSE)) ->  | W64: =IF(V64="","",VLOOKUP(V64,'Aux1'!$A$1:$B$12,2,FALSE)) ->  | X64: Não pago | AA64: =IF(Z64="","",VLOOKUP(Z64,'Aux1'!$A$1:$B$12,2,FALSE)) ->  | AB64: =IF(AA64="", COUNTIF(AA$5:AA64, ""),"") -> 60 | AC64: 00:00:00.518 | AD64: 6e-06
N65: 0 | O65: 0 | S65: =VLOOKUP(D65,PC_Rec!$O$5:$P$18,2,FALSE) ->  | T65: =IF(D65="","",VLOOKUP(D65,PC_Rec!$O$5:$Q$18,3,FALSE)) ->  | W65: =IF(V65="","",VLOOKUP(V65,'Aux1'!$A$1:$B$12,2,FALSE)) ->  | X65: Não pago | AA65: =IF(Z65="","",VLOOKUP(Z65,'Aux1'!$A$1:$B$12,2,FALSE)) ->  | AB65: =IF(AA65="", COUNTIF(AA$5:AA65, ""),"") -> 61 | AC65: 00:00:00.527 | AD65: 6.1e-06
N66: 0 | O66: 0 | S66: =VLOOKUP(D66,PC_Rec!$O$5:$P$18,2,FALSE) ->  | T66: =IF(D66="","",VLOOKUP(D66,PC_Rec!$O$5:$Q$18,3,FALSE)) ->  | W66: =IF(V66="","",VLOOKUP(V66,'Aux1'!$A$1:$B$12,2,FALSE)) ->  | X66: Não pago | AA66: =IF(Z66="","",VLOOKUP(Z66,'Aux1'!$A$1:$B$12,2,FALSE)) ->  | AB66: =IF(AA66="", COUNTIF(AA$5:AA66, ""),"") -> 62 | AC66: 00:00:00.536 | AD66: 6.2e-06
N67: 0 | O67: 0 | S67: =VLOOKUP(D67,PC_Rec!$O$5:$P$18,2,FALSE) ->  | T67: =IF(D67="","",VLOOKUP(D67,PC_Rec!$O$5:$Q$18,3,FALSE)) ->  | W67: =IF(V67="","",VLOOKUP(V67,'Aux1'!$A$1:$B$12,2,FALSE)) ->  | X67: Não pago | AA67: =IF(Z67="","",VLOOKUP(Z67,'Aux1'!$A$1:$B$12,2,FALSE)) ->  | AB67: =IF(AA67="", COUNTIF(AA$5:AA67, ""),"") -> 63 | AC67: 00:00:00.544 | AD67: 6.3e-06
N68: 0 | O68: 0 | S68: =VLOOKUP(D68,PC_Rec!$O$5:$P$18,2,FALSE) ->  | T68: =IF(D68="","",VLOOKUP(D68,PC_Rec!$O$5:$Q$18,3,FALSE)) ->  | W68: =IF(V68="","",VLOOKUP(V68,'Aux1'!$A$1:$B$12,2,FALSE)) ->  | X68: Não pago | AA68: =IF(Z68="","",VLOOKUP(Z68,'Aux1'!$A$1:$B$12,2,FALSE)) ->  | AB68: =IF(AA68="", COUNTIF(AA$5:AA68, ""),"") -> 64 | AC68: 00:00:00.553 | AD68: 6.4e-06
N69: 0 | O69: 0 | S69: =VLOOKUP(D69,PC_Rec!$O$5:$P$18,2,FALSE) ->  | T69: =IF(D69="","",VLOOKUP(D69,PC_Rec!$O$5:$Q$18,3,FALSE)) ->  | U69: =IF(C69="","",DAY(C69)) ->  | V69: =IF(C69="","",MONTH(C69)) ->  | W69: =IF(V69="","",VLOOKUP(V69,'Aux1'!$A$1:$B$12,2,FALSE)) ->  | X69: =IF(M69<>"","Pago","Não pago") -> Não pago | Y69: =IF(M69="","",DAY(M69)) ->  | Z69: =IF(M69="","",MONTH(M69)) ->  | AA69: =IF(Z69="","",VLOOKUP(Z69,'Aux1'!$A$1:$B$12,2,FALSE)) ->  | AB69: =IF(AA69="", COUNTIF(AA$5:AA69, ""),"") -> 65 | AC69: 00:00:00.562 | AD69: 6.5e-06 | AE69: =IF(AND(X69="Não pago",L69<>0),C69,"") ->  | AF69: =IF(AE69="","",C69) ->  | AG69: =IF(AE69="","",D69) ->  | AH69: =IF(AE69="","",E69) ->  | AI69: =IF(AE69="","",F69) ->  | AJ69: =IF(AE69="","",L69) -> 
N70: 0 | O70: =Q70+IF(AND(T70="Ingresos",X70="Pago",AA70=$C$3),L70,IF(AND(T70="gasto",X70="Pago",AA70=$C$3),-L70,0)) -> 0 | S70: =VLOOKUP(D70,PC_Rec!$O$5:$P$18,2,FALSE) ->  | T70: =IF(D70="","",VLOOKUP(D70,PC_Rec!$O$5:$Q$18,3,FALSE)) ->  | W70: =IF(V70="","",VLOOKUP(V70,'Aux1'!$A$1:$B$12,2,FALSE)) ->  | X70: Não pago | AA70: =IF(Z70="","",VLOOKUP(Z70,'Aux1'!$A$1:$B$12,2,FALSE)) ->  | AB70: =IF(AA70="", COUNTIF(AA$5:AA70, ""),"") -> 66 | AC70: =SUM(AD70:AE70) -> 00:00:00.570 | AD70: 6.6e-06
N71: =O71 -> 0 | O71: 0 | S71: =VLOOKUP(D71,PC_Rec!$O$5:$P$18,2,FALSE) ->  | T71: =IF(D71="","",VLOOKUP(D71,PC_Rec!$O$5:$Q$18,3,FALSE)) ->  | W71: =IF(V71="","",VLOOKUP(V71,'Aux1'!$A$1:$B$12,2,FALSE)) ->  | X71: Não pago | AA71: =IF(Z71="","",VLOOKUP(Z71,'Aux1'!$A$1:$B$12,2,FALSE)) ->  | AB71: =IF(AA71="", COUNTIF(AA$5:AA71, ""),"") -> 67 | AC71: 00:00:00.579 | AD71: 6.7e-06
N72: 0 | O72: 0 | S72: =VLOOKUP(D72,PC_Rec!$O$5:$P$18,2,FALSE) ->  | T72: =IF(D72="","",VLOOKUP(D72,PC_Rec!$O$5:$Q$18,3,FALSE)) ->  | W72: =IF(V72="","",VLOOKUP(V72,'Aux1'!$A$1:$B$12,2,FALSE)) ->  | X72: Não pago | AA72: =IF(Z72="","",VLOOKUP(Z72,'Aux1'!$A$1:$B$12,2,FALSE)) ->  | AB72: =IF(AA72="", COUNTIF(AA$5:AA72, ""),"") -> 68 | AC72: 00:00:00.588 | AD72: 6.8e-06
N73: 0 | O73: 0 | S73: =VLOOKUP(D73,PC_Rec!$O$5:$P$18,2,FALSE) ->  | T73: =IF(D73="","",VLOOKUP(D73,PC_Rec!$O$5:$Q$18,3,FALSE)) ->  | W73: =IF(V73="","",VLOOKUP(V73,'Aux1'!$A$1:$B$12,2,FALSE)) ->  | X73: Não pago | AA73: =IF(Z73="","",VLOOKUP(Z73,'Aux1'!$A$1:$B$12,2,FALSE)) ->  | AB73: =IF(AA73="", COUNTIF(AA$5:AA73, ""),"") -> 69 | AC73: 00:00:00.596 | AD73: 6.9e-06
N74: 0 | O74: 0 | S74: =VLOOKUP(D74,PC_Rec!$O$5:$P$18,2,FALSE) ->  | T74: =IF(D74="","",VLOOKUP(D74,PC_Rec!$O$5:$Q$18,3,FALSE)) ->  | W74: =IF(V74="","",VLOOKUP(V74,'Aux1'!$A$1:$B$12,2,FALSE)) ->  | X74: Não pago | AA74: =IF(Z74="","",VLOOKUP(Z74,'Aux1'!$A$1:$B$12,2,FALSE)) ->  | AB74: =IF(AA74="", COUNTIF(AA$5:AA74, ""),"") -> 70 | AC74: 00:00:00.605 | AD74: 7e-06
N75: 0 | O75: 0 | S75: =VLOOKUP(D75,PC_Rec!$O$5:$P$18,2,FALSE) ->  | T75: =IF(D75="","",VLOOKUP(D75,PC_Rec!$O$5:$Q$18,3,FALSE)) ->  | W75: =IF(V75="","",VLOOKUP(V75,'Aux1'!$A$1:$B$12,2,FALSE)) ->  | X75: Não pago | AA75: =IF(Z75="","",VLOOKUP(Z75,'Aux1'!$A$1:$B$12,2,FALSE)) ->  | AB75: =IF(AA75="", COUNTIF(AA$5:AA75, ""),"") -> 71 | AC75: 00:00:00.613 | AD75: 7.1e-06
N76: 0 | O76: 0 | S76: =VLOOKUP(D76,PC_Rec!$O$5:$P$18,2,FALSE) ->  | T76: =IF(D76="","",VLOOKUP(D76,PC_Rec!$O$5:$Q$18,3,FALSE)) ->  | W76: =IF(V76="","",VLOOKUP(V76,'Aux1'!$A$1:$B$12,2,FALSE)) ->  | X76: Não pago | AA76: =IF(Z76="","",VLOOKUP(Z76,'Aux1'!$A$1:$B$12,2,FALSE)) ->  | AB76: =IF(AA76="", COUNTIF(AA$5:AA76, ""),"") -> 72 | AC76: 00:00:00.622 | AD76: 7.2e-06
N77: 0 | O77: 0 | S77: =VLOOKUP(D77,PC_Rec!$O$5:$P$18,2,FALSE) ->  | T77: =IF(D77="","",VLOOKUP(D77,PC_Rec!$O$5:$Q$18,3,FALSE)) ->  | W77: =IF(V77="","",VLOOKUP(V77,'Aux1'!$A$1:$B$12,2,FALSE)) ->  | X77: Não pago | AA77: =IF(Z77="","",VLOOKUP(Z77,'Aux1'!$A$1:$B$12,2,FALSE)) ->  | AB77: =IF(AA77="", COUNTIF(AA$5:AA77, ""),"") -> 73 | AC77: 00:00:00.631 | AD77: 7.3e-06
N78: 0 | O78: 0 | S78: =VLOOKUP(D78,PC_Rec!$O$5:$P$18,2,FALSE) ->  | T78: =IF(D78="","",VLOOKUP(D78,PC_Rec!$O$5:$Q$18,3,FALSE)) ->  | W78: =IF(V78="","",VLOOKUP(V78,'Aux1'!$A$1:$B$12,2,FALSE)) ->  | X78: Não pago | AA78: =IF(Z78="","",VLOOKUP(Z78,'Aux1'!$A$1:$B$12,2,FALSE)) ->  | AB78: =IF(AA78="", COUNTIF(AA$5:AA78, ""),"") -> 74 | AC78: 00:00:00.639 | AD78: 7.4e-06
N79: 0 | O79: 0 | S79: =VLOOKUP(D79,PC_Rec!$O$5:$P$18,2,FALSE) ->  | T79: =IF(D79="","",VLOOKUP(D79,PC_Rec!$O$5:$Q$18,3,FALSE)) ->  | W79: =IF(V79="","",VLOOKUP(V79,'Aux1'!$A$1:$B$12,2,FALSE)) ->  | X79: Não pago | AA79: =IF(Z79="","",VLOOKUP(Z79,'Aux1'!$A$1:$B$12,2,FALSE)) ->  | AB79: =IF(AA79="", COUNTIF(AA$5:AA79, ""),"") -> 75 | AC79: 00:00:00.648 | AD79: 7.5e-06
N80: 0 | O80: 0 | S80: =VLOOKUP(D80,PC_Rec!$O$5:$P$18,2,FALSE) ->  | T80: =IF(D80="","",VLOOKUP(D80,PC_Rec!$O$5:$Q$18,3,FALSE)) ->  | W80: =IF(V80="","",VLOOKUP(V80,'Aux1'!$A$1:$B$12,2,FALSE)) ->  | X80: Não pago | AA80: =IF(Z80="","",VLOOKUP(Z80,'Aux1'!$A$1:$B$12,2,FALSE)) ->  | AB80: =IF(AA80="", COUNTIF(AA$5:AA80, ""),"") -> 76 | AC80: 00:00:00.657 | AD80: 7.6e-06
N81: 0 | O81: 0 | S81: =VLOOKUP(D81,PC_Rec!$O$5:$P$18,2,FALSE) ->  | T81: =IF(D81="","",VLOOKUP(D81,PC_Rec!$O$5:$Q$18,3,FALSE)) ->  | W81: =IF(V81="","",VLOOKUP(V81,'Aux1'!$A$1:$B$12,2,FALSE)) ->  | X81: Não pago | AA81: =IF(Z81="","",VLOOKUP(Z81,'Aux1'!$A$1:$B$12,2,FALSE)) ->  | AB81: =IF(AA81="", COUNTIF(AA$5:AA81, ""),"") -> 77 | AC81: 00:00:00.665 | AD81: 7.7e-06
N82: 0 | O82: 0 | S82: =VLOOKUP(D82,PC_Rec!$O$5:$P$18,2,FALSE) ->  | T82: =IF(D82="","",VLOOKUP(D82,PC_Rec!$O$5:$Q$18,3,FALSE)) ->  | W82: =IF(V82="","",VLOOKUP(V82,'Aux1'!$A$1:$B$12,2,FALSE)) ->  | X82: Não pago | AA82: =IF(Z82="","",VLOOKUP(Z82,'Aux1'!$A$1:$B$12,2,FALSE)) ->  | AB82: =IF(AA82="", COUNTIF(AA$5:AA82, ""),"") -> 78 | AC82: 00:00:00.674 | AD82: 7.8e-06
N83: 0 | O83: 0 | S83: =VLOOKUP(D83,PC_Rec!$O$5:$P$18,2,FALSE) ->  | T83: =IF(D83="","",VLOOKUP(D83,PC_Rec!$O$5:$Q$18,3,FALSE)) ->  | W83: =IF(V83="","",VLOOKUP(V83,'Aux1'!$A$1:$B$12,2,FALSE)) ->  | X83: Não pago | AA83: =IF(Z83="","",VLOOKUP(Z83,'Aux1'!$A$1:$B$12,2,FALSE)) ->  | AB83: =IF(AA83="", COUNTIF(AA$5:AA83, ""),"") -> 79 | AC83: 00:00:00.683 | AD83: 7.9e-06
N84: 0 | O84: 0 | S84: =VLOOKUP(D84,PC_Rec!$O$5:$P$18,2,FALSE) ->  | T84: =IF(D84="","",VLOOKUP(D84,PC_Rec!$O$5:$Q$18,3,FALSE)) ->  | W84: =IF(V84="","",VLOOKUP(V84,'Aux1'!$A$1:$B$12,2,FALSE)) ->  | X84: Não pago | AA84: =IF(Z84="","",VLOOKUP(Z84,'Aux1'!$A$1:$B$12,2,FALSE)) ->  | AB84: =IF(AA84="", COUNTIF(AA$5:AA84, ""),"") -> 80 | AC84: 00:00:00.691 | AD84: 8e-06
N85: 0 | O85: 0 | S85: =VLOOKUP(D85,PC_Rec!$O$5:$P$18,2,FALSE) ->  | T85: =IF(D85="","",VLOOKUP(D85,PC_Rec!$O$5:$Q$18,3,FALSE)) ->  | W85: =IF(V85="","",VLOOKUP(V85,'Aux1'!$A$1:$B$12,2,FALSE)) ->  | X85: Não pago | AA85: =IF(Z85="","",VLOOKUP(Z85,'Aux1'!$A$1:$B$12,2,FALSE)) ->  | AB85: =IF(AA85="", COUNTIF(AA$5:AA85, ""),"") -> 81 | AC85: 00:00:00.700 | AD85: 8.1e-06
N86: 0 | O86: 0 | S86: =VLOOKUP(D86,PC_Rec!$O$5:$P$18,2,FALSE) ->  | T86: =IF(D86="","",VLOOKUP(D86,PC_Rec!$O$5:$Q$18,3,FALSE)) ->  | W86: =IF(V86="","",VLOOKUP(V86,'Aux1'!$A$1:$B$12,2,FALSE)) ->  | X86: Não pago | AA86: =IF(Z86="","",VLOOKUP(Z86,'Aux1'!$A$1:$B$12,2,FALSE)) ->  | AB86: =IF(AA86="", COUNTIF(AA$5:AA86, ""),"") -> 82 | AC86: 00:00:00.708 | AD86: 8.2e-06
N87: 0 | O87: 0 | S87: =VLOOKUP(D87,PC_Rec!$O$5:$P$18,2,FALSE) ->  | T87: =IF(D87="","",VLOOKUP(D87,PC_Rec!$O$5:$Q$18,3,FALSE)) ->  | W87: =IF(V87="","",VLOOKUP(V87,'Aux1'!$A$1:$B$12,2,FALSE)) ->  | X87: Não pago | AA87: =IF(Z87="","",VLOOKUP(Z87,'Aux1'!$A$1:$B$12,2,FALSE)) ->  | AB87: =IF(AA87="", COUNTIF(AA$5:AA87, ""),"") -> 83 | AC87: 00:00:00.717 | AD87: 8.3e-06
N88: 0 | O88: 0 | S88: =VLOOKUP(D88,PC_Rec!$O$5:$P$18,2,FALSE) ->  | T88: =IF(D88="","",VLOOKUP(D88,PC_Rec!$O$5:$Q$18,3,FALSE)) ->  | W88: =IF(V88="","",VLOOKUP(V88,'Aux1'!$A$1:$B$12,2,FALSE)) ->  | X88: Não pago | AA88: =IF(Z88="","",VLOOKUP(Z88,'Aux1'!$A$1:$B$12,2,FALSE)) ->  | AB88: =IF(AA88="", COUNTIF(AA$5:AA88, ""),"") -> 84 | AC88: 00:00:00.726 | AD88: 8.4e-06
N89: 0 | O89: 0 | S89: =VLOOKUP(D89,PC_Rec!$O$5:$P$18,2,FALSE) ->  | T89: =IF(D89="","",VLOOKUP(D89,PC_Rec!$O$5:$Q$18,3,FALSE)) ->  | W89: =IF(V89="","",VLOOKUP(V89,'Aux1'!$A$1:$B$12,2,FALSE)) ->  | X89: Não pago | AA89: =IF(Z89="","",VLOOKUP(Z89,'Aux1'!$A$1:$B$12,2,FALSE)) ->  | AB89: =IF(AA89="", COUNTIF(AA$5:AA89, ""),"") -> 85 | AC89: 00:00:00.734 | AD89: 8.5e-06
N90: 0 | O90: 0 | S90: =VLOOKUP(D90,PC_Rec!$O$5:$P$18,2,FALSE) ->  | T90: =IF(D90="","",VLOOKUP(D90,PC_Rec!$O$5:$Q$18,3,FALSE)) ->  | W90: =IF(V90="","",VLOOKUP(V90,'Aux1'!$A$1:$B$12,2,FALSE)) ->  | X90: Não pago | AA90: =IF(Z90="","",VLOOKUP(Z90,'Aux1'!$A$1:$B$12,2,FALSE)) ->  | AB90: =IF(AA90="", COUNTIF(AA$5:AA90, ""),"") -> 86 | AC90: 00:00:00.743 | AD90: 8.6e-06
N91: 0 | O91: 0 | S91: =VLOOKUP(D91,PC_Rec!$O$5:$P$18,2,FALSE) ->  | T91: =IF(D91="","",VLOOKUP(D91,PC_Rec!$O$5:$Q$18,3,FALSE)) ->  | W91: =IF(V91="","",VLOOKUP(V91,'Aux1'!$A$1:$B$12,2,FALSE)) ->  | X91: Não pago | AA91: =IF(Z91="","",VLOOKUP(Z91,'Aux1'!$A$1:$B$12,2,FALSE)) ->  | AB91: =IF(AA91="", COUNTIF(AA$5:AA91, ""),"") -> 87 | AC91: 00:00:00.752 | AD91: 8.7e-06
N92: 0 | O92: 0 | S92: =VLOOKUP(D92,PC_Rec!$O$5:$P$18,2,FALSE) ->  | T92: =IF(D92="","",VLOOKUP(D92,PC_Rec!$O$5:$Q$18,3,FALSE)) ->  | W92: =IF(V92="","",VLOOKUP(V92,'Aux1'!$A$1:$B$12,2,FALSE)) ->  | X92: Não pago | AA92: =IF(Z92="","",VLOOKUP(Z92,'Aux1'!$A$1:$B$12,2,FALSE)) ->  | AB92: =IF(AA92="", COUNTIF(AA$5:AA92, ""),"") -> 88 | AC92: 00:00:00.760 | AD92: 8.8e-06
N93: 0 | O93: 0 | S93: =VLOOKUP(D93,PC_Rec!$O$5:$P$18,2,FALSE) ->  | T93: =IF(D93="","",VLOOKUP(D93,PC_Rec!$O$5:$Q$18,3,FALSE)) ->  | W93: =IF(V93="","",VLOOKUP(V93,'Aux1'!$A$1:$B$12,2,FALSE)) ->  | X93: Não pago | AA93: =IF(Z93="","",VLOOKUP(Z93,'Aux1'!$A$1:$B$12,2,FALSE)) ->  | AB93: =IF(AA93="", COUNTIF(AA$5:AA93, ""),"") -> 89 | AC93: 00:00:00.769 | AD93: 8.9e-06
N94: 0 | O94: 0 | S94: =VLOOKUP(D94,PC_Rec!$O$5:$P$18,2,FALSE) ->  | T94: =IF(D94="","",VLOOKUP(D94,PC_Rec!$O$5:$Q$18,3,FALSE)) ->  | W94: =IF(V94="","",VLOOKUP(V94,'Aux1'!$A$1:$B$12,2,FALSE)) ->  | X94: Não pago | AA94: =IF(Z94="","",VLOOKUP(Z94,'Aux1'!$A$1:$B$12,2,FALSE)) ->  | AB94: =IF(AA94="", COUNTIF(AA$5:AA94, ""),"") -> 90 | AC94: 00:00:00.778 | AD94: 9e-06
N95: 0 | O95: 0 | S95: =VLOOKUP(D95,PC_Rec!$O$5:$P$18,2,FALSE) ->  | T95: =IF(D95="","",VLOOKUP(D95,PC_Rec!$O$5:$Q$18,3,FALSE)) ->  | W95: =IF(V95="","",VLOOKUP(V95,'Aux1'!$A$1:$B$12,2,FALSE)) ->  | X95: Não pago | AA95: =IF(Z95="","",VLOOKUP(Z95,'Aux1'!$A$1:$B$12,2,FALSE)) ->  | AB95: =IF(AA95="", COUNTIF(AA$5:AA95, ""),"") -> 91 | AC95: 00:00:00.786 | AD95: 9.1e-06
